{"text_format":"1","workbook":"xlsx","n_sheets":17,"sheets":["Styrning","1. Start Bas-P","2. Start Plan proj","3. Start Bas-U","4. Start Verksamma","5. Bas-P","6. Plan proj","7. Bas-U","8. Bas-U, Byh rond","9. Verksamma"," ","Hjälp 1. & 5. Bas-P","Hjälp 2. & 6. Plan Proj","Hjälp 3.,7. & 8. Bas-U","Hjälp 4. & 9. Verksamma","(Resultat Test) ","(Stöd Riskområdesbilaga Test)"],"not_rendered":{"charts":7,"images":1,"macros":0,"external_links":1,"defined_names":74,"comments":10,"pivot_tables":0},"unopened":[],"bounds":{"document_bytes":16777216,"sheet_cells":100000,"rows_first":2000,"rows_last":500,"rows_between":2000,"halvings":0,"cell_chars":16384,"cell_head_chars":4096},"cells_cut":0,"cells_raw":0,"read":"whole","date_system":"1900"}

{"sheet":"Styrning","index":0,"n_rows":31,"n_cols":17,"rows_kept":31,"cut":false,"hidden":false,"merged":[[30,10,42,17],[22,13,22,14],[22,15,22,17],[25,10,25,11],[25,13,25,14],[25,15,25,17],[28,10,28,11],[28,13,28,14],[28,15,28,17],[1,0,42,8],[23,12,24,12],[29,10,29,11],[22,10,22,11],[26,10,26,11],[2,10,5,16],[29,13,29,14],[29,15,29,17],[23,10,24,11],[23,15,24,17],[23,13,24,14],[26,13,26,14],[26,15,26,17],[27,10,27,11],[27,13,27,14],[27,15,27,17]]}
[]
["Denna mall innehåller checklistor för uppföljning av krav utifrån byggherrens skyldigheter i arbetsmiljölagstiftningen, samt Trafikverkets krav och kontrakt. \n\nStyrning, ta del av innan uppföljning \nÖvergripande intern styrning, riktlinje och rutindokument:\n-   TDOK 2024:0017    Uppföljning av leverantör i GÅ-processen\n-   TDOK 2018:0151    Byggherrens arbetsmiljöansvar vid byggnads- och anläggningsarbeten\n-   TDOK 2018:0100    Projektets kontrollprogram \n\nKravdokument:\n-   TDOK 2016:0032    Kvalitetsstyrning i upphandlad verksamhet- Entreprenad och Projekteringstjänster \n\nTMALL 1002 Checklista\nHuvudfrågor\nHuvudfrågor, baseras på grundläggande skyldighet eller övergripande arbetsuppgift enligt arbetsmiljölagstiftningen. Se markerade frågor med färg- och fetstil, samt numreringshierarki.\n\nDelfrågor\nRelevanta delfrågor ställs för att följa upp detaljerade bestämmelser och/ eller kontraktskrav med avseende på överliggande fråga, se numreringshierarki. Huvudfråga eller annan enskild frågor kan ha delfrågor. Delfrågorna är även en vägledning till vad huvudfrågorna innefattar. \n\n",null,null,null,null,null,null,null,null,null,"Checklistor för uppföljning"]
[null,null,null,null,null,null,null,null,null,null,"Mallarna är indelade efter användande vid uppstart av arbetet samt för kontinuerlig uppföljning, enligt följande checklistor (finns i respektive flik nedan):"]
[]
[]
[]
[]
[null,null,null,null,null,null,null,null,null,null,"• Uppföljning av arbetssätt vid uppstart"]
[null,null,null,null,null,null,null,null,null,null,null,"1. Uppföljning vid uppstart Bas-P   ",null,null,null,null,"Länk 1."]
[null,null,null,null,null,null,null,null,null,null,null,"2. Uppföljning vid uppstart Planering och projektering ",null,null,null,null,"Länk 2"]
[null,null,null,null,null,null,null,null,null,null,null,"3. Uppföljning vid uppstart Bas-U",null,null,null,null,"Länk 3"]
[null,null,null,null,null,null,null,null,null,null,null,"4. Uppföljning vid uppstart, verksamma på byggarbetsplats (ej Bas-U)",null,null,null,null,"Länk 4"]
[]
[null,null,null,null,null,null,null,null,null,null,"• Kontinuerlig uppföljning"]
[null,null,null,null,null,null,null,null,null,null,null,"5. Uppföljning Bas-P  ",null,null,null,null,"Länk 5"]
[null,null,null,null,null,null,null,null,null,null,null,"6. Uppföljning Planering och projektering  ",null,null,null,null,"Länk 6"]
[null,null,null,null,null,null,null,null,null,null,null,"7. Uppföljning Bas-U   ",null,null,null,null,"Länk 7"]
[null,null,null,null,null,null,null,null,null,null,null,"8. Uppföljning Bas-U, Byggherrens rond  ",null,null,null,null,"Länk 8"]
[null,null,null,null,null,null,null,null,null,null,null,"9. Uppföljning , verksamma på byggarbetsplats  (ej Bas-U)",null,null,null,null,"Länk 9"]
[]
[]
[null,null,null,null,null,null,null,null,null,null,"Versionslogg TMALL 1002"]
[null,null,null,null,null,null,null,null,null,null,"Fastställd version ",null,"Dokumentdatum ","Ändring",null," Namn"]
[null,null,null,null,null,null,null,null,null,null,"Version 1.0",null," 2019-06-17 ","Ny version ",null,"Teresa Norling, IVts Förvaltare\nEstelle Ponton, PRvev bitr förvaltare"]
[]
[null,null,null,null,null,null,null,null,null,null,"Version 2.0",null,"2021-08-13","Konfidentialitetstext tillagd i sidhuvudet",null,"Lena Magnusson, IVvsup"]
[null,null,null,null,null,null,null,null,null,null,"Version 3.0",null," 2023-05-04 ","Frågor AFS 2020:1\nTexter Styrning & stöd Information vitesfrågor ",null,"Rebecca Magnusson, IVvssn, Förvaltare\nFO BHAM förvaltningsgrupp\n"]
[null,null,null,null,null,null,null,null,null,null,"Version 4.0",null,"2024-09-12","Frågor ny AFS 2023:3. Anpassning systemstöd BUS, Indata, rubriker, format samt \"Hjälp\"- stöd.",null,"Rebecca Magnusson, IVvssb, Förvaltare\nFO BHAM förvaltningsgrupp\n"]
[]
[]
[null,null,null,null,null,null,null,null,null,null,"Teckenförklaring\n\n1)    Arbetssätt redovisat vid uppstart/ i projektplan, enligt \"Kvalitetsstyrning i upphandlad verksamhet \n       - Entreprenad och Projekteringstjänster\" TDOK 2016:0032. \n\n(b)   Bas-P uppgifter för uppföljning i byggskedet (ny- eller omprojektering), se enbart frågor \n         markerade (b).\n\n(BM)  Uppföljning på kontraktsmöten. För uppföljning Bas-U kan frågor i checklista markerade med (BM)\n         hanteras regelbundet genom ”Rapport inför bygg- och projekteringsmöte” TMALL 0908, se \n         \"Stöd till dagordning för bygg- och projekteringsmöte\" TDOK 2019:0090. (VOIV) \n\nNr x.x.x :  Vitesbelagd fråga, kommentar med hänvisning till AF/kontraktskoder "]

{"sheet":"1. Start Bas-P","index":1,"n_rows":43,"n_cols":10,"rows_kept":43,"cut":false,"hidden":false,"merged":[[38,1,38,2],[39,1,39,2],[40,1,40,2],[42,1,42,2],[43,1,43,2],[19,1,19,2],[18,1,18,2],[33,1,33,2],[35,1,35,2],[37,1,37,2],[31,1,31,2],[3,7,3,8],[0,0,1,4],[17,1,17,2],[30,1,30,2],[20,1,20,2],[22,1,22,2],[23,1,23,2],[24,1,24,2],[25,1,25,2],[26,1,26,2],[27,1,27,2],[28,1,28,2],[29,1,29,2],[8,3,8,8],[11,1,11,2],[15,1,15,2],[16,1,16,2],[9,1,9,2],[12,1,12,2],[13,1,13,2],[14,1,14,2],[7,7,7,8],[4,2,4,3],[5,2,5,3],[6,2,6,3],[7,2,7,3],[4,7,4,8],[5,7,5,8],[6,7,6,8]]}
["1. Uppföljning av arbetssätt vid uppstart/projektplan:\n    Bas-P"]
[null,null,null,null,null,null,"Datum: "]
[null,null,null,null,null,null,"Genomförd av: "]
["Organisationsuppgifter",null,null,null,"Byggherrerepresentant:"]
["VO:",null,null,null,"(om annan än projektledaren)"]
["Distrikt/program:",null,null,null,"Projektledare:"]
["Projekt/Kontrakt",null,null,null,"Leverantör: "]
["Fas/skede:",null,null,null,"Deltagare, roll:"]
[null,null,null,"Trafikverkets interna styrning: Rutin TDOK 2018:0151  Byggherrens arbetsmiljöansvar vid byggnads- och anläggningsarbeten "]
["Nr","Frågor \n Kvalifikationer och \ndokumenterade arbetssätt ",null,"Hänvisning \nLagstöd \n","Ja, Accepterad\n[x]","Nej, Mindre anmärkning\n[x] ","Nej,  Avvikelse\n[x]","Ej relevant\nEj ställd\n[x]","Kommentar \nVad uppföljningen/ stickprovet omfattar (t ex risk, dokument och verifikat). Förbättring/ anmärkning/ avvikelse. Åtgärder. ","Hjälp\n(länk)\n[?]"]
[null,"Uppdraget och Bas-P:s kvalifikationer                                     ",null,null,null,null,null,null,null,"?"]
["1.1","Har Bas-P visat uppgifter på att man har den utbildning, kompetens och erfarenhet som behövs för det aktuella projektet? (b)\n",null,"2 kap 9 §,  \n3 kap 2-3 §§ 2023:3",null,null,null,null,null,"?"]
["1.1.1","Motsvarar Bas-Ps utbildning, kompetens och erfarenhet projektets storlek, komplexitet och risknivå? (b)\n",null,"3 kap 2- 3 §§,\n2 kap 9, 11 §§ AFS 2023:3",null,null,null,null,null,"?"]
["1.1.2","Har juridisk Bas-P avsatt/tillgång till tillräckligt med tid och personal för arbetsmiljöuppgifterna i byggprojektet?",null,"3 kap 2-3 §§,\n2 kap 9, 11 §§ AFS 2023:3",null,null,null,null,null,"?"]
["1.1.3","Är handläggare Bas-P en anställd person eller inhyrd (resurskonsult)?(b)\n",null,"3 kap 3 § och 2 kap 9 § 2023:3",null,null,null,null,null,"?"]
["1.1.4","Finns referenser för handläggare Bas-P från tidigare uppdrag?(b)",null,null,null,null,null,null,null,"?"]
["1.1.5","Finns dokumenterad fördelning av uppgifterna samt kvalifikationer, om flera personer  (handläggarresurser) ska genomföra Bas-Ps arbetsuppgifter? (b)",null,"3 kap 3 § AFS 2023:3",null,null,null,null,null,"?"]
["1.2","Finns arbetssätt för hur överlämning sker vid byte av handläggare Bas-P? (b)",null,"3kap 18§, 11 kap 15§ AFS 2023:3\nTDOK 2016:0032",null,null,null,null,null,"?"]
["1.3","Formas organisationen så att Bas-P deltar i planering av projektering samt i ledning av projektering på det sätt som behövs? (b)\n",null,"3 kap 5 § och 6 §, AFS 2023:3",null,null,null,null,null,"?"]
["1.4","Har Bas-P de förutsättningar som behövs för att kunna utföra sina arbetsmiljöuppgifter?(b)",null,"2kap 9 § och 18 §, AFS 2023:3",null,null,null,null,null,"?"]
["1.5","Har man i upprättat kontrollprogram/ kontrollplaner beaktat skyldigheter, kontraktskrav och arbetssätt med avseende på Bas-P:s arbetsuppgifter? (b)",null," TDOK 2016:0032",null,null,null,null,null,"?"]
[null,"Samordning i syfte att minska arbetsmiljörisker under byggskede samt framtida drift och underhåll\n                            ",null,null,null,null,null,null,null,"?"]
["1.6","Finns det arbetssätt för hur Bas-P ska samordna så att de som medverkar tar hänsyn till varandras planer och lösningar i syfte att minska arbetsmiljörisker under byggskedet samt framtida drift och underhåll?  (b)",null,"3 kap 7-7a §§ AML , \n3 kap 5-6 §§, AFS 2023:3\nTDOK 2016:0032",null,null,null,null,null,"?"]
["1.6.1","Finns det  arbetsätt  i rutin för hur Bas-P arbetar  enligt grundprinciperna för att förebygga arbetsmiljörisker? (b)\n",null,"3 kap 2,4 §§, 8 kap 2 §, AFS 2023:3\nTDOK 2016:0032",null,null,null,null,null,"?"]
["1.6.2","Finns det arbetssätt för hur Bas-P:s identifierade arbetsmiljörisker samordnas med de övriga projektrisker som hanteras i projekteringen? ",null,"3 kap 5-6 §§, AFS 2023:3\n",null,null,null,null,null,"?"]
["1.6.3","Finns det arbetssätt för hur Bas-P ska uppmärksamma projektörerna på deras skyldigheter? ",null,"3 kap 6 §, AFS 2023:3\nTDOK 2016:0032",null,null,null,null,null,"?"]
["1.6.4","Är Bas-P:s arbetssätt för samordning anpassat till punkten i Projekteringsbeskrivningen för samordning mellan ämnesområden? \n(Jämför krav i Uppdragsbeskrivning/UB)",null,null,null,null,null,null,null,"?"]
["1.6.5","Finns det arbetssätt för hur disposition av byggarbetsplatsen ska samordnas och redovisas?",null,"9 kap, 4-5 §§,\n5 kap (7), 12, 13 §§ AFS 2023:13",null,null,null,null,null,"?"]
["1.6.6","Finns det arbetssätt för hur Bas-P samordnar arbetsmiljöaspekter utifrån redovisning  i BIM-modeller?\n(Jämför krav i Uppdragsbeskrivning/UB)",null,null,null,null,null,null,null,"?"]
["1.6.7","Finns arbetssätt för hur Bas-P klargör hur samordning av tillfälliga eller samverkande konstruktioner ska gå till?",null,"3 kap 8 §, AFS 2023:3\nTDOK 2016:0032",null,null,null,null,null,"?"]
["1.6.8","Finns det arbetsätt för hur Bas-P samordnar den projekteringen som fortsätter i byggskede, samt hur information överlämnas till Bas U så att arbetsmiljöplanen kan uppdateras? (b)\n",null,"2 kap 24 §,\n3 kap 19 §, AFS 2023:3\nTDOK 2016:0032",null,null,null,null,null,"?"]
["1.7","Finns det arbetsätt för hur Bas-P kontrollerar att projektörerna har rutiner och arbetar enligt dessa för att förebygga arbetsmiljörisker i byggskedet? (b)\n\n",null,"3 kap 10 §, AFS 2023:3\nTDOK 2016:0032",null,null,null,null,null,"?"]
[null,"Samordning av tillämpningen av relevanta arbetsmiljöregler.                                              ",null,null,null,null,null,null,null,"?"]
["1.8","Finns det arbetssätt för hur samordning ska ske av relevanta arbetsmiljöregler? (b)\n",null,"3 kap 7a §  AML \nTDOK 2016:0032",null,null,null,null,null,"?"]
[null,"Samordning i tid och rum                            ",null,null,null,null,null,null,null,"?"]
["1.9","Finns det arbetssätt för hur Bas-P ska samordna så inte olika delar av utförandet sammanfaller i tid och rum så att risker uppstår? ",null,"3 kap 7 a § AML , \n3 kap 5-6§§ AFS 2023:3\nTDOK 2016:0032",null,null,null,null,null,"?"]
[null,"Dokumentation. Arbetsmiljöplan, PM Arbetsmiljö samt  Arbetsmiljödokumentation inför framtida drift och underhåll.                         ",null,null,null,null,null,null,null,"?"]
["1.10","Finns det arbetssätt för hur Bas-P ska upprätta en arbetsmiljöplan, med innehåll enligt de fyra avsnitten i föreskriften?\n",null,"3 kap. 7 a § AML,\n11 kap 7, 9-12§§ AFS 2023:3\nTDOK 2016:0032",null,null,null,null,null,"?"]
["1.10.1","Finns det arbetsätt för hur Bas-P håller  arbetsmiljöplanen uppdaterad med de uppgifter som är kända i byggprojektet?",null,"3 kap 2 §, 11 kap 4 § AFS 2023:3\nTDOK 2016:0032",null,null,null,null,null,"?"]
["1.10.2","Finns arbetssätt för hur arbetsmiljöplanen uppdateras med beskrivningen av hur arbetet organiseras och ska bedrivas vid projekteringen?",null,"3 kap 2 §, 11 kap 9 § AFS 2023:3\nTDOK 2016:0032",null,null,null,null,null,"?"]
["1.11","Finns det arbetssätt för hur Bas-P dokumenterar arbetsmiljöarbetet i PM Arbetsmiljö?\n(Jämför krav i Uppdragsbeskrivning/UB)",null,null,null,null,null,null,null,"?"]
[null,"Dokumentation, Arbetsmiljödokumentation inför framtida drift och underhåll.                            ",null,null,null,null,null,null,null,"?"]
["1.12","Finns det arbetssätt för hur Bas-P ska arbeta fram och löpande anpassa en  arbetsmiljödokumentation inför framtida drift och underhåll? ",null,"3 kap 7 a § AML, \n10 kap 5-6 §§, \n3 kap 20 § AFS 2023:3\nTDOK 2016:0032",null,null,null,null,null,"?"]

{"sheet":"2. Start Plan proj","index":2,"n_rows":31,"n_cols":10,"rows_kept":31,"cut":false,"hidden":false,"merged":[[16,1,16,2],[24,1,24,2],[25,1,25,2],[26,1,26,2],[11,1,11,2],[12,1,12,2],[13,1,13,2],[14,1,14,2],[30,1,30,2],[17,1,17,2],[18,1,18,2],[19,1,19,2],[20,1,20,2],[22,1,22,2],[21,1,21,2],[31,1,31,2],[3,7,3,8],[0,0,1,5],[8,3,8,8],[9,1,9,2],[4,2,4,3],[5,2,5,3],[6,2,6,3],[7,2,7,3],[4,7,4,8],[5,7,5,8],[6,7,6,8],[7,7,7,8],[27,1,27,2],[28,1,28,2],[29,1,29,2]]}
["2. Uppföljning av arbetssätt vid uppstart/projektplan:\n    Planering och projektering, inom ramen för sitt uppdrag"]
[null,null,null,null,null,null,"Datum: "]
[null,null,null,null,null,null,"Genomförd av: "]
["Organisationsuppgifter",null,null,null,"Byggherrerepresentant:"]
["VO:",null,null,null,"(om annan än projektledaren)"]
["Distrikt/program:",null,null,null,"Projektledare:"]
["Projekt/Kontrakt",null,null,null,"Leverantör: "]
["Fas/skede:",null,null,null,"Deltagare, roll:"]
[null,null,null,"Trafikverkets interna styrning: Rutin TDOK 2018:0151  Byggherrens arbetsmiljöansvar vid byggnads- och anläggningsarbeten "]
["Nr","Frågor \n Kvalifikationer och \ndokumenterade arbetssätt ",null,"Hänvisning \nLagstöd \n","Ja, Accepterad\n[x]","Nej, Mindre anmärkning\n[x] ","Nej,  Avvikelse\n[x]","Ej relevant\nEj ställd\n[x]","Kommentar \nVad uppföljningen/ stickprovet omfattar (t ex risk, dokument och verifikat). Förbättring/ anmärkning/ avvikelse. Åtgärder. ","Hjälp\n(länk)\n[?]"]
[null,"Uppdraget och kvalifikationer                                                      ",null,null,null,null,null,null,null,"?"]
["2.1","Har man visat att man har tillräcklig utbildning,\nkompetens och erfarenhet enligt ställda\nkontraktskrav (b)",null,"2 kap 13 §, AFS 2023:3\n",null,null,null,null,null,"?"]
["2.1.1","Motsvarar kompetens och erfarenhet det aktuella projektets storlek, komplexitet och  risknivå? (b)\n",null,"2 kap 13 §, AFS 2023:3\n",null,null,null,null,null,"?"]
["2.2","Framgår i arbetssätt med rutin vilka hjälpmedel eller kontrollsystem som ska användas av projektörer, samt hur förslag till utformningen av anläggning ska granskas ur arbetsmiljösynpunkt?",null,"6 kap 5 §,\n10 kap 3 § AFS 2023:3\nTDOK 2016:0032\n\n",null,null,null,null,null,"?"]
["2.2.1","Har man i upprättat kontrollprogram/ kontrollplaner beaktat skyldigheter, kontraktskrav och arbetssätt med avseende på arbetsmiljö? (b)\n",null,"6 kap 5 §, \n10 kap 3 § AFS 2023:3\nTDOK 2016:0032\n\n",null,null,null,null,null,"?"]
[null," Förebygga arbetsmiljörisker. Beakta arbetsmiljön inför byggskede samt framtida drift och underhåll.                                    ",null,null,null,null,null,null,null,"?"]
["2.3","Finns det arbetsätt i rutin för hur man i projekteringen arbetar enligt grundprinciperna för att förebygga arbetsmiljörisker? (b)\n",null,"6 kap 2, 5 §§, 8 kap 2 §, 10 kap 3 §, AFS 2023:3\nTDOK 2016:0032",null,null,null,null," \n","?"]
["2.4","Finns det arbetsätt för hur man systematiskt  identifierar relevanta bestämmelser ur AFS \"Övriga regler\"? (b)\n(Se bland annat AFS 2023:12 om utformning av arbetsplatser och AFS 2023:13 om risker vid vissa typer av arbeten)\n\n",null,"10 kap 1, 3 §§  AFS 2023:3,\nAFS 2023:12,\n 9 kap 1, 5 §§ och 11 kap 12 § AFS 2023:3, AFS 2023:13\n3 kap. 7 a § AML\nTDOK 2016:0032  ",null,null,null,null,null,"?"]
["2.5","Finns det arbetssätt för hur man ska planera och projektera för att  förebygga arbetsmiljörisker och beakta arbetsmiljön i byggskede samt framtida drift och underhåll? \n",null,"3 kap 7 § AML \n6, 9, 10 kap. AFS 2023:3\nTDOK 2016:0032",null,null,null,null,null,"?"]
["2.5.1","Finns det arbetssätt med  rutin för hur de som medverkar vid planering och projektering ska beakta arbetsmiljösynpunkter för byggskedet? (b)\nFör uppdraget relevanta punkter: \n- objektets eller anläggningens placering och utformning,\n- val av byggprodukter,\n- val av konstruktioner för grundläggning, stomsystem eller andra bärande element,\n- val och utformning av stomkomplettering,\n- val av installationer, deras placering och infästning \n- val av inredningar.\n- transporter av byggmaterial m m kan ske på ett säkert sätt\n- etableringsområdet är tillräckligt stort så att all verksamhet får plats\n- risker och kartläggning inför rivning",null,"3 kap 7 § AML\n2 kap 5 §, \n6 kap 5, 6 §§, \n9 kap 1, 3, 4, 5, 6, 7, 9, 10, 11 §§, \n(11 kap 12 §) AFS 2023:3\nsamt \nAFS 2023:13\nTDOK 2016:0032",null,null,null,null,null,"?"]
["2.5.1.1","Finns det arbetsätt i rutin för hur man i projekteringen tar hänsyn till arbetsmiljön under byggskedet när man tar fram ritningar, beskrivningar och beräkningar? (b)\n",null,"6 kap 5 § AFS 2023:3\nTDOK 2016:0032",null,null,null,null,null,"?"]
["2.5.1.2","Finns det arbetsätt  för hur man utformar tillfälliga konstruktioner och samverkande konstruktioner så att de klarar  belastningarna under byggskedet? (b)",null,"6 kap 7 § AFS 2023:3\nTDOK 2016:0032",null,null,null,null,null,"?"]
["2.5.2","Finns det arbetssätt för hur de som medverkar vid planering och projektering ska beakta arbetsmiljösynpunkter för framtida drift och underhåll? (b)",null,"3 kap 7 § AML \n6 & 10 kap. AFS 2023:3,\nAFS 2023:12\nTDOK 2016:0032\n",null,null,null,null,null,"?"]
[null,"Samordning och dokumentation\n                            ",null,null,null,null,null,null,null,"?"]
["2.6","Finns det arbetssätt för hur projektörer medverkar i Bas-P:s samordning av projektering, i frågor som har betydelse för arbetsmiljön under byggskede eller framtida drift, underhåll? (b)",null,"3 kap 7 §  AML\n6 kap 2-5,8 §§,\n11 kap 9 § AFS 2023:3\nTDOK 2016:0032",null,null,null,null,null,"?"]
["2.6.1","Finns det arbetsätt med skriftliga rutiner för hur man löpande avser delge identifierade risker med tillhörande behandling/ åtgärdsbeskrivning till Bas-P samt beställaren? (b)",null,"3 kap 7 §  AML\n6 kap 3,5 §§ AFS 2023:3\nTDOK 2016:0032\n",null,null,null,null,null,"?"]
["2.6.2","Finns det arbetsätt för hur man avser kontrollera att lösningar fungerar med andra projektörers lösningar av betydelse för arbetsmiljön? (b) ",null,"6 kap 4 § AFS 2023:3\nTDOK 2016:0032",null,null,null,null,null,"?"]
["2.6.3","Finns det arbetsätt med skriftliga rutiner för hur man löpande avser delge arbetsmiljösynpunkter som beaktas vid val av utformning eller teknisk lösning\ntill Bas-P samt beställaren? (b)",null,"3 kap 7 § AML\n6 kap 2-5,8 §§ \nAFS 2023:3\nTDOK 2016:0032",null,null,null,null,null,"?"]
["2.7","Finns det arbetssätt för hur geografiskt knutna arbetsmiljöaspekter ska redovisas i BIM-modeller, alternativt i annan dokumentation exempelvis på ritningar?\n(Jämför krav i Uppdragsbeskrivning/UB)",null,"6 kap 5 §, 8 kap 2 § AFS 2023:3\n",null,null,null,null,null,"?"]
["2.8","Finns det arbetssätt för hur man avser delge Bas-P uppgifter löpande inför slutdokumentation med för arbetsmiljön relevant information inför framtida drift, underhåll, reparationer, ändringar och rivning? (b)",null,"2 kap 27 § & 10 kap. 5 § AFS 2023:3",null,null,null,null,null,"?"]
[null,"Om fältundersökningar och platsbesök ingår i uppdraget - Se checklista 4. för arbetsgivare verksamma på byggarbetsplats …",null,"3 kap 7 g § AML",null,null,null,null,null,"?"]

{"sheet":"3. Start Bas-U","index":3,"n_rows":36,"n_cols":10,"rows_kept":36,"cut":false,"hidden":false,"merged":[[26,1,26,2],[20,1,20,2],[21,1,21,2],[22,1,22,2],[23,1,23,2],[24,1,24,2],[0,0,1,4],[8,3,8,8],[5,2,5,3],[6,2,6,3],[7,2,7,3],[4,7,4,8],[5,7,5,8],[6,7,6,8],[7,7,7,8],[4,2,4,3],[30,1,30,2],[32,1,32,2],[33,1,33,2],[35,1,35,2],[3,7,3,8],[17,1,17,2],[9,1,9,2],[11,1,11,2],[12,1,12,2],[13,1,13,2],[14,1,14,2],[16,1,16,2],[15,1,15,2],[29,1,29,2],[28,1,28,2],[18,1,18,2]]}
["3. Uppföljning av arbetssätt vid uppstart/ projektplan: \n    Bas-U "]
[null,null,null,null,null,null,"Datum: "]
[null,null,null,null,null,null,"Genomförd av: "]
["Organisationsuppgifter",null,null,null,"Byggherrerepresentant:"]
["VO:",null,null,null,"(om annan än projektledaren)"]
["Distrikt/program:",null,null,null,"Projektledare:"]
["Projekt/Kontrakt",null,null,null,"Leverantör: "]
["Fas/skede:",null,null,null,"Deltagare, roll:"]
[null,null,null,"Trafikverkets interna styrning: Rutin TDOK 2018:0151  Byggherrens arbetsmiljöansvar vid byggnads- och anläggningsarbeten "]
["Nr","Frågor \n Kvalifikationer och \ndokumenterade arbetssätt ",null,"Hänvisning \nLagstöd \n","Ja, Accepterad\n[x]","Nej, Mindre anmärkning\n[x] ","Nej,  Avvikelse\n[x]","Ej relevant\nEj ställd\n[x]","Kommentar \nVad uppföljningen/ stickprovet omfattar (t ex risk, dokument och verifikat). Förbättring/ anmärkning/ avvikelse. Åtgärder. ","Hjälp\n(länk)\n[?]"]
[null,"Uppdraget och Bas-U:s kvalifikationer                                        ",null,null,null,null,null,null,null,"?"]
["3.1","Har Bas-U visat uppgifter på att man har den utbildning, kompetens och erfarenhet som behövs för det aktuella projektet? ",null,"2 kap 9,11 §§,  \n4 kap 3 § AFS 2023:3",null,null,null,null,null,"?"]
["3.1.1","Motsvarar Bas-U:s utbildning, kompetens och erfarenhet projektets storlek, komplexitet och risknivå? \n",null,"2 kap 9,11 §§, \n4 kap 2,3 §§ AFS 2023:3 ",null,null,null,null,null,"?"]
["3.1.2","Har juridisk Bas-U avsatt/tillgång till tillräckligt med tid och personal för arbetsmiljöuppgifterna i byggprojektet?",null,"2 kap 9,11 §§, \n4 kap 2,3 §§ AFS 2023:3 ",null,null,null,null,null,"?"]
["3.1.3","Finns referenser för handläggare Bas-U från tidigare uppdrag?",null," 2 kap 9,11§ AFS 2023:3",null,null,null,null,null,"?"]
["3.1.4"," Finns dokumenterad fördelning av uppgifterna samt kvalifikationer om flera personer  (handläggarresurser) genomför Bas-U:s uppgifter? ",null,"2 kap 9, 11, 14 §§,\n4 kap. 3,4,19 §§ AFS 2023:3",null,null,null,null,null,"?"]
["3.2","Har Bas-U mottagit uppgifter från Bas-P innan byggstart via ett dokumenterat överlämningsmöte? ",null,"2 kap 23 §, 3 kap. 18 §, 11 kap. 15 § AFS 2023:3",null,null,null,null,null,"?"]
["3.3","Har Bas-U de förutsättningar som behövs för att  för att kunna utföra sina arbetsmiljöuppgifter? ",null,"2 kap 18 §  AFS 2023:3",null,null,null,null,null,"?"]
["3.4","Har man i upprättat kontrollprogram/ kontrollplaner beaktat skyldigheter, kontraktskrav och arbetssätt med avseende på Bas-U:s arbetsuppgifter? ",null,"\n TDOK 2016:0032",null,null,null,null,null,"?"]
[null,"Samordning i tid och rum med syfte att minska arbetsmiljörisker \n                            ",null,null,null,null,null,null,null,"?"]
["3.5","Finns det arbetssätt för hur Bas-U samordnar arbets-, tidsplanering och riskhantering från alla verksamma på byggarbetsplatsen? ",null,"3 kap 7 b,e §§ AML , \n4 kap 4, 5 §§ AFS 2023:3\nTDOK 2016:0032",null,null,null,null,null,"?"]
["3.5.1","Finns det arbetsätt  i rutin för hur Bas-U arbetar  enligt grundprinciperna för att förebygga arbetsmiljörisker? ",null,"4 kap 2, 4 §§, 8 kap 2 § AFS 2023:3\nTDOK 2016:0032",null,null,null,null,null,"?"]
["3.5.2","Finns det arbetsätt för hur Bas-U deltar och styr vid produktionsplaneringen, planeringen av arbetsmoment så att gemensamma arbetsmiljösynpunkter beaktas? ",null,"4 kap 5 § AFS 2023:3\nTDOK 2016:0032",null,null,null,null,null,"?"]
["3.5.3","Finns det arbetsätt för hur Bas-U ger entreprenörerna klartecken innan de påbörjat sitt arbete ?",null,"4 kap 12 §  AFS 2023:3\nTDOK 2016:0032",null,null,null,null,null,"?"]
["3.6","Finns det arbetssätt för hur av entreprenörens tillkommande/ förändrade projektering samordnas ur ett säkerhetsperspektiv? \n(Beaktas för bygg, drift, underhåll, i samarbete med konstruktör, Bas-P. Jfr även tillfälliga konstruktioner)",null,"3 kap 7 § AML \n(2 kap 24§ AFS 2023:3),\n3 kap 19 § AFS 2023:3)\n4 kap 4, 24, (29) §§, 8 kap 2§",null,null,null,null,null,"?"]
[null,"Samordning av tillämpningen av relevanta arbetsmiljöregler.                                              ",null,null,null,null,null,null,null,"?"]
["3.7","Finns det arbetssätt för hur samordning ska ske av tillämpningen av relevanta arbetsmiljöregler?  ",null,"3 kap 7 b § AML \n4 kap 4, 12, 14, (20) §§ AFS 2023:3\nTDOK 2016:0032",null,null,null,null,null,"?"]
[null,"Dokumentation. Arbetsmiljöplan                    ",null,null,null,null,null,null,null,"?"]
["3.8","Finns det arbetssätt för hur Bas-U håller arbetsmiljöplanen aktuell, tillgänglig och kommunicerad till alla verksamma på byggarbetsplatsen? ",null,"3 kap 7 b § AML ,  \n4 kap 27, 29 §§, 11 kap 5 § AFS 2023:3\nTDOK 2016:0032",null,null,null,null,null,"?"]
["3.8.1","Har Bas-U redovisat en första version av den anpassade arbetsmiljöplanen före de praktiska arbetena påbörjas?",null,"4 kap 12 §\n11 kap 5 § AFS 2023:3",null,null,null,null,null,"?"]
["3.8.2","Finns det arbetssätt för hur arbetsmiljörelaterad arbetsplatsintroduktion för nya medarbetare på byggarbetsplatsen ska genomföras?",null,"4 kap 15 § AFS 2023:3\nTDOK 2016:0032",null,null,null,null,null,"?"]
[null,"Följa upp arbetsmiljöarbetet",null,null,null,null,null,null,null,"?"]
["3.9","Finns det arbetssätt för hur Bas-U samordnar kontrollerna av att arbetet utförs på ett korrekt sätt och att arbetsmiljöplanen följs?",null,"3 kap 7b § AML \n4 kap 4, 20 § AFS 2023:3\nTDOK 2016:0032\n",null,null,null,null,null,"?"]
["3.10","Är det klargjort vilka åtgärder man vidtar då någon verksam på arbetsplatsen inte följer \nBas-U samordning och arbetsmiljöplan?",null,"4 kap 23 § AFS 2023:3 ",null,null,null,null,null,"?"]
[null,"Dokumentation, Arbetsmiljödokumentation inför framtida drift och underhåll.                            ",null,null,null,null,null,null,null,"?"]
["3.11","Finns det arbetssätt för hur Bas-U arbetar med att genomföra anpassningar i arbetsmiljödokumentationen inför framtida drift och underhåll? ",null,"4 kap 30 §,\n10 kap 5, 6 §§ AFS 2023:3\nTDOK 2016:0032",null,null,null,null,null,"?"]

{"sheet":"4. Start Verksamma","index":4,"n_rows":14,"n_cols":10,"rows_kept":14,"cut":false,"hidden":false,"merged":[[9,1,9,2],[11,1,11,2],[12,1,12,2],[13,1,13,2],[8,3,8,8],[0,0,1,5],[6,2,6,3],[7,2,7,3],[3,7,3,8],[4,7,4,8],[5,7,5,8],[6,7,6,8],[7,7,7,8],[4,2,4,3],[5,2,5,3]]}
["4. Uppföljning av arbetssätt vid uppstart/ projektplan:\n    Arbetsgivare verksamma på byggarbetsplats (Ej Bas-U)*)",null,null,null,null,null,null,null,"*) Se rutin TDOK 2018:0151. Omfattar även  bl a platsbesök och fältarbeten"]
[null,null,null,null,null,null,"Datum: "]
[null,null,null,null,null,null,"Genomförd av: "]
["Organisationsuppgifter",null,null,null,"Byggherrerepresentant:"]
["VO:",null,null,null,"(om annan än projektledaren)"]
["Distrikt/program:",null,null,null,"Projektledare:"]
["Projekt/Kontrakt",null,null,null,"Leverantör: "]
["Fas/skede:",null,null,null,"Deltagare, roll:"]
[null,null,null,"Trafikverkets interna styrning: Rutin TDOK 2018:0151  Byggherrens arbetsmiljöansvar vid byggnads- och anläggningsarbeten "]
["Nr","Frågor \n Kvalifikationer och \ndokumenterade arbetssätt ",null,"Hänvisning \nLagstöd \n","Ja, Accepterad\n[x]","Nej, Mindre anmärkning\n[x] ","Nej,  Avvikelse\n[x]","Ej relevant\nEj ställd\n[x]","Kommentar \nVad uppföljningen/ stickprovet omfattar (t ex risk, dokument och verifikat). Förbättring/ anmärkning/ avvikelse. Åtgärder. ","Hjälp\n(länk)\n[?]"]
[null,"Arbetsgivares samråd, lämna uppgifter och delta i samordning ",null,null,null,null,null,null,null,"?"]
["4.1","Finns det arbetssätt för hur leverantören ser till att den egna verksamheten inte medför risk för andra på arbetsplatsen och lämnar uppgifter om risker och produktionsplanering till Bas-U för samordning?\n(Där relevant, även uppgifter till samordningsansvarig för gemensamt arbetsställe med rådighetsansvar) ",null,"3 kap 7 g § AML ,\n2 kap 7 § AFS 2023:2 \n5 kap 5 §§  AFS 2023:13, \n4 kap 12-13 §§  AFS 2023:3\nTDOK 2016:0032",null,null,null,null,null,"?"]
["4.2","Finns det arbetssätt för hur leverantören deltar i arbetsmiljöarbetet och säkerställer att man följer anvisningar, arbetsmiljöplan med ordnings- och skyddsregler från Bas-U? \n(Där relevant, även samordningsansvarig för gemensamt arbetsställe med rådighetsansvar)",null,"3 kap 7 g  AML §, \n5 kap 9 § AFS 2023:13\nTDOK 2016:0032",null,null,null,null,null,"?"]
["4.2.1","Finns det arbetssätt för hur man anmäler platsbesök till Bas-U, samt tar del av och följer gällande arbetsmiljöplan med ordnings- och skyddsregler? \n(Där relevant, även samordningsansvarig för gemensamt arbetsställe med rådighetsansvar) ",null,"3 kap 7 g § AML ,\n5 kap 9 § AFS 2023:13\nTDOK 2016:0032",null,null,null,null,null,"?"]

{"sheet":"5. Bas-P","index":5,"n_rows":57,"n_cols":41,"rows_kept":57,"cut":false,"hidden":false,"merged":[[23,1,23,2],[24,1,24,2],[25,1,25,2],[21,1,21,2],[22,1,22,2],[3,7,3,8],[4,7,4,8],[17,1,17,2],[18,1,18,2],[19,1,19,2],[0,0,1,2],[12,1,12,2],[15,1,15,2],[16,1,16,2],[9,1,9,2],[11,1,11,2],[13,1,13,2],[4,2,4,3],[8,3,8,8],[5,2,5,3],[6,2,6,3],[7,2,7,3],[5,7,5,8],[6,7,6,8],[7,7,7,8],[14,1,14,2],[33,1,33,2],[34,1,34,2],[31,1,31,2],[32,1,32,2],[49,1,49,2],[38,1,38,2],[39,1,39,2],[40,1,40,2],[42,1,42,2],[43,1,43,2],[35,1,35,2],[36,1,36,2],[45,1,45,2],[46,1,46,2],[47,1,47,2],[48,1,48,2],[26,1,26,2],[27,1,27,2],[29,1,29,2],[28,1,28,2],[30,1,30,2],[56,1,56,2],[50,1,50,2],[51,1,51,2],[52,1,52,2],[53,1,53,2],[55,1,55,2]]}
["5. Uppföljning Bas-P",null,null,null,null,"[vägd %]","Total",null,null,{"$f":"IF(AN12>0,AM12/AN12*100,0.1)","v":0.1}]
[null,null,null,null,null,null,"Datum: ",null,null,{"$f":"IF(AL12>0,SUM(AF12:AG12)/AL12*100,0.1)","v":0.1},null,null,null,null,null,null,null,null,null,null,"(AB12>0;AA12/AB12*100;0,1"]
[null,null,null,null,null,null,"Genomförd av: ",null,null,null,null,null,null,null,null,null,null,null,null,null,"Z12>0;SUMMA(T12:U12)/Z12*100;0,1)"]
["Organisationsuppgifter",null,null,null,"Byggherrerepresentant:"]
["VO:",null,null,null,"(om annan än projektledaren)"]
["Distrikt/program:",null,null,null,"Projektledare:"]
["Projekt/Kontrakt",null,null,null,"Leverantör: "]
["Fas/skede:",null,null,null,"Deltagare, roll:"]
[null,null,null,"Trafikverkets interna styrning: Rutin TDOK 2018:0151  Byggherrens arbetsmiljöansvar vid byggnads- och anläggningsarbeten "]
["Nr","Uppföljningsfrågor ",null,"Hänvisning \nLagstöd \n","Ja, Accepterad\n[x]","Nej, Mindre anmärkning\n[x] ","Nej,  Avvikelse\n[x]","Ej relevant\nEj ställd\n[x]","Kommentar \nVad uppföljningen/ stickprovet omfattar (t ex risk, dokument och verifikat). Förbättring/ anmärkning/ avvikelse. Åtgärder. ","Hjälp\n(länk)\n[?]",null,null,null,null,null,null,null,null,null,null,"1 om ja","0,5 om delvis","0 om nej","1 om ifylld","1 om ifylld","1 om ifylld","1 0mfrågan besvarad","Summa ","1 0mfrågan besvarad","Summa samtliga"]
[null,"Uppdraget och Bas-P:s kvalifikationer                                        ",null,null,null,null,null,null,null,"?",null,null,null,null,null,null,null,null,null,null,{"$f":"IF(E11>0,1,0)","v":0},{"$f":"IF(F11>0,0.5,0)","v":0},{"$f":"IF(G11>0,0,0)","v":0},{"$f":"IF(E11>0,1,0)","v":0},0,0,{"$f":"SUM(X11:Z11)","v":0},{"$f":"U11+V11","v":0},{"$f":"AA11","v":0},{"$f":"SUM(U11:V11)","v":0},{"$f":"AA11","v":0},"1 om ja","0,5 om delvis","0 om nej","1 om ifylld","1 om ifylld","1 om ifylld","1 0mfrågan besvarad","Summa ","1 0mfrågan besvarad","Summa samtliga"]
["5.1","Har Bas-P visat uppgifter på att man har den utbildning, kompetens och erfarenhet som behövs för det aktuella projektet? (b)\n",null,"2 kap 9 §,  3 kap 2-3 §§, AFS 2023:3",null,null,null,null,null,"?",null,null,null,null,null,null,null,null,null,null,{"$f":"IF(E12>0,1,0)","v":0},{"$f":"IF(F12>0,0.5,0)","v":0},{"$f":"IF(G12>0,0,0)","v":0},0,0,0,{"$f":"SUM(X12:Z12)","v":0},null,null,{"$f":"SUM(U12:V12)","v":0},{"$f":"AA12","v":0},{"$f":"SUM(U11:U57)","v":0},0,0,0,0,0,0,0,0,0]
["5.1.1","Motsvarar Bas-Ps utbildning, kompetens och erfarenhet projektets storlek, komplexitet och risknivå? (b)\n",null,"3 kap 2-3 §§,\n2 kap 9, 11 §, AFS 2023:3",null,null,null,null,null,"?"]
["5.1.2","Har juridisk Bas-P avsatt/tillgång till tillräckligt med tid och personal för arbetsmiljöuppgifterna i byggprojektet?",null,"3 kap 2-3 §§,\n2 kap 9, 11 § AFS 2023:3",null,null,null,null,null,"?",null,null,null,null,null,null,null,null,null,null,{"$f":"IF(E14>0,1,0)","v":0},{"$f":"IF(F14>0,0.5,0)","v":0},{"$f":"IF(G14>0,0,0)","v":0},{"$f":"IF(E14>0,1,0)","v":0},{"$f":"IF(F14>0,1,0)","v":0},{"$f":"IF(G14>0,1,0)","v":0},{"$f":"SUM(X14:Z14)","v":0},null,null,0,0]
["5.1.3","Är handläggare Bas-P en anställd person eller inhyrd (resurskonsult)? (b)\n",null,"3 kap 3 § AFS 2023:3",null,null,null,null,null,"?",null,null,null,null,null,null,null,null,null,null,0,0,0,0,0,0,{"$f":"SUM(X15:Z15)","v":0},{"$f":"U15+V15","v":0},{"$f":"AA15","v":0},0,0]
["5.1.4","Finns dokumenterad fördelning av uppgifterna samt kvalifikationer om flera personer   (handläggarresurser) genomför Bas-P:s uppgifter? (b)",null,"2 kap 12 §, 3 kap 8 § AFS 2023:3\n",null,null,null,null,null,"?",null,null,null,null,null,null,null,null,null,null,0,0,0,0,0,0,{"$f":"SUM(X16:Z16)","v":0},null,null,{"$f":"SUM(U16:V16)","v":0},{"$f":"AA16","v":0}]
["5.2","Sker överlämning vid byte av handläggare för Bas-P:s uppgifter? (b)",null,"3 kap 18 §, 11 kap 15 § AFS 2023:3",null,null,null,null,null,"?",null,null,null,null,null,null,null,null,null,null,0,0,0,0,0,0,0,null,null,0,0]
["5.3","Deltar Bas-P i ledningen av projekteringen på det sätt som behövs för att förebygga arbetsmiljörisker under byggskedet samt inför framtida drift och underhåll? (b)",null,"3 kap 5-6 §§ AFS 2023:3",null,null,null,null,null,"?",null,null,null,null,null,null,null,null,null,null,0,0,0,0,0,0,0,null,null,0,0]
["5.4","Har Bas-P de förutsättningar som behövs för att kunna utföra sina arbetsmiljöuppgifter? (b)",null,"2 kap 18 § AFS 2023:3",null,null,null,null,null,"?",null,null,null,null,null,null,null,null,null,null,0,0,0,0,0,0,0,null,null,0,0]
["5.5","Finns uppdaterat kontrollprogram/ kontrollplan med uppgifter och verifikat på genomförd egenkontroll med avseende på Bas-P:s arbetsuppgifter? 1) (b)",null,"TDOK 2016:0032\n\n",null,null,null,null,null,"?",null,null,null,null,null,null,null,null,null,null,0,0,0,0,0,0,0,null,null,0,0]
[null,"Samordning i syfte att minska arbetsmiljörisker under byggskede samt framtida drift och underhåll\n                            ",null,null,null,null,null,null,null,"?",null,null,null,null,null,null,null,null,null,null,0,0,0,0,0,0,0,null,null,0,0]
["5.6","Samordnar Bas-P projektering så att man tar hänsyn till varandras lösningar i syfte att minska arbetsmiljörisker under byggskedet, samt framtida drift och underhåll? 1) (b)",null,"3 kap 7a § AML \n3 kap 5-6 § AFS 2023:3\nTDOK 2016:0032",null,null,null,null,null,"?",null,null,null,null,null,null,null,null,null,null,0,0,0,0,0,0,0,null,null,0,0]
["5.6.1","Arbetar Bas-P enligt  framtagen rutin och följer grundprinciperna för att förebygga arbetsmiljörisker?1) (b)\n",null,"3 kap 2,4 §§, 8 kap 2 § AFS 2023:3\nTDOK 2016:0032",null,null,null,null,null,"?",null,null,null,null,null,null,null,null,null,null,0,0,0,0,0,0,{"$f":"SUM(X23:Z23)","v":0},null,null,{"$f":"SUM(U23:V23)","v":0},{"$f":"AA23","v":0}]
["5.6.2","Inhämtar och samordnar Bas-P riskhantering med tillhörande åtgärder från de som medverkar vid planering och projektering? (b)",null,"3 kap 6, 10, 11 §§ AFS 2023:3",null,null,null,null,null,"?",null,null,null,null,null,null,null,null,null,null,0,0,0,0,0,0,0,null,null,0,0]
["5.6.3","Har det identifierats allvarliga arbetsmiljörisker som inte kan projekteras bort eller åtgärdas med givna\nförutsättningar? (b)",null,"3 kap 13 § AFS 2023:3",null,null,null,null,null,"?",null,null,null,null,null,null,null,null,null,null,0,0,0,0,0,0,0,null,null,0,0]
["5.6.4","Samordnar Bas-P så att åtgärder överensstämmer, och det finns spårbarhet  till andra relevanta projektrisker inför byggskedet samt framtida drift och underhåll? 1)",null,"3 kap 5-6 §§ AFS 2023:3\nTDOK 2016:0032",null,null,null,null,null,"?",null,null,null,null,null,null,null,null,null,null,0,0,0,0,0,0,0,null,null,0,0]
["5.6.5","Uppmärksammar Bas-P projektörerna på deras skyldigheter? 1) ",null,"3 kap 7a § AML \n3 kap 6-7 §§ AFS 2023:3\nTDOK 2016:0032",null,null,null,null,null,"?",null,null,null,null,null,null,null,null,null,null,{"$f":"IF(E27>0,1,0)","v":0},{"$f":"IF(F27>0,0.5,0)","v":0},{"$f":"IF(G27>0,0,0)","v":0},{"$f":"IF(E27>0,1,0)","v":0},{"$f":"IF(F27>0,1,0)","v":0},{"$f":"IF(G27>0,1,0)","v":0},0,null,null,0,0]
["5.6.6","Ser Bas-P till att inga arbetsmiljöfrågor förbises, på grund av tveksamhet om vilken projektör som ska hantera dem?",null,"3 kap 6 § punkt 2, AFS 2023:3",null,null,null,null,null,"?",null,null,null,null,null,null,null,null,null,null,0,0,0,0,0,0,0,{"$f":"U28+V28","v":0},{"$f":"AA28","v":0},0,0]
["5.6.7","Följer projektörerna Bas-P:s anvisningar i frågor som har betydelse för arbetsmiljön? (b)",null,"3 kap 12 § AFS 2023:3",null,null,null,null,null,"?",null,null,null,null,null,null,null,null,null,null,0,0,0,0,0,0,0,null,null,0,0]
["5.6.8","Håller Bas-P samordningsmöten samt deltar på relevanta möten?",null,null,null,null,null,null,null,"?",null,null,null,null,null,null,null,null,null,null,0,0,0,0,0,0,{"$f":"SUM(X30:Z30)","v":0},null,null,{"$f":"SUM(U30:V30)","v":0},{"$f":"AA30","v":0}]
["5.6.9","Inhämtar och samordnar Bas-P beslutsunderlag i samband med val av projekterad lösning? (b)",null,"3 kap 6, 10, 11 §§ AFS 2023:3",null,null,null,null,null,"?",null,null,null,null,null,null,null,null,null,null,0,0,0,0,0,0,0,{"$f":"U31+V31","v":0},{"$f":"AA31","v":0},0,0]
["5.6.10","Samordnar Bas-P så att det  finns underlag med förslag på möjlig disposition av byggarbetsplats? 1)",null,"9 kap 5 §, AFS 2023:3\n5 kap (7), 12-13 §§ AFS 2023:13",null,null,null,null,null,"?",null,null,null,null,null,null,null,null,null,null,0,0,0,0,0,0,{"$f":"SUM(X32:Z32)","v":0},null,null,{"$f":"SUM(U32:V32)","v":0},{"$f":"AA32","v":0}]
["5.6.11","Samordnar Bas-P arbetsmiljöaspekter utifrån redovisning i BIM-modeller ? 1) \n(Jämför krav i Uppdragsbeskrivning/UB)\n",null,null,null,null,null,null,null,"?",null,null,null,null,null,null,null,null,null,null,0,0,0,0,0,0,0,null,null,0,0]
["5.6.12","Finns en person utsedd som har särskild kompetens vid projektering av en tillfällig konstruktion eller samverkande konstruktion?  Ser Bas-P till att denne person utför de utpekade uppgifterna? (b)\n\n ",null,"3 kap 8 § AFS 2023:3",null,null,null,null,null,"?",null,null,null,null,null,null,null,null,null,null,0,0,0,0,0,0,0,null,null,0,0]
["5.6.13","Samordnar Bas P den projekteringen som fortsätter i byggskede, samt överlämnar information till Bas-U så att arbetsmiljöplanen kan uppdateras? 1) (b)\n",null,"(2 kap 24§ AFS 2023:3),\n3 kap 19 § AFS 2023:3\nTDOK 2016:0032",null,null,null,null,null,"?",null,null,null,null,null,null,null,null,null,null,0,0,0,0,0,0,0,null,null,0,0]
["5.7","Kontrollerar Bas-P att projektörerna har rutiner och arbetar enligt dessa för att förebygga arbetsmiljörisker i byggskedet? 1) (b)\n\n",null,"3 kap 10 § AFS 2023:3\nTDOK 2016:0032",null,null,null,null,null,"?"]
["5.7.1","Deltar Bas-P vid byggherrens uppföljning av planering och projektering?",null,"3 kap 10 § AFS 2023:3",null,null,null,null,null,"?",null,null,null,null,null,null,null,null,null,null,{"$f":"IF(E37>0,1,0)","v":0},{"$f":"IF(F37>0,0.5,0)","v":0},{"$f":"IF(G37>0,0,0)","v":0},{"$f":"IF(E37>0,1,0)","v":0},{"$f":"IF(F37>0,1,0)","v":0},{"$f":"IF(G37>0,1,0)","v":0},{"$f":"SUM(X37:Z37)","v":0},{"$f":"U37+V37","v":0},{"$f":"AA37","v":0},{"$f":"SUM(U37:V37)","v":0},{"$f":"AA37","v":0}]
[null,"Samordning av tillämpningen av relevanta arbetsmiljöregler.                                              ",null,null,null,null,null,null,null,"?",null,null,null,null,null,null,null,null,null,null,0,0,0,0,0,0,0,null,null,0,0]
["5.8","Samordnar Bas-P tillämpningen av relevanta arbetsmiljöregler? 1)  (b)",null,"3 kap 7 a § AML  \n10 kap 1 §  AFS 2023:3,\nAFS 2023:12,\n9 kap 1 § AFS 2023:3, \nAFS 2023:13\nTDOK 2016:0032",null,null,null,null,null,"?",null,null,null,null,null,null,null,null,null,null,0,0,0,0,0,0,0,null,null,0,0]
["5.8.1","Finns en aktuell sammanställning av tillämpliga lagar, förordningar och föreskrifter avseende arbetsmiljön i byggskedet samt framtida drift och underhåll? ",null,"3 kap 7 a § AML \nTMALL 0255",null,null,null,null,null,"?",null,null,null,null,null,null,null,null,null,null,0,0,0,0,0,0,{"$f":"SUM(X40:Z40)","v":0},null,null,0,0]
["5.8.2","Samordnar Bas-P arbetsmiljöregler för ett specifikt arbetsmoment som medför särskilda risker (se de 13)?  (b)\n(Precisera i kommentar valet av arbetsmoment/ bestämmelser som följs upp ) ",null,"3 kap 7 a § AML  \n3 kap 2 §, 11 kap 12 §  2023:3\n10 kap 1§  AFS 2023:3,\nAFS 2023:12,\n 9 kap 1§ AFS 2023:3, \nAFS 2023:13",null,null,null,null,null,"?",null,null,null,null,null,null,null,null,null,null,0,0,0,0,0,0,0,null,null,0,0]
[null,"Samordning i tid och rum                            ",null,null,null,null,null,null,null,"?",null,null,null,null,null,null,null,null,null,null,0,0,0,0,0,0,{"$f":"SUM(X42:Z42)","v":0},{"$f":"U42+V42","v":0},{"$f":"AA42","v":0},{"$f":"SUM(U42:V42)","v":0},{"$f":"AA42","v":0}]
["5.9","Samordnar Bas-P så att olika arbetsmoment inte sammanfaller i tid och rum så att arbetsmiljörisker uppstår? 1) ",null,"3 kap 7a § AML\n3 kap 5-6 §§ AFS 2023:3\nTDOK 2016:0032\n",null,null,null,null,null,"?",null,null,null,null,null,null,null,null,null,null,0,0,0,0,0,0,0,null,null,0,0]
["5.9.1","Deltar Bas-P vid upprättande av tidplaner för produktionsfas/byggskede så att arbetsmiljörisker förebyggs? ",null,"3 kap 7a § AML\n 3 kap 5§ AFS 2023:3",null,null,null,null,null,"?",null,null,null,null,null,null,null,null,null,null,0,0,0,0,0,0,0,null,null,0,0]
[null,"Dokumentation, Arbetsmiljöplan                      ",null,null,null,null,null,null,null,"?",null,null,null,null,null,null,null,null,null,null,0,0,0,0,0,0,0,null,null,0,0]
["5.10","Upprättar Bas-P en projektanpassad arbetsmiljöplan, med innehåll enligt de fyra avsnitten i föreskriften? 1) ",null,"3 kap 7a § AML\n3 kap 2, 14-16 §§,\n11 kap 7, 9-12 §§ AFS 2023:3\nTDOK 2016:0032\n",null,null,null,null,null,"?",null,null,null,null,null,null,null,null,null,null,0,0,0,0,0,0,0,null,null,0,0]
["5.10.1","Är arbetsmiljöplanen uppdaterad med de uppgifter som är kända i byggprojektet?1)",null,"3 kap 2 §, 11 kap 4 § AFS 2023:3\nTDOK 2016:0032",null,null,null,null,null,"?",null,null,null,null,null,null,null,null,null,null,0,0,0,0,0,0,0,null,null,0,0]
["5.10.2","Innehåller arbetsmiljöplanen en beskrivning av hur arbetsmiljöarbetet ska organiseras och bedrivas vid projekteringen, med kontaktuppgifter och rutiner för arbetsmiljöarbetet?1)\n\n",null,"3 kap 2 §, 11 kap 9 § AFS 2023:3\nTDOK 2016:0032",null,null,null,null,null,"?",null,null,null,null,null,null,null,null,null,null,0,0,0,0,0,0,0,null,null,0,0]
["5.10.3","Finns förslag till organisationsbeskrivning för arbetsmiljöarbetet?",null,"3 kap 2 §, 11 kap 9 § AFS 2023:3",null,null,null,null,null,"?",null,null,null,null,null,null,null,null,null,null,0,0,0,0,0,0,0,null,null,0,0]
["5.10.4","Finns projektanpassade ordnings och skyddsregler?",null,"3 kap 2 §, 11 kap 10 § AFS 2023:3",null,null,null,null,null,"?",null,null,null,null,null,null,null,null,null,null,0,0,0,0,0,0,0,null,null,0,0]
["5.10.5","Är annan verksamhet i kontraktsområdet identifierad och finns beskrivning av hur samordning ska ske? ",null,"11 kap 7,11 §§ AFS 2023:3",null,null,null,null,null,"?",null,null,null,null,null,null,null,null,null,null,0,0,0,0,0,0,0,null,null,0,0]
["5.10.6","Beskrivs de arbetsmoment som medför arbete med särskilda arbetsmiljörisker (se de 13) tillsammans med åtgärderna för att hantera dessa?\n",null,"3 kap 11 § AFS 2023:3",null,null,null,null,"\n","?",null,null,null,null,null,null,null,null,null,null,0,0,0,0,0,0,0,null,null,0,0]
["5.10.7","Innehåller arbetsmiljöplanen uppgifter i enlighet med Trafikverkets krav? \n(Se TMALL 0009 och/eller kontrakt med TMALL 0255)",null,"TMALL 0255",null,null,null,null,null,"?",null,null,null,null,null,null,null,null,null,null,0,0,0,0,0,0,0,null,null,0,0]
["5.11","Är Arbetsmiljö-PM uppdaterad med uppgifter som beskriver arbetsmiljöarbetet? 1)\n(Jämför krav i Uppdragsbeskrivning/UB)",null,null,null,null,null,null,null,"?",null,null,null,null,null,null,null,null,null,null,0,0,0,{"$f":"IF(E54>0,1,0)","v":0},{"$f":"IF(F54>0,1,0)","v":0},{"$f":"IF(G54>0,1,0)","v":0},0,null,null,0,0]
[null,"Dokumentation, Arbetsmiljödokumentation inför framtida drift och underhåll.                            ",null,null,null,null,null,null,null,"?",null,null,null,null,null,null,null,null,null,null,0,0,0,0,0,0,0,null,null,0,0]
["5.12","Anpassar  Bas-P  löpande arbetsmiljödokumentationen inför framtida drift, underhåll, reparationer, ändringar och rivning av objektet? 1) ",null,"3 kap 20 § AFS 2023:3\n10 kap 5-6 §§ 2023:3\nTDOK 2016:0032",null,null,null,null,null,"?",null,null,null,null,null,null,null,null,null,null,0,0,0,0,0,0,0,null,null,0,0]
["5.13","Förbereds för/ sker överlämning från Bas-P till Bas-U inför byggstart? ",null," 2 kap 23 § , 3 kap 18 §, 11 kap 15 § AFS 2023:3",null,null,null,null,null,"?",null,null,null,null,null,null,null,null,null,null,0,0,0,0,0,0,0,null,null,0,0]

{"sheet":"6. Plan proj","index":6,"n_rows":55,"n_cols":41,"rows_kept":55,"cut":false,"hidden":false,"merged":[[31,1,31,2],[20,1,20,2],[23,1,23,2],[17,1,17,2],[26,1,26,2],[27,1,27,2],[28,1,28,2],[29,1,29,2],[30,1,30,2],[18,1,18,2],[21,1,21,2],[22,1,22,2],[24,1,24,2],[25,1,25,2],[16,1,16,2],[13,1,13,2],[14,1,14,2],[9,1,9,2],[11,1,11,2],[12,1,12,2],[8,3,8,8],[0,0,1,5],[5,2,5,3],[6,2,6,3],[7,2,7,3],[3,7,3,8],[4,7,4,8],[5,7,5,8],[6,7,6,8],[7,7,7,8],[4,2,4,3],[32,1,32,2],[33,1,33,2],[34,1,34,2],[35,1,35,2],[36,1,36,2],[37,1,37,2],[39,1,39,2],[40,1,40,2],[41,1,41,2],[42,1,42,2],[43,1,43,2],[45,1,45,2],[46,1,46,2],[47,1,47,2],[48,1,48,2],[54,1,54,2],[49,1,49,2],[50,1,50,2],[51,1,51,2],[52,1,52,2],[53,1,53,2]]}
["6. Uppföljning planering och projektering, inom ramen för sitt uppdrag",null,null,null,null,null,null,null,null,{"$f":"IF(AN13>0,AM13/AN13*100,0.1)","v":0.1}]
[null,null,null,null,null,null,"Datum: ",null,null,{"$f":"IF(AL13>0,SUM(AF13:AG13)/AL13*100,0.1)","v":0.1},null,null,null,null,null,null,null,null,null,null,"(AB12>0;AA12/AB12*100;0,1"]
[null,null,null,null,null,null,"Genomförd av: ",null,null,null,null,null,null,null,null,null,null,null,null,null,"Z12>0;SUMMA(T12:U12)/Z12*100;0,1)"]
["Organisationsuppgifter",null,null,null,"Byggherrerepresentant:"]
["VO:",null,null,null,"(om annan än projektledaren)"]
["Distrikt/program:",null,null,null,"Projektledare:"]
["Projekt/Kontrakt",null,null,null,"Leverantör: "]
["Fas/skede:",null,null,null,"Deltagare, roll:"]
[null,null,null,"Trafikverkets interna styrning: Rutin TDOK 2018:0151  Byggherrens arbetsmiljöansvar vid byggnads- och anläggningsarbeten "]
["Nr","Uppföljningsfrågor ",null,"Hänvisning \nLagstöd \n","Ja, Accepterad\n[x]","Nej, Mindre anmärkning\n[x] ","Nej,  Avvikelse\n[x]","Ej relevant\nEj ställd\n[x]","Kommentar \nVad uppföljningen/ stickprovet omfattar (t ex risk, dokument och verifikat). Förbättring/ anmärkning/ avvikelse. Åtgärder. ","Hjälp\n(länk)\n[?]",null,null,null,null,null,null,null,null,null,null,"1 om ja","0,5 om delvis","0 om nej","1 om ifylld","1 om ifylld","1 om ifylld","1 0mfrågan besvarad","Summa ","1 0mfrågan besvarad","Summa samtliga"]
[null,"Uppdraget och kvalifikationer                                                      ",null,null,null,null,null,null,null,"?",null,null,null,null,null,null,null,null,null,null,{"$f":"IF(E11>0,1,0)","v":0},{"$f":"IF(F11>0,0.5,0)","v":0},{"$f":"IF(G11>0,0,0)","v":0},{"$f":"IF(E11>0,1,0)","v":0},{"$f":"IF(F11>0,1,0)","v":0},{"$f":"IF(G11>0,1,0)","v":0},{"$f":"SUM(X11:Z11)","v":0},{"$f":"U11+V11","v":0},{"$f":"AA11","v":0},{"$f":"SUM(U11:V11)","v":0},{"$f":"AA11","v":0}]
["6.1","Har man visat på att man har tillräcklig utbildning, kompetens och erfarenhet enligt ställda kontraktskrav?  (b)",null,"2 kap 13 § AFS 2023:3",null,null,null,null,null,"?",null,null,null,null,null,null,null,null,null,null,0,0,0,0,0,0,{"$f":"SUM(X12:Z12)","v":0},{"$f":"U12+V12","v":0},{"$f":"AA12","v":0},{"$f":"SUM(U12:V12)","v":0},{"$f":"AA12","v":0},"1 om ja","0,5 om delvis","0 om nej","1 om ifylld","1 om ifylld","1 om ifylld","1 0mfrågan besvarad","Summa ","1 0mfrågan besvarad","Summa samtliga"]
["6.1.1","Motsvarar kompetens och erfarenhet det aktuella projektets storlek, komplexitet och  risknivå?  (b)\n",null,"2 kap 13 § AFS 2023:3\n",null,null,null,null,null,"?",null,null,null,null,null,null,null,null,null,null,0,0,0,0,0,0,{"$f":"SUM(X13:Z13)","v":0},0,0,{"$f":"SUM(U13:V13)","v":0},{"$f":"AA13","v":0},{"$f":"SUM(U11:U32)","v":0},0,0,0,0,0,0,0,0,{"$f":"SUM(AD12:AD32)","v":0}]
["6.2","Arbetar man enligt de hjälpmedel eller kontrollsystem som redovisas i rutin , samt genomförs granskning med avseende på utformningen av anläggning ur arbetsmiljösynpunkt? 1)  (b)",null,"3 kap 7 § AML\n6 kap 5 § & \n10 kap 3 § AFS 2023:3\nTDOK 2016:0032\n",null,null,null,null,null,"?",null,null,null,null,null,null,null,null,null,null,0,0,0,0,0,0,{"$f":"SUM(X14:Z14)","v":0},null,null,{"$f":"SUM(U14:V14)","v":0},{"$f":"AA14","v":0}]
["6.2.1","Finns uppdaterat kontrollprogram/ kontrollplan med uppgifter och verifikat på genomförd egenkontroll med avseende på arbetsmiljö? 1)  (b)",null,"6 kap 5 § & \n10 kap 3 § AFS 2023:3\nTDOK 2016:0032\n\n\n",null,null,null,null,null,"?",null,null,null,null,null,null,null,null,null,null,0,0,0,0,0,0,0,null,null,0,0]
[null,"Övergripande. Förebygga arbetsmiljörisker och beakta arbetsmiljön inför byggskede samt framtida drift och underhåll.                                    ",null,null,null,null,null,null,null,"?",null,null,null,null,null,null,null,null,null,null,0,0,0,0,0,0,{"$f":"SUM(X16:Z16)","v":0},null,null,0,0]
["6.3","Arbetar man enligt framtagen rutin och följer  grundprinciperna för att förebygga arbetsmiljörisker? 1)  (b)\n",null,"6 kap 2, 5 §§, 8 kap 2 §, 10 kap 3 § AFS 2023:3\nTDOK 2016:0032",null,null,null,null,null,"?",null,null,null,null,null,null,null,null,null,null,0,0,0,0,0,0,{"$f":"SUM(X17:Z17)","v":0},null,null,0,0]
["6.4","Identifieras relevanta bestämmelser ur AFS \"Övriga regler\"? 1)  (b)\n(Se bland annat AFS 2023:12 om utformning av arbetsplatser och AFS 2023:13 om risker vid vissa typer av arbeten)\n\n",null,"3 kap 7, 7 a §§ AML  \n10 kap 1, 3 §§  AFS 2023:3,\nAFS 2023:12,\n9 kap 1, 5 §§ & 11 kap 12 § AFS 2023:3, AFS 2023:13",null,null,null,null,null,"?",null,null,null,null,null,null,null,null,null,null,0,0,0,0,0,0,{"$f":"SUM(X18:Z18)","v":0},null,null,0,0]
["6.5","Förebyggs arbetsmiljörisker och beaktas arbetsmiljön i byggskedet samt framtida drift, underhåll när man  planerar och projekterar?   1) ",null,"3 kap 7 § AML \n6 kap 5 §,\n6 kap, 9 kap, 10 kap  AFS 2023:3\nTDOK 2016:0032",null,null,null,null,null,"?",null,null,null,null,null,null,null,null,null,null,0,0,0,0,0,0,0,null,null,0,0]
[null,null," Beakta arbetsmiljön inför byggskede.                                          ",null,null,null,null,null,null,"?",null,null,null,null,null,null,null,null,null,null,0,0,0,0,0,0,{"$f":"SUM(X20:Z20)","v":0},null,null,{"$f":"SUM(U20:V20)","v":0},{"$f":"AA20","v":0}]
["6.5.1","Arbetar de som medverkar vid projektering enligt framtagen rutin och beaktar arbetsmiljön inför byggskedet? 1)  (b)\nFör uppdraget relevanta punkter: \n- objektets eller anläggningens placering och utformning,\n- val av byggprodukter,\n- val av konstruktioner för grundläggning, stomsystem eller andra bärande element,\n- val och utformning av stomkomplettering,\n- val av installationer, deras placering och infästning \n- val av inredningar.\n- transporter av byggmaterial m m kan ske på ett säkert sätt\n- etableringsområdet är tillräckligt stort så att all verksamhet får plats\n- risker och kartläggning inför rivning",null,"3 kap 7 § AML\n2 kap 5 §, \n6 kap 5 §, \n9 kap 1, 2, 3, 4, 5, 6, 7, 9, 10, 11 §§, \n(11 kap 9,12 §§) AFS 2023:3\nsamt \nAFS 2023:13\nTDOK 2016:0032",null,null,null,null,null,"?",null,null,null,null,null,null,null,null,null,null,0,0,0,0,0,0,0,null,null,0,0]
["6.5.1.1","Arbetar man enligt redovisad rutin och tar hänsyn till arbetsmiljön under byggskedet när man tar fram ritningar, beskrivningar och beräkningar? 1)  (b)\n",null,"3 kap 7 § AML\n6 kap 5 § AFS 2023:3\nTDOK 2016:0032",null,null,null,null,null,"?",null,null,null,null,null,null,null,null,null,null,0,0,0,0,0,0,0,null,null,0,0]
["6.5.1.2","Utreds arbetsmiljörisker när nya metoder, tekniker eller material övervägs?  (b)\n",null,"3 kap 7 § AML\n9 kap 2 § AFS 2023:3",null,null,null,null,null,"?",null,null,null,null,null,null,null,null,null,null,0,0,0,0,0,0,0,null,null,0,0]
["6.5.1.3","Beaktas arbetsmiljön under byggskedet när man väljer utformning och placering av en byggnad eller annan anläggning? 1)",null,"3 kap 7 § AML\n9 kap 3 § AFS 2023:3\nTDOK 2016:0032",null,null,null,null,null,"?",null,null,null,null,null,null,null,null,null,null,0,0,0,0,0,0,{"$f":"SUM(X24:Z24)","v":0},null,null,{"$f":"SUM(U24:V24)","v":0},{"$f":"AA24","v":0}]
["6.5.1.4","Finns möjligt etableringsområde som är tillräckligt stort så att all verksamhet får plats? 1)",null,"3 kap 7 § AML\n9 kap 4 § AFS 2023:3\nTDOK 2016:0032",null,null,null,null,null,"?",null,null,null,null,null,null,null,null,null,null,0,0,0,0,0,0,{"$f":"SUM(X25:Z25)","v":0},null,null,0,0]
["6.5.1.5","Kan byggmaterial tas emot, hanteras, förvaras  och transporteras på  på ett säkert sätt?  1)  (b)\n",null," 3 kap 7 § AML\n 9 kap 5 § AFS 2023:3\nTDOK 2016:0032",null,null,null,null,null,"?",null,null,null,null,null,null,null,null,null,null,0,0,0,0,0,0,0,null,null,0,0]
["6.5.1.6","Beaktas markåtkomst och utformning så att transporter av byggmaterial kan ske på ett säkert sätt till, inom och från arbetsområdet?",null," 3 kap 7 § AML\n 9 kap 5 § AFS 2023:3\nAFS 2023:3\nAFS 2023:13",null,null,null,null,null,"?",null,null,null,null,null,null,null,null,null,null,0,0,0,0,0,0,0,null,null,0,0]
["6.5.1.7","Beaktas att tillräckligt utrymme finns för arbetets utförande samt trafik- och skyddsanordningar för passerande fordonstrafik?  (b)",null,"3 kap 7 § AML\n9 kap 5 § AFS 2023:3\nAFS 2023:3\nAFS 2023:13",null,null,null,null,null,"?",null,null,null,null,null,null,null,null,null,null,0,0,0,0,0,0,0,null,null,0,0]
["6.5.1.8","Beaktas arbetsmiljön när byggprodukter väljs utifrån egenskap.er som material, form, vikt och storlek?  1)  (b)",null,"3 kap 7 § AML\n9 kap 6 § AFS 2023:3\nTDOK 2016:0032",null,null,null,null,null,"?",null,null,null,null,null,null,null,null,null,null,0,0,0,0,0,0,0,null,null,0,0]
["6.5.1.9","Beaktas arbetsmiljön när konstruktioner för grundläggning, stomsystem eller andra bärande element väljs?  1) ",null,"3 kap 7 § AML\n9 kap 7 § AFS 2023:3\nTDOK 2016:0032",null,null,null,null,null,"?",null,null,null,null,null,null,null,null,null,null,0,0,0,0,0,0,0,null,null,0,0]
["6.5.1.10","Om projekterad utformning omfattas av monteringsfärdig byggnad eller anläggning, kontrolleras att det finns beskrivning av hur de prefabricerade elementen ska stabiliseras, lyftas och monteras på ett säkert sätt?  (b)",null,"3 kap 7 § AML\n9 kap 7 § AFS 2023:3, \n7 kap 1, 4 §§ AFS 2023:3\n",null,null,null,null,null,"?",null,null,null,null,null,null,null,null,null,null,0,0,0,0,0,0,0,null,null,0,0]
["6.5.1.11","Beaktas arbetsmiljön vid val av stomkomplettering,  installationer och inredningar?  1)  (b)",null,"3 kap 7 § AML\n9 kap 9 § AFS 2023:3\nTDOK 2016:0032",null,null,null,null,null,"?",null,null,null,null,null,null,null,null,null,null,0,0,0,0,0,0,{"$f":"SUM(X32:Z32)","v":0},null,null,0,0]
["6.5.1.12","Beskrivs skriftligt de åtgärder som behöver vidtas för att konstruktioner ska vara stabila under alla stadier av monteringen?  (b)",null,"3 kap 7 § AML\n9 kap 8 § AFS 2023:3",null,null,null,null,null,"?"]
["6.5.1.13","Utformas tillfälliga konstruktioner och samverkande konstruktioner så att de klarar  belastningarna under byggskedet? 1)  (b)",null,"3 kap 7 § AML\n6 kap 7 § AFS 2023:3\nTDOK 2016:0032",null,null,null,null,null,"?"]
["6.5.1.14","Kontrolleras bärighet av mark/ underlag och annan förankring vid planering av att en ställning eller väderskydd ska användas?   (b)",null,"3 kap 7 § AML\n3 kap 9 § AFS 2023:3",null,null,null,null,null,"?"]
["6.5.1.15","Finns det karläggning och skriftlig utredning om hälsofarligt material inför rivning, ombyggnad eller renovering?  1)  (b)",null,"3 kap 7 § AML\n9 kap 10 § AFS 2023:3\nTDOK 2016:0032",null,null,null,null,null,"?"]
["6.5.1.16","Säkerställs stabiliteten hos byggnad eller anläggning inför rivning, ombyggnad eller renovering?  1)  (b)\n",null,"3 kap 7 § AML\n9 kap 11 § AFS 2023:3\nTDOK 2016:0032",null,null,null,null,null,"?"]
["6.5.1.17","Beaktas att tider för projektering, deletapper och byggnation blir så väl tilltagna att arbetena kan utföras i en sådan takt att ohälsa och olycksfall undviks?  (b)",null,"3 kap 7 § AML\n6 kap 6 § AFS 2023:3",null,null,null,null,null,"?"]
[null,null," Beakta arbetsmiljön inför framtida drift och underhåll.                                ",null,null,null,null,null,null,"?"]
["6.5.2","Beaktar de som medverkar vid projektering arbetsmiljön inför framtida drift och underhåll?  1)    (b)",null,"3 kap 7 § AML\n6 & 10 kap AFS 2023:3,\nAFS 2023:12\nTDOK 2016:0032\n",null,null,null,null,null,"?"]
["6.5.2.1","Planeras/ projekteras så att god arbetsmiljö blir möjlig för alla arbetstagare som kan förutses komma att arbeta i, eller i anslutning till,  den färdiga anläggningen? ",null,"3 kap 7 § AML\n10 kap 2 §  AFS 2023:3,\nAFS 2023:12",null,null,null,null,null,"?"]
["6.5.2.2","Beaktas markåtkomst, utformning så att transporter av byggmaterial kan ske på ett säkert sätt inom, till och från arbetsområdet vid underhållsarbeten?",null,"3 kap 7 § AML\n10 kap AFS 2023:3\nAFS 2023:13",null,null,null,null,null,"?"]
["6.5.2.3","Beaktas att tillräckligt utrymme finns för arbetets utförande samt trafik- och skyddsanordningar för passerande fordonstrafik vid underhållsarbeten?  (b)",null,"3 kap 7 § AML\n10 kap AFS 2023:3\nAFS 2023:13",null,null,null,null,null,"?"]
["6.5.2.4","Beaktar man vid projekteringen att arbetsplatser utformas på ett sådant sätt att de blir tillgängliga för så många som möjligt på lika villkor och undantag identifieras?  ",null,"3 kap 7 § AML\n10 kap 4 § AFS 2023:3",null,null,null,null,"\n","?"]
[null,"Samordning och dokumentation\n                            ",null,null,null,null,null,null,null,"?"]
["6.6","Deltar leverantören i Bas-P:s samordning av projektering och följer anvisningar i frågor som har betydelse för arbetsmiljön under byggskede eller framtida drift, underhåll? 1)  (b)",null,"3 kap 7 §  AML\n6 kap 2-5,8 §§ AFS 2023:3\n11 kap 9 § AFS 2023:3\nTDOK 2016:0032",null,null,null,null,null,"?"]
["6.6.1","Delger man  identifierade risker med tillhörande behandling/ åtgärdsbeskrivning, till Bas-P för samordning? 1)   (b)",null,"3 kap. 7 §  AML\n6 kap 3,5 §§ AFS 2023:3\nTDOK 2016:0032\n",null,null,null,null,null,"?"]
["6.6.2","Redovisas skriftliga underlag med möjliga lösningar eller förslag på åtgärder till Bas-P för allvarliga arbetsmiljörisker som inte projekterats bort?  (b)",null,"3 kap 7 § AML\n6 kap 3,8 §§ AFS 2023:3",null,null,null,null,null,"?"]
["6.6.3","Identifieras arbetsmoment som medför arbete med särskilda arbetsmiljörisker (se de 13) och kommuniceras åtgärder med Bas-P?  (b)",null,"3 kap 7 § AML\n6 kap 2,3,8 §§, \n8 kap 2 §, \n11 kap 12 § AFS 2023:3\n\n",null,null,null,null,null,"?"]
["6.6.4","Delger man löpande arbetsmiljösynpunkter som beaktas vid val av utformning eller teknisk lösning till Bas-P samt beställaren? 1)  (b)",null,"3 kap. 7 § AML\n6 kap. 2-5,8 §§ \nAFS 2023:3\nTDOK 2016:0032",null,null,null,null,null,"?"]
["6.6.5","Kontrolleras att lösningar fungerar med andra projektörers lösningar vid betydelse för arbetsmiljön och informeras Bas-P? 1)  (b)",null,"6 kap. 4 § AFS 2023:3\nTDOK 2016:0032",null,null,null,null,null,"?"]
["6.6.6","Redovisas projekteringsunderlag till Bas-P för sådan  projektering, eller omprojektering, som fortsätter efter byggstart?   (b)",null,"6 kap 3-5,8 §§ AFS 2023:3\n(3 kap. 19 § AFS 2023:3)",null,null,null,null,null,"?"]
["6.7","Redovisas geografiskt knutna arbetsmiljöaspekter i BIM-modeller, alternativt i annan dokumentation exempelvis ritningar? 1)\n(Jämför krav i Uppdragsbeskrivning/UB)",null,"6 kap 5 § & 8 kap 2 § AFS 2023:3\n",null,null,null,null,null,"?"]
["6.8","Delger man Bas-P uppgifter löpande inför slutdokumentation med för arbetsmiljön relevant information inför framtida drift, underhåll, reparationer, ändringar och rivning? 1)  (b)",null,"2 kap 27 § AFS 2023:3\n10 kap. 5 § AFS 2023:3",null,null,null,null,null,"?"]
["(6.9)","Om fältundersökningar och platsbesök ingår i uppdraget - Se checklista 9. för arbetsgivare verksamma på byggarbetsplats … (b)",null,"3 kap 7 g § AML",null,null,null,null,null,"?"]

{"sheet":"7. Bas-U","index":7,"n_rows":84,"n_cols":41,"rows_kept":84,"cut":false,"hidden":false,"merged":[[78,1,78,2],[74,1,74,2],[75,1,75,2],[76,1,76,2],[77,1,77,2],[81,1,81,2],[82,1,82,2],[83,1,83,2],[79,1,79,2],[80,1,80,2],[69,1,69,2],[71,1,71,2],[72,1,72,2],[73,1,73,2],[63,1,63,2],[64,1,64,2],[65,1,65,2],[66,1,66,2],[67,1,67,2],[68,1,68,2],[52,1,52,2],[53,1,53,2],[54,1,54,2],[55,1,55,2],[56,1,56,2],[58,1,58,2],[59,1,59,2],[60,1,60,2],[61,1,61,2],[62,1,62,2],[51,1,51,2],[40,1,40,2],[41,1,41,2],[42,1,42,2],[44,1,44,2],[45,1,45,2],[46,1,46,2],[47,1,47,2],[48,1,48,2],[49,1,49,2],[50,1,50,2],[43,1,43,2],[39,1,39,2],[30,1,30,2],[31,1,31,2],[32,1,32,2],[34,1,34,2],[35,1,35,2],[36,1,36,2],[38,1,38,2],[28,1,28,2],[21,1,21,2],[22,1,22,2],[23,1,23,2],[29,1,29,2],[20,1,20,2],[24,1,24,2],[25,1,25,2],[26,1,26,2],[27,1,27,2],[13,1,13,2],[15,1,15,2],[17,1,17,2],[18,1,18,2],[12,1,12,2],[14,1,14,2],[16,1,16,2],[0,5,0,6],[9,1,9,2],[11,1,11,2],[0,0,1,2],[4,2,4,3],[5,2,5,3],[6,2,6,3],[7,2,7,3],[8,3,8,8],[3,7,3,8],[4,7,4,8],[5,7,5,8],[6,7,6,8],[7,7,7,8]]}
["7. Uppföljning Bas-U",null,null,null,null,"Resultat \nHuvudnivå",null,null,null,{"$f":"IF(AN12>0,AM12/AN12*100,0.1)","v":0.1}]
[null,null,null,null,null,null,"Datum: ",null,null,{"$f":"IF(AL12>0,SUM(AF12:AG12)/AL12*100,0.1)","v":0.1},null,null,null,null,null,null,null,null,null,null,"(AB12>0;AA12/AB12*100;0,1"]
[null,null,null,null,null,null,"Genomförd av: ",null,null,null,null,null,null,null,null,null,null,null,null,null,"Z12>0;SUMMA(T12:U12)/Z12*100;0,1)"]
["Organisationsuppgifter",null,null,null,"Byggherrerepresentant:"]
["VO:",null,null,null,"(om annan än projektledaren)"]
["Distrikt/program:",null,null,null,"Projektledare:"]
["Projekt/Kontrakt",null,null,null,"Leverantör: "]
["Fas/skede:",null,null,null,"Deltagare, roll:"]
[null,null,null,"Trafikverkets interna styrning: Rutin TDOK 2018:0151  Byggherrens arbetsmiljöansvar vid byggnads- och anläggningsarbeten "]
["Nr","Uppföljningsfrågor ",null,"Hänvisning \nLagstöd \n","Ja, Accepterad\n[x]","Nej, Mindre anmärkning\n[x] ","Nej,  Avvikelse\n[x]","Ej relevant\nEj ställd\n[x]","Kommentar \nVad uppföljningen/ stickprovet omfattar (t ex risk, dokument och verifikat). Förbättring/ anmärkning/ avvikelse. Åtgärder. ","Hjälp\n(länk)\n[?]",null,null,null,null,null,null,null,null,null,null,"1 om ja","0,5 om delvis","0 om nej","1 om ifylld","1 om ifylld","1 om ifylld","1 0mfrågan besvarad","Summa ","1 0mfrågan besvarad","Summa samtliga"]
[null,"Uppdraget och Bas-U:s kvalifikationer                                         ",null,null,null,null,null,null,null,"?",null,null,null,null,null,null,null,null,null,null,{"$f":"IF(E11>0,1,0)","v":0},{"$f":"IF(F11>0,0.5,0)","v":0},{"$f":"IF(G11>0,0,0)","v":0},{"$f":"IF(E11>0,1,0)","v":0},{"$f":"IF(F11>0,1,0)","v":0},{"$f":"IF(G11>0,1,0)","v":0},{"$f":"SUM(X11:Z11)","v":0},{"$f":"U11+V11","v":0},{"$f":"AA11","v":0},{"$f":"SUM(U11:V11)","v":0},{"$f":"AA11","v":0},"1 om ja","0,5 om delvis","0 om nej","1 om ifylld","1 om ifylld","1 om ifylld","1 0mfrågan besvarad","Summa ","1 0mfrågan besvarad","Summa samtliga"]
["7.1","Har handläggare Bas-U visat uppgifter på att man har den utbildning, kompetens och erfarenhet som behövs för det aktuella projektet? (BM) ",null,"2 kap 9 §,  4 kap 3 §, AFS 2023:3",null,null,null,null,null,"?",null,null,null,null,null,null,null,null,null,null,0,0,0,0,0,0,{"$f":"SUM(X12:Z12)","v":0},null,null,{"$f":"SUM(U12:V12)","v":0},{"$f":"AA12","v":0},{"$f":"SUM(U11:U84)","v":0},0,0,0,0,0,0,0,0,0]
["7.1.1","Motsvarar handläggare Bas-Us utbildning, kompetens och erfarenhet projektets storlek, komplexitet och risknivå? (b)\n",null,"2 kap 9 §, 4 kap 2-3 §§, AFS 2023:3 ",null,null,null,null,null,"?",null,null,null,null,null,null,null,null,null,null,0,0,0,0,0,0,{"$f":"SUM(X13:Z13)","v":0},null,null,0,0]
["7.1.2","Har juridisk Bas-U avsatt/tillgång till tillräckligt med tid och personal för arbetsmiljöuppgifterna i byggprojektet?",null,"2 kap 9 §, 4 kap 2-3 §§, AFS 2023:3 ",null,null,null,null,null,"?",null,null,null,null,null,null,null,null,null,null,0,0,0,0,0,0,{"$f":"SUM(X14:Z14)","v":0},{"$f":"U14+V14","v":0},{"$f":"AA14","v":0},0,0]
["7.1.3"," Finns dokumenterad fördelning av uppgifterna samt kvalifikationer om flera personer   (handläggarresurser)  genomför Bas-U:s uppgifter? ",null,"2 kap 9, 11, 14 §§,\n4 kap 3,4,19 §§, AFS 2023:3",null,null,null,null,null,"?",null,null,null,null,null,null,null,null,null,null,0,0,0,0,0,0,{"$f":"SUM(X15:Z15)","v":0},null,null,{"$f":"SUM(U15:V15)","v":0},{"$f":"AA15","v":0}]
["7.1.4","Sker dokumenterad överlämning vid byte av handläggare Bas-U?",null,"2 kap 3 §, 4 kap 2, 26 §§, 11 kap 15 §, AFS 2023:3",null,null,null,null,null,"?",null,null,null,null,null,null,null,null,null,null,0,0,0,0,0,0,0,null,null,0,0]
["7.2","Har Bas-U de förutsättningar som behövs för att  för att kunna utföra sina arbetsmiljöuppgifter? ",null,"2 kap 18 §,\n4 kap 23 §, AFS 2023:3 ",null,null,null,null,null,"?",null,null,null,null,null,null,null,null,null,null,0,0,0,0,0,0,{"$f":"SUM(X17:Z17)","v":0},null,null,{"$f":"SUM(U17:V17)","v":0},{"$f":"AA17","v":0}]
["7.3","Är Bas-U på plats när verksamhet pågår?",null,"4 kap 19 §,  AFS 2023:3",null,null,null,null,null,"?",null,null,null,null,null,null,null,null,null,null,0,0,0,0,0,0,0,null,null,0,0]
["7.4","Finns uppdaterat kontrollprogram/ kontrollplan med uppgifter och verifikat på genomförd egenkontroll med avseende på Bas-U:s arbetsuppgifter? 1)",null,"\n TDOK 2016:0032",null,null,null,null,null,"?",null,null,null,null,null,null,null,null,null,null,0,0,0,0,0,0,0,null,null,0,0]
[null,"Samordning i tid och rum med syfte att minska arbetsmiljörisker \n                            ",null,null,null,null,null,null,null,"?",null,null,null,null,null,null,null,null,null,null,0,0,0,0,0,0,0,null,null,0,0]
["7.5","Samordnar Bas-U arbets-, tidsplanering och riskhantering från alla verksamma på byggarbetsplatsen? 1) ",null,"3 kap 7 b,e §§ AML \n4 kap 4-5 §§, AFS 2023:3\nTDOK 2016:0032",null,null,null,null,null,"?",null,null,null,null,null,null,null,null,null,null,0,0,0,0,0,0,0,null,null,0,0]
["7.5.1","Arbetar Bas-U enligt  framtagen rutin och följer grundprinciperna för att förebygga arbetsmiljörisker? 1)\n",null,"4 kap 2 §, 8 kap 2 § AFS 2023:3\nTDOK 2016:0032",null,null,null,null,null,"?",null,null,null,null,null,null,null,null,null,null,0,0,0,0,0,0,0,{"$f":"U22+V22","v":0},{"$f":"AA22","v":0},{"$f":"SUM(U22:V22)","v":0},{"$f":"AA22","v":0}]
["7.5.2","Har det identifierats allvarliga arbetsmiljörisker som inte kan åtgärdas med givna förutsättningar?",null,"4 kap 24 § AFS 2023:3",null,null,null,null,null,"?",null,null,null,null,null,null,null,null,null,null,0,0,0,0,0,0,0,null,null,0,0]
["7.5.3","Har Bas-U organiserat samarbetet mellan entreprenörerna så att man tar hänsyn till varandra när arbetsmetoder och arbetsutrustning väljs?",null,"4 kap 7§ AFS 2023:3",null,null,null,null,null,"?",null,null,null,null,null,null,null,null,null,null,0,0,0,0,0,0,{"$f":"SUM(X24:Z24)","v":0},null,null,{"$f":"SUM(U24:V24)","v":0},{"$f":"AA24","v":0}]
["7.5.4","Deltar och styr Bas-U planeringen av arbetsmoment så att gemensamma arbetsmiljösynpunkter beaktas vid produktionsplaneringen? 1)",null,"4 kap 5 § AFS 2023:3\nTDOK 2016:0032",null,null,null,null,null,"?",null,null,null,null,null,null,null,null,null,null,0,0,0,0,0,0,0,{"$f":"U25+V25","v":0},{"$f":"AA25","v":0},0,0]
["7.5.5","Bevakar Bas-U tilldelningen av tid för olika arbeten och arbetsmoment för att förebygga ohälsa och olycksfall?",null,"4 kap 6 § AFS 2023:3",null,null,null,null,null,"?",null,null,null,null,null,null,null,null,null,null,0,0,0,0,0,0,0,null,null,0,0]
["7.5.6","Delges byggherren dokumentation från Bas-U:s byggarbetsmiljösamordningsmöten? ",null,"3 kap 7 b § AML \n4 kap 4, 20 §§ \n2 ka. 4 p. 2, 8 §§ AFS 2023:3",null,null,null,null,null,"?",null,null,null,null,null,null,null,null,null,null,0,0,0,0,0,0,0,null,null,0,0]
["7.5.7","Samordnar Bas-U produktionsplanering med  riskhantering i arbetsberedningar?",null,"4 kap 5, 20 §§ AFS 2023:3",null,null,null,null,null,"?",null,null,null,null,null,null,null,null,null,null,0,0,0,0,0,0,0,{"$f":"U28+V28","v":0},{"$f":"AA28","v":0},0,0]
["7.5.8","Överensstämmer aktuell produktionsplanering med risker och  åtgärder i arbetsmiljöplanen?  \n(Jfr med riskhantering, arbetsberedning, riskbedömning av aktivitet i spårområde etc.)",null,"4 kap 20, 29 §§ AFS 2023:3",null,null,null,null,null,"?",null,null,null,null,null,null,null,null,null,null,0,0,0,0,0,0,0,null,null,0,0]
["7.5.9","Har entreprenörerna fått klartecken av Bas-U innan de påbörjat sitt arbete ? 1)\n",null,"4 kap 12 §  AFS 2023:3\nTDOK 2016:0032",null,null,null,null,null,"?"]
["7.5.10","Följer entreprenörerna Bas-U:s anvisningar i frågor som har betydelse för arbetsmiljön? ",null,"4 kap 23 § AFS 2023:3",null,null,null,null,null,"?",null,null,null,null,null,null,null,null,null,null,{"$f":"IF(E31>0,1,0)","v":0},{"$f":"IF(F31>0,0.5,0)","v":0},{"$f":"IF(G31>0,0,0)","v":0},{"$f":"IF(E31>0,1,0)","v":0},{"$f":"IF(F31>0,1,0)","v":0},{"$f":"IF(G31>0,1,0)","v":0},0,null,null,0,0]
["7.5.11","Har Bas-U säkerställt att en person med särskild kompetens leder specifika arbetsmoment där \ndet krävs en sådan person enligt  föreskrifterna?\n",null,"4 kap 17 §  AFS 2023:3",null,null,null,null,null,"?",null,null,null,null,null,null,null,null,null,null,0,0,0,0,0,0,0,null,null,0,0]
["7.6","Kommuniceras avvikelser, tillkommande eller förändrad projektering med byggherren och Bas-P? 1)\n(Beaktas för byggskede, drift, underhåll i samarbete med Bas-P. Jfr även tillfälliga konstruktioner)",null,"3 kap 6 §, 7 § AML \n4 kap 29, 30 §§  AFS 2023:3\n(2 kap 24 § AFS 2023:3),\n3 kap 19 § AFS 2023:3)\n",null,null,null,null,null,"?",null,null,null,null,null,null,null,null,null,null,0,0,0,0,0,0,0,null,null,0,0]
[null,"Samordning av tillämpningen av relevanta arbetsmiljöregler.                                              ",null,null,null,null,null,null,null,"?",null,null,null,null,null,null,null,null,null,null,0,0,0,0,0,0,0,{"$f":"U34+V34","v":0},{"$f":"AA34","v":0},0,0]
["7.7","Samordnar Bas-U tillämpningen av relevanta arbetsmiljöregler?  1) ",null,"3 kap 7 b § AML \n4 kap 4, 12, 14, (20) §§ AFS 2023:3\nTDOK 2016:0032",null,null,null,null,null,"?",null,null,null,null,null,null,null,null,null,null,0,0,0,0,0,0,0,null,null,0,0]
["7.7.1","Finns en aktuell sammanställning av tillämpliga lagar, förordningar och föreskrifter avseende arbetsmiljön i byggskedet?",null,"3 kap 7 b § AML \nTMALL 0255\n8 kap 2 § p. 1 AFS 2023:3",null,null,null,null,null,"?",null,null,null,null,null,null,null,null,null,null,0,0,0,0,0,0,0,null,null,0,0]
["7.7.2","Samordnar Bas-U arbetsmiljöregler för ett specifikt riskområde?  (Precisera i kommentar valet av område/ bestämmelser som följs upp ) ",null,"3 kap 7 b § AML  \n11 kap 12 §,\n10 kap 1§  AFS 2023:3,\nAFS 2023:12,\n9 kap 1§ AFS 2023:3, AFS 2023:13",null,null,null,null,null,"?",null,null,null,null,null,null,null,null,null,null,0,0,0,0,0,0,0,null,null,0,0]
[null,"Dokumentation. Arbetsmiljöplan                    ",null,null,null,null,null,null,null,"?",null,null,null,null,null,null,null,null,null,null,0,0,0,0,0,0,0,null,null,0,0]
["7.8","Är arbetsmiljöplanen tillgänglig och kommunicerad till alla verksamma på byggarbetsplatsen? 1)",null,"3 kap 7 b § AML ,  \n4 kap 27, 29 §§, 11 kap 5§ AFS 2023:3\nTDOK 2016:0032",null,null,null,null,null,"?",null,null,null,null,null,null,null,null,null,null,0,0,0,0,0,0,0,{"$f":"U39+V39","v":0},{"$f":"AA39","v":0},0,0]
["7.8.1","Är arbetsmiljöplanen utformad och språkanpassad på ett sätt som tillgodoser byggarbetsplatsens behov?",null,"4 kap 16 §, 11 kap 4 §\nAFS 2023:3",null,null,null,null,null,"?",null,null,null,null,null,null,null,null,null,null,0,0,0,0,0,0,0,null,null,0,0]
["7.8.2","Fungerar arbetssätt för anmälan av ny personal på byggarbetsplatsen, med lokal introduktion/ information? 1)",null,"4 kap 15 § AFS 2023 \nTDOK 2016:0032",null,null,null,null,null,"?",null,null,null,null,null,null,null,null,null,null,0,0,0,0,0,0,0,null,null,0,0]
["7.8.3","Är arbetsmiljöplanen uppdaterad med uppgifter och risker och åtgärder som det faktiska arbetet innebär? 1)  (BM)",null,"4 kap 27, 29 §§, 11 kap 5. 4,5 §§ AFS 2023:3)\nTDOK 2016:0032\n",null,null,null,null,null,"?",null,null,null,null,null,null,null,null,null,null,0,0,0,0,0,0,0,null,null,0,0]
["7.8.4","Är arbetsmiljöplanen uppdaterad utifrån hur arbetet går,  eventuella förändringar och de arbetsmetoder som i praktiken används?\n",null,"4 kap 29 §  AFS 2023:3",null,null,null,null,null,"?",null,null,null,null,null,null,null,null,null,null,0,0,0,0,0,0,0,null,null,0,0]
["7.8.5","För de åtgärder som beskrivs vid planering av de 13 arbeten med särskild risk, framgår det vilka  arbetsmoment och eventuell arbetsberedning som är berörda?\n",null,"11 kap 12 §  AFS 2023:3",null,null,null,null,null,"?",null,null,null,null,null,null,null,null,null,null,0,0,0,0,0,0,{"$f":"SUM(X44:Z44)","v":0},null,null,{"$f":"SUM(U44:V44)","v":0},{"$f":"AA44","v":0}]
["7.8.6","Är riskhanteringen i arbetsmiljöplanen aktuell och med spårbarhet till annan riskhantering, särskilt för de tretton utpekade arbetsmoment som medför särskilda arbetsmiljörisker?",null,"11 kap 4, 8, 12 §§",null,null,null,null,null,"?",null,null,null,null,null,null,null,null,null,null,0,0,0,0,0,0,0,0,0,0,0]
["7.8.7","Innehåller arbetsmiljöplanen uppgifter i enlighet med Trafikverkets krav? \n(Se TMALL 0009 och/eller kontrakt med TMALL 0255)",null,"11 kap AFS 2023:3",null,null,null,null,null,"?",null,null,null,null,null,null,null,null,null,null,0,0,0,0,0,0,0,0,0,0,0]
["7.8.8","Har man inrättat allmänna skyddsanordningar? (Visar riskhantering på sådana åtgärder?)",null,"AML 3 kap 7 e-§\n8 kap 2 § AFS 2023:3",null,null,null,null,null,"?",null,null,null,null,null,null,null,null,null,null,0,0,0,0,0,0,0,null,null,0,0]
["7.8.9","Finns projektanpassade ordnings- och skyddsregler?",null,"4 kap 29 §, 11 kap. 4, 8, 10 §§ AFS 2023:3",null,null,null,null,null,"?",null,null,null,null,null,null,null,null,null,null,0,0,0,0,0,0,0,null,null,0,0]
["7.8.10","Framgår det vad som gäller vid material-/ lasthantering och användning av transportleder på byggarbetsplatsen?",null,"11 kap 10 § AFS 2023:3\n5 kap AFS 2023:13",null,null,null,null,null,"?",null,null,null,null,null,null,null,null,null,null,0,0,0,0,0,0,0,null,null,0,0]
["7.8.11","Innehåller arbetsmiljöplanen aktuell beskrivning av hur samordnings- och arbetsmiljöarbetet är organiserat?  (BM)",null,"3 kap 7 e § AML, \n4 kap 29 § \n11 kap 11§ AFS 2023:3",null,null,null,null,null,"?",null,null,null,null,null,null,null,null,null,null,0,0,0,0,0,0,0,null,null,0,0]
["7.8.12","Innehåller arbetsmiljöplanen en beskrivning av hur arbetsmiljöarbetet ska organiseras och bedrivas, med kontaktuppgifter och rutiner för arbetsmiljöarbetet?\n\n",null,"4 kap 2 §, 11 kap 9§ AFS 2023:3",null,null,null,null,null,"?",null,null,null,null,null,null,null,null,null,null,0,0,0,0,0,0,0,null,null,0,0]
["7.8.13","Omfattar rutinerna för samordning de arbetsuppgifter som hanterar beredskap för första hjälpen, krisstöd samt brand och utrymning?",null,"4 kap 2 §, 11 kap 9§ AFS 2023:3",null,null,null,null,null,"?",null,null,null,null,null,null,null,null,null,null,0,0,0,0,0,0,0,null,null,0,0]
["7.8.14","Framgår det i arbetsmiljöplanen hur samordningen mellan verksamheter ska gå till när arbete ska utföras på en plats där annan verksamhet pågår samtidigt?",null,"11 kap 11§  AFS 2023:3",null,null,null,null,null,"?",null,null,null,null,null,null,null,null,null,null,0,0,0,0,0,0,0,null,null,0,0]
["7.8.15","Framgår överenskommelser för samordning och de verksamma på byggarbetsplatsen tydligt i arbetsmiljöplanen?",null,"3 kap 7 b, e-g § AML \n11 kap 11 § AFS 2023:3",null,null,null,null,null,"?",null,null,null,null,null,null,null,null,null,null,0,0,0,0,0,0,0,null,null,0,0]
["7.8.16","Framgår kontaktuppgifter till samtliga verksamma aktörer på byggarbetsplatsen? ",null," 3 kap 7 b, e-g § AML11 kap 9 § AFS 2023:3",null,null,null,null,null,"?",null,null,null,null,null,null,null,null,null,null,0,0,0,0,0,0,{"$f":"SUM(X55:Z55)","v":0},null,null,0,0]
["7.8.17","Finns aktuella uppgifter på ansvariga för speciella skyddsanordningar i arbetsmiljöplanen?",null,"3 kap 7 e § AML, \n5 kap 5 § p.1 AFS 2023:13 11 kap 12 § AFS 2023:3",null,null,null,null,null,"?",null,null,null,null,null,null,null,null,null,null,0,0,0,0,0,0,0,null,null,0,0]
["7.8.18","Har samtliga verksamma aktörer på byggarbetsplatsen en deltagare eller kontaktperson till skyddsorganisationen/ arbetsmiljöarbetet?",null,"3 kap 7 e § (g) AML\n11 kap 9 § AFS 2023:3",null,null,null,null,null,"?",null,null,null,null,null,null,null,null,null,null,0,0,0,0,0,0,0,null,null,0,0]
[null,"Följa upp arbetsmiljöarbetet",null,null,null,null,null,null,null,"?",null,null,null,null,null,null,null,null,null,null,0,0,0,0,0,0,0,null,null,0,0]
["7.9","Samordnar Bas-U kontrollerna av att arbetet utförs på ett korrekt sätt och att arbetsmiljöplanen följs? 1) (BM)",null,"3 kap 7b § AML\n(7g§)\n4 kap 20 § AFS 2023:3\n+ 4 kap 4 §§ AFS 2023:3\nTDOK 2016:0032",null,null,null,null,null,"?",null,null,null,null,null,null,null,null,null,null,0,0,0,0,0,0,0,null,null,{"$f":"SUM(U59:V59)","v":0},0]
["7.9.1","Finns aktuellt kontrollprogram och/eller kontrollplaner samt utför och dokumenterar man uppföljning enligt detta?",null,"3 kap 7 e-§ AML\n4 kap 20 § AFS 2023:3\n2 kap 3, 4, 8 §§ AFS 2023:3",null,null,null,null,null,"?",null,null,null,null,null,null,null,null,null,null,0,0,0,0,0,0,0,null,null,0,0]
["7.9.2","Genomförs kontroller av att entreprenörerna\nföljer arbetsmiljöbestämmelser samt arbetsmiljöplanen?\n",null,"4 kap 20 § AFS 2023:3",null,null,null,null,null,"?",null,null,null,null,null,null,null,null,null,null,0,0,0,0,0,0,{"$f":"SUM(X61:Z61)","v":0},null,null,{"$f":"SUM(U61:V61)","v":0},0]
["7.9.3","Genomförs kontroller av att entreprenörerna\n har hanterat arbetsmiljöriskerna inför arbetets start, som t e x i arbetsberedningar?\n",null,"4 kap 20 § AFS 2023:3",null,null,null,null,null,"?",null,null,null,null,null,null,null,null,null,null,0,0,0,0,0,0,0,null,null,0,0]
["7.9.4","Kontrolleras att person med särskild kompetens  gällande  tillfälliga  eller samverkande konstruktioner utför de utpekade uppgifterna?  \n",null,"4 kap 18 §  AFS 2023:3",null,null,null,null,null,"?",null,null,null,null,null,null,null,null,null,null,{"$f":"IF(E63>0,1,0)","v":0},{"$f":"IF(F63>0,0.5,0)","v":0},{"$f":"IF(G63>0,0,0)","v":0},{"$f":"IF(E63>0,1,0)","v":0},{"$f":"IF(F63>0,1,0)","v":0},{"$f":"IF(G63>0,1,0)","v":0},0,null,null,0,0]
["7.9.5","Kontrolleras bärighet av underlag och annan förankring vid planering av att en ställning eller väderskydd ska användas?  ",null,"4 kap 20, 22 §§, \n11 kap 10 §  AFS 2023:3",null,null,null,null,null,"?",null,null,null,null,null,null,null,null,null,null,0,0,0,0,0,0,0,null,null,0,0]
["7.9.6","Kontrolleras ställningar och väderskydd om sådana finns på byggarbetsplatsen?\n\n",null,"4 kap 20, 22 §§, \n11 kap 9,10 §§  AFS 2023:3\nAFS 2023:11\n(5 kap. 48, 79, 108 AFS 20223:13 \n8 kap 1 § AFS 2023:11)",null,null,null,null,null,"?",null,null,null,null,null,null,null,null,null,null,0,0,0,0,0,0,0,null,null,0,0]
["7.9.7","Genomförs kontroll av allmänna skyddsanordningar, där brister dokumenteras och åtgärdas? \n(Se bl a särskilt skyddsåtgärder för risker för fall och passerande fordonstrafik vid väg o järnväg.)",null,"4 kap 20, 22§§, \n11 kap 9-10, 12§§  AFS 2023:3\n(5 kap 48, 60 - 69, 79, 109, 110 AFS 20223:13 \n8 kap 1 § AFS 2023:11)",null,null,null,null,null,"?",null,null,null,null,null,null,null,null,null,null,0,0,0,0,0,0,0,null,null,0,0]
["7.9.8","Är gemensamma skyddsronder och annan uppföljning dokumenterad och brister åtgärdade?",null,"3 kap 7b § AML\n4 kap 20 § AFS 2023:3\n11 kap 9 § AFS 2023:3",null,null,null,null,null,"?",null,null,null,null,null,null,null,null,null,null,0,0,0,0,0,0,0,null,null,0,0]
["7.10","Vidtar Bas-U åtgärder då någon verksam på arbetsplatsen inte följer Bas-U:s samordning eller  arbetsmiljöplan? 1)",null,"4 kap 23 § AFS 2023:3 \nTDOK 2016:0032",null,null,null,null,null,"?",null,null,null,null,null,null,null,null,null,null,0,0,0,0,0,0,0,null,null,0,0]
["7.11","Delges byggherren dokumentation rörande rapportering, utredning av olyckor och allvarliga tillbud, samt skriftlig dialog med Arbetsmiljöverket?",null,"TDOK 2016:0035",null,null,null,null,null,"?",null,null,null,null,null,null,null,null,null,null,0,0,0,0,0,0,0,null,null,0,0]
["7.12","Har Bas-U aktuella uppgifter på att tekniska anordningar är besiktigade och provade, att förare har kompetens och tillstånd? (BM)",null,"4 kap 4, 20, 21 §§ AFS 2023:3",null,null,null,null,null,"?",null,null,null,null,null,null,null,null,null,null,0,0,0,0,0,0,0,null,null,0,0]
[null,"Dokumentation, Arbetsmiljödokumentation inför framtida drift och underhåll.                            ",null,null,null,null,null,null,null,"?",null,null,null,null,null,null,null,null,null,null,0,0,0,0,0,0,0,null,null,0,0]
["7.13","Anpassar Bas-U löpande den framtagna arbetsmiljödokumentationen inför framtida drift och underhåll? 1) ",null,"4 kap 30 § AFS 2023:3\n10 kap 5-6 §§ AFS 2023:3\nTDOK 2016:0032",null,null,null,null,null,"?",null,null,null,null,null,null,null,null,null,null,0,0,0,0,0,0,0,null,null,0,0]
[null,null,null,null,null,null,null,null,null,null,null,null,null,null,null,null,null,null,null,null,0,0,0,0,0,0,{"$f":"SUM(X73:Z73)","v":0},null,null,{"$f":"SUM(U73:V73)","v":0},0]
[null,null,null,null,null,null,null,null,null,null,null,null,null,null,null,null,null,null,null,null,0,0,0,0,0,0,0,null,null,0,0]
[null,null,null,null,null,null,null,null,null,null,null,null,null,null,null,null,null,null,null,null,0,0,0,{"$f":"IF(E75>0,1,0)","v":0},0,0,0,null,null,0,{"$f":"AA75","v":0}]
[null,null,null,null,null,null,null,null,null,null,null,null,null,null,null,null,null,null,null,null,0,0,0,0,0,0,0,null,null,0,0]
[null,null,null,null,null,null,null,null,null,null,null,null,null,null,null,null,null,null,null,null,0,0,0,0,0,0,0,null,null,0,0]
[null,null,null,null,null,null,null,null,null,null,null,null,null,null,null,null,null,null,null,null,0,0,0,0,0,0,0,null,null,0,0]
[null,null,null,null,null,null,null,null,null,null,null,null,null,null,null,null,null,null,null,null,0,0,0,0,0,0,0,null,null,0,0]
[null,null,null,null,null,null,null,null,null,null,null,null,null,null,null,null,null,null,null,null,{"$f":"IF(E80>0,1,0)","v":0},{"$f":"IF(F80>0,0.5,0)","v":0},{"$f":"IF(G80>0,0,0)","v":0},0,0,0,0,null,null,0,0]
[null,null,null,null,null,null,null,null,null,null,null,null,null,null,null,null,null,null,null,null,0,0,0,0,0,0,0,null,null,0,0]
[null,null,null,null,null,null,null,null,null,null,null,null,null,null,null,null,null,null,null,null,0,0,0,0,0,0,0,null,null,0,0]
[null,null,null,null,null,null,null,null,null,null,null,null,null,null,null,null,null,null,null,null,0,0,0,0,0,0,0,null,null,0,0]
[null,null,null,null,null,null,null,null,null,null,null,null,null,null,null,null,null,null,null,null,0,0,0,0,0,0,0,null,null,0,0]

{"sheet":"8. Bas-U, Byh rond","index":8,"n_rows":26,"n_cols":41,"rows_kept":26,"cut":false,"hidden":false,"merged":[[16,1,16,2],[17,1,17,2],[18,1,18,2],[19,1,19,2],[20,1,20,2],[21,1,21,2],[22,1,22,2],[23,1,23,2],[24,1,24,2],[25,1,25,2],[15,1,15,2],[9,1,9,2],[11,1,11,2],[12,1,12,2],[14,1,14,2],[13,1,13,2],[8,3,8,8],[0,0,1,5],[3,7,3,8],[4,7,4,8],[5,7,5,8],[6,7,6,8],[7,7,7,8],[4,2,4,3],[5,2,5,3],[6,2,6,3],[7,2,7,3]]}
["8. Uppföljning Bas-U, Byggherrens rond på byggarbetsplats",null,null,null,null,null,null,null,null,{"$f":"IF(AN12>0,AM12/AN12*100,0.1)","v":0.1}]
[null,null,null,null,null,null,"Datum: ",null,null,{"$f":"IF(AL12>0,SUM(AF12:AG12)/AL12*100,0.1)","v":0.1},null,null,null,null,null,null,null,null,null,null,"(AB12>0;AA12/AB12*100;0,1"]
[null,null,null,null,null,null,"Genomförd av: ",null,null,null,null,null,null,null,null,null,null,null,null,null,"Z12>0;SUMMA(T12:U12)/Z12*100;0,1)"]
["Organisationsuppgifter",null,null,null,"Byggherrerepresentant:"]
["VO:",null,null,null,"(om annan än projektledaren)"]
["Distrikt/program:",null,null,null,"Projektledare:"]
["Projekt/Kontrakt",null,null,null,"Leverantör: "]
["Fas/skede:",null,null,null,"Deltagare, roll:"]
[null,null,null,"Trafikverkets interna styrning: Rutin TDOK 2018:0151  Byggherrens arbetsmiljöansvar vid byggnads- och anläggningsarbeten "]
["Nr","Uppföljningsfrågor ",null,"Hänvisning \nLagstöd \n","Ja, Accepterad\n[x]","Nej, Mindre anmärkning\n[x] ","Nej,  Avvikelse\n[x]","Ej relevant\nEj ställd\n[x]","Kommentar \nVad uppföljningen/ stickprovet omfattar (t ex risk, dokument och verifikat). Förbättring/ anmärkning/ avvikelse. Åtgärder. ","Hjälp\n(länk)\n[?]",null,null,null,null,null,null,null,null,null,null,"1 om ja","0,5 om delvis","0 om nej","1 om ifylld","1 om ifylld","1 om ifylld","1 0mfrågan besvarad","Summa ","1 0mfrågan besvarad","Summa samtliga"]
[null,"Bas-U:s uppgifter, uppföljning och stickprov på byggarbetsplatsen                                            ",null,null,null,null,null,null,null,"?",null,null,null,null,null,null,null,null,null,null,{"$f":"IF(E11>0,1,0)","v":0},{"$f":"IF(F11>0,0.5,0)","v":0},{"$f":"IF(G11>0,0,0)","v":0},{"$f":"IF(E11>0,1,0)","v":0},{"$f":"IF(F11>0,1,0)","v":0},{"$f":"IF(G11>0,1,0)","v":0},{"$f":"SUM(X11:Z11)","v":0},{"$f":"U11+V11","v":0},{"$f":"AA11","v":0},{"$f":"SUM(U11:V11)","v":0},{"$f":"AA11","v":0},"1 om ja","0,5 om delvis","0 om nej","1 om ifylld","1 om ifylld","1 om ifylld","1 0mfrågan besvarad","Summa ","1 0mfrågan besvarad","Summa samtliga"]
["8.1","Är förhandsanmälan anslagen och uppdaterad? \n",null,"2 kap 25-26 §§, 4 kap 27- 28 §§ AFS 2023:3",null,null,null,null,null,"?",null,null,null,null,null,null,null,null,null,null,0,0,0,0,0,0,{"$f":"SUM(X12:Z12)","v":0},0,0,{"$f":"SUM(U12:V12)","v":0},{"$f":"AA12","v":0},{"$f":"SUM(U11:U26)","v":0},0,0,0,0,0,0,0,0,0]
["8.2","Är arbetsmiljöplanen tillgänglig och har den delgivits de verksamma?  1) ",null,"3 kap 7 b §  AML\n4 kap 14, 15, 16, 27, 29 §§, 11 kap 5§ AFS 2023:3\nTDOK 2016:0032",null,null,null,null,null,"?",null,null,null,null,null,null,null,null,null,null,0,0,0,0,0,0,0,0,0,0,0]
["8.3.1","Följer man på byggarbetsplatsen gällande ordnings- och skyddsregler? 1) ",null,"3 kap 7 b § AML\n4 kap 4, 9, 20 §§, 11 kap 10 § AFS 2023:3\nTDOK 2016:0032",null,null,null,null,null,"?",null,null,null,null,null,null,null,null,null,null,0,0,0,0,0,0,{"$f":"SUM(X14:Z14)","v":0},{"$f":"U14+V14","v":0},{"$f":"AA14","v":0},{"$f":"SUM(U14:V14)","v":0},{"$f":"AA14","v":0}]
["8.3.2","Följer man arbetsmiljöplanen, den riskhantering med åtgärder som framgår där? 1) ",null,"3 kap 7 b,§ (g) AML\n4 kap 4,20 §§ AFS, 11 kap  2023:3\nTDOK 2016:0032",null,null,null,null,null,"?",null,null,null,null,null,null,null,null,null,null,0,0,0,0,0,0,{"$f":"SUM(X15:Z15)","v":0},0,0,0,0]
["8.4","Finns person med särskild kompetens som leder specifika arbetsmoment där det krävs en sådan person enligt  föreskrifterna?\n(Exempel rivningsarbete, schaktning,  passerande fordonstrafik, tillfälliga eller samverkande konstruktioner, fångdammar och kassuner samt roller som sprängarbas och ansvarig för lyftoperationer)\n",null,"4 kap 17, 18 §§  AFS 2023:3\nAFS 2023:13",null,null,null,null,null,"?",null,null,null,null,null,null,null,null,null,null,0,0,0,0,0,0,0,null,null,0,0]
["8.4.1","Utför person med särskild kompetens de utpekade uppgifterna när en tillfällig konstruktion eller samverkande konstruktion uppförs?  \n",null,"4 kap 18 §  AFS 2023:3",null,null,null,null,null,"?",null,null,null,null,null,null,null,null,null,null,0,0,0,0,0,0,0,null,null,0,0]
["8.5","Har det inrättats och underhålls allmänna skyddsanordningar? \n(Jämför åtgärder enligt riskhantering)  ",null,"3 kap. 7 e § AML\n8 kap 2 §, 4 kap 22§, 11 kap 9, 10, 12 §§ AFS 2023:3",null,null,null,null,null,"?",null,null,null,null,null,null,null,null,null,null,0,0,0,0,0,0,{"$f":"SUM(X18:Z18)","v":0},{"$f":"U18+V18","v":0},{"$f":"AA18","v":0},0,0]
["8.5.1","Har bärighet av underlag och annan förankring kontrollerats inför att en ställning eller väderskydd används?  ",null,"4 kap 20, 22 §, 11 kap 9,10 §§  AFS 2023:3",null,null,null,null,null,"?",null,null,null,null,null,null,null,null,null,null,0,0,0,0,0,0,{"$f":"SUM(X19:Z19)","v":0},{"$f":"U19+V19","v":0},{"$f":"AA19","v":0},{"$f":"SUM(U19:V19)","v":0},{"$f":"AA19","v":0}]
["8.5.2","Finns uppgifter tillgängligt gällande montage/dokumentation samt genomförda  kontroller av allmänna skyddsanordningar? (Se bl a ställningar, barriärer)",null,"4 kap 20, 22 §, 11 kap 9,10 §§  AFS 2023:3\n(5 kap. 48, 79, 108 AFS 20223:13 \n8 kap 1 § AFS 2023:11\nAFS 2023:11)",null,null,null,null,null,"?",null,null,null,null,null,null,null,null,null,null,0,0,0,0,0,0,0,0,0,0,0]
["8.5.3","Finns fallskydd, eller annan åtgärd vid nivåskillnader?",null,"11 kap 10, 12 §§ AFS 2023:3 \n(5 kap 60 - 69 §§ AFS 2023:13, 11 kap 13 §, 12 kap 10 § AFS 2023:11)",null,null,null,null,null,"?",null,null,null,null,null,null,null,null,null,null,0,0,0,0,0,0,{"$f":"SUM(X21:Z21)","v":0},null,null,0,0]
["8.6","Är tekniska anordningar besiktigade och provade, har förare kompetens och tillstånd?",null,"4 kap 4, 20, 21 §§ AFS 2023:3",null,null,null,null,null,"?",null,null,null,null,null,null,null,null,null,null,0,0,0,0,0,0,0,{"$f":"U22+V22","v":0},{"$f":"AA22","v":0},0,0]
["8.7","Är det städat och ordning på arbetsplatsen?\n",null,"3 kap 7 b § AML\n4 kap 8, 20 §§, 11 kap 10, 12 §§ AFS 2023:3\n(5 kap 10§ AFS 2023:13)",null,null,null,null,null,"?",null,null,null,null,null,null,null,null,null,null,0,0,0,0,0,0,{"$f":"SUM(X23:Z23)","v":0},null,null,0,0]
["8.8","Har Bas-U beaktat att enbart behöriga har tillträde till byggarbetsplatsen? ",null,"3 kap 7 b § AML \n4 kap 4 § p 4 AFS 2023:3",null,null,null,null,null,"?",null,null,null,null,null,null,null,null,null,null,0,0,0,0,0,0,0,null,null,0,0]
["8.8.1","Finns kontaktuppgifter för anmälan av materialtransporter och besökande vid infarter?",null,"4 kap 4 § \n5 kap 14 § AFS 2023:13",null,null,null,null,null,"?",null,null,null,null,null,null,null,null,null,null,0,0,0,0,0,0,0,null,null,0,0]
["8.9","Har Bas-U inrättat personalutrymmen och sanitära anordningar på byggarbetsplatsen?",null,"3 kap 7e § AML\n4 kap 11 § AFS 2023:3",null,null,null,null,null,"?",null,null,null,null,null,null,null,null,null,null,0,0,0,0,0,0,0,null,null,0,0]

{"sheet":"9. Verksamma","index":9,"n_rows":22,"n_cols":41,"rows_kept":22,"cut":false,"hidden":false,"merged":[[0,0,1,4],[14,1,14,2],[15,1,15,2],[13,1,13,2],[7,2,7,3],[8,3,8,8],[9,1,9,2],[11,1,11,2],[12,1,12,2],[4,2,4,3],[5,2,5,3],[6,2,6,3],[3,7,3,8],[4,7,4,8],[5,7,5,8],[6,7,6,8],[7,7,7,8],[20,1,20,2],[19,1,19,2],[16,1,16,2],[17,1,17,2],[18,1,18,2],[26,1,26,2],[27,1,27,2],[21,1,21,2],[22,1,22,2],[23,1,23,2],[24,1,24,2],[25,1,25,2]]}
["9. Uppföljning \nArbetsgivare verksamma på byggarbetsplats (Ej Bas-U*)",null,null,null,null,null,null,null,"*) Se rutin TDOK 2018:0151. Omfattar även  bl a platsbesök och fältarbeten",{"$f":"IF(AL11>0,SUM(AF11:AG11)/AL11*100,0.1)","v":{"$error":"#VALUE!"}}]
[null,null,null,null,null,null,"Datum: ",null,null,{"$f":"IF(AL12>0,SUM(AF12:AG12)/AL12*100,0.1)","v":0.1},null,null,null,null,null,null,null,null,null,null,"(AB12>0;AA12/AB12*100;0,1"]
[null,null,null,null,null,null,"Genomförd av: ",null,null,null,null,null,null,null,null,null,null,null,null,null,"Z12>0;SUMMA(T12:U12)/Z12*100;0,1)"]
["Organisationsuppgifter",null,null,null,"Byggherrerepresentant:"]
["VO:",null,null,null,"(om annan än projektledaren)"]
["Distrikt/program:",null,null,null,"Projektledare:"]
["Projekt/Kontrakt",null,null,null,"Leverantör: "]
["Fas/skede:",null,null,null,"Deltagare, roll:"]
[null,null,null,"Trafikverkets interna styrning: Rutin TDOK 2018:0151  Byggherrens arbetsmiljöansvar vid byggnads- och anläggningsarbeten "]
["Nr","Uppföljningsfrågor ",null,"Hänvisning \nLagstöd \n","Ja, Accepterad\n[x]","Nej, Mindre anmärkning\n[x] ","Nej,  Avvikelse\n[x]","Ej relevant\nEj ställd\n[x]","Kommentar \nVad uppföljningen/ stickprovet omfattar (t ex risk, dokument och verifikat). Förbättring/ anmärkning/ avvikelse. Åtgärder. ","Hjälp\n(länk)\n[?]",null,null,null,null,null,null,null,null,null,null,"1 om ja","0,5 om delvis","0 om nej","1 om ifylld","1 om ifylld","1 om ifylld","1 0mfrågan besvarad","Summa ","1 0mfrågan besvarad","Summa samtliga"]
[null,"Arbetsgivares samråd, lämna uppgifter och delta i samordning ",null,null,null,null,null,null,null,"?",null,null,null,null,null,null,null,null,null,null,{"$f":"IF(E11>0,1,0)","v":0},{"$f":"IF(F11>0,0.5,0)","v":0},{"$f":"IF(G11>0,0,0)","v":0},{"$f":"IF(E11>0,1,0)","v":0},{"$f":"IF(F11>0,1,0)","v":0},{"$f":"IF(G11>0,1,0)","v":0},{"$f":"SUM(X11:Z11)","v":0},{"$f":"U11+V11","v":0},{"$f":"AA11","v":0},{"$f":"SUM(U11:V11)","v":0},{"$f":"AA11","v":0},"1 om ja","0,5 om delvis","0 om nej","1 om ifylld","1 om ifylld","1 om ifylld","1 0mfrågan besvarad","Summa ","1 0mfrågan besvarad","Summa samtliga"]
["9.1","Har leverantören lämnat uppgifter om arbets- och tidsplanering samt verksamhetens risker till Bas-U? 1) \n(Där relevant, även uppgifter till samordningsansvarig för gemensamt arbetsställe med rådighetsansvar.) ",null,"3 kap 7 g § AML, \n5 kap 5 § AFS 2023:13, \n4 kap 12-13 §§  AFS 2023:3\nTDOK 2016:0032",null,null,null,null,null,"?",null,null,null,null,null,null,null,null,null,null,0,0,0,0,0,0,{"$f":"SUM(X12:Z12)","v":0},null,null,{"$f":"SUM(U12:V12)","v":0},{"$f":"AA12","v":0},{"$f":"SUM(U11:U21)","v":0},0,0,0,0,0,0,0,0,0]
["9.1.1","Har leverantören delgivit Bas-U uppgifter på att tekniska anordningar är besiktigade och provade samt att förare har kompetens och tillstånd?",null,"4 kap 21 § AFS 2023:3",null,null,null,null,null,"?",null,null,null,null,null,null,null,null,null,null,0,0,0,0,0,0,{"$f":"SUM(X13:Z13)","v":0},null,null,0,0]
["9.1.2","Kommuniceras förändringar eller avvikelser från projekterad anläggning med byggherren och Bas-P?",null,"(2 kap 24 § AFS 2023:3, 3 kap 19 § AFS 2023:3)",null,null,null,null,null,"?",null,null,null,null,null,null,null,null,null,null,0,0,0,0,0,0,{"$f":"SUM(X14:Z14)","v":0},null,null,{"$f":"SUM(U14:V14)","v":0},{"$f":"AA14","v":0}]
["9.1.3","Anmäls platsbesök till Bas-U?\n(Där relevant, även samordningsansvarig för gemensamt arbetsställe med rådighetsansvar) ",null,"3 kap 7 g § AML ,\n5 kap 9 § AFS 2023:13",null,null,null,null,null,"?",null,null,null,null,null,null,null,null,null,null,0,0,0,0,0,0,{"$f":"SUM(X15:Z15)","v":0},null,null,{"$f":"SUM(U15:V15)","v":0},{"$f":"AA15","v":0}]
["9.1.4","Delges produktionsplanering och riskhantering, som i arbetsberedningar eller SoS-planer m m, till Bas-U för samordning?",null,"3 kap 7 g § AML, \n5 kap 5 § AFS 2023:13, \n4 kap.12,13 §§  AFS 2023:3",null,null,null,null,null,"?",null,null,null,null,null,null,null,null,null,null,0,0,0,0,0,0,{"$f":"SUM(X16:Z16)","v":0},{"$f":"U16+V16","v":0},{"$f":"AA16","v":0},0,0]
["9.2","Deltar leverantören i arbetsmiljöarbetet och följer anvisningar, arbetsmiljöplan med ordnings- och skyddsregler från Bas-U?  1)\n(Där relevant, även samordningsansvarig för gemensamt arbetsställe med rådighetsansvar)",null,"3 kap 7 g § AML,\n5 kap 9 § AFS 2023:13\nTDOK 2016:0032",null,null,null,null,null,"?",null,null,null,null,null,null,null,null,null,null,0,0,0,0,0,0,{"$f":"SUM(X17:Z17)","v":0},null,null,{"$f":"SUM(U17:V17)","v":0},{"$f":"AA17","v":0}]
["9.2.1","Finns protokoll från egna skyddsronder på byggarbetsplatsen?",null,"11 § AFS 2023:1",null,null,null,null,null,"?",null,null,null,null,null,null,null,null,null,null,0,0,0,0,0,0,{"$f":"SUM(X18:Z18)","v":0},null,null,{"$f":"SUM(U18:V18)","v":0},{"$f":"AA18","v":0}]
["9.2.2","Delges byggherren och Bas-U dokumentation rörande rapportering, utredning av olyckor och allvarliga tillbud, samt skriftlig dialog med Arbetsmiljöverket?",null,"TDOK 2016:0035",null,null,null,null,null,"?",null,null,null,null,null,null,null,null,null,null,0,0,0,0,0,0,{"$f":"SUM(X19:Z19)","v":0},null,null,{"$f":"SUM(U19:V19)","v":0},{"$f":"AA19","v":0}]
["9.2.3","Deltar leverantören på Bas-U:s byggarbetsmiljösamordningsmöten?",null,"3 kap 7 g § AML,\n5 kap 9 § AFS 2023:13",null,null,null,null,null,"?",null,null,null,null,null,null,null,null,null,null,0,0,0,0,0,0,{"$f":"SUM(X20:Z20)","v":0},0,0,0,0]
["9.3","Medverkar leverantören till att det råder god ordning på byggarbetsplatsen?  ",null,"5 kap 10 § AFS 2023:13",null,null,null,null,null,"?",null,null,null,null,null,null,null,null,null,null,0,0,0,0,0,0,0,null,null,{"$f":"SUM(U21:V21)","v":0},{"$f":"AA21","v":0}]
["\n9.4\n(6.9)","Genomförs samordning i samband med fältundersökningar och platsbesök enligt kontrakt, överenskommelser samt handlingsplan i projektplan? 1)  ",null,"3 kap 7 g § AML, \n5 kap 5,9 §§ AFS 2023:13, \n4 kap.12-13 §§  AFS 2023:3\nTDOK 2016:0032 kap. 4.5",null,null,null,null,null,"?"]

{"sheet":" ","index":10,"n_rows":0,"n_cols":0,"rows_kept":0,"cut":false,"hidden":false,"merged":[]}

{"sheet":"Hjälp 1. & 5. Bas-P","index":11,"n_rows":91,"n_cols":13,"rows_kept":91,"cut":false,"hidden":false,"merged":[[1,1,2,3],[1,5,7,8],[3,1,3,2],[8,10,8,12]]}
[]
[null,"Bas-P",null,null,null,"Intern styrning\nRutin TDOK 2018:0151  Byggherrens arbetsmiljöansvar vid byggnads- och anläggningsarbeten \n\nTMALL 1002, checklista\n- Huvudfrågor, baseras på grundläggande skyldighet eller övergripande arbetsuppgift enligt arbetsmiljölagstiftningen. \n   Se markerade frågor med färg- och fetstil, samt numreringshierarki.\n- Delfrågor, Relevanta delfrågor ställs för att följa upp detaljerade bestämmelser och/ eller kontraktskrav med avseende på överliggande fråga, se numreringshierarki. Huvudfråga eller annan enskild frågor kan ha delfrågor. Delfrågorna är även en vägledning till vad huvudfrågorna innefattar. "]
[]
[null,"Hjälp, Råd och stöd \nFÖRBÄTTRINGSARBETE! \n(Uppgifter kompletteras efterhand. Se motsvarande \"Hjälp\" i BUS-systemet. Material kommer sedan läggas där under \"?\", i PDF-format.)\n\n"]
[]
[]
[]
[]
[null,null,null,null,null,"           Hjälp (Råd och stöd)",null,null,null,null,"Bedömningsstöd/ Vägledning"]
[null,"LÄNK,\nTillbaka till checklistan:","Rubrik/ Fråga",null,"Notisfält\nEgen anteckning","Arbetssätt / Rutin\nSe och jämför med redovisat arbetssätt, för HUR uppgiften avses  genomföras på ett systematiskt sätt.","Kontraktskrav\nKontrollera alltid mot kontraktsunika krav. Kravtext  enligt inköpsmallar Administrativa föreskrifter (AF) samt Uppdragsbeskrivningen (UB) , Se AF-koder, där krav ska/ bör finnas.","Teckenförklaring","Förtydligande och stöd","Ur Arbetsmiljölagen (AML) eller AFS \nHänvisade bestämmelser eller utdrag ur dessa\nObservera, inte fullständiga texter! Se av.se","Ja, Accepterad\n[x]","Nej, Mindre anmärkning\n[x] ","Nej,  Avvikelse\n[x]"]
[null,{"$f":"'1. Start Bas-P'!A11","v":0},{"$f":"'1. Start Bas-P'!B11:C11","v":"Uppdraget och Bas-P:s kvalifikationer                                     "},0]
[null,{"$f":"'1. Start Bas-P'!A12","v":"1.1"},{"$f":"'1. Start Bas-P'!B12:C12","v":"Har Bas-P visat uppgifter på att man har den utbildning, kompetens och erfarenhet som behövs för det aktuella projektet? (b)\n"},0,null,null,"AF AFC/D.1832."," (b) Bas-P uppgifter för uppföljning i byggskedet (ny- eller omprojektering), se enbart  frågor markerade (b)",null,"Ur 3 Kap 3§ AFS 2023:3 Bas-P får bara använda handläggare för samordningsarbetet som Bas-P förfogar över och som har kvalifikationer enligt 2 kap. 9 § andra stycket."]
[null,{"$f":"'1. Start Bas-P'!A13","v":"1.1.1"},{"$f":"'1. Start Bas-P'!B13:C13","v":"Motsvarar Bas-Ps utbildning, kompetens och erfarenhet projektets storlek, komplexitet och risknivå? (b)\n"},0,null,null,"AFC/D.1832."," (b) Bas-P uppgifter för uppföljning i byggskedet (ny- eller omprojektering), se enbart  frågor markerade (b)",null,"Ur ..3 kap 3 § Bas-P får bara använda handläggare för samordningsarbetet som Bas-P\nförfogar över och som har kvalifikationer enligt 2 kap. 9 § andra stycket.\n..2 kap 9 § AFS 2023:3 Av 3 kap. 6 § arbetsmiljölagen (1977:1160) följer att byggherren ska utse en lämplig Bas-P och en lämplig Bas-U. Bas-P respektive Bas-U ska vara antingen en 1. juridisk person som förfogar över lämplig handläggare för uppdraget, eller\n2. fysisk person som själv är lämplig, eller förfogar över lämplig\nhandläggare, för uppdraget.\nEn lämplig person eller handläggare för uppdraget är den som har den utbildning, kompetens och erfarenhet som behövs för arbetsmiljöarbetet med hänsyn till byggprojektets storlek, komplexitet och risknivå.\nNär byggherren utser Bas-P och Bas-U ska byggherren välja de som kan avsätta tillräckligt med tid och personal för arbetsmiljöuppgifterna i byggprojektet.\nAllmänna råd\nEtt sätt för byggherren att utse lämpliga Bas-P och Bas-U är att specificera arbetsmiljökrav och låta möjliga byggarbetsmiljösamordnare beskriva handläggares kvalifikationer och rutiner för  byggarbetsmiljösamordning.\nPå så sätt kan byggherren tidigt göra val som leder till en god arbetsmiljö.\nEn handläggare som byggarbetsmiljösamordnaren förfogar över är till exempel en person som är anställd eller inhyrd av byggarbetsmiljösamordnaren.\n...2 kap 11 § ..Byggherren ska kunna styrka kvalifikationerna enligt 9 § andra stycket hos Bas-P och Bas-U, och de handläggare som används för samordningsarbetet.\nAllmänna råd\nKvalifikationerna kan exempelvis styrkas genom beskrivning av\nkompetens, intyg över genomgången utbildning och erfarenheter från\ntidigare eller nuvarande arbetsgivare.\n3 kap 2 § Bas-P ska följa bestämmelserna i 8 kap. om grund principer för att förebygga arbetsmiljörisker, 10 kap. om att planera och projektera för en god arbetsmiljö i bruksskedet 5 och 6 §§, och 11 kap. om arbetsmiljöplanen och överlämning av arbetsmiljöarbetet.\nBas-P ska även ha kännedom om bestämmelserna i 9 kap. om att planera och projektera för en god arbetsmiljö i byggskedet och 10 kap. om att planera och projektera för en god arbetsmiljö i bruksskedet 2-4 §§, eftersom byggherren och projektörerna ska följa dem.\nOmfattningen av Bas-P:s arbetsmiljöarbete ska motsvara byggprojektets\nstorlek, komplexitet och risknivå.\nAllmänna råd\nDet finns ytterligare bestämmelser om arbetsmiljön i byggskedet i Arbetsmiljöverkets föreskrifter och allmänna råd (AFS 2023:13) om risker vid vissa typer av arbeten, kapitlet om byggnads- och\nanläggningsarbete.\n(Definition och bedömning av risknivå: https://www.av.se/produktion-industri-och-logistik/bygg/stod-till-nya-regler-om-projektering-och-byggarbetsmiljosamordning/bedom-byggprojektets-storlek-komplexitet-och-riskniva/)"]
[null,{"$f":"'1. Start Bas-P'!A14","v":"1.1.2"},{"$f":"'1. Start Bas-P'!B14:C14","v":"Har juridisk Bas-P avsatt/tillgång till tillräckligt med tid och personal för arbetsmiljöuppgifterna i byggprojektet?"},0,null,null," AFC/D.1832."," (b) Bas-P uppgifter för uppföljning i byggskedet (ny- eller omprojektering), se enbart  frågor markerade (b)"]
[null,{"$f":"'1. Start Bas-P'!A15","v":"1.1.3"},{"$f":"'1. Start Bas-P'!B15:C15","v":"Är handläggare Bas-P en anställd person eller inhyrd (resurskonsult)?(b)\n"},0,null,null,"x"," (b) Bas-P uppgifter för uppföljning i byggskedet (ny- eller omprojektering), se enbart  frågor markerade (b)",null,"Ur 3 Kap 3§ AFS 2023:3 Bas-P får bara använda handläggare för samordningsarbetet som Bas-P förfogar över och som har kvalifikationer enligt 2 kap. 9 § andra stycket."]
[null,{"$f":"'1. Start Bas-P'!A16","v":"1.1.4"},{"$f":"'1. Start Bas-P'!B16:C16","v":"Finns referenser för handläggare Bas-P från tidigare uppdrag?(b)"},0,null,null,"x"," (b) Bas-P uppgifter för uppföljning i byggskedet (ny- eller omprojektering), se enbart  frågor markerade (b)"]
[null,{"$f":"'1. Start Bas-P'!A17","v":"1.1.5"},{"$f":"'1. Start Bas-P'!B17:C17","v":"Finns dokumenterad fördelning av uppgifterna samt kvalifikationer, om flera personer  (handläggarresurser) ska genomföra Bas-Ps arbetsuppgifter? (b)"},0,null,null,"x"," (b) Bas-P uppgifter för uppföljning i byggskedet (ny- eller omprojektering), se enbart  frågor markerade (b)"]
[null,{"$f":"'1. Start Bas-P'!A18","v":"1.2"},{"$f":"'1. Start Bas-P'!B18:C18","v":"Finns arbetssätt för hur överlämning sker vid byte av handläggare Bas-P? (b)"},0,null,null,"x"," (b) Bas-P uppgifter för uppföljning i byggskedet (ny- eller omprojektering), se enbart  frågor markerade (b)"]
[null,{"$f":"'1. Start Bas-P'!A19","v":"1.3"},{"$f":"'1. Start Bas-P'!B19:C19","v":"Formas organisationen så att Bas-P deltar i planering av projektering samt i ledning av projektering på det sätt som behövs? (b)\n"},0,null,null,null," (b) Bas-P uppgifter för uppföljning i byggskedet (ny- eller omprojektering), se enbart  frågor markerade (b)",null,"Ur AFS 2023:3 Samordna ledning och projektering\n6 § Bas-P ska delta i ledningen av projekteringen på det sätt som behövs för att förebygga arbetsmiljörisker under byggskedet, och för att möjliggöra en god arbetsmiljö under bruksskedet."]
[null,{"$f":"'1. Start Bas-P'!A20","v":"1.4"},{"$f":"'1. Start Bas-P'!B20:C20","v":"Har Bas-P de förutsättningar som behövs för att kunna utföra sina arbetsmiljöuppgifter?(b)"},0,null,null,null," (b) Bas-P uppgifter för uppföljning i byggskedet (ny- eller omprojektering), se enbart  frågor markerade (b)"]
[null,{"$f":"'1. Start Bas-P'!A21","v":"1.5"},{"$f":"'1. Start Bas-P'!B21:C21","v":"Har man i upprättat kontrollprogram/ kontrollplaner beaktat skyldigheter, kontraktskrav och arbetssätt med avseende på Bas-P:s arbetsuppgifter? (b)"},0,null,null,"TDOK 2016:0032  \"Kvalitetsstyrning i upphandlad verksamhet - Entreprenad och Projekteringstjänster\" "," (b) Bas-P uppgifter för uppföljning i byggskedet (ny- eller omprojektering), se enbart  frågor markerade (b)"]
[null,{"$f":"'1. Start Bas-P'!A22","v":0},{"$f":"'1. Start Bas-P'!B22:C22","v":"Samordning i syfte att minska arbetsmiljörisker under byggskede samt framtida drift och underhåll\n                            "},0]
[null,{"$f":"'1. Start Bas-P'!A23","v":"1.6"},{"$f":"'1. Start Bas-P'!B23:C23","v":"Finns det arbetssätt för hur Bas-P ska samordna så att de som medverkar tar hänsyn till varandras planer och lösningar i syfte att minska arbetsmiljörisker under byggskedet samt framtida drift och underhåll?  (b)"},0,null,"Arbetssätt ska redovisas vid uppstart/ i projektplan, enligt \"Kvalitetsstyrning i upphandlad verksamhet - Entreprenad och Projekteringstjänster\" TDOK 2016:0032. Se även övergripande granskning projektplan enligt TMALL 1004","TDOK 2016:0032"," (b) Bas-P uppgifter för uppföljning i byggskedet (ny- eller omprojektering), se enbart  frågor markerade (b)","Se de som medverkar vid planering och projektering som bidrar till utformning/förutsättningar med påverkan på arbetsmiljön i byggskedet eller framtida drift och underhåll …"]
[null,{"$f":"'1. Start Bas-P'!A24","v":"1.6.1"},{"$f":"'1. Start Bas-P'!B24:C24","v":"Finns det  arbetsätt  i rutin för hur Bas-P arbetar  enligt grundprinciperna för att förebygga arbetsmiljörisker? (b)\n"},0,null,"Arbetssätt ska redovisas vid uppstart/ i projektplan, enligt \"Kvalitetsstyrning i upphandlad verksamhet - Entreprenad och Projekteringstjänster\" TDOK 2016:0032. Se även övergripande granskning projektplan enligt TMALL 1004","TDOK 2016:0032"," (b) Bas-P uppgifter för uppföljning i byggskedet (ny- eller omprojektering), se enbart  frågor markerade (b)",null,"Ur ...8 kap AFS 2023:3 För att förebygga arbetsmiljörisker som kan uppstå under bygg- och bruksskedet ska de ansvariga arbeta enligt grundprinciper angivna i andra stycket punkterna 1–3 vid planeringen, projekteringen och byggskedet. I första hand ska lösningar som tar bort arbetsmiljöriskerna väljas.\n\nGrundprinciperna för att förebygga arbetsmiljörisker är följande:\n1. Identifiera och undvika risker.\n2. Bedöma risker som inte kan undvikas.\n3. Hantera risker genom att\na) åtgärda riskerna vid källan,\nb) ersätta farliga ämnen med ämnen som är ofarliga, eller mindre farliga, så långt det är möjligt,\nc) prioritera gemensamma skyddsåtgärder framför individuella,\nd) ta hänsyn till den tekniska utvecklingen,\ne) ta hänsyn till människors olika förutsättningar, och\nf) ge klara och tillräckliga instruktioner som alla berörda \nkan förstå."]
[null,{"$f":"'1. Start Bas-P'!A25","v":"1.6.2"},{"$f":"'1. Start Bas-P'!B25:C25","v":"Finns det arbetssätt för hur Bas-P:s identifierade arbetsmiljörisker samordnas med de övriga projektrisker som hanteras i projekteringen? "},0,null,"Arbetssätt ska redovisas vid uppstart/ i projektplan, enligt \"Kvalitetsstyrning i upphandlad verksamhet - Entreprenad och Projekteringstjänster\" TDOK 2016:0032. Se även övergripande granskning projektplan enligt TMALL 1004","TDOK 2016:0032\nx",null,"Se tex arbetsmiljörisker som kan vara tids- eller kostnadsdrivande påverka framkomlighet m m…\nKontrolleras t e x att åtgärder överensstämmer med annan riskhantering/ krav i FU bygghandling"]
[null,{"$f":"'1. Start Bas-P'!A26","v":"1.6.3"},{"$f":"'1. Start Bas-P'!B26:C26","v":"Finns det arbetssätt för hur Bas-P ska uppmärksamma projektörerna på deras skyldigheter? "},0,null,"Arbetssätt ska redovisas vid uppstart/ i projektplan, enligt \"Kvalitetsstyrning i upphandlad verksamhet - Entreprenad och Projekteringstjänster\" TDOK 2016:0032. Se även övergripande granskning projektplan enligt TMALL 1004","TDOK 2016:0032"]
[null,{"$f":"'1. Start Bas-P'!A27","v":"1.6.4"},{"$f":"'1. Start Bas-P'!B27:C27","v":"Är Bas-P:s arbetssätt för samordning anpassat till punkten i Projekteringsbeskrivningen för samordning mellan ämnesområden? \n(Jämför krav i Uppdragsbeskrivning/UB)"},0,null,null,"x"]
[null,{"$f":"'1. Start Bas-P'!A28","v":"1.6.5"},{"$f":"'1. Start Bas-P'!B28:C28","v":"Finns det arbetssätt för hur disposition av byggarbetsplatsen ska samordnas och redovisas?"},0,null,null,null,null,null,"Ur... AFS 2023:3 (9 kap 5 § Allmänna råd ...Förbindelseleder, ytor för material och liknande kan framgå av\nen arbetsplatsdispositionsplan (APD-plan)….\n(Jfr Bas-U, 4 kap 15 § …)\nUr…5 kap (7), 12, 13 §§ AFS 2023:13)\n 5 § Planeringen och projekteringen ska möjliggöra att material kan tas emot, hanteras och förvaras på ett sådant sätt att risk för ohälsa och olycksfall förebyggs.\nMöjligheterna att transportera byggmaterial, avfall och utrustning på byggarbetsplatsen ska särskilt uppmärksammas.\nAllmänna råd\nManuell hantering kan undvikas genom god planering. Exempel på det är att arbetsmaterial placeras i nära anslutning till platsen för arbetet. Skrymmande eller tunga material kan lyftas in på våningsplanen efterhand som byggnaden uppförs med hjälp av olika sorters lyftanordningar. En möjlig logistikplanering som tas fram kan sedan anpassas av aktörerna i byggskedet. Förbindelseleder, ytor för material och liknande kan framgå av\nen arbetsplatsdispositionsplan (APD-plan). Det finns ytterligare bestämmelser om planering av materialhantering i Arbetsmiljöverkets föreskrifter och allmänna råd (AFS 2023:13) om risker vid vissa typer av arbeten, kapitlet om byggnads- och anläggningsarbete.\n5 kap 7 §  2023:13 Arbetsgivaren ska planera sitt arbete så att inte olika arbetsmoment utförs samtidigt på samma plats på ett sådant sätt att det uppstår risk för ohälsa eller olycksfall\n13 § Arbetsgivaren, och andra ansvariga enligt 2 §, ska se till att personalutrymmen, materialupplag, förråd och verkstäder placeras så att verksamheten kan bedrivas under sunda och säkra förhållanden. Arbetstagarna ska ha tillgång till dricksvatten i närheten av arbetsplatserna.\nAllmänna råd\nPlaceringen av personalutrymmen och materialupplag bör främja att förbindelseleder för gående och fordon blir så lättillgängliga att de används.\n12 §\n När arbetsgivaren, och andra ansvariga enligt 2 §, väljer platser för att utföra byggnads- eller anläggningsarbete ska det vara möjligt för alla att ta sig till sin arbetsplats på ett säkert sätt. Det gällerhur personer och fordon ska kunna komma in på och ut från byggarbetsplatsen på ett säkert sätt, ochhur förbindelseleder för personer respektive fordon kan förläggas inom byggarbetsplatsen.\nAllmänna råd\nVem som har möjlighet att påverka val av plats kan variera beroende på det skede som byggprojektet befinner sig i. Det kan behövas tillstånd från till exempel väghållare, spårinnehavare, kommun, räddningstjänst eller ledningsägare för att arbetet ska kunna bedrivas på ett säkert sätt.\nDet kan vara lämpligt att upprätta en arbetsplatsdispositionsplan (APD-plan) för byggarbetsplatsen där det minst framgår placering av förbindelseleder för fordon och gående,\nlyftanordningar och lyftradier,\nytor för mottagning och förvaring av material,\npersonalutrymmen och kontor,\ncontainrar och eventuella fältverkstäder, och\nledningar för el, vatten och tryckluft."]
[null,{"$f":"'1. Start Bas-P'!A29","v":"1.6.6"},{"$f":"'1. Start Bas-P'!B29:C29","v":"Finns det arbetssätt för hur Bas-P samordnar arbetsmiljöaspekter utifrån redovisning  i BIM-modeller?\n(Jämför krav i Uppdragsbeskrivning/UB)"},0,null,null,"x"]
[null,{"$f":"'1. Start Bas-P'!A30","v":"1.6.7"},{"$f":"'1. Start Bas-P'!B30:C30","v":"Finns arbetssätt för hur Bas-P klargör hur samordning av tillfälliga eller samverkande konstruktioner ska gå till?"},0,null,"Arbetssätt ska redovisas vid uppstart/ i projektplan, enligt \"Kvalitetsstyrning i upphandlad verksamhet - Entreprenad och Projekteringstjänster\" TDOK 2016:0032. Se även övergripande granskning projektplan enligt TMALL 1004","TDOK 2016:0032\n TMALL 0255 Arbetsmiljöplan"," (b) Bas-P uppgifter för uppföljning i byggskedet (ny- eller omprojektering), se enbart  frågor markerade (b)",null,"Ur 3 kap 8 § AFS 2023:3 Vid planering och projektering av en tillfällig konstruktion eller samverkande konstruktion, ska Bas-P se till att en person som har särskild kompetens om konstruktionen i fråga\n1. säkerställer att ansvarsfördelningen mellan de olika aktörerna under projekteringen blir tydlig,\n2. ser till att de aktörer som är involverade under projekteringen samarbetar, och\n3. kontrollerar att konstruktionen projekteras så att den som helhet är säker under monteringen, användningen och om den demonteras.\nPersonen med särskild kompetens ska ha god kännedom om konstruktionen, både dess delar och helheten, och om dess olika skeden."]
[null,{"$f":"'1. Start Bas-P'!A31","v":"1.6.8"},{"$f":"'1. Start Bas-P'!B31:C31","v":"Finns det arbetsätt för hur Bas-P samordnar den projekteringen som fortsätter i byggskede, samt hur information överlämnas till Bas U så att arbetsmiljöplanen kan uppdateras? (b)\n"},0,null,"Arbetssätt ska redovisas vid uppstart/ i projektplan, enligt \"Kvalitetsstyrning i upphandlad verksamhet - Entreprenad och Projekteringstjänster\" TDOK 2016:0032. Se även övergripande granskning projektplan enligt TMALL 1004","TDOK 2016:0032"," (b) Bas-P uppgifter för uppföljning i byggskedet (ny- eller omprojektering), se enbart  frågor markerade (b)",null,"AFS 2023:3\n  Ur ... 2 kap 24 § Om projekteringen fortsätter efter överlämning från Bas-P till\nBas-U, ska byggherren se till att det är klargjort hur och när ytterligare\nprojekteringsunderlag och arbetsmiljöinformation överlämnas till Bas-U.\n3 kap 19 § AFS 2023:3 Om projekteringen fortsätter efter att arbetsmiljöplanen har överlämnats till Bas-U, ska Bas-P fortsätta att samordna projekteringen med avseende på arbetsmiljöfrågor på samma sätt som tidigare.\nBas-P ska sammanställa och överlämna information om ny eller ändrad projektering till Bas-U, för att Bas-U ska kunna uppdatera arbetsmiljöplanen"]
[null,{"$f":"'1. Start Bas-P'!A32","v":"1.7"},{"$f":"'1. Start Bas-P'!B32:C32","v":"Finns det arbetsätt för hur Bas-P kontrollerar att projektörerna har rutiner och arbetar enligt dessa för att förebygga arbetsmiljörisker i byggskedet? (b)\n\n"},0,null,"Arbetssätt ska redovisas vid uppstart/ i projektplan, enligt \"Kvalitetsstyrning i upphandlad verksamhet - Entreprenad och Projekteringstjänster\" TDOK 2016:0032. Se även övergripande granskning projektplan enligt TMALL 1004","TDOK 2016:0032\nAUC.154, AUC.1832 och AFD.1832"," (b) Bas-P uppgifter för uppföljning i byggskedet (ny- eller omprojektering), se enbart  frågor markerade (b)",null,"Ur AFS 2023:3… Bas-P ska kontrollera att projektörerna har rutiner för att förebygga arbetsmiljörisker som kan uppstå i byggskedet, och följa upp att projektörerna arbetar med att förebygga arbetsmiljörisker."]
[null,{"$f":"'1. Start Bas-P'!A33","v":0},{"$f":"'1. Start Bas-P'!B33:C33","v":"Samordning av tillämpningen av relevanta arbetsmiljöregler.                                              "},0]
[null,{"$f":"'1. Start Bas-P'!A34","v":"1.8"},{"$f":"'1. Start Bas-P'!B34:C34","v":"Finns det arbetssätt för hur samordning ska ske av relevanta arbetsmiljöregler? (b)\n"},0,null,"Arbetssätt ska redovisas vid uppstart/ i projektplan, enligt \"Kvalitetsstyrning i upphandlad verksamhet - Entreprenad och Projekteringstjänster\" TDOK 2016:0032. Se även övergripande granskning projektplan enligt TMALL 1004","TDOK 2016:0032"," (b) Bas-P uppgifter för uppföljning i byggskedet (ny- eller omprojektering), se enbart  frågor markerade (b)"]
[null,{"$f":"'1. Start Bas-P'!A35","v":0},{"$f":"'1. Start Bas-P'!B35:C35","v":"Samordning i tid och rum                            "},0]
[null,{"$f":"'1. Start Bas-P'!A36","v":"1.9"},{"$f":"'1. Start Bas-P'!B36:C36","v":"Finns det arbetssätt för hur Bas-P ska samordna så inte olika delar av utförandet sammanfaller i tid och rum så att risker uppstår? "},0,null,"Arbetssätt ska redovisas vid uppstart/ i projektplan, enligt \"Kvalitetsstyrning i upphandlad verksamhet - Entreprenad och Projekteringstjänster\" TDOK 2016:0032. Se även övergripande granskning projektplan enligt TMALL 1004","TDOK 2016:0032"]
[null,{"$f":"'1. Start Bas-P'!A37","v":0},{"$f":"'1. Start Bas-P'!B37:C37","v":"Dokumentation. Arbetsmiljöplan, PM Arbetsmiljö samt  Arbetsmiljödokumentation inför framtida drift och underhåll.                         "},0]
[null,{"$f":"'1. Start Bas-P'!A38","v":"1.10"},{"$f":"'1. Start Bas-P'!B38:C38","v":"Finns det arbetssätt för hur Bas-P ska upprätta en arbetsmiljöplan, med innehåll enligt de fyra avsnitten i föreskriften?\n"},0,null,"Arbetssätt ska redovisas vid uppstart/ i projektplan, enligt \"Kvalitetsstyrning i upphandlad verksamhet - Entreprenad och Projekteringstjänster\" TDOK 2016:0032. Se även övergripande granskning projektplan enligt TMALL 1004","TDOK 2016:0032\nAFD 1831, TMALL 0255, ",null,"Fördjupad uppföljning och kvalitetsgranskning av leverans se  TMALL 0009 Granskning Arbetsmiljöplan"]
[null,{"$f":"'1. Start Bas-P'!A39","v":"1.10.1"},{"$f":"'1. Start Bas-P'!B39:C39","v":"Finns det arbetsätt för hur Bas-P håller  arbetsmiljöplanen uppdaterad med de uppgifter som är kända i byggprojektet?"},0,null,"Arbetssätt ska redovisas vid uppstart/ i projektplan, enligt \"Kvalitetsstyrning i upphandlad verksamhet - Entreprenad och Projekteringstjänster\" TDOK 2016:0032. Se även övergripande granskning projektplan enligt TMALL 1004","TDOK 2016:0032\nAUC.243/ AFC/AFD.1831, TMALL 0255",null,"Fördjupad uppföljning och kvalitetsgranskning av leverans se  TMALL 0009 Granskning Arbetsmiljöplan","Ur …3 kap 2 §, 11 kap 4 § AFS 2023:3   Arbetsmiljöplanen ska vid varje tidpunkt baseras på de uppgifter som är kända i byggprojektet. Allt eftersom arbetena planeras och projekteras ska de nya uppgifterna om dessa arbeten föras in i arbetsmiljöplanen.\nVid ändringar i en redan utförd projektering, eller i produktionsplaneringen, ska motsvarande uppdateringar göras i arbetsmiljöplanen."]
[null,{"$f":"'1. Start Bas-P'!A40","v":"1.10.2"},{"$f":"'1. Start Bas-P'!B40:C40","v":"Finns arbetssätt för hur arbetsmiljöplanen uppdateras med beskrivningen av hur arbetet organiseras och ska bedrivas vid projekteringen?"},0,null,"Arbetssätt ska redovisas vid uppstart/ i projektplan, enligt \"Kvalitetsstyrning i upphandlad verksamhet - Entreprenad och Projekteringstjänster\" TDOK 2016:0032. Se även övergripande granskning projektplan enligt TMALL 1004","TDOK 2016:0032\nSe AUC.243/ AFC/AFD.1831, TMALL 0255, ",null,"Fördjupad uppföljning och kvalitetsgranskning av leverans se  TMALL 0009 Granskning Arbetsmiljöplan","Ur… 3 kap 2 §, 11 kap 9 § AFS 2023:3  9 § Arbetsmiljoplanen ska beskriva hur man ska organisera och bedriva arbetsmiljoarbetet. Arbetsmiljoplanen ska innehålla kontaktuppgifter till personer i byggprojektet som har arbetsmiljouppgifter samt rutinerna for samordning och arbetsmiljoarbete.\nAllmänna råd\nRutinerna kan avse vad som ingår i en arbetsuppgift, när och hur ofta\nden ska utföras och vem eller vilka som ska utföra den. Som exempel\nbehövs ofta rutiner för att\n1. diskutera arbetsmiljöfrågor på projekterings- och byggmöten,\n2. kontrollera och följa upp arbetsmiljöarbetet, ..."]
[null,{"$f":"'1. Start Bas-P'!A41","v":"1.11"},{"$f":"'1. Start Bas-P'!B41:C41","v":"Finns det arbetssätt för hur Bas-P dokumenterar arbetsmiljöarbetet i PM Arbetsmiljö?\n(Jämför krav i Uppdragsbeskrivning/UB)"},0,null,null,"? UB… AUC.xxx/ AFC/AFD.yyy,",null,"Valbar leverans som kravställs via Uppdragsbeskrivningen. I öveiga fall ej relevant. \n(Fördjupad uppföljning kan göras enligt TMALL zzz Granskning PM Arbetsmiljö)"]
[null,{"$f":"'1. Start Bas-P'!A42","v":0},{"$f":"'1. Start Bas-P'!B42:C42","v":"Dokumentation, Arbetsmiljödokumentation inför framtida drift och underhåll.                            "},0]
[null,{"$f":"'1. Start Bas-P'!A43","v":"1.12"},{"$f":"'1. Start Bas-P'!B43:C43","v":"Finns det arbetssätt för hur Bas-P ska arbeta fram och löpande anpassa en  arbetsmiljödokumentation inför framtida drift och underhåll? "},0,null,"Arbetssätt ska redovisas vid uppstart/ i projektplan, enligt \"Kvalitetsstyrning i upphandlad verksamhet - Entreprenad och Projekteringstjänster\" TDOK 2016:0032. Se även övergripande granskning projektplan enligt TMALL 1004","TDOK 2016:0032\nx",null,null,"AFS 2023:3\nUr 3 kap 20 § Bas-P ska arbeta fram den arbetsmiljödokumentation som kan behövas\nvid framtida arbeten med byggnaden eller anläggningen i enlighet med\n10 kap. 5 och 6 §§.\n105 §En arbetsmiljodokumentation som kan behovas vid framtida arbeten\nmed en byggnad eller annan anlåggning ska uppråttas och anpassas lopande."]
[null,{"$f":"'1. Start Bas-P'!A44","v":0},{"$f":"'1. Start Bas-P'!B44:C44","v":0},0]
[null,{"$f":"'5. Bas-P'!A11","v":0},{"$f":"'5. Bas-P'!B11","v":"Uppdraget och Bas-P:s kvalifikationer                                        "}]
[null,{"$f":"'5. Bas-P'!A12","v":"5.1"},{"$f":"'5. Bas-P'!B12","v":"Har Bas-P visat uppgifter på att man har den utbildning, kompetens och erfarenhet som behövs för det aktuella projektet? (b)\n"},null,null,null,"AF AUC.3741/ AFC/D.1832."," (b) Bas-P uppgifter för uppföljning i byggskedet (ny- eller omprojektering), se enbart  frågor markerade (b)","Kontrollera utbildning, kompetens och erfarenhet särskilt vid ny eller förändrad organisation som utför Bas-P:s uppgifter","Ur 3 Kap 3§ AFS 2023:3 Bas-P får bara använda handläggare för samordningsarbetet som Bas-P förfogar över och som har kvalifikationer enligt 2 kap. 9 § andra stycket.\nUr 2 Kap 9§ AFS 2023:3 ...En lämplig person eller handläggare för uppdraget är den som har den utbildning, kompetens och erfarenhet som behövs för arbetsmiljöarbetet med hänsyn till byggprojektets storlek, komplexitet och risknivå.\nNär byggherren utser Bas-P och Bas-U ska byggherren välja de som kan avsätta tillräckligt med tid och personal för arbetsmiljöuppgifterna i byggprojektet."]
[null,{"$f":"'5. Bas-P'!A13","v":"5.1.1"},{"$f":"'5. Bas-P'!B13","v":"Motsvarar Bas-Ps utbildning, kompetens och erfarenhet projektets storlek, komplexitet och risknivå? (b)\n"},null,null,null,"AF AUC.3741/ AFC/D.1832."," (b) Bas-P uppgifter för uppföljning i byggskedet (ny- eller omprojektering), se enbart  frågor markerade (b)",null,"Ur 3 Kap 2§ AFS 2023:3 … Omfattningen av Bas-P:s arbetsmiljöarbete ska motsvara byggprojektets storlek, komplexitet och risknivå.\nUr 3 Kap 3§ AFS 2023:3 Bas-P får bara använda handläggare för samordningsarbetet som Bas-P förfogar över och som har kvalifikationer enligt 2 kap. 9 § andra stycket.\nUr 2 Kap 9§ AFS 2023:3 ...En lämplig person eller handläggare för uppdraget är den som har den utbildning, kompetens och erfarenhet som behövs för arbetsmiljöarbetet med hänsyn till byggprojektets storlek, komplexitet och risknivå.\nNär byggherren utser Bas-P och Bas-U ska byggherren välja de som kan avsätta tillräckligt med tid och personal för arbetsmiljöuppgifterna i byggprojektet."]
[null,{"$f":"'5. Bas-P'!A14","v":"5.1.2"},{"$f":"'5. Bas-P'!B14","v":"Har juridisk Bas-P avsatt/tillgång till tillräckligt med tid och personal för arbetsmiljöuppgifterna i byggprojektet?"}]
[null,{"$f":"'5. Bas-P'!A15","v":"5.1.3"},{"$f":"'5. Bas-P'!B15","v":"Är handläggare Bas-P en anställd person eller inhyrd (resurskonsult)? (b)\n"},null,null,null,null," (b) Bas-P uppgifter för uppföljning i byggskedet (ny- eller omprojektering), se enbart  frågor markerade (b)",null,"Ur 3 Kap 3§ AFS 2023:3 Bas-P får bara använda handläggare för samordningsarbetet som Bas-P förfogar över och som har kvalifikationer enligt 2 kap. 9 § andra stycket."]
[null,{"$f":"'5. Bas-P'!A16","v":"5.1.4"},{"$f":"'5. Bas-P'!B16","v":"Finns dokumenterad fördelning av uppgifterna samt kvalifikationer om flera personer   (handläggarresurser) genomför Bas-P:s uppgifter? (b)"},null,null,null,"AF AUC.3741/ AFC/D.1832."," (b) Bas-P uppgifter för uppföljning i byggskedet (ny- eller omprojektering), se enbart  frågor markerade (b)"]
[null,{"$f":"'5. Bas-P'!A17","v":"5.2"},{"$f":"'5. Bas-P'!B17","v":"Sker överlämning vid byte av handläggare för Bas-P:s uppgifter? (b)"},null,null,null," AUC 3392 AFD338\nAUC.3741"," (b) Bas-P uppgifter för uppföljning i byggskedet (ny- eller omprojektering), se enbart  frågor markerade (b)",null,"\nUr… 18 § Innan det första byggnads- eller anläggningsarbetet startar, ska Bas-P\nlämna över arbetsmiljöplanen och uppgifter om arbetsmiljöarbetet i övrigt\ntill Bas-U enligt 11 kap. 15 §.En överlämning av arbetsmiljöplanen och arbetsmiljöarbetet i övrigt ska också göras vid byte av Bas-P.\n11kap 15 § När en byggarbetsmiljösamordnare ska lämna över arbetsmiljöplanen\ntill en annan byggarbetsmiljösamordnare, ska det göras på ett strukturerat sätt.\nByggarbetsmiljösamordnaren ska vid överlämnandet samtidigt informera\nom det övriga arbetet med att förebygga arbetsmiljörisker under bygg- och\nbruksskedet, som har genomförts tidigare i projektet. Identifierade risker och\nföreskrivna åtgärder ska förklaras, för att förebygga att ändringar görs som\npåverkar arbetsmiljön under bygg- eller bruksskedet på ett negativt sätt.\nAllmänna råd\nEn strukturerad överlämning mellan handläggarna kan ske i form av\nett möte för att främja dialog. Vid överlämningen kan man\n1. förklara relevanta underlag för komplexa lösningar och åtgärder\ntill risker som inte är uppenbara för alla,\n2. ta upp lösningar som valts bort av hänsyn till arbetsmiljön under\nbygg- eller bruksskedet,\n3. stämma av tidplanen och eventuellt justera den,\n4. klargöra hur fortsatt projektering efter byggstart ska hanteras enligt\n2kap. 24 §,\n5. ta upp anpassning till annan verksamhet som eventuellt pågår på\nplatsen, och\n6 besluta hur arbetsmiljödokumentationen enligt 10 kap. 5 och 6 §§\nska färdigställas.\nÖverlämning bör ske vid byte av handläggare även om de båda\norganisatoriskt tillhör samma byggarbetsmiljösamordnare."]
[null,{"$f":"'5. Bas-P'!A18","v":"5.3"},{"$f":"'5. Bas-P'!B18","v":"Deltar Bas-P i ledningen av projekteringen på det sätt som behövs för att förebygga arbetsmiljörisker under byggskedet samt inför framtida drift och underhåll? (b)"},null,null,null,null," (b) Bas-P uppgifter för uppföljning i byggskedet (ny- eller omprojektering), se enbart  frågor markerade (b)",null,"Ur ...AFS 2023:3 Samordna ledning och projektering\n6 § Bas-P ska delta i ledningen av projekteringen på det sätt som behövs för att förebygga arbetsmiljörisker under byggskedet, och för att möjliggöra en god arbetsmiljö under bruksskedet."]
[null,{"$f":"'5. Bas-P'!A19","v":"5.4"},{"$f":"'5. Bas-P'!B19","v":"Har Bas-P de förutsättningar som behövs för att kunna utföra sina arbetsmiljöuppgifter? (b)"},null,null,null,null," (b) Bas-P uppgifter för uppföljning i byggskedet (ny- eller omprojektering), se enbart  frågor markerade (b)"]
[null,{"$f":"'5. Bas-P'!A20","v":"5.5"},{"$f":"'5. Bas-P'!B20","v":"Finns uppdaterat kontrollprogram/ kontrollplan med uppgifter och verifikat på genomförd egenkontroll med avseende på Bas-P:s arbetsuppgifter? 1) (b)"},null,null,"1) Jämför om man arbetar enligt det arbetssätt som redovisats vid uppstart/ i projektplan, se krav TDOK 2016:0032. D v s se den uppföljningen som ska genomförts vid uppstart enligt checklista nr 1.  i denna TMALL 1002.  Avvikelser dokumenteras.","TDOK 2016:0032  \"Kvalitetsstyrning i upphandlad verksamhet - Entreprenad och Projekteringstjänster\" "," (b) Bas-P uppgifter för uppföljning i byggskedet (ny- eller omprojektering), se enbart  frågor markerade (b)"]
[null,{"$f":"'5. Bas-P'!A21","v":0},{"$f":"'5. Bas-P'!B21","v":"Samordning i syfte att minska arbetsmiljörisker under byggskede samt framtida drift och underhåll\n                            "}]
[null,{"$f":"'5. Bas-P'!A22","v":"5.6"},{"$f":"'5. Bas-P'!B22","v":"Samordnar Bas-P projektering så att man tar hänsyn till varandras lösningar i syfte att minska arbetsmiljörisker under byggskedet, samt framtida drift och underhåll? 1) (b)"},null,null,"1) Jämför om man arbetar enligt det arbetssätt som redovisats vid uppstart/ i projektplan, se krav TDOK 2016:0032. D v s se den uppföljningen som ska genomförts vid uppstart enligt checklista nr 1.  i denna TMALL 1002.  Avvikelser dokumenteras.","AF AUC.14 AFC/D.14.\nUB (ABP 1.5) (AF AUC.374)"," (b) Bas-P uppgifter för uppföljning i byggskedet (ny- eller omprojektering), se enbart  frågor markerade (b)"]
[null,{"$f":"'5. Bas-P'!A23","v":"5.6.1"},{"$f":"'5. Bas-P'!B23","v":"Arbetar Bas-P enligt  framtagen rutin och följer grundprinciperna för att förebygga arbetsmiljörisker?1) (b)\n"},null,null,"1) Jämför om man arbetar enligt det arbetssätt som redovisats vid uppstart/ i projektplan, se krav TDOK 2016:0032. D v s se den uppföljningen som ska genomförts vid uppstart enligt checklista nr 1.  i denna TMALL 1002.  Avvikelser dokumenteras.",null," (b) Bas-P uppgifter för uppföljning i byggskedet (ny- eller omprojektering), se enbart  frågor markerade (b)",null,"Ur ...För att förebygga arbetsmiljörisker som kan uppstå under bygg- och bruksskedet ska de ansvariga arbeta enligt grundprinciper angivna i andra stycket punkterna 1–3 vid planeringen, projekteringen och byggskedet. I första hand ska lösningar som tar bort arbetsmiljöriskerna väljas.\n\nGrundprinciperna för att förebygga arbetsmiljörisker är följande:\n1. Identifiera och undvika risker.\n2. Bedöma risker som inte kan undvikas.\n3. Hantera risker genom att\na) åtgärda riskerna vid källan,\nb) ersätta farliga ämnen med ämnen som är ofarliga, eller mindre farliga, så långt det är möjligt,\nc) prioritera gemensamma skyddsåtgärder framför individuella,\nd) ta hänsyn till den tekniska utvecklingen,\ne) ta hänsyn till människors olika förutsättningar, och\nf) ge klara och tillräckliga instruktioner som alla berörda \nkan förstå."]
[null,{"$f":"'5. Bas-P'!A24","v":"5.6.2"},{"$f":"'5. Bas-P'!B24","v":"Inhämtar och samordnar Bas-P riskhantering med tillhörande åtgärder från de som medverkar vid planering och projektering? (b)"},null,null,null,"AF AUC/AFD 14\nUB (ABP 1.5) (AF AUC.374)"," (b) Bas-P uppgifter för uppföljning i byggskedet (ny- eller omprojektering), se enbart  frågor markerade (b)"]
[null,{"$f":"'5. Bas-P'!A25","v":"5.6.3"},{"$f":"'5. Bas-P'!B25","v":"Har det identifierats allvarliga arbetsmiljörisker som inte kan projekteras bort eller åtgärdas med givna\nförutsättningar? (b)"},null,null,null,null," (b) Bas-P uppgifter för uppföljning i byggskedet (ny- eller omprojektering), se enbart  frågor markerade (b)"]
[null,{"$f":"'5. Bas-P'!A26","v":"5.6.4"},{"$f":"'5. Bas-P'!B26","v":"Samordnar Bas-P så att åtgärder överensstämmer, och det finns spårbarhet  till andra relevanta projektrisker inför byggskedet samt framtida drift och underhåll? 1)"},null,null,"1) Jämför om man arbetar enligt det arbetssätt som redovisats vid uppstart/ i projektplan, se krav TDOK 2016:0032. D v s se den uppföljningen som ska genomförts vid uppstart enligt checklista nr 1.  i denna TMALL 1002.  Avvikelser dokumenteras.","x",null,"Kontrolleras t e x att åtgärder överensstämmer med annan riskhantering/ krav i FU bygghandling"]
[null,{"$f":"'5. Bas-P'!A27","v":"5.6.5"},{"$f":"'5. Bas-P'!B27","v":"Uppmärksammar Bas-P projektörerna på deras skyldigheter? 1) "},null,null,"1) Jämför om man arbetar enligt det arbetssätt som redovisats vid uppstart/ i projektplan, se krav TDOK 2016:0032. D v s se den uppföljningen som ska genomförts vid uppstart enligt checklista nr 1.  i denna TMALL 1002.  Avvikelser dokumenteras.",null,null,"Med skyldigheter kan här avses de kapitel med bestämmelser riktade till projektörer i AFS 2023:3. Grundläggande se t ex checklistorna 2, 6 i denna TMALL1002."]
[null,{"$f":"'5. Bas-P'!A28","v":"5.6.6"},{"$f":"'5. Bas-P'!B28","v":"Ser Bas-P till att inga arbetsmiljöfrågor förbises, på grund av tveksamhet om vilken projektör som ska hantera dem?"}]
[null,{"$f":"'5. Bas-P'!A29","v":"5.6.7"},{"$f":"'5. Bas-P'!B29","v":"Följer projektörerna Bas-P:s anvisningar i frågor som har betydelse för arbetsmiljön? (b)"},null,null,null,null," (b) Bas-P uppgifter för uppföljning i byggskedet (ny- eller omprojektering), se enbart  frågor markerade (b)"]
[null,{"$f":"'5. Bas-P'!A30","v":"5.6.8"},{"$f":"'5. Bas-P'!B30","v":"Håller Bas-P samordningsmöten samt deltar på relevanta möten?"},null,null,null," AF AUC.332, AFC.332, AUC.374\n(AFC/D.1832?)\nUB (ABP 1.5)"]
[null,{"$f":"'5. Bas-P'!A31","v":"5.6.9"},{"$f":"'5. Bas-P'!B31","v":"Inhämtar och samordnar Bas-P beslutsunderlag i samband med val av projekterad lösning? (b)"},null,null,null,null," (b) Bas-P uppgifter för uppföljning i byggskedet (ny- eller omprojektering), se enbart  frågor markerade (b)"]
[null,{"$f":"'5. Bas-P'!A32","v":"5.6.10"},{"$f":"'5. Bas-P'!B32","v":"Samordnar Bas-P så att det  finns underlag med förslag på möjlig disposition av byggarbetsplats? 1)"},null,null,"1) Jämför om man arbetar enligt det arbetssätt som redovisats vid uppstart/ i projektplan, se krav TDOK 2016:0032. D v s se den uppföljningen som ska genomförts vid uppstart enligt checklista nr 1.  i denna TMALL 1002.  Avvikelser dokumenteras.",null,null,"(9 kap 5 § Allmänna råd ...Förbindelseleder, ytor för material och liknande kan framgå av\nen arbetsplatsdispositionsplan (APD-plan)….\n(Jfr Bas-U, 4 kap 15 § …)","(9 kap 5 § Allmänna råd ...Förbindelseleder, ytor för material och liknande kan framgå av\nen arbetsplatsdispositionsplan (APD-plan)….\nJfr Bas-U, 4 kap 15 § …)\nUr… 5 § Planeringen och projekteringen ska möjliggöra att material kan tas emot, hanteras och förvaras på ett sådant sätt att risk för ohälsa och olycksfall förebyggs.\nMöjligheterna att transportera byggmaterial, avfall och utrustning på byggarbetsplatsen ska särskilt uppmärksammas.\nAllmänna råd\nManuell hantering kan undvikas genom god planering. Exempel på det är att arbetsmaterial placeras i nära anslutning till platsen för arbetet. Skrymmande eller tunga material kan lyftas in på våningsplanen efterhand som byggnaden uppförs med hjälp av olika sorters lyftanordningar. En möjlig logistikplanering som tas fram kan sedan anpassas av aktörerna i byggskedet. Förbindelseleder, ytor för material och liknande kan framgå av\nen arbetsplatsdispositionsplan (APD-plan). Det finns ytterligare bestämmelser om planering av materialhantering i Arbetsmiljöverkets föreskrifter och allmänna råd (AFS 2023:13) om risker vid vissa typer av arbeten, kapitlet om byggnads- och anläggningsarbete.\n5 kap 7 §  2023:13 Arbetsgivaren ska planera sitt arbete så att inte olika arbetsmoment utförs samtidigt på samma plats på ett sådant sätt att det uppstår risk för ohälsa eller olycksfall\n13 § Arbetsgivaren, och andra ansvariga enligt 2 §, ska se till att personalutrymmen, materialupplag, förråd och verkstäder placeras så att verksamheten kan bedrivas under sunda och säkra förhållanden. Arbetstagarna ska ha tillgång till dricksvatten i närheten av arbetsplatserna.\nAllmänna råd\nPlaceringen av personalutrymmen och materialupplag bör främja att förbindelseleder för gående och fordon blir så lättillgängliga att de används.\n12 §\n När arbetsgivaren, och andra ansvariga enligt 2 §, väljer platser för att utföra byggnads- eller anläggningsarbete ska det vara möjligt för alla att ta sig till sin arbetsplats på ett säkert sätt. Det gällerhur personer och fordon ska kunna komma in på och ut från byggarbetsplatsen på ett säkert sätt, ochhur förbindelseleder för personer respektive fordon kan förläggas inom byggarbetsplatsen.\nAllmänna råd\nVem som har möjlighet att påverka val av plats kan variera beroende på det skede som byggprojektet befinner sig i. Det kan behövas tillstånd från till exempel väghållare, spårinnehavare, kommun, räddningstjänst eller ledningsägare för att arbetet ska kunna bedrivas på ett säkert sätt.\nDet kan vara lämpligt att upprätta en arbetsplatsdispositionsplan (APD-plan) för byggarbetsplatsen där det minst framgår placering av förbindelseleder för fordon och gående,\nlyftanordningar och lyftradier,\nytor för mottagning och förvaring av material,\npersonalutrymmen och kontor,\ncontainrar och eventuella fältverkstäder, och\nledningar för el, vatten och tryckluft."]
[null,{"$f":"'5. Bas-P'!A33","v":"5.6.11"},{"$f":"'5. Bas-P'!B33","v":"Samordnar Bas-P arbetsmiljöaspekter utifrån redovisning i BIM-modeller ? 1) \n(Jämför krav i Uppdragsbeskrivning/UB)\n"},null,null,"1) Jämför om man arbetar enligt det arbetssätt som redovisats vid uppstart/ i projektplan, se krav TDOK 2016:0032. D v s se den uppföljningen som ska genomförts vid uppstart enligt checklista nr 1.  i denna TMALL 1002.  Avvikelser dokumenteras.","Uppdragsbeskrivning (UB) UB/ PM"]
[null,{"$f":"'5. Bas-P'!A34","v":"5.6.12"},{"$f":"'5. Bas-P'!B34","v":"Finns en person utsedd som har särskild kompetens vid projektering av en tillfällig konstruktion eller samverkande konstruktion?  Ser Bas-P till att denne person utför de utpekade uppgifterna? (b)\n\n "},null,null,null," TMALL 0255 Arbetsmiljöplan"," (b) Bas-P uppgifter för uppföljning i byggskedet (ny- eller omprojektering), se enbart  frågor markerade (b)","Se även TMALL 0255 Arbetsmiljöplan","\nUr 3 kap 8 § AFS 2023:3 Vid planering och projektering av en tillfällig konstruktion eller samverkande konstruktion, ska Bas-P se till att en person som har särskild kompetens om konstruktionen i fråga\n1. säkerställer att ansvarsfördelningen mellan de olika aktörerna under projekteringen blir tydlig,\n2. ser till att de aktörer som är involverade under projekteringen samarbetar, och\n3. kontrollerar att konstruktionen projekteras så att den som helhet är säker under monteringen, användningen och om den demonteras.\nPersonen med särskild kompetens ska ha god kännedom om konstruktionen, både dess delar och helheten, och om dess olika skeden."]
[null,{"$f":"'5. Bas-P'!A35","v":"5.6.13"},{"$f":"'5. Bas-P'!B35","v":"Samordnar Bas P den projekteringen som fortsätter i byggskede, samt överlämnar information till Bas-U så att arbetsmiljöplanen kan uppdateras? 1) (b)\n"},null,null,"1) Jämför om man arbetar enligt det arbetssätt som redovisats vid uppstart/ i projektplan, se krav TDOK 2016:0032. D v s se den uppföljningen som ska genomförts vid uppstart enligt checklista nr 1.  i denna TMALL 1002.  Avvikelser dokumenteras.",null," (b) Bas-P uppgifter för uppföljning i byggskedet (ny- eller omprojektering), se enbart  frågor markerade (b)",null,"b)  Ur ... 2 kap 24 § Om projekteringen fortsätter efter överlämning från Bas-P till\nBas-U, ska byggherren se till att det är klargjort hur och när ytterligare\nprojekteringsunderlag och arbetsmiljöinformation överlämnas till Bas-U.\n3 kap 19 § AFS 2023:3 Om projekteringen fortsätter efter att arbetsmiljöplanen har överlämnats till Bas-U, ska Bas-P fortsätta att samordna projekteringen med avseende på arbetsmiljöfrågor på samma sätt som tidigare.\nBas-P ska sammanställa och överlämna information om ny eller ändrad projektering till Bas-U, för att Bas-U ska kunna uppdatera arbetsmiljöplanen"]
[null,{"$f":"'5. Bas-P'!A36","v":"5.7"},{"$f":"'5. Bas-P'!B36","v":"Kontrollerar Bas-P att projektörerna har rutiner och arbetar enligt dessa för att förebygga arbetsmiljörisker i byggskedet? 1) (b)\n\n"},null,null,"1) Jämför om man arbetar enligt det arbetssätt som redovisats vid uppstart/ i projektplan, se krav TDOK 2016:0032. D v s se den uppföljningen som ska genomförts vid uppstart enligt checklista nr 1.  i denna TMALL 1002.  Avvikelser dokumenteras.","x"," (b) Bas-P uppgifter för uppföljning i byggskedet (ny- eller omprojektering), se enbart  frågor markerade (b)",null,"Ur … Bas-P ska kontrollera att projektörerna har rutiner för att förebygga arbetsmiljörisker som kan uppstå i byggskedet, och följa upp att projektörerna arbetar med att förebygga arbetsmiljörisker."]
[null,{"$f":"'5. Bas-P'!A37","v":"5.7.1"},{"$f":"'5. Bas-P'!B37","v":"Deltar Bas-P vid byggherrens uppföljning av planering och projektering?"},null,null,null,null,null,"Är idag inte ett lag- eller kontraktskrav. I Arbetsmiljöverkets nya regelverk 2025 ställs krav på Bas-P uppföljning av projektörer.."]
[null,{"$f":"'5. Bas-P'!A38","v":0},{"$f":"'5. Bas-P'!B38","v":"Samordning av tillämpningen av relevanta arbetsmiljöregler.                                              "}]
[null,{"$f":"'5. Bas-P'!A39","v":"5.8"},{"$f":"'5. Bas-P'!B39","v":"Samordnar Bas-P tillämpningen av relevanta arbetsmiljöregler? 1)  (b)"},null,null,"1) Jämför om man arbetar enligt det arbetssätt som redovisats vid uppstart/ i projektplan, se krav TDOK 2016:0032. D v s se den uppföljningen som ska genomförts vid uppstart enligt checklista nr 1.  i denna TMALL 1002.  Avvikelser dokumenteras.","AF AUC.14 AFC/D.14.\n(AUC.374)\nSe UB… AUC.xxx/ AFC/AFD.yyy"," (b) Bas-P uppgifter för uppföljning i byggskedet (ny- eller omprojektering), se enbart  frågor markerade (b)","Arbetsmiljöregler, se bland annat  för projektet relevanta bestämmelser i AFS 2023:12 om utformning av arbetsplatser och AFS 2023:13 om risker vid vissa typer av arbeten"]
[null,{"$f":"'5. Bas-P'!A40","v":"5.8.1"},{"$f":"'5. Bas-P'!B40","v":"Finns en aktuell sammanställning av tillämpliga lagar, förordningar och föreskrifter avseende arbetsmiljön i byggskedet samt framtida drift och underhåll? "},null,null,null,"Se (AUC.243)/ AFC/AFD.1831, TMALL 0255, "]
[null,{"$f":"'5. Bas-P'!A41","v":"5.8.2"},{"$f":"'5. Bas-P'!B41","v":"Samordnar Bas-P arbetsmiljöregler för ett specifikt arbetsmoment som medför särskilda risker (se de 13)?  (b)\n(Precisera i kommentar valet av arbetsmoment/ bestämmelser som följs upp ) "},null,null,null,"Arbetsmiljöplan TMALL 0255"," (b) Bas-P uppgifter för uppföljning i byggskedet (ny- eller omprojektering), se enbart  frågor markerade (b)","Se Arbetsmiljöplan TMALL 0255\nExempel stickprov på enligt Arbetsmiljöplan- arbetsmoment som medför arbete med särskilda arbetsmiljörisker  \"9. Arbete i brunnar och tunnlar samt anläggningsarbete under jord\" Beaktas relevanta regler i  t ex 4 kap AFS 2023:13 gällande  Berg- och gruvarbete. "]
[null,{"$f":"'5. Bas-P'!A42","v":0},{"$f":"'5. Bas-P'!B42","v":"Samordning i tid och rum                            "}]
[null,{"$f":"'5. Bas-P'!A43","v":"5.9"},{"$f":"'5. Bas-P'!B43","v":"Samordnar Bas-P så att olika arbetsmoment inte sammanfaller i tid och rum så att arbetsmiljörisker uppstår? 1) "},null,null,"1) Jämför om man arbetar enligt det arbetssätt som redovisats vid uppstart/ i projektplan, se krav TDOK 2016:0032. D v s se den uppföljningen som ska genomförts vid uppstart enligt checklista nr 1.  i denna TMALL 1002.  Avvikelser dokumenteras."]
[null,{"$f":"'5. Bas-P'!A44","v":"5.9.1"},{"$f":"'5. Bas-P'!B44","v":"Deltar Bas-P vid upprättande av tidplaner för produktionsfas/byggskede så att arbetsmiljörisker förebyggs? "}]
[null,{"$f":"'5. Bas-P'!A45","v":0},{"$f":"'5. Bas-P'!B45","v":"Dokumentation, Arbetsmiljöplan                      "}]
[null,{"$f":"'5. Bas-P'!A46","v":"5.10"},{"$f":"'5. Bas-P'!B46","v":"Upprättar Bas-P en projektanpassad arbetsmiljöplan, med innehåll enligt de fyra avsnitten i föreskriften? 1) "},null,null,"1) Jämför om man arbetar enligt det arbetssätt som redovisats vid uppstart/ i projektplan, se krav TDOK 2016:0032. D v s se den uppföljningen som ska genomförts vid uppstart enligt checklista nr 1.  i denna TMALL 1002.  Avvikelser dokumenteras.","AUC.243/ AFD.1831, TMALL 0255, ",null,"Fördjupad uppföljning och kvalitetsgranskning av leverans se TMALL 0009 Granskning Arbetsmiljöplan\nUr AFS...  Arbetsmiljöplanen ska vara anpassad till det aktuella byggprojektet. Arbetsmiljöplanens omfång och innehåll ska motsvara byggprojektets storlek, komplexitet och risknivå och bara innehålla sådant som har betydelse för arbetsmiljön i byggskedet.","Ur...  Arbetsmiljöplanen ska vara anpassad till det aktuella byggprojektet. Arbetsmiljöplanens omfång och innehåll ska motsvara byggprojektets storlek, komplexitet och risknivå och bara innehålla sådant som har betydelse för arbetsmiljön i byggskedet."]
[null,{"$f":"'5. Bas-P'!A47","v":"5.10.1"},{"$f":"'5. Bas-P'!B47","v":"Är arbetsmiljöplanen uppdaterad med de uppgifter som är kända i byggprojektet?1)"},null,null,"1) Jämför om man arbetar enligt det arbetssätt som redovisats vid uppstart/ i projektplan, se krav TDOK 2016:0032. D v s se den uppföljningen som ska genomförts vid uppstart enligt checklista nr 1.  i denna TMALL 1002.  Avvikelser dokumenteras.","Se AUC.243/ AFC/AFD.1831, TMALL 0255",null,"Fördjupad uppföljning och kvalitetsgranskning av leverans se TMALL 0009 Granskning Arbetsmiljöplan\n","Ur …3 kap 2 §, 11 kap 4 § AFS 2023:3   Arbetsmiljöplanen ska vid varje tidpunkt baseras på de uppgifter som är kända i byggprojektet. Allt eftersom arbetena planeras och projekteras ska de nya uppgifterna om dessa arbeten föras in i arbetsmiljöplanen.\nVid ändringar i en redan utförd projektering, eller i produktionsplaneringen, ska motsvarande uppdateringar göras i arbetsmiljöplanen."]
[null,{"$f":"'5. Bas-P'!A48","v":"5.10.2"},{"$f":"'5. Bas-P'!B48","v":"Innehåller arbetsmiljöplanen en beskrivning av hur arbetsmiljöarbetet ska organiseras och bedrivas vid projekteringen, med kontaktuppgifter och rutiner för arbetsmiljöarbetet?1)\n\n"},null,null,"1) Jämför om man arbetar enligt det arbetssätt som redovisats vid uppstart/ i projektplan, se krav TDOK 2016:0032. D v s se den uppföljningen som ska genomförts vid uppstart enligt checklista nr 1.  i denna TMALL 1002.  Avvikelser dokumenteras.","Se AUC.243/ AFC/AFD.1831, TMALL 0255",null,"Fördjupad uppföljning och kvalitetsgranskning av leverans se TMALL 0009 Granskning Arbetsmiljöplan\n","Ur… 3 kap 2 §, 11 kap 9 § AFS 2023:3  9 § Arbetsmiljoplanen ska beskriva hur man ska organisera och bedriva arbetsmiljoarbetet. Arbetsmiljoplanen ska innehålla kontaktuppgifter till personer i byggprojektet som har arbetsmiljouppgifter samt rutinerna for samordning och arbetsmiljoarbete.\nAllmänna råd\nRutinerna kan avse vad som ingår i en arbetsuppgift, när och hur ofta\nden ska utföras och vem eller vilka som ska utföra den. Som exempel\nbehövs ofta rutiner för att\n1. diskutera arbetsmiljöfrågor på projekterings- och byggmöten,\n2. kontrollera och följa upp arbetsmiljöarbetet, ..."]
[null,{"$f":"'5. Bas-P'!A49","v":"5.10.3"},{"$f":"'5. Bas-P'!B49","v":"Finns förslag till organisationsbeskrivning för arbetsmiljöarbetet?"},null,null,null,"Se AUC.243/ AFC/AFD.1831, TMALL 0255",null,"Fördjupad uppföljning och kvalitetsgranskning av leverans se TMALL 0009 Granskning Arbetsmiljöplan\n"]
[null,{"$f":"'5. Bas-P'!A50","v":"5.10.4"},{"$f":"'5. Bas-P'!B50","v":"Finns projektanpassade ordnings och skyddsregler?"},null,null,null,null,null,"Utkast, förslag utefter att Bas-P ser specifikt behov, som åtgärd från riskhantering m m Huvudsak Bas-U:s uppgift att ta fram."]
[null,{"$f":"'5. Bas-P'!A51","v":"5.10.5"},{"$f":"'5. Bas-P'!B51","v":"Är annan verksamhet i kontraktsområdet identifierad och finns beskrivning av hur samordning ska ske? "},null,null,null,"AUC.243/ AFC/AFD.1831, TMALL 0255",null,"Se bl a underlag tas fram av  byggherren: TDOK 2018:0151 + TMALL1003 + TMALL 0446\nFördjupad uppföljning och kvalitetsgranskning av leverans se  TMALL 0009 Granskning Arbetsmiljöplan"]
[null,{"$f":"'5. Bas-P'!A52","v":"5.10.6"},{"$f":"'5. Bas-P'!B52","v":"Beskrivs de arbetsmoment som medför arbete med särskilda arbetsmiljörisker (se de 13) tillsammans med åtgärderna för att hantera dessa?\n"},null,null,null,"Se AUC.243/ AFC/AFD.1831, TMALL 0255, ",null,"Fördjupad uppföljning och kvalitetsgranskning av leverans se TMALL 0009 Granskning Arbetsmiljöplan","Ur 12 § Arbeten enligt andra stycket punkterna 1-13 medför särskilda\narbetsmiljörisker och det krävs åtgärder om något av dessa arbeten förekommer\ni byggprojektet. Åtgärder för att hantera de särskilda riskerna ska beskrivas i\narbetsmiljöplanen. Om samma risk återkommer vid flera arbetsmoment och\ndet finns behov av olika åtgärder för att hantera risken,\nska det framgå vilken åtgärd som är planerad för vilket arbetsmoment.\nArbeten med särskilda arbetsmiljörisker är:\n1. Arbete där det finns risk att falla till en lägre nivå, om nivåskillnaden\när två meter eller mer.\n2. Arbete där det finns risk att begravas under jordmassor, eller sjunka\nned i lös mark.\n3. Arbete med lansering, montering eller nedmontering av tunga\nbyggelement, eller tunga formbyggnadselement.\n4 Arbete som utsätter någon för kemiska eller biologiska ämnen som\nmedför särskild fara för hälsa och säkerhet, eller omfattas av krav\npå medicinsk kontroll.\n5 Rivning av bärande konstruktioner, eller hälsofarliga material eller ämnen.\n6 Arbete i närheten av högspänningsledningar.\nArbete på en plats eller ett område där fordonstrafik passerar.\nArbete där sprängämnen används.\nArbete i brunnar och tunnlar samt anläggningsarbete under jord.\nArbete där det finns risk att drunkna.\nArbete som utförs under vatten med dykarutrustning.\nArbete som utförs i en kassun under förhöjt lufttryck.\nArbete i närheten av joniserande strålning och för vilket man, enligt\nStrålsäkerhetsmyndighetens föreskrifter, ska inrätta ett kontrollerat\nområde eller ett skyddat område"]
[null,{"$f":"'5. Bas-P'!A53","v":"5.10.7"},{"$f":"'5. Bas-P'!B53","v":"Innehåller arbetsmiljöplanen uppgifter i enlighet med Trafikverkets krav? \n(Se TMALL 0009 och/eller kontrakt med TMALL 0255)"},null,null,null,"AUC.243/ AFC/AFD.1831, TMALL 0255, ",null,"Fördjupad uppföljning och kvalitetsgranskning av leverans se TMALL 0009 Granskning Arbetsmiljöplan"]
[null,{"$f":"'5. Bas-P'!A54","v":"5.11"},{"$f":"'5. Bas-P'!B54","v":"Är Arbetsmiljö-PM uppdaterad med uppgifter som beskriver arbetsmiljöarbetet? 1)\n(Jämför krav i Uppdragsbeskrivning/UB)"},null,null,"1) Jämför om man arbetar enligt det arbetssätt som redovisats vid uppstart/ i projektplan, se krav TDOK 2016:0032. D v s se den uppföljningen som ska genomförts vid uppstart enligt checklista nr 1.  i denna TMALL 1002.  Avvikelser dokumenteras.","? UB… AUC.xxx/ AFC/AFD.yyy,",null,"Valbar leverans som kravställs via Uppdragsbeskrivningen. I öveiga fall ej relevant. \n(Fördjupad uppföljning kan göras enligt TMALL zzz Granskning PM Arbetsmiljö)","!! Kontrollera alltid mot kontraktsunika krav. Kravtext  framgår enligt aktuella inköpsmallar AF eller Uppdragsbeskrivning (UB) i : Se UB… AUC.xxx/ AFC/AFD.yyy, Fördjupad uppföljning kan göras enligt TMALL zzz Granskning PM Arbetsmiljö"]
[null,{"$f":"'5. Bas-P'!A55","v":0},{"$f":"'5. Bas-P'!B55","v":"Dokumentation, Arbetsmiljödokumentation inför framtida drift och underhåll.                            "}]
[null,{"$f":"'5. Bas-P'!A56","v":"5.12"},{"$f":"'5. Bas-P'!B56","v":"Anpassar  Bas-P  löpande arbetsmiljödokumentationen inför framtida drift, underhåll, reparationer, ändringar och rivning av objektet? 1) "},null,null,"1) Jämför om man arbetar enligt det arbetssätt som redovisats vid uppstart/ i projektplan, se krav TDOK 2016:0032. D v s se den uppföljningen som ska genomförts vid uppstart enligt checklista nr 1.  i denna TMALL 1002.  Avvikelser dokumenteras.","x"]
[null,{"$f":"'5. Bas-P'!A57","v":"5.13"},{"$f":"'5. Bas-P'!B57","v":"Förbereds för/ sker överlämning från Bas-P till Bas-U inför byggstart? "},null,null,null," AUC 3392, AFD338?",null,null,"Ur… 2kap 23 § Byggherren ska se till att arbetsmiljöplanen, och uppgifter om\narbetsmiljöarbetet i övrigt, lämnas över från Bas-P till Bas-U enligt\n11 kap. 15 §. Det ska göras innan det första byggnads- eller\nanläggningsarbetet påbörjas.\n3 kap 18 § Innan det första byggnads- eller anläggningsarbetet startar, ska Bas-P\nlämna över arbetsmiljöplanen och uppgifter om arbetsmiljöarbetet i övrigt\ntill Bas-U enligt 11 kap. 15 §.\n11kap 15 § När en byggarbetsmiljösamordnare ska lämna över arbetsmiljöplanen\ntill en annan byggarbetsmiljösamordnare, ska det göras på ett strukturerat sätt.\nByggarbetsmiljösamordnaren ska vid överlämnandet samtidigt informera\nom det övriga arbetet med att förebygga arbetsmiljörisker under bygg- och\nbruksskedet, som har genomförts tidigare i projektet. Identifierade risker och\nföreskrivna åtgärder ska förklaras, för att förebygga att ändringar görs som\npåverkar arbetsmiljön under bygg- eller bruksskedet på ett negativt sätt.\nAllmänna råd\nEn strukturerad överlämning mellan handläggarna kan ske i form av\nett möte för att främja dialog. Vid överlämningen kan man\n1. förklara relevanta underlag för komplexa lösningar och åtgärder\ntill risker som inte är uppenbara för alla,\n2. ta upp lösningar som valts bort av hänsyn till arbetsmiljön under\nbygg- eller bruksskedet,\n3. stämma av tidplanen och eventuellt justera den,\n4. klargöra hur fortsatt projektering efter byggstart ska hanteras enligt\n2kap. 24 §,\n5. ta upp anpassning till annan verksamhet som eventuellt pågår på\nplatsen, och\n6 besluta hur arbetsmiljödokumentationen enligt 10 kap. 5 och 6 §§\nska färdigställas.\nÖverlämning bör ske vid byte av handläggare även om de båda\norganisatoriskt tillhör samma byggarbetsmiljösamordnare."]

{"sheet":"Hjälp 2. & 6. Plan Proj","index":12,"n_rows":77,"n_cols":13,"rows_kept":77,"cut":false,"hidden":false,"merged":[[1,1,2,3],[1,5,7,8],[3,1,3,2],[8,10,8,12]]}
[]
[null,"Planering och projektering",null,null,null,"Intern styrning\nRutin TDOK 2018:0151  Byggherrens arbetsmiljöansvar vid byggnads- och anläggningsarbeten \n\nTMALL 1002, checklista\n- Huvudfrågor, baseras på grundläggande skyldighet eller övergripande arbetsuppgift enligt arbetsmiljölagstiftningen. \n   Se markerade frågor med färg- och fetstil, samt numreringshierarki.\n- Delfrågor, Relevanta delfrågor ställs för att följa upp detaljerade bestämmelser och/ eller kontraktskrav med avseende på överliggande fråga, se numreringshierarki. Huvudfråga eller annan enskild frågor kan ha delfrågor. Delfrågorna är även en vägledning till vad huvudfrågorna innefattar. "]
[]
[null,"Hjälp, Råd och stöd \nFÖRBÄTTRINGSARBETE! \n(Uppgifter kompletteras efterhand. Se motsvarande \"Hjälp\" i BUS-systemet. Material kommer sedan läggas där under \"?\", i PDF-format.)\n\n"]
[]
[]
[]
[]
[null,null,null,null,null,"           Hjälp (Råd och stöd)",null,null,null,null,"Bedömningsstöd/ Vägledning"]
[null,"LÄNK,\nTillbaka till checklistan:","Rubrik/ Fråga",null,"Notisfält\nEgen anteckning","Arbetssätt / Rutin\nSe och jämför med redovisat arbetssätt, för HUR uppgiften avses  genomföras på ett systematiskt sätt.","Kontraktskrav\nKontrollera alltid mot kontraktsunika krav. Kravtext  enligt inköpsmallar Administrativa föreskrifter (AF) samt Uppdragsbeskrivningen (UB) , Se AF-koder, där krav ska/ bör finnas.","Teckenförklaring","Förtydligande och stöd","Ur Arbetsmiljölagen (AML) eller AFS \nHänvisade bestämmelser eller utdrag ur dessa\nObservera, inte fullständiga texter! Se av.se","Ja, Accepterad\n[x]","Nej, Mindre anmärkning\n[x] ","Nej,  Avvikelse\n[x]"]
[11,{"$f":"'2. Start Plan proj'!A11","v":0},{"$f":"'2. Start Plan proj'!B11:C11","v":"Uppdraget och kvalifikationer                                                      "},0]
[12,{"$f":"'2. Start Plan proj'!A12","v":"2.1"},{"$f":"'2. Start Plan proj'!B12:C12","v":"Har man visat att man har tillräcklig utbildning,\nkompetens och erfarenhet enligt ställda\nkontraktskrav (b)"},0,null,null,"AUC/ AFC/AFD.32"," (b) uppföljning i byggskedet vid ny- eller omprojektering, se enbart  frågor markerade (b)","Bestämmelser riktade till byggherren. Det står inte krav i bestämmelser riktat till projektör att denne ska inneha kompetens. \nSe kontraktskrav.(Uppvisande av kompetensförteckning eller cv och utbildningsintyg.)","Ur .. 2kap 13 § Byggherren ska se till att de projektörer som anlitas har kompetens och erfarenhet som motsvarar byggprojektets storlek, komplexitet och risknivå.\nMed kompetens avses både kunskap om arbetsmiljöregler och färdigheter att\ntillämpa dessa vid projekteringen.\nKompetensen ska vara tillräcklig för att förebygga de arbetsmiljörisker som\nkan antas förekomma under byggskedet och vid arbete i, och i anslutning till,\nden färdiga byggnaden eller anläggningen.\nAllmänna råd\nGenom de avtal som byggherren ingår kan arbetsmiljökrav specificeras.\nByggherren bör se till att byggprojektets komplexitet och risknivå i\nbyggskedet tydliggörs i underlagen och det kan ofta vara lämpligt att\nanvända arbetsmiljöplanen. Att aktörerna kan avsätta tillräckligt med tid\noch personal för arbetsmiljöuppgiftema i byggprojektet bör också beaktas."]
[13,{"$f":"'2. Start Plan proj'!A13","v":"2.1.1"},{"$f":"'2. Start Plan proj'!B13:C13","v":"Motsvarar kompetens och erfarenhet det aktuella projektets storlek, komplexitet och  risknivå? (b)\n"},0,null,null,"AUC/ AFC/AFD.32"," (b) uppföljning i byggskedet vid ny- eller omprojektering, se enbart  frågor markerade (b)","Bestämmelser riktade till byggherren. Det står inte krav i bestämmelser riktat till projektör att denne ska inneha kompetens. Se kontraktskrav.","Ur .. 2kap 13 § Byggherren ska se till att de projektörer som anlitas har kompetens och erfarenhet som motsvarar byggprojektets storlek, komplexitet och risknivå.\nMed kompetens avses både kunskap om arbetsmiljöregler och färdigheter att\ntillämpa dessa vid projekteringen.\nKompetensen ska vara tillräcklig för att förebygga de arbetsmiljörisker som\nkan antas förekomma under byggskedet och vid arbete i, och i anslutning till,\nden färdiga byggnaden eller anläggningen.\nAllmänna råd\nGenom de avtal som byggherren ingår kan arbetsmiljökrav specificeras.\nByggherren bör se till att byggprojektets komplexitet och risknivå i\nbyggskedet tydliggörs i underlagen och det kan ofta vara lämpligt att\nanvända arbetsmiljöplanen. Att aktörerna kan avsätta tillräckligt med tid\noch personal för arbetsmiljöuppgiftema i byggprojektet bör också beaktas."]
[13,{"$f":"'2. Start Plan proj'!A14","v":"2.2"},{"$f":"'2. Start Plan proj'!B14:C14","v":"Framgår i arbetssätt med rutin vilka hjälpmedel eller kontrollsystem som ska användas av projektörer, samt hur förslag till utformningen av anläggning ska granskas ur arbetsmiljösynpunkt?"},0,null,"Arbetssätt ska redovisas vid uppstart/ i projektplan, enligt \"Kvalitetsstyrning i upphandlad verksamhet - Entreprenad och Projekteringstjänster\" TDOK 2016:0032. Se även övergripande granskning projektplan enligt TMALL 1004",null,null,null,"Ur ...6kap 5§ AFS 2023:3 Projektörerna ska ha rutiner för att, från idé till färdig handling, förebygga arbetsmiljörisker som kan uppstå under byggskedet. Rutinerna ska omfatta\n1. hur projektörerna arbetar enligt grundprinciperna i 8 kap. 2 §,\n2. hur och när projektörerna tar hänsyn till arbetsmiljön under bygg\u0002skedet när de tar fram ritningar, beskrivningar och beräkningar, och\n3. vilka hjälpmedel eller kontrollsystem som projektörerna använder för att förebygga arbetsmiljörisker\nUr 10 kap 3§ AFS 2023:3 Under projekteringen ska förslag till utformningen av en färdig byggnad eller annan anläggning granskas, för att bedöma om kraven\ni arbetsmiljölagen (1977:1160) och Arbetsmiljöverkets föreskrifter kan uppfyllas."]
[14,{"$f":"'2. Start Plan proj'!A15","v":"2.2.1"},{"$f":"'2. Start Plan proj'!B15:C15","v":"Har man i upprättat kontrollprogram/ kontrollplaner beaktat skyldigheter, kontraktskrav och arbetssätt med avseende på arbetsmiljö? (b)\n"},0,null,null,"TDOK 2016:0032  \"Kvalitetsstyrning i upphandlad verksamhet - Entreprenad och Projekteringstjänster\" "," (b) uppföljning i byggskedet vid ny- eller omprojektering, se enbart  frågor markerade (b)","Se även bl a säkerhet i tekniska konstruktioner\" kan handla om t ex projektörs hållfasthetsberäkningar, formkontruktioner vid gjutning, geotekniska  stödkonstruktioner m m. En Bas-P handläggare kan sällan bedöma sådana risker.","Ur ...6kap 5§ AFS 2023:3 Projektörerna ska ha rutiner för att, från idé till färdig handling, förebygga arbetsmiljörisker som kan uppstå under byggskedet. Rutinerna ska omfatta\n1. hur projektörerna arbetar enligt grundprinciperna i 8 kap. 2 §,\n2. hur och när projektörerna tar hänsyn till arbetsmiljön under bygg\u0002skedet när de tar fram ritningar, beskrivningar och beräkningar, och\n3. vilka hjälpmedel eller kontrollsystem som projektörerna använder för att förebygga arbetsmiljörisker\nUr 10 kap 3§ AFS 2023:3 Under projekteringen ska förslag till utformningen av en färdig byggnad eller annan anläggning granskas, för att bedöma om kraven\ni arbetsmiljölagen (1977:1160) och Arbetsmiljöverkets föreskrifter kan uppfyllas."]
[15,{"$f":"'2. Start Plan proj'!A16","v":0},{"$f":"'2. Start Plan proj'!B16:C16","v":" Förebygga arbetsmiljörisker. Beakta arbetsmiljön inför byggskede samt framtida drift och underhåll.                                    "},0]
[16,{"$f":"'2. Start Plan proj'!A17","v":"2.3"},{"$f":"'2. Start Plan proj'!B17:C17","v":"Finns det arbetsätt i rutin för hur man i projekteringen arbetar enligt grundprinciperna för att förebygga arbetsmiljörisker? (b)\n"},0,null,"Arbetssätt ska redovisas vid uppstart/ i projektplan, enligt \"Kvalitetsstyrning i upphandlad verksamhet - Entreprenad och Projekteringstjänster\" TDOK 2016:0032. Se även övergripande granskning projektplan enligt TMALL 1004",null," (b) uppföljning i byggskedet vid ny- eller omprojektering, se enbart  frågor markerade (b)",null,"Ur 6kap 5§ Projektörerna ska ha rutiner för att, från idé till färdig handling, förebygga arbetsmiljörisker som kan uppstå under byggskedet. Rutinerna ska omfatta\n1. hur projektörerna arbetar enligt grundprinciperna i 8 kap. 2 §,\nUr 8 kap 2 § AFS 2023:3 För att förebygga arbetsmiljörisker i bruksskedet ska man arbeta enligt grundprinciper , \n  1. Identifiera och undvika risker.\n  2. Bedöma risker som inte kan undvikas.\n  3. Hantera risker \nHanteras risker som inte kan undvikas genom att:\na) åtgärda riskerna vid källan,\nb) ersätta farliga ämnen med ämnen som är ofarliga, eller mindre farliga, så långt det är möjligt,  \nc) prioritera gemensamma skyddsåtgärder framför individuella,\nd) ta hänsyn till den tekniska utvecklingen,\ne) ta hänsyn till människors olika förutsättningar, och\nf) ge klara och tillräckliga instruktioner som alla berörda \nkan förstå.\nUr 10 kap 3§ AFS 2023:3 Under projekteringen ska förslag till utformningen av en färdig byggnad eller annan anläggning granskas, för att bedöma om kraven\ni arbetsmiljölagen (1977:1160) och Arbetsmiljöverkets föreskrifter kan uppfyllas. För att förebygga arbetsmiljörisker i bruksskedet ska man arbeta\nenligt grund principerna i 8 kap. 2 § under planeringen och projekteringen."]
[17,{"$f":"'2. Start Plan proj'!A18","v":"2.4"},{"$f":"'2. Start Plan proj'!B18:C18","v":"Finns det arbetsätt för hur man systematiskt  identifierar relevanta bestämmelser ur AFS \"Övriga regler\"? (b)\n(Se bland annat AFS 2023:12 om utformning av arbetsplatser och AFS 2023:13 om risker vid vissa typer av arbeten)\n\n"},0,null,"Arbetssätt ska redovisas vid uppstart/ i projektplan, enligt \"Kvalitetsstyrning i upphandlad verksamhet - Entreprenad och Projekteringstjänster\" TDOK 2016:0032. Se även övergripande granskning projektplan enligt TMALL 1004",null," (b) uppföljning i byggskedet vid ny- eller omprojektering, se enbart  frågor markerade (b)","Se bland annat AFS 2023:12 om utformning av arbetsplatser och AFS 2023:13 om risker vid vissa typer av arbeten\nJämför även med  Bas-P:s  uppgift att samordna tillämpningen.","Se bland annat AFS 2023:12 om utformning av arbetsplatser och AFS 2023:13 om risker vid vissa typer av arbeten\nse Bas-P,3 kap. 7 a §  AML  Samordna tillämpningen av relevanta arbetsmiljöregler, \n3 kap 6§ uppmärksamma projektörerna på deras skyldigheter att följa\n6 kap. samt Arbetsmiljöverkets föreskrifter och allmänna råd\n(AFS 2023:12) om utformning av arbetsplatser."]
[18,{"$f":"'2. Start Plan proj'!A19","v":"2.5"},{"$f":"'2. Start Plan proj'!B19:C19","v":"Finns det arbetssätt för hur man ska planera och projektera för att  förebygga arbetsmiljörisker och beakta arbetsmiljön i byggskede samt framtida drift och underhåll? \n"},0,null,"Arbetssätt ska redovisas vid uppstart/ i projektplan, enligt \"Kvalitetsstyrning i upphandlad verksamhet - Entreprenad och Projekteringstjänster\" TDOK 2016:0032. Se även övergripande granskning projektplan enligt TMALL 1004",null,null,"Hur ska risker,  bestämmelser, konsekvenser och åtgärder hanteras och redovisas vid val av utformning , teknisk lösning eller anläggning?","UR ... 3 kap 7 § AML Under varje skede av planeringen och projekteringen av ett byggnads- eller anläggningsarbete ska arkitekter, konstruktörer och andra som medverkar, inom ramen för sina uppdrag, se till att arbetsmiljösynpunkter beaktas när det gäller såväl byggskedet som det framtida brukandet.\nUr  AFS 2023:3:\nKap 6 Förebygga arbetsmiljörisker vid planeringen och projekteringen\nKap 9 Planera och projektera för en god arbetsmiljö i byggskedet\nKap  10: Planera och projektera för en god arbetsmiljö i bruksskedet\n6kap 5§ Projektörerna ska ha rutiner för att, från idé till färdig handling, förebygga arbetsmiljörisker som kan uppstå under byggskedet. Rutinerna ska omfatta\n1. hur projektörerna arbetar enligt grundprinciperna i 8 kap. 2 §,\n2. hur och när projektörerna tar hänsyn till arbetsmiljön under byggskedet när de tar fram ritningar, beskrivningar och beräkningar, och\n3. vilka hjälpmedel eller kontrollsystem som projektörerna använder för att förebygga arbetsmiljörisker"]
[19,{"$f":"'2. Start Plan proj'!A20","v":"2.5.1"},{"$f":"'2. Start Plan proj'!B20:C20","v":"Finns det arbetssätt med  rutin för hur de som medverkar vid planering och projektering ska beakta arbetsmiljösynpunkter för byggskedet? (b)\nFör uppdraget relevanta punkter: \n- objektets eller anläggningens placering och utformning,\n- val av byggprodukter,\n- val av konstruktioner för grundläggning, stomsystem eller andra bärande element,\n- val och utformning av stomkomplettering,\n- val av installationer, deras placering och infästning \n- val av inredningar.\n- transporter av byggmaterial m m kan ske på ett säkert sätt\n- etableringsområdet är tillräckligt stort så att all verksamhet får plats\n- risker och kartläggning inför rivning"},0,null,"Arbetssätt ska redovisas vid uppstart/ i projektplan, enligt \"Kvalitetsstyrning i upphandlad verksamhet - Entreprenad och Projekteringstjänster\" TDOK 2016:0032. Se även övergripande granskning projektplan enligt TMALL 1004","Se AF, AUC.374, AFC/D.242\n"," (b) uppföljning i byggskedet vid ny- eller omprojektering, se enbart  frågor markerade (b)",null,"Ur 6kap 5§ AFS 2023:3 Projektörerna ska ha rutiner för att, från idé till färdig handling, förebygga arbetsmiljörisker som kan uppstå under byggskedet. Rutinerna ska omfatta\n1. hur projektörerna arbetar enligt grundprinciperna i 8 kap. 2 §,\n2. hur och när projektörerna tar hänsyn till arbetsmiljön under bygg\u0002skedet när de tar fram ritningar, beskrivningar och beräkningar, och\n3. vilka hjälpmedel eller kontrollsystem som projektörerna använder för att förebygga arbetsmiljörisker"]
[20,{"$f":"'2. Start Plan proj'!A21","v":"2.5.1.1"},{"$f":"'2. Start Plan proj'!B21:C21","v":"Finns det arbetsätt i rutin för hur man i projekteringen tar hänsyn till arbetsmiljön under byggskedet när man tar fram ritningar, beskrivningar och beräkningar? (b)\n"},0,null,"Arbetssätt ska redovisas vid uppstart/ i projektplan, enligt \"Kvalitetsstyrning i upphandlad verksamhet - Entreprenad och Projekteringstjänster\" TDOK 2016:0032. Se även övergripande granskning projektplan enligt TMALL 1004",null," (b) uppföljning i byggskedet vid ny- eller omprojektering, se enbart  frågor markerade (b)",null,"Ur 6kap 5§ AFS 2023:3 Projektörerna ska ha rutiner för att, från idé till färdig handling, förebygga arbetsmiljörisker som kan uppstå under byggskedet. Rutinerna ska omfatta\n1. hur projektörerna arbetar enligt grundprinciperna i 8 kap. 2 §,\n2. hur och när projektörerna tar hänsyn till arbetsmiljön under bygg\u0002skedet när de tar fram ritningar, beskrivningar och beräkningar, och\n3. vilka hjälpmedel eller kontrollsystem som projektörerna använder för att förebygga arbetsmiljörisker"]
[21,{"$f":"'2. Start Plan proj'!A22","v":"2.5.1.2"},{"$f":"'2. Start Plan proj'!B22:C22","v":"Finns det arbetsätt  för hur man utformar tillfälliga konstruktioner och samverkande konstruktioner så att de klarar  belastningarna under byggskedet? (b)"},0,null,"Arbetssätt ska redovisas vid uppstart/ i projektplan, enligt \"Kvalitetsstyrning i upphandlad verksamhet - Entreprenad och Projekteringstjänster\" TDOK 2016:0032. Se även övergripande granskning projektplan enligt TMALL 1004",null," (b) uppföljning i byggskedet vid ny- eller omprojektering, se enbart  frågor markerade (b)",null,"Ur … 6kap 7§ AFS 2023:3  Projektörerna ska utforma tillfälliga konstruktioner och samverkande konstruktioner så att de med säkerhet klarar de belastningar och påfrestningar som de kan komma att utsättas för under byggskedet."]
[22,{"$f":"'2. Start Plan proj'!A23","v":"2.5.2"},{"$f":"'2. Start Plan proj'!B23:C23","v":"Finns det arbetssätt för hur de som medverkar vid planering och projektering ska beakta arbetsmiljösynpunkter för framtida drift och underhåll? (b)"},0,null,"Arbetssätt ska redovisas vid uppstart/ i projektplan, enligt \"Kvalitetsstyrning i upphandlad verksamhet - Entreprenad och Projekteringstjänster\" TDOK 2016:0032. Se även övergripande granskning projektplan enligt TMALL 1004","AF, AUC.374, AFC/D.242\n"," (b) uppföljning i byggskedet vid ny- eller omprojektering, se enbart  frågor markerade (b)"]
[23,{"$f":"'2. Start Plan proj'!A24","v":0},{"$f":"'2. Start Plan proj'!B24:C24","v":"Samordning och dokumentation\n                            "},0]
[24,{"$f":"'2. Start Plan proj'!A25","v":"2.6"},{"$f":"'2. Start Plan proj'!B25:C25","v":"Finns det arbetssätt för hur projektörer medverkar i Bas-P:s samordning av projektering, i frågor som har betydelse för arbetsmiljön under byggskede eller framtida drift, underhåll? (b)"},0,null,"Arbetssätt ska redovisas vid uppstart/ i projektplan, enligt \"Kvalitetsstyrning i upphandlad verksamhet - Entreprenad och Projekteringstjänster\" TDOK 2016:0032. Se även övergripande granskning projektplan enligt TMALL 1004","AF, AUC.374, AFC/D.242\n"," (b) uppföljning i byggskedet vid ny- eller omprojektering, se enbart  frågor markerade (b)","Jämför även krav Uppdragsbeskrivning/UB. Framgår det i arbetssättet för samordning mellan ämnesområden i projekteringsbeskrivning,  att man även beaktar samordning utifrån projekteringsansvaret för arbetsmiljö","Jfr Bas-P- rutiner och i AMP\nUr ...3 kap 7§ Bas-P ska informera projektörerna om\n1. hur samarbete och samordning ska organiseras och genomföras,\nUr ...3 kap 4§  Bas-P ska ha rutiner för att bedriva samordning och arbetsmiljöarbete i byggprojektet. Rutinerna ska omfatta\n1. hur Bas-P arbetar enligt grundprinciperna i 8 kap. 2 §,\n2. hur och när arbetsmiljöfrågor om byggskedet hanteras under planeringen och projekteringen, och\n3. hur Bas-P kontrollerar och följer upp att projektörerna arbetar med att förebygga arbetsmiljörisker i byggskedet.\n11 kap 9 § Arbetsmiljoplanen ska beskriva hur man ska organisera och bedriva\narbetsmiljoarbetet. Arbetsmiljoplanen ska innehålla kontaktuppgifter till\npersoner i byggprojektet som har arbetsmiljouppgifter samt rutinerna for\nsamordning och arbetsmiljoarbete.\nSe 11 kap 12 § AFS 2023:3 Identifieras arbetsmoment som medför arbete med särskilda arbetsmiljörisker (se de 13) och åtgärder kommuniceras med Bas-P? \nArbeten med särskilda arbetsmiljörisker är:\n1. Arbete där det finns risk att falla till en lägre nivå, om nivåskillnaden är två meter eller mer.\n2. Arbete där det finns risk att begravas under jordmassor, eller sjunka ned i lös mark.\n3. Arbete med lansering, montering eller nedmontering av tunga byggelement, eller tunga formbyggnadselement.\n4. Arbete som utsätter någon för kemiska eller biologiska ämnen som medför särskild fara för hälsa och säkerhet, eller omfattas av krav på medicinsk kontroll.\n5. Rivning av bärande konstruktioner, eller hälsofarliga material eller ämnen.\n6. Arbete i närheten av högspänningsledningar.\n7. Arbete på en plats eller ett område där fordonstrafik passerar.\n8. Arbete där sprängämnen används.\n9. Arbete i brunnar och tunnlar samt anläggningsarbete under jord.\n10. Arbete där det finns risk att drunkna.\n11. Arbete som utförs under vatten med dykarutrustning.\n12. Arbete som utförs i en kassun under förhöjt lufttryck.\n13. Arbete i närheten av joniserande strålning och för vilket man, enligt Strålsäkerhetsmyndighetens föreskrifter, ska inrätta ett kontrollerat \nområde eller ett skyddat område.\""]
[25,{"$f":"'2. Start Plan proj'!A26","v":"2.6.1"},{"$f":"'2. Start Plan proj'!B26:C26","v":"Finns det arbetsätt med skriftliga rutiner för hur man löpande avser delge identifierade risker med tillhörande behandling/ åtgärdsbeskrivning till Bas-P samt beställaren? (b)"},0,null,"Arbetssätt ska redovisas vid uppstart/ i projektplan, enligt \"Kvalitetsstyrning i upphandlad verksamhet - Entreprenad och Projekteringstjänster\" TDOK 2016:0032. Se även övergripande granskning projektplan enligt TMALL 1004","AF, AUC.374, AFC/D.242"," (b) uppföljning i byggskedet vid ny- eller omprojektering, se enbart  frågor markerade (b)",null,"Ur ...6kap 5§ Projektörerna ska ha rutiner för att, från idé till färdig handling, förebygga arbetsmiljörisker som kan uppstå under byggskedet. Rutinerna ska omfatta\n1. hur projektörerna arbetar enligt grundprinciperna i 8 kap. 2 §,\n2. hur och när projektörerna tar hänsyn till arbetsmiljön under bygg\u0002skedet när de tar fram ritningar, beskrivningar och beräkningar, och\n3. vilka hjälpmedel eller kontrollsystem som projektörerna använder för att förebygga arbetsmiljörisker"]
[26,{"$f":"'2. Start Plan proj'!A27","v":"2.6.2"},{"$f":"'2. Start Plan proj'!B27:C27","v":"Finns det arbetsätt för hur man avser kontrollera att lösningar fungerar med andra projektörers lösningar av betydelse för arbetsmiljön? (b) "},0,null,"Arbetssätt ska redovisas vid uppstart/ i projektplan, enligt \"Kvalitetsstyrning i upphandlad verksamhet - Entreprenad och Projekteringstjänster\" TDOK 2016:0032. Se även övergripande granskning projektplan enligt TMALL 1004",null," (b) uppföljning i byggskedet vid ny- eller omprojektering, se enbart  frågor markerade (b)","Jämför  2.1.7 gällande krav i Uppdragsbeskrivning/UB\nFramgår det t ex i arbetssättet för samordning mellan ämnesområden i projekteringsbeskrivning, även beaktar samordning utifrån projekteringsansvaret för arbetsmiljö?  (Jfr Uppdragsbeskrivning, UB)","Jämför  2.1.7 gällande krav i Uppdragsbeskrivning/UB\nFramgår det t ex i arbetssättet för samordning mellan ämnesområden i projekteringsbeskrivning, även beaktar samordning utifrån projekteringsansvaret för arbetsmiljö?  (Jfr Uppdragsbeskrivning, UB)\nUr ... 6 kap 4 § AFS\n Projektörerna ska, i samråd med Bas-P, se till att deras föreslagna lösningar är förenliga med andra projektörers lösningar om det har betydelse för arbetsmiljön under bygg- eller bruksskedet"]
[27,{"$f":"'2. Start Plan proj'!A28","v":"2.6.3"},{"$f":"'2. Start Plan proj'!B28:C28","v":"Finns det arbetsätt med skriftliga rutiner för hur man löpande avser delge arbetsmiljösynpunkter som beaktas vid val av utformning eller teknisk lösning\ntill Bas-P samt beställaren? (b)"},0,null,"Arbetssätt ska redovisas vid uppstart/ i projektplan, enligt \"Kvalitetsstyrning i upphandlad verksamhet - Entreprenad och Projekteringstjänster\" TDOK 2016:0032. Se även övergripande granskning projektplan enligt TMALL 1004","AF, AUC.374, AFC/D.242\n"," (b) uppföljning i byggskedet vid ny- eller omprojektering, se enbart  frågor markerade (b)",null,"Ur... 6kap 5§ Projektörerna ska ha rutiner för att, från idé till färdig handling, förebygga arbetsmiljörisker som kan uppstå under byggskedet. Rutinerna ska omfatta\n1. hur projektörerna arbetar enligt grundprinciperna i 8 kap. 2 §,\n2. hur och när projektörerna tar hänsyn till arbetsmiljön under bygg\u0002skedet när de tar fram ritningar, beskrivningar och beräkningar, och\n3. vilka hjälpmedel eller kontrollsystem som projektörerna använder för att förebygga arbetsmiljörisker"]
[28,{"$f":"'2. Start Plan proj'!A29","v":"2.7"},{"$f":"'2. Start Plan proj'!B29:C29","v":"Finns det arbetssätt för hur geografiskt knutna arbetsmiljöaspekter ska redovisas i BIM-modeller, alternativt i annan dokumentation exempelvis på ritningar?\n(Jämför krav i Uppdragsbeskrivning/UB)"},0,null,"Arbetssätt ska redovisas vid uppstart/ i projektplan, enligt \"Kvalitetsstyrning i upphandlad verksamhet - Entreprenad och Projekteringstjänster\" TDOK 2016:0032. Se även övergripande granskning projektplan enligt TMALL 1004"," Uppdragsbeskrivning (UB)\n"," (b) uppföljning i byggskedet vid ny- eller omprojektering, se enbart  frågor markerade (b)","Se krav Uppdragsbeskrivning/UB\n","Ur ...6kap 5§ Projektörerna ska ha rutiner för att, från idé till färdig handling, förebygga arbetsmiljörisker som kan uppstå under byggskedet. Rutinerna ska omfatta\n1. hur projektörerna arbetar enligt grundprinciperna i 8 kap. 2 §,\n2. hur och när projektörerna tar hänsyn till arbetsmiljön under bygg\u0002skedet när de tar fram ritningar, beskrivningar och beräkningar, och...\nUr.. 8 kap 2§ (d) ta hänsyn till den tekniska utvecklingen, Allmänna råd ... Exempel på att ta hänsyn till den tekniska utvecklingen är att redan under planeringen och projekteringen synliggöra arbetsmiljörisker och hitta projekteringskollisioner med hjälp av olika typer av ritprogram, visualiseringar och andra intelligenta modeller eller program."]
[29,{"$f":"'2. Start Plan proj'!A30","v":"2.8"},{"$f":"'2. Start Plan proj'!B30:C30","v":"Finns det arbetssätt för hur man avser delge Bas-P uppgifter löpande inför slutdokumentation med för arbetsmiljön relevant information inför framtida drift, underhåll, reparationer, ändringar och rivning? (b)"},0,null,"Arbetssätt ska redovisas vid uppstart/ i projektplan, enligt \"Kvalitetsstyrning i upphandlad verksamhet - Entreprenad och Projekteringstjänster\" TDOK 2016:0032. Se även övergripande granskning projektplan enligt TMALL 1004","AF, AUC.374, AFC/D.242\n"," (b) uppföljning i byggskedet vid ny- eller omprojektering, se enbart  frågor markerade (b)","Se bestämmelser för Bas-P. Se aktuella kontraktskrav AF","Ur…10 kap 5§ En arbetsmiljödokumentation som kan behövas vid framtida arbeten med en byggnad eller annan anläggning ska upprättas och anpassas löpande. Den ska vara färdigställd när byggnads- och anläggningsarbetena avslutats.\nArbetsmiljödokumentationen ska beskriva\n1. objektets konstruktion,\n2. objektets utformning, och\n3. vilka material och byggprodukter som har använts."]
[30,{"$f":"'2. Start Plan proj'!A31","v":0},{"$f":"'2. Start Plan proj'!B31:C31","v":"Om fältundersökningar och platsbesök ingår i uppdraget - Se checklista 4. för arbetsgivare verksamma på byggarbetsplats …"},0,null,null,"TDOK 2016:0032\n"]
[null,{"$f":"'6. Plan proj'!A11","v":0},{"$f":"'6. Plan proj'!B11:C11","v":"Uppdraget och kvalifikationer                                                      "},0]
[12,{"$f":"'6. Plan proj'!A12","v":"6.1"},{"$f":"'6. Plan proj'!B12:C12","v":"Har man visat på att man har tillräcklig utbildning, kompetens och erfarenhet enligt ställda kontraktskrav?  (b)"},0,null,null,"AF AUC/ AFC/D.32"," (b) uppföljning i byggskedet vid ny- eller omprojektering, se enbart  frågor markerade (b)","Kontrollera utbildning, kompetens och erfarenhet vid ny eller förändrad organisation \nBestämmelser riktade till byggherren. Det står inte krav i bestämmelser riktat till projektör att denne ska inneha kompetens.\n Se kontraktskrav. (Uppvisande av kompetensförteckning eller cv och utbildningsintyg.)","Ur .. 2kap 13 § Byggherren ska se till att de projektörer som anlitas har kompetens och erfarenhet som motsvarar byggprojektets storlek, komplexitet och risknivå.\nMed kompetens avses både kunskap om arbetsmiljöregler och färdigheter att\ntillämpa dessa vid projekteringen.\nKompetensen ska vara tillräcklig för att förebygga de arbetsmiljörisker som\nkan antas förekomma under byggskedet och vid arbete i, och i anslutning till,\nden färdiga byggnaden eller anläggningen.\nAllmänna råd\nGenom de avtal som byggherren ingår kan arbetsmiljökrav specificeras.\nByggherren bör se till att byggprojektets komplexitet och risknivå i\nbyggskedet tydliggörs i underlagen och det kan ofta vara lämpligt att\nanvända arbetsmiljöplanen. Att aktörerna kan avsätta tillräckligt med tid\noch personal för arbetsmiljöuppgiftema i byggprojektet bör också beaktas."]
[13,{"$f":"'6. Plan proj'!A13","v":"6.1.1"},{"$f":"'6. Plan proj'!B13:C13","v":"Motsvarar kompetens och erfarenhet det aktuella projektets storlek, komplexitet och  risknivå?  (b)\n"},0,null,null,"AUC/ AFC/AFD.32"," (b) uppföljning i byggskedet vid ny- eller omprojektering, se enbart  frågor markerade (b)","Kontrollera utbildning, kompetens och erfarenhet vid ny eller förändrad organisation \nBestämmelser riktade till byggherren. Det står inte krav i bestämmelser riktat till projektör att denne ska inneha kompetens. Se kontraktskrav.","Ur .. 2kap 13 § Byggherren ska se till att de projektörer som anlitas har kompetens och\nerfarenhet som motsvarar byggprojektets storlek, komplexitet och risknivå.\nMed kompetens avses både kunskap om arbetsmiljöregler och färdigheter att\ntillämpa dessa vid projekteringen.\nKompetensen ska vara tillräcklig för att förebygga de arbetsmiljörisker som\nkan antas förekomma under byggskedet och vid arbete i, och i anslutning till,\nden färdiga byggnaden eller anläggningen.\nAllmänna råd\nGenom de avtal som byggherren ingår kan arbetsmiljökrav specificeras.\nByggherren bör se till att byggprojektets komplexitet och risknivå i\nbyggskedet tydliggörs i underlagen och det kan ofta vara lämpligt att\nanvända arbetsmiljöplanen. Att aktörerna kan avsätta tillräckligt med tid\noch personal för arbetsmiljöuppgiftema i byggprojektet bör också beaktas."]
[15,{"$f":"'6. Plan proj'!A14","v":"6.2"},{"$f":"'6. Plan proj'!B14:C14","v":"Arbetar man enligt de hjälpmedel eller kontrollsystem som redovisas i rutin , samt genomförs granskning med avseende på utformningen av anläggning ur arbetsmiljösynpunkt? 1)  (b)"},0,null,"1) Jämför om man arbetar enligt det arbetssätt som redovisats vid uppstart/ i projektplan, se krav TDOK 2016:0032. D v s se den uppföljningen som ska genomförts vid uppstart enligt checklista nr 2.  i denna TMALL 1002.  Avvikelser dokumenteras."," TDOK 2016:0032\n"," (b) uppföljning i byggskedet vid ny- eller omprojektering, se enbart  frågor markerade (b)","   Arbetar enligt redovisad rutin?","Ur.. 6kap 5§ AFS 2023:3 Projektörerna ska ha rutiner för att, från idé till färdig handling, förebygga arbetsmiljörisker som kan uppstå under byggskedet. Rutinerna ska omfatta\n1. hur projektörerna arbetar enligt grundprinciperna i 8 kap. 2 §,\n2. hur och när projektörerna tar hänsyn till arbetsmiljön under bygg\u0002skedet när de tar fram ritningar, beskrivningar och beräkningar, och\n3. vilka hjälpmedel eller kontrollsystem som projektörerna använder för att förebygga arbetsmiljörisker\nUr 10 kap 3§ AFS 2023:3 Under projekteringen ska förslag till utformningen av en färdig byggnad eller annan anläggning granskas, för att bedöma om kraven\ni arbetsmiljölagen (1977:1160) och Arbetsmiljöverkets föreskrifter kan uppfyllas."]
[14,{"$f":"'6. Plan proj'!A15","v":"6.2.1"},{"$f":"'6. Plan proj'!B15:C15","v":"Finns uppdaterat kontrollprogram/ kontrollplan med uppgifter och verifikat på genomförd egenkontroll med avseende på arbetsmiljö? 1)  (b)"},0,null,"1) Jämför om man arbetar enligt det arbetssätt som redovisats vid uppstart/ i projektplan, se krav TDOK 2016:0032. D v s se den uppföljningen som ska genomförts vid uppstart enligt checklista nr 2.  i denna TMALL 1002.  Avvikelser dokumenteras.","TDOK 2016:0032"," (b) uppföljning i byggskedet vid ny- eller omprojektering, se enbart  frågor markerade (b)","Se även bl a säkerhet i tekniska konstruktioner\" kan handla om t ex projektörs hållfasthetsberäkningar, formkontruktioner vid gjutning, geotekniska  stödkonstruktioner m m. En Bas-P handläggare kan sällan bedöma sådana risker.","\nUr.. 6kap 5§ AFS 2023:3 Projektörerna ska ha rutiner för att, från idé till färdig handling, förebygga arbetsmiljörisker som kan uppstå under byggskedet. Rutinerna ska omfatta\n1. hur projektörerna arbetar enligt grundprinciperna i 8 kap. 2 §,\n2. hur och när projektörerna tar hänsyn till arbetsmiljön under bygg\u0002skedet när de tar fram ritningar, beskrivningar och beräkningar, och\n3. vilka hjälpmedel eller kontrollsystem som projektörerna använder för att förebygga arbetsmiljörisker\nUr 10 kap 3§ AFS 2023:3 Under projekteringen ska förslag till utformningen av en färdig byggnad eller annan anläggning granskas, för att bedöma om kraven\ni arbetsmiljölagen (1977:1160) och Arbetsmiljöverkets föreskrifter kan uppfyllas."]
[16,{"$f":"'6. Plan proj'!A16","v":0},{"$f":"'6. Plan proj'!B16:C16","v":"Övergripande. Förebygga arbetsmiljörisker och beakta arbetsmiljön inför byggskede samt framtida drift och underhåll.                                    "},0,null,"1) Jämför om man arbetar enligt det arbetssätt som redovisats vid uppstart/ i projektplan, se krav TDOK 2016:0032. D v s se den uppföljningen som ska genomförts vid uppstart enligt checklista nr 2.  i denna TMALL 1002.  Avvikelser dokumenteras.","AF, AUC.374, AFC/D.242"," (b) uppföljning i byggskedet vid ny- eller omprojektering, se enbart  frågor markerade (b)"]
[17,{"$f":"'6. Plan proj'!A17","v":"6.3"},{"$f":"'6. Plan proj'!B17:C17","v":"Arbetar man enligt framtagen rutin och följer  grundprinciperna för att förebygga arbetsmiljörisker? 1)  (b)\n"},0,null,"1) Jämför om man arbetar enligt det arbetssätt som redovisats vid uppstart/ i projektplan, se krav TDOK 2016:0032. D v s se den uppföljningen som ska genomförts vid uppstart enligt checklista nr 2.  i denna TMALL 1002.  Avvikelser dokumenteras.",null," (b) uppföljning i byggskedet vid ny- eller omprojektering, se enbart  frågor markerade (b)",null,"Ur 6kap 5§ AFS 2023:3 Projektörerna ska ha rutiner för att, från idé till färdig handling, förebygga arbetsmiljörisker som kan uppstå under byggskedet. Rutinerna ska omfatta\n1. hur projektörerna arbetar enligt grundprinciperna i 8 kap. 2 §,\n Ur 8 kap 2 § AFS 2023:3 För att förebygga arbetsmiljörisker i bruksskedet ska man arbeta enligt grundprinciper , \n  1. Identifiera och undvika risker.\n  2. Bedöma risker som inte kan undvikas.\n  3. Hantera risker \nHanteras risker som inte kan undvikas genom att:\na) åtgärda riskerna vid källan,\nb) ersätta farliga ämnen med ämnen som är ofarliga, eller mindre farliga, så långt det är möjligt,  \nc) prioritera gemensamma skyddsåtgärder framför individuella,\nd) ta hänsyn till den tekniska utvecklingen,\ne) ta hänsyn till människors olika förutsättningar, och\nf) ge klara och tillräckliga instruktioner som alla berörda \nkan förstå."]
[18,{"$f":"'6. Plan proj'!A18","v":"6.4"},{"$f":"'6. Plan proj'!B18:C18","v":"Identifieras relevanta bestämmelser ur AFS \"Övriga regler\"? 1)  (b)\n(Se bland annat AFS 2023:12 om utformning av arbetsplatser och AFS 2023:13 om risker vid vissa typer av arbeten)\n\n"},0,null,"1) Jämför om man arbetar enligt det arbetssätt som redovisats vid uppstart/ i projektplan, se krav TDOK 2016:0032. D v s se den uppföljningen som ska genomförts vid uppstart enligt checklista nr 2.  i denna TMALL 1002.  Avvikelser dokumenteras.",null," (b) uppföljning i byggskedet vid ny- eller omprojektering, se enbart  frågor markerade (b)","Se bland annat AFS 2023:12 om utformning av arbetsplatser och AFS 2023:13 om risker vid vissa typer av arbeten\nJämför även med  Bas-P:s  uppgift att samordna tillämpningen.","Se bland annat AFS 2023:12 om utformning av arbetsplatser och AFS 2023:13 om risker vid vissa typer av arbeten\nse Bas-P, Ur...3 kap. 7 a §  AML  Samordna tillämpningen av relevanta arbetsmiljöregler, ...\n3 kap 6§ uppmärksamma projektörerna på deras skyldigheter att följa\n6 kap. samt Arbetsmiljöverkets föreskrifter och allmänna råd\n(AFS 2023:12) om utformning av arbetsplatser.\n Kolla 9 kap 1,5§§ + 10 kap 1,3§§ \nAllmänna råd\nBåde byggherren och projektörerna kan samtidigt ha ett ansvar av det slag som beskrivs i bestämmelserna. Deras möjligheter att påverka arbetsmiljön varierar mellan olika byggprojekt beroende på bland annat entreprenadform och utifrån det skede som byggprojektet befinner sig i.\n\nDet finns ytterligare bestämmelser om arbetsmiljön i byggskedet i Arbetsmiljöverkets föreskrifter och allmänna råd (AFS 2023:13) om risker vid vissa typer av arbeten, kapitlet om byggnads- och anläggningsarbete."]
[19,{"$f":"'6. Plan proj'!A19","v":"6.5"},{"$f":"'6. Plan proj'!B19:C19","v":"Förebyggs arbetsmiljörisker och beaktas arbetsmiljön i byggskedet samt framtida drift, underhåll när man  planerar och projekterar?   1) "},0,null,"1) Jämför om man arbetar enligt det arbetssätt som redovisats vid uppstart/ i projektplan, se krav TDOK 2016:0032. D v s se den uppföljningen som ska genomförts vid uppstart enligt checklista nr 2.  i denna TMALL 1002.  Avvikelser dokumenteras.",null,null,"Risker,  bestämmelser, konsekvenser och åtgärder hanteras och redovisas vid val av utformning , teknisk lösning eller anläggning?\n","UR ... 3 kap 7 § AML Under varje skede av planeringen och projekteringen av ett byggnads- eller anläggningsarbete ska arkitekter, konstruktörer och andra som medverkar, inom ramen för sina uppdrag, se till att arbetsmiljösynpunkter beaktas när det gäller såväl byggskedet som det framtida brukandet.\nUr  AFS 2023:3:\nKap 6 Förebygga arbetsmiljörisker vid planeringen och projekteringen\nKap 9 Planera och projektera för en god arbetsmiljö i byggskedet\nKap  10: Planera och projektera för en god arbetsmiljö i bruksskedet\n6kap 5§ Projektörerna ska ha rutiner för att, från idé till färdig handling, förebygga arbetsmiljörisker som kan uppstå under byggskedet. Rutinerna ska omfatta\n1. hur projektörerna arbetar enligt grundprinciperna i 8 kap. 2 §,\n2. hur och när projektörerna tar hänsyn till arbetsmiljön under byggskedet när de tar fram ritningar, beskrivningar och beräkningar, och\n3. vilka hjälpmedel eller kontrollsystem som projektörerna använder för att förebygga arbetsmiljörisker"]
[20,{"$f":"'6. Plan proj'!A20","v":0},{"$f":"'6. Plan proj'!B20:C20","v":0}," Beakta arbetsmiljön inför byggskede.                                          "]
[21,{"$f":"'6. Plan proj'!A21","v":"6.5.1"},{"$f":"'6. Plan proj'!B21:C21","v":"Arbetar de som medverkar vid projektering enligt framtagen rutin och beaktar arbetsmiljön inför byggskedet? 1)  (b)\nFör uppdraget relevanta punkter: \n- objektets eller anläggningens placering och utformning,\n- val av byggprodukter,\n- val av konstruktioner för grundläggning, stomsystem eller andra bärande element,\n- val och utformning av stomkomplettering,\n- val av installationer, deras placering och infästning \n- val av inredningar.\n- transporter av byggmaterial m m kan ske på ett säkert sätt\n- etableringsområdet är tillräckligt stort så att all verksamhet får plats\n- risker och kartläggning inför rivning"},0,null,"1) Jämför om man arbetar enligt det arbetssätt som redovisats vid uppstart/ i projektplan, se krav TDOK 2016:0032. D v s se den uppföljningen som ska genomförts vid uppstart enligt checklista nr 2.  i denna TMALL 1002.  Avvikelser dokumenteras.","Se AF, AUC.374, AFC/D.242\nTDOK 2016:0032"," (b) uppföljning i byggskedet vid ny- eller omprojektering, se enbart  frågor markerade (b)","Detaljer gällande respektive punkt/ område med bestämmelse, preciceras vidare i delfrågorna…","Ur 6kap 5§ AFS 2023:3 Projektörerna ska ha rutiner för att, från idé till färdig handling, förebygga arbetsmiljörisker som kan uppstå under byggskedet. Rutinerna ska omfatta\n1. hur projektörerna arbetar enligt grundprinciperna i 8 kap. 2 §,\n2. hur och när projektörerna tar hänsyn till arbetsmiljön under bygg\u0002skedet när de tar fram ritningar, beskrivningar och beräkningar, och\n3. vilka hjälpmedel eller kontrollsystem som projektörerna använder för att förebygga arbetsmiljörisker"]
[22,{"$f":"'6. Plan proj'!A22","v":"6.5.1.1"},{"$f":"'6. Plan proj'!B22:C22","v":"Arbetar man enligt redovisad rutin och tar hänsyn till arbetsmiljön under byggskedet när man tar fram ritningar, beskrivningar och beräkningar? 1)  (b)\n"},0,null,"1) Jämför om man arbetar enligt det arbetssätt som redovisats vid uppstart/ i projektplan, se krav TDOK 2016:0032. D v s se den uppföljningen som ska genomförts vid uppstart enligt checklista nr 2.  i denna TMALL 1002.  Avvikelser dokumenteras.","Se AF, AUC.374, AFC/D.242"," (b) uppföljning i byggskedet vid ny- eller omprojektering, se enbart  frågor markerade (b)","jämför 2.1.7 Uppdragsbeskrivning/UB  Framgår det t ex i att arbetssättet för samordning mellan ämnesområden i projekteringsbeskrivning, även beaktar samordning utifrån projekteringsansvaret för arbetsmiljö?  (Jfr Uppdragsbeskrivning, UB)","Ur 6kap 5§ AFS 2023:3 Projektörerna ska ha rutiner för att, från idé till färdig handling, förebygga arbetsmiljörisker som kan uppstå under byggskedet. Rutinerna ska omfatta\n1. hur projektörerna arbetar enligt grundprinciperna i 8 kap. 2 §,\n2. hur och när projektörerna tar hänsyn till arbetsmiljön under bygg\u0002skedet när de tar fram ritningar, beskrivningar och beräkningar, och\n3. vilka hjälpmedel eller kontrollsystem som projektörerna använder för att förebygga arbetsmiljörisker"]
[23,{"$f":"'6. Plan proj'!A23","v":"6.5.1.2"},{"$f":"'6. Plan proj'!B23:C23","v":"Utreds arbetsmiljörisker när nya metoder, tekniker eller material övervägs?  (b)\n"},0,null,null,null," (b) uppföljning i byggskedet vid ny- eller omprojektering, se enbart  frågor markerade (b)",null,"Ur … 9kap 2§ AFS 2023:3 Om nya metoder, tekniker eller material övervägs i byggprojektet, ska det utredas om det finns allvarliga arbetsmiljörisker med att använda dem. Om sådana risker finns ska det bedömas om ett mer beprövat arbetssätt \nska användas.\nNär oprövade metoder, tekniker eller material väljs ska det vid planeringen och projekteringen utredas vilka åtgärder som krävs. Åtgärderna ska vara beskrivna så att arbetet kan utföras på ett säkert sätt."]
[24,{"$f":"'6. Plan proj'!A24","v":"6.5.1.3"},{"$f":"'6. Plan proj'!B24:C24","v":"Beaktas arbetsmiljön under byggskedet när man väljer utformning och placering av en byggnad eller annan anläggning? 1)"},0,null,"1) Jämför om man arbetar enligt det arbetssätt som redovisats vid uppstart/ i projektplan, se krav TDOK 2016:0032. D v s se den uppföljningen som ska genomförts vid uppstart enligt checklista nr 2.  i denna TMALL 1002.  Avvikelser dokumenteras.",null,null,null,"Ur …  9kap 3§ AFS 2023:3  Vid planeringen och projekteringen ska arbetsmiljön under byggskedet särskilt uppmärksammas när man väljer utformning och placering av en byggnad eller annan anläggning."]
[25,{"$f":"'6. Plan proj'!A25","v":"6.5.1.4"},{"$f":"'6. Plan proj'!B25:C25","v":"Finns möjligt etableringsområde som är tillräckligt stort så att all verksamhet får plats? 1)"},0,null,"1) Jämför om man arbetar enligt det arbetssätt som redovisats vid uppstart/ i projektplan, se krav TDOK 2016:0032. D v s se den uppföljningen som ska genomförts vid uppstart enligt checklista nr 2.  i denna TMALL 1002.  Avvikelser dokumenteras.",null,null,null,"Ur … 9kap 4§ AFS 2023:3  Under planeringen och projekteringen ska etableringsområdets storlek särskilt uppmärksammas. Det ska normalt vara så stort att de personalutrymmen, kontor, förråd och materialupplag som behövs för all verksamhet på byggarbetsplatsen får plats utan att det blir för trångt. Dessa ska i möjligaste mån placeras nära platsen där arbetet ska utföras.\n\nMed etableringsområde menas ett område inom vilket entreprenörerna tillåts placera personalbodar, förråd, upplag och annat som är nödvändigt för att genomföra byggprojektet."]
[26,{"$f":"'6. Plan proj'!A26","v":"6.5.1.5"},{"$f":"'6. Plan proj'!B26:C26","v":"Kan byggmaterial tas emot, hanteras, förvaras  och transporteras på  på ett säkert sätt?  1)  (b)\n"},0,null,"1) Jämför om man arbetar enligt det arbetssätt som redovisats vid uppstart/ i projektplan, se krav TDOK 2016:0032. D v s se den uppföljningen som ska genomförts vid uppstart enligt checklista nr 2.  i denna TMALL 1002.  Avvikelser dokumenteras.",null," (b) uppföljning i byggskedet vid ny- eller omprojektering, se enbart  frågor markerade (b)",null,"Ur … 9kap 5§ AFS 2023:3  Planeringen och projekteringen ska möjliggöra att material kan tas emot, hanteras och förvaras på ett sådant sätt att risk för ohälsa och olycksfall förebyggs.\nMöjligheterna att transportera byggmaterial, avfall och utrustning på byggarbetsplatsen ska särskilt uppmärksammas."]
[27,{"$f":"'6. Plan proj'!A27","v":"6.5.1.6"},{"$f":"'6. Plan proj'!B27:C27","v":"Beaktas markåtkomst och utformning så att transporter av byggmaterial kan ske på ett säkert sätt till, inom och från arbetsområdet?"},0]
[28,{"$f":"'6. Plan proj'!A28","v":"6.5.1.7"},{"$f":"'6. Plan proj'!B28:C28","v":"Beaktas att tillräckligt utrymme finns för arbetets utförande samt trafik- och skyddsanordningar för passerande fordonstrafik?  (b)"},0,null,null,null," (b) uppföljning i byggskedet vid ny- eller omprojektering, se enbart  frågor markerade (b)"]
[29,{"$f":"'6. Plan proj'!A29","v":"6.5.1.8"},{"$f":"'6. Plan proj'!B29:C29","v":"Beaktas arbetsmiljön när byggprodukter väljs utifrån egenskap.er som material, form, vikt och storlek?  1)  (b)"},0,null,"1) Jämför om man arbetar enligt det arbetssätt som redovisats vid uppstart/ i projektplan, se krav TDOK 2016:0032. D v s se den uppföljningen som ska genomförts vid uppstart enligt checklista nr 2.  i denna TMALL 1002.  Avvikelser dokumenteras.",null," (b) uppföljning i byggskedet vid ny- eller omprojektering, se enbart  frågor markerade (b)",null,"Ur …9kap 6§ AFS 2023:3    När byggprodukter väljs, ska deras påverkan på arbetsmiljön under byggskedet särskilt uppmärksammas när det gäller egenskaper som material, form, vikt och storlek."]
[30,{"$f":"'6. Plan proj'!A30","v":"6.5.1.9"},{"$f":"'6. Plan proj'!B30:C30","v":"Beaktas arbetsmiljön när konstruktioner för grundläggning, stomsystem eller andra bärande element väljs?  1) "},0,null,"1) Jämför om man arbetar enligt det arbetssätt som redovisats vid uppstart/ i projektplan, se krav TDOK 2016:0032. D v s se den uppföljningen som ska genomförts vid uppstart enligt checklista nr 2.  i denna TMALL 1002.  Avvikelser dokumenteras.",null,null,null,"Ur …9kap 7§ AFS 2023:3  När konstruktioner för grundläggning, stomsystem eller andra bärande element väljs, ska deras påverkan på arbetsmiljön under byggskedet särskilt uppmärksammas."]
[31,{"$f":"'6. Plan proj'!A31","v":"6.5.1.10"},{"$f":"'6. Plan proj'!B31:C31","v":"Om projekterad utformning omfattas av monteringsfärdig byggnad eller anläggning, kontrolleras att det finns beskrivning av hur de prefabricerade elementen ska stabiliseras, lyftas och monteras på ett säkert sätt?  (b)"},0,null,null,null," (b) uppföljning i byggskedet vid ny- eller omprojektering, se enbart  frågor markerade (b)",null,"Ur...Exempel på monteringsfärdiga byggnader eller anläggningar kan\nvara prefabricerade stommar eller broar i trä, betong eller stål och\n\"nyckelfärdiga\" hus, där elementen har projekterats för att tillsammans\nbilda en helhet i form av en byggnad, anläggning eller bärande\nkonstruktion. Delarna, som ofta tillverkas på fabrik och sedan monteras\nihop på byggarbetsplatsen, kan projekteras för ett unikt objekt eller kå kd eat inl l v e r k a s i flertal."]
[32,{"$f":"'6. Plan proj'!A32","v":"6.5.1.11"},{"$f":"'6. Plan proj'!B32:C32","v":"Beaktas arbetsmiljön vid val av stomkomplettering,  installationer och inredningar?  1)  (b)"},0,null,"1) Jämför om man arbetar enligt det arbetssätt som redovisats vid uppstart/ i projektplan, se krav TDOK 2016:0032. D v s se den uppföljningen som ska genomförts vid uppstart enligt checklista nr 2.  i denna TMALL 1002.  Avvikelser dokumenteras.",null," (b) uppföljning i byggskedet vid ny- eller omprojektering, se enbart  frågor markerade (b)",null,"Ur …9kap 9§ AFS 2023:3  Under planeringen och projekteringen ska arbetsmiljön i byggskedet särskilt uppmärksammas vid val av\n1. stomkomplettering och dess utformning,\n2. installationer, deras placering och infästning, och\n3. inredningar."]
[33,{"$f":"'6. Plan proj'!A33","v":"6.5.1.12"},{"$f":"'6. Plan proj'!B33:C33","v":"Beskrivs skriftligt de åtgärder som behöver vidtas för att konstruktioner ska vara stabila under alla stadier av monteringen?  (b)"},0,null,null,null," (b) uppföljning i byggskedet vid ny- eller omprojektering, se enbart  frågor markerade (b)",null,"Ur … 9kap 8§ AFS 2023:3 De åtgärder som behöver vidtas för att konstruktioner ska vara stabila under alla stadier av monteringen och eventuell demontering ska beskrivas.\nBeskrivningen ska vara skriftlig och om den behöver inkludera en särskild ritning, ska ritningen finnas med."]
[34,{"$f":"'6. Plan proj'!A34","v":"6.5.1.13"},{"$f":"'6. Plan proj'!B34:C34","v":"Utformas tillfälliga konstruktioner och samverkande konstruktioner så att de klarar  belastningarna under byggskedet? 1)  (b)"},0,null,"1) Jämför om man arbetar enligt det arbetssätt som redovisats vid uppstart/ i projektplan, se krav TDOK 2016:0032. D v s se den uppföljningen som ska genomförts vid uppstart enligt checklista nr 2.  i denna TMALL 1002.  Avvikelser dokumenteras.",null," (b) uppföljning i byggskedet vid ny- eller omprojektering, se enbart  frågor markerade (b)",null,"Ur … 6kap 7§ AFS 2023:3  Projektörerna ska utforma tillfälliga konstruktioner och samverkande konstruktioner så att de med säkerhet klarar de belastningar och påfrestningar som de kan komma att utsättas för under byggskedet."]
[35,{"$f":"'6. Plan proj'!A35","v":"6.5.1.14"},{"$f":"'6. Plan proj'!B35:C35","v":"Kontrolleras bärighet av mark/ underlag och annan förankring vid planering av att en ställning eller väderskydd ska användas?   (b)"},0,null,null,null," (b) uppföljning i byggskedet vid ny- eller omprojektering, se enbart  frågor markerade (b)","Obs, en bestämmelse riktad till Bas-P. Har Bas-P efterfrågat?","Ur … 3 kap 9§ AFS 2023:3  Vid planeringen och projekteringen ska Bas-P se till att den som planerar en ställning eller ett väderskydd kontrollerar att marken eller underlaget med betryggande säkerhet kan bära upp den belastning som  kan uppstå. Detsamma gäller för fasader eller andra konstruktioner som ställningen behöver förankras till. Ställningen ska kunna uppföras och användas på ett säkert sätt på den aktuella platsen."]
[36,{"$f":"'6. Plan proj'!A36","v":"6.5.1.15"},{"$f":"'6. Plan proj'!B36:C36","v":"Finns det karläggning och skriftlig utredning om hälsofarligt material inför rivning, ombyggnad eller renovering?  1)  (b)"},0,null,"1) Jämför om man arbetar enligt det arbetssätt som redovisats vid uppstart/ i projektplan, se krav TDOK 2016:0032. D v s se den uppföljningen som ska genomförts vid uppstart enligt checklista nr 2.  i denna TMALL 1002.  Avvikelser dokumenteras.",null,null,null,"Ur … 9kap 10§ AFS 2023:3  När en byggnad eller anläggning, eller delar av den, ska rivas, byggas om eller renoveras, ska hänsyn tas till risker med hälsofarligt material.\nInnan arbetet med rivning, ombyggnad eller renovering påbörjas ska det utredas om det finns hälsofarligt material i den del av byggnaden eller anläggningen som arbetet avser. Om det inte går att klarlägga på annat sätt, ska provtagning genomföras och proverna analyseras.\nNär det finns hälsofarligt material, ska den som ska utföra rivningsarbetet skriftligt informeras om resultatet av utredningen"]
[37,{"$f":"'6. Plan proj'!A37","v":"6.5.1.16"},{"$f":"'6. Plan proj'!B37:C37","v":"Säkerställs stabiliteten hos byggnad eller anläggning inför rivning, ombyggnad eller renovering?  1)  (b)\n"},0,null,"1) Jämför om man arbetar enligt det arbetssätt som redovisats vid uppstart/ i projektplan, se krav TDOK 2016:0032. D v s se den uppföljningen som ska genomförts vid uppstart enligt checklista nr 2.  i denna TMALL 1002.  Avvikelser dokumenteras.",null," (b) uppföljning i byggskedet vid ny- eller omprojektering, se enbart  frågor markerade (b)",null,"Ur … 9kap 11§ AFS 2023:3  Vid planering och projektering av rivning, ombyggnad eller \nrenovering ska det säkerställas att stabiliteten hos byggnaden eller anläggningen, eller delar av den, inte äventyras medan arbetet pågår."]
[38,{"$f":"'6. Plan proj'!A38","v":"6.5.1.17"},{"$f":"'6. Plan proj'!B38:C38","v":"Beaktas att tider för projektering, deletapper och byggnation blir så väl tilltagna att arbetena kan utföras i en sådan takt att ohälsa och olycksfall undviks?  (b)"},0,null,null,null," (b) uppföljning i byggskedet vid ny- eller omprojektering, se enbart  frågor markerade (b)",null,"Ur …6 kap 6 § AFS 2023:3  Projektörerna ska vid planeringen och projekteringen, i tillämpliga delar och så långt de har en faktisk möjlighet att påverka, se till att\n1. planering och projektering utförs i god tid innan arbetena ska utföras så att det är möjligt att samordna arbetena, och\n2. den totala byggtiden, och tiderna för deletapperna, är så väl tilltagna att arbetena kan utföras i en sådan takt att ohälsa och olycksfall undviks."]
[39,{"$f":"'6. Plan proj'!A39","v":0},{"$f":"'6. Plan proj'!B39:C39","v":0}," Beakta arbetsmiljön inför framtida drift och underhåll.                                "]
[40,{"$f":"'6. Plan proj'!A40","v":"6.5.2"},{"$f":"'6. Plan proj'!B40:C40","v":"Beaktar de som medverkar vid projektering arbetsmiljön inför framtida drift och underhåll?  1)    (b)"},0,null,"1) Jämför om man arbetar enligt det arbetssätt som redovisats vid uppstart/ i projektplan, se krav TDOK 2016:0032. D v s se den uppföljningen som ska genomförts vid uppstart enligt checklista nr 2.  i denna TMALL 1002.  Avvikelser dokumenteras.","Se AF, AUC.374, AFC/D.242"," (b) uppföljning i byggskedet vid ny- eller omprojektering, se enbart  frågor markerade (b)"]
[41,{"$f":"'6. Plan proj'!A41","v":"6.5.2.1"},{"$f":"'6. Plan proj'!B41:C41","v":"Planeras/ projekteras så att god arbetsmiljö blir möjlig för alla arbetstagare som kan förutses komma att arbeta i, eller i anslutning till,  den färdiga anläggningen? "},0,null,null,null,null,null,"Ur... 2 § Projekteringen ska genomföras så att det blir möjligt att skapa en god\narbetsmiljö för alla arbetstagare som kan förutses komma att arbeta i, eller i\nanslutning till, en färdig byggnad eller annan anläggning.\nAllmänna råd Exempel på sådana arbetstagare är både de som kommer att arbeta\nstadigvarande i en verksamhet som kommer att bedrivas och de som\nkommer att utföra tillfälliga arbeten som städning, varuleveranser,\nsophämtning, snöskottning och andra arbeten på tak samt annat arbete\nmed drift och underhåll."]
[42,{"$f":"'6. Plan proj'!A42","v":"6.5.2.2"},{"$f":"'6. Plan proj'!B42:C42","v":"Beaktas markåtkomst, utformning så att transporter av byggmaterial kan ske på ett säkert sätt inom, till och från arbetsområdet vid underhållsarbeten?"},0]
[43,{"$f":"'6. Plan proj'!A43","v":"6.5.2.3"},{"$f":"'6. Plan proj'!B43:C43","v":"Beaktas att tillräckligt utrymme finns för arbetets utförande samt trafik- och skyddsanordningar för passerande fordonstrafik vid underhållsarbeten?  (b)"},0,null,null,null," (b) uppföljning i byggskedet vid ny- eller omprojektering, se enbart  frågor markerade (b)"]
[44,{"$f":"'6. Plan proj'!A44","v":"6.5.2.4"},{"$f":"'6. Plan proj'!B44:C44","v":"Beaktar man vid projekteringen att arbetsplatser utformas på ett sådant sätt att de blir tillgängliga för så många som möjligt på lika villkor och undantag identifieras?  "},0,null,null,null,null,null,"Ur … Om arbetets art kräver en viss funktionsförmåga, undantas den delen av lokalen där funktionsförmågan är nödvändig från kravet i första stycket, vad gäller tillgänglighet för just denna funktionsförmåga."]
[46,{"$f":"'6. Plan proj'!A45","v":0},{"$f":"'6. Plan proj'!B45:C45","v":"Samordning och dokumentation\n                            "},0]
[47,{"$f":"'6. Plan proj'!A46","v":"6.6"},{"$f":"'6. Plan proj'!B46:C46","v":"Deltar leverantören i Bas-P:s samordning av projektering och följer anvisningar i frågor som har betydelse för arbetsmiljön under byggskede eller framtida drift, underhåll? 1)  (b)"},0,null,"1) Jämför om man arbetar enligt det arbetssätt som redovisats vid uppstart/ i projektplan, se krav TDOK 2016:0032. D v s se den uppföljningen som ska genomförts vid uppstart enligt checklista nr 2.  i denna TMALL 1002.  Avvikelser dokumenteras.","AF, AUC.374, AFC/D.242"," (b) uppföljning i byggskedet vid ny- eller omprojektering, se enbart  frågor markerade (b)","\nInformation från Bas-P? Kännedom om relevant innehåll Arbetsmiljöplan? ","Ur … 6kap 3§  AFS 2023:3  Projektörerna ska följa anvisningar från Bas-P i frågor som har betydelse för arbetsmiljön under bygg- eller bruksskedet, för att möjliggöra samordning av planeringen och projekteringen.\nUr ...3 kap 7§ Bas-P ska informera projektörerna om\n1. hur samarbete och samordning ska organiseras och genomföras,\nUr ...3 kap 4§ Bas-P ska ha rutiner för att bedriva samordning och arbetsmiljöarbete i byggprojektet. Rutinerna ska omfatta\n1. hur Bas-P arbetar enligt grundprinciperna i 8 kap. 2 §,\n2. hur och när arbetsmiljöfrågor om byggskedet hanteras under planeringen och projekteringen, och\n3. hur Bas-P kontrollerar och följer upp att projektörerna arbetar med att förebygga arbetsmiljörisker i byggskedet.\n11 kap 9 § Arbetsmiljoplanen ska beskriva hur man ska organisera och bedriva\narbetsmiljoarbetet. Arbetsmiljoplanen ska innehålla kontaktuppgifter till\npersoner i byggprojektet som har arbetsmiljouppgifter samt rutinerna for\nsamordning och arbetsmiljoarbete.\nSe 11 kap 12 § AFS 2023:3 Identifieras arbetsmoment som medför arbete med särskilda arbetsmiljörisker (se de 13) och åtgärder kommuniceras med Bas-P? \nArbeten med särskilda arbetsmiljörisker är:\n1. Arbete där det finns risk att falla till en lägre nivå, om nivåskillnaden är två meter eller mer.\n2. Arbete där det finns risk att begravas under jordmassor, eller sjunka ned i lös mark.\n3. Arbete med lansering, montering eller nedmontering av tunga byggelement, eller tunga formbyggnadselement.\n4. Arbete som utsätter någon för kemiska eller biologiska ämnen som medför särskild fara för hälsa och säkerhet, eller omfattas av krav på medicinsk kontroll.\n5. Rivning av bärande konstruktioner, eller hälsofarliga material eller ämnen.\n6. Arbete i närheten av högspänningsledningar.\n7. Arbete på en plats eller ett område där fordonstrafik passerar.\n8. Arbete där sprängämnen används.\n9. Arbete i brunnar och tunnlar samt anläggningsarbete under jord.\n10. Arbete där det finns risk att drunkna.\n11. Arbete som utförs under vatten med dykarutrustning.\n12. Arbete som utförs i en kassun under förhöjt lufttryck.\n13. Arbete i närheten av joniserande strålning och för vilket man, enligt Strålsäkerhetsmyndighetens föreskrifter, ska inrätta ett kontrollerat \nområde eller ett skyddat område.\""]
[48,{"$f":"'6. Plan proj'!A47","v":"6.6.1"},{"$f":"'6. Plan proj'!B47:C47","v":"Delger man  identifierade risker med tillhörande behandling/ åtgärdsbeskrivning, till Bas-P för samordning? 1)   (b)"},0,null,"1) Jämför om man arbetar enligt det arbetssätt som redovisats vid uppstart/ i projektplan, se krav TDOK 2016:0032. D v s se den uppföljningen som ska genomförts vid uppstart enligt checklista nr 2.  i denna TMALL 1002.  Avvikelser dokumenteras.","Se AF, AUC.374, AFC/D.242"," (b) uppföljning i byggskedet vid ny- eller omprojektering, se enbart  frågor markerade (b)"]
[49,{"$f":"'6. Plan proj'!A48","v":"6.6.2"},{"$f":"'6. Plan proj'!B48:C48","v":"Redovisas skriftliga underlag med möjliga lösningar eller förslag på åtgärder till Bas-P för allvarliga arbetsmiljörisker som inte projekterats bort?  (b)"},0,null,null,null," (b) uppföljning i byggskedet vid ny- eller omprojektering, se enbart  frågor markerade (b)",null,"Ur … 6kap 8§ AFS 2023:3  Projektörerna ska redovisa skriftliga underlag med möjliga lösningar eller förslag på åtgärder till Bas-P för de allvarliga arbetsmiljörisker som kommer att kvarstå i byggskedet. Komplexa lösningar och åtgärder till risker som inte är uppenbara för alla ska beskrivas särskilt noggrant.\n"]
[50,{"$f":"'6. Plan proj'!A49","v":"6.6.3"},{"$f":"'6. Plan proj'!B49:C49","v":"Identifieras arbetsmoment som medför arbete med särskilda arbetsmiljörisker (se de 13) och kommuniceras åtgärder med Bas-P?  (b)"},0,null,null,null," (b) uppföljning i byggskedet vid ny- eller omprojektering, se enbart  frågor markerade (b)","Samarbete med Bas-P? Kännedom och dialog om relevant innehåll Arbetsmiljöplan? ","Ur … 6kap 8§ AFS 2023:3  Projektörerna ska redovisa skriftliga underlag med möjliga lösningar eller förslag på åtgärder till Bas-P för de allvarliga arbetsmiljörisker som kommer att kvarstå i byggskedet.\nUr... 11 kap ..Arbeten med särskilda arbetsmiljörisker är:\n1. Arbete där det finns risk att falla till en lägre nivå, om nivåskillnaden är två meter eller mer.\n2. Arbete där det finns risk att begravas under jordmassor, eller sjunka ned i lös mark.\n3. Arbete med lansering, montering eller nedmontering av tunga byggelement, eller tunga formbyggnadselement.\n4. Arbete som utsätter någon för kemiska eller biologiska ämnen som medför särskild fara för hälsa och säkerhet, eller omfattas av krav på medicinsk kontroll.\n5. Rivning av bärande konstruktioner, eller hälsofarliga material eller ämnen.\n6. Arbete i närheten av högspänningsledningar.\n7. Arbete på en plats eller ett område där fordonstrafik passerar.\n8. Arbete där sprängämnen används.\n9. Arbete i brunnar och tunnlar samt anläggningsarbete under jord.\n10. Arbete där det finns risk att drunkna.\n11. Arbete som utförs under vatten med dykarutrustning.\n12. Arbete som utförs i en kassun under förhöjt lufttryck.\n13. Arbete i närheten av joniserande strålning och för vilket man, enligt Strålsäkerhetsmyndighetens föreskrifter, ska inrätta ett kontrollerat \nområde eller ett skyddat område.\""]
[51,{"$f":"'6. Plan proj'!A50","v":"6.6.4"},{"$f":"'6. Plan proj'!B50:C50","v":"Delger man löpande arbetsmiljösynpunkter som beaktas vid val av utformning eller teknisk lösning till Bas-P samt beställaren? 1)  (b)"},0,null,"1) Jämför om man arbetar enligt det arbetssätt som redovisats vid uppstart/ i projektplan, se krav TDOK 2016:0032. D v s se den uppföljningen som ska genomförts vid uppstart enligt checklista nr 2.  i denna TMALL 1002.  Avvikelser dokumenteras.","Se AF, AUC.374, AFC/D.242"," (b) uppföljning i byggskedet vid ny- eller omprojektering, se enbart  frågor markerade (b)","Kommuniceras lösningar som valts och valts bort av hänsyn till arbetsmiljön i byggskede eller framtida drift och underhåll\nSe kontraktskrav.","Ur ...6kap 5§ Projektörerna ska ha rutiner för att, från idé till färdig handling, förebygga arbetsmiljörisker som kan uppstå under byggskedet. Rutinerna ska omfatta\n1. hur projektörerna arbetar enligt grundprinciperna i 8 kap. 2 §,\n2. hur och när projektörerna tar hänsyn till arbetsmiljön under byggskedet när de tar fram ritningar, beskrivningar och beräkningar, och\n3. vilka hjälpmedel eller kontrollsystem som projektörerna använder för att förebygga arbetsmiljörisker\n8 kap 2§ (d) ta hänsyn till den tekniska utvecklingen, Allmänna råd ... Exempel på att ta hänsyn till den tekniska utvecklingen är att redan under planeringen och projekteringen synliggöra arbetsmiljörisker och hitta projekteringskollisioner med hjälp av olika typer av ritprogram, visualiseringar och andra intelligenta modeller eller program.\njfr 9kap 2§ AFS 2023:3 Om nya metoder, tekniker eller material övervägs i byggprojektet, ska det utredas om det finns allvarliga arbetsmiljörisker med att använda dem. Om sådana risker finns ska det bedömas om ett mer beprövat arbetssätt ska användas.\nNär oprövade metoder, tekniker eller material väljs ska det vid planeringen och projekteringen utredas vilka åtgärder som krävs. Åtgärderna ska vara beskrivna så att arbetet kan utföras på ett säkert sätt.\n(Jfr Bas-P: Ur...Överlämning 11 kap 15§... Identifierade risker och föreskrivna åtgärder ska förklaras, för att förebygga att ändringar görs som påverkar arbetsmiljön under bygg- eller bruksskedet på ett negativt sätt.\nAllmänna råd\nÖverlämningen bör ske i form av ett möte som dokumenteras. ...\n3. Lösningar som valts bort av hänsyn till arbetsmiljön i bygg- eller bruksskedet.)\nse kontrakt AF)"]
[52,{"$f":"'6. Plan proj'!A51","v":"6.6.5"},{"$f":"'6. Plan proj'!B51:C51","v":"Kontrolleras att lösningar fungerar med andra projektörers lösningar vid betydelse för arbetsmiljön och informeras Bas-P? 1)  (b)"},0,null,"1) Jämför om man arbetar enligt det arbetssätt som redovisats vid uppstart/ i projektplan, se krav TDOK 2016:0032. D v s se den uppföljningen som ska genomförts vid uppstart enligt checklista nr 2.  i denna TMALL 1002.  Avvikelser dokumenteras.","Se AF, AUC.374, AFC/D.242"," (b) uppföljning i byggskedet vid ny- eller omprojektering, se enbart  frågor markerade (b)","jämför 2.1.7 Uppdragsbeskrivning/UB  Framgår det t ex i att arbetssättet för samordning mellan ämnesområden i projekteringsbeskrivning, även beaktar samordning utifrån projekteringsansvaret för arbetsmiljö?  (Jfr Uppdragsbeskrivning, UB)","Ur ... 6 kap 4 § AFS\n Projektörerna ska, i samråd med Bas-P, se till att deras föreslagna lösningar är förenliga med andra projektörers lösningar om det har betydelse för arbetsmiljön under bygg- eller bruksskedet"]
[53,{"$f":"'6. Plan proj'!A52","v":"6.6.6"},{"$f":"'6. Plan proj'!B52:C52","v":"Redovisas projekteringsunderlag till Bas-P för sådan  projektering, eller omprojektering, som fortsätter efter byggstart?   (b)"},0,null,null,"Se AF, AUC.374, AFC/D.242"," (b) uppföljning i byggskedet vid ny- eller omprojektering, se enbart  frågor markerade (b)","Finns krav på Byggherre och samordning av Bas-P för projektering i byggskedet. ","Ur ... Om projekteringen fortsätter efter överlämning från Bas-P till Bas-U, ska byggherren se till att det är klargjort hur och när ytterligare projekteringsunderlag och arbetsmiljöinformation överlämnas till Bas-U\n3 kap 19§ Om projekteringen fortsätter efter att arbetsmiljöplanen har överlämnats till Bas-U, ska Bas-P fortsätta att samordna projekteringen med avseende på arbetsmiljöfrågor på samma sätt som tidigare.\nBas-P ska sammanställa och överlämna information om ny eller ändrad projektering till Bas-U, för att Bas-U ska kunna uppdatera arbetsmiljöplanen"]
[54,{"$f":"'6. Plan proj'!A53","v":"6.7"},{"$f":"'6. Plan proj'!B53:C53","v":"Redovisas geografiskt knutna arbetsmiljöaspekter i BIM-modeller, alternativt i annan dokumentation exempelvis ritningar? 1)\n(Jämför krav i Uppdragsbeskrivning/UB)"},0,null,"1) Jämför om man arbetar enligt det arbetssätt som redovisats vid uppstart/ i projektplan, se krav TDOK 2016:0032. D v s se den uppföljningen som ska genomförts vid uppstart enligt checklista nr 2.  i denna TMALL 1002.  Avvikelser dokumenteras.","Se krav Uppdragsbeskrivning/UB",null,null,"\nUr ...6kap 5§ Projektörerna ska ha rutiner för att, från idé till färdig handling, förebygga arbetsmiljörisker som kan uppstå under byggskedet. Rutinerna ska omfatta\n1. hur projektörerna arbetar enligt grundprinciperna i 8 kap. 2 §,\n2. hur och när projektörerna tar hänsyn till arbetsmiljön under bygg\u0002skedet när de tar fram ritningar, beskrivningar och beräkningar, och...\n8 kap 2§ (d) ta hänsyn till den tekniska utvecklingen, Allmänna råd ... Exempel på att ta hänsyn till den tekniska utvecklingen är att redan under planeringen och projekteringen synliggöra arbetsmiljörisker och hitta projekteringskollisioner med hjälp av olika typer av ritprogram, visualiseringar och andra intelligenta modeller eller program.\n"]
[55,{"$f":"'6. Plan proj'!A54","v":"6.8"},{"$f":"'6. Plan proj'!B54:C54","v":"Delger man Bas-P uppgifter löpande inför slutdokumentation med för arbetsmiljön relevant information inför framtida drift, underhåll, reparationer, ändringar och rivning? 1)  (b)"},0,null,"1) Jämför om man arbetar enligt det arbetssätt som redovisats vid uppstart/ i projektplan, se krav TDOK 2016:0032. D v s se den uppföljningen som ska genomförts vid uppstart enligt checklista nr 2.  i denna TMALL 1002.  Avvikelser dokumenteras.","Se AF, AUC.374, AFC/D.242"," (b) uppföljning i byggskedet vid ny- eller omprojektering, se enbart  frågor markerade (b)","Se bestämmelser för Bas-P. Se aktuella kontraktskrav AF","Ur…10 kap 5§ En arbetsmiljödokumentation som kan behövas vid framtida arbeten med en byggnad eller annan anläggning ska upprättas och anpassas löpande. Den ska vara färdigställd när byggnads- och anläggningsarbetena avslutats.\nArbetsmiljödokumentationen ska beskriva\n1. objektets konstruktion,\n2. objektets utformning, och\n3. vilka material och byggprodukter som har använts. \nAllmänna råd Arbetsmiljödokumentationen kan bestå av valda delar av\nde relationshandlingar som normalt görs vid byggnadsoch\nanläggningsarbeten, kompletterade med lämplig\narbetsmiljöinformation."]
[56,{"$f":"'6. Plan proj'!A55","v":"(6.9)"},{"$f":"'6. Plan proj'!B55:C55","v":"Om fältundersökningar och platsbesök ingår i uppdraget - Se checklista 9. för arbetsgivare verksamma på byggarbetsplats … (b)"},0,null,null," TDOK 2016:0032"]
[null,{"$f":"'6. Plan proj'!A56","v":0},{"$f":"'6. Plan proj'!B56:C56","v":0},0]

{"sheet":"Hjälp 3.,7. & 8. Bas-U","index":13,"n_rows":117,"n_cols":13,"rows_kept":117,"cut":false,"hidden":false,"merged":[[1,1,2,3],[1,5,7,8],[3,1,3,2],[8,10,8,12]]}
[]
[null,"Bas-U",null,null,null,"Intern styrning\nRutin TDOK 2018:0151  Byggherrens arbetsmiljöansvar vid byggnads- och anläggningsarbeten \n\nTMALL 1002, checklista\n- Huvudfrågor, baseras på grundläggande skyldighet eller övergripande arbetsuppgift enligt arbetsmiljölagstiftningen. \n   Se markerade frågor med färg- och fetstil, samt numreringshierarki.\n- Delfrågor, Relevanta delfrågor ställs för att följa upp detaljerade bestämmelser och/ eller kontraktskrav med avseende på överliggande fråga, se numreringshierarki. Huvudfråga eller annan enskild frågor kan ha delfrågor. Delfrågorna är även en vägledning till vad huvudfrågorna innefattar. "]
[]
[null,"Hjälp, Råd och stöd \nFÖRBÄTTRINGSARBETE! \n(Uppgifter kompletteras efterhand. Se motsvarande \"Hjälp\" i BUS-systemet. Material kommer sedan läggas där under \"?\", i PDF-format.)\n\n"]
[]
[]
[]
[]
[null,null,null,null,null,"           Hjälp (Råd och stöd)",null,null,null,null,"Bedömningsstöd/ Vägledning"]
[null,"LÄNK,\nTillbaka till checklistan:","Rubrik/ Fråga",null,"Notisfält\nEgen anteckning","Arbetssätt / Rutin\nSe och jämför med redovisat arbetssätt, för HUR uppgiften avses  genomföras på ett systematiskt sätt.","Kontraktskrav\nKontrollera alltid mot kontraktsunika krav. Kravtext  enligt inköpsmallar Administrativa föreskrifter (AF) samt Uppdragsbeskrivningen (UB) , Se AF-koder, där krav ska/ bör finnas.","Teckenförklaring","Förtydligande och stöd","Ur Arbetsmiljölagen (AML) eller AFS \nHänvisade bestämmelser eller utdrag ur dessa\nObservera, inte fullständiga texter! Se av.se","Ja, Accepterad\n[x]","Nej, Mindre anmärkning\n[x] ","Nej,  Avvikelse\n[x]"]
[null,{"$f":"'3. Start Bas-U'!A11","v":0},{"$f":"'3. Start Bas-U'!B11:C11","v":"Uppdraget och Bas-U:s kvalifikationer                                        "},0]
[null,{"$f":"'3. Start Bas-U'!A12","v":"3.1"},{"$f":"'3. Start Bas-U'!B12:C12","v":"Har Bas-U visat uppgifter på att man har den utbildning, kompetens och erfarenhet som behövs för det aktuella projektet? "},0,null,null,"AFC/D.1833/ AUC.3742 "]
[null,{"$f":"'3. Start Bas-U'!A13","v":"3.1.1"},{"$f":"'3. Start Bas-U'!B13:C13","v":"Motsvarar Bas-U:s utbildning, kompetens och erfarenhet projektets storlek, komplexitet och risknivå? \n"},0,null,null,"AFC/D.1833/ AUC.3742",null,null,"Ur… ...\n2§ ...Omfattningen av Bas-U:s arbetsmiljöarbete ska motsvara byggprojektets storlek, komplexitet och risknivå.\n ...3 § Bas-U får bara använda handläggare för samordningsarbetet som Bas-U\nförfogar över och som har kvalifikationer enligt 2 kap. 9 § andra stycket.\n2 Kap 9§ AFS 2023:3 ...En lämplig person eller handläggare för uppdraget är den som har den utbildning, kompetens och erfarenhet som behövs för arbetsmiljöarbetet med hänsyn till byggprojektets storlek, komplexitet och risknivå.\nNär byggherren utser Bas-P och Bas-U ska byggherren välja de som kan avsätta tillräckligt med tid och personal för arbetsmiljöuppgifterna i byggprojektet."]
[null,{"$f":"'3. Start Bas-U'!A14","v":"3.1.2"},{"$f":"'3. Start Bas-U'!B14:C14","v":"Har juridisk Bas-U avsatt/tillgång till tillräckligt med tid och personal för arbetsmiljöuppgifterna i byggprojektet?"},0]
[null,{"$f":"'3. Start Bas-U'!A15","v":"3.1.3"},{"$f":"'3. Start Bas-U'!B15:C15","v":"Finns referenser för handläggare Bas-U från tidigare uppdrag?"},0,null,null,"AFC/D.1833/ AUC.3742"]
[null,{"$f":"'3. Start Bas-U'!A16","v":"3.1.4"},{"$f":"'3. Start Bas-U'!B16:C16","v":" Finns dokumenterad fördelning av uppgifterna samt kvalifikationer om flera personer  (handläggarresurser) genomför Bas-U:s uppgifter? "},0,null,null,"AFC/D.1833/ AUC.3742",null,null,"kap 2 § 9,11  BH ska styrka kompetens hos Bas-P/U\nkap 4 § 3 Bas-Us handläggare\nkap 4 § 4 hur när och med vilka Bas-U hanterar arbetsmiljöfrågor \nkap 4 § 19  kontaktpersoner när Bas-U ej är på plats"]
[null,{"$f":"'3. Start Bas-U'!A17","v":"3.2"},{"$f":"'3. Start Bas-U'!B17:C17","v":"Har Bas-U mottagit uppgifter från Bas-P innan byggstart via ett dokumenterat överlämningsmöte? "},0,null,null,"AFC/D.1833/ AUC.3742",null,null,"kap 2 § 23 BH ska se till att överlämning sker\nKap 11 §15 handlar om överlämning specifikt, nämn inte precis byggstart"]
[null,{"$f":"'3. Start Bas-U'!A18","v":"3.3"},{"$f":"'3. Start Bas-U'!B18:C18","v":"Har Bas-U de förutsättningar som behövs för att  för att kunna utföra sina arbetsmiljöuppgifter? "},0,null,null,null,null,null,"Ur...2 kap 18§ Byggherren ska fortlöpande följa upp arbetsmiljöarbetet genom att \n1. se till att Bas-P och Bas-U har de förutsättningar som behövs för att kunna utföra sina arbetsmiljöuppgifter, och\n2. kontrollera att Bas-P och Bas-U utför sina arbetsmiljöuppgifter.\nOm det visar sig att det finns brister i arbetsmiljöarbetet, ska byggherren se till att åtgärder vidtas för att åstadkomma en säker arbetsmiljö."]
[null,{"$f":"'3. Start Bas-U'!A19","v":"3.4"},{"$f":"'3. Start Bas-U'!B19:C19","v":"Har man i upprättat kontrollprogram/ kontrollplaner beaktat skyldigheter, kontraktskrav och arbetssätt med avseende på Bas-U:s arbetsuppgifter? "},0,null,null,"\"Kvalitetsstyrning i upphandlad verksamhet - Entreprenad och Projekteringstjänster\" TDOK 2016:0032. ",null,null,"§ 18 handlar om att kontrollera och följa upp\n"]
[null,{"$f":"'3. Start Bas-U'!A20","v":0},{"$f":"'3. Start Bas-U'!B20:C20","v":"Samordning i tid och rum med syfte att minska arbetsmiljörisker \n                            "},0]
[null,{"$f":"'3. Start Bas-U'!A21","v":"3.5"},{"$f":"'3. Start Bas-U'!B21:C21","v":"Finns det arbetssätt för hur Bas-U samordnar arbets-, tidsplanering och riskhantering från alla verksamma på byggarbetsplatsen? "},0,null," Arbetssätt ska redovisas vid uppstart/ i projektplan, enligt \"Kvalitetsstyrning i upphandlad verksamhet - Entreprenad och Projekteringstjänster\" TDOK 2016:0032. Se även övergripande granskning projektplan enligt TMALL 1004 ",null,null,"Rutin?"]
[null,{"$f":"'3. Start Bas-U'!A22","v":"3.5.1"},{"$f":"'3. Start Bas-U'!B22:C22","v":"Finns det arbetsätt  i rutin för hur Bas-U arbetar  enligt grundprinciperna för att förebygga arbetsmiljörisker? "},0,null," Arbetssätt ska redovisas vid uppstart/ i projektplan, enligt \"Kvalitetsstyrning i upphandlad verksamhet - Entreprenad och Projekteringstjänster\" TDOK 2016:0032. Se även övergripande granskning projektplan enligt TMALL 1004 ",null,null,"Rutin?","Ur ...För att förebygga arbetsmiljörisker som kan uppstå under bygg- och bruksskedet ska de ansvariga arbeta enligt grundprinciper angivna i andra stycket punkterna 1–3 vid planeringen, projekteringen och byggskedet. I första hand ska lösningar som tar bort arbetsmiljöriskerna väljas.\n\nGrundprinciperna för att förebygga arbetsmiljörisker är följande:\n1. Identifiera och undvika risker.\n2. Bedöma risker som inte kan undvikas.\n3. Hantera risker genom att\na) åtgärda riskerna vid källan,\nb) ersätta farliga ämnen med ämnen som är ofarliga, eller mindre farliga, så långt det är möjligt,\nc) prioritera gemensamma skyddsåtgärder framför individuella,\nd) ta hänsyn till den tekniska utvecklingen,\ne) ta hänsyn till människors olika förutsättningar, och\nf) ge klara och tillräckliga instruktioner som alla berörda \nkan förstå."]
[null,{"$f":"'3. Start Bas-U'!A23","v":"3.5.2"},{"$f":"'3. Start Bas-U'!B23:C23","v":"Finns det arbetsätt för hur Bas-U deltar och styr vid produktionsplaneringen, planeringen av arbetsmoment så att gemensamma arbetsmiljösynpunkter beaktas? "},0,null," Arbetssätt ska redovisas vid uppstart/ i projektplan, enligt \"Kvalitetsstyrning i upphandlad verksamhet - Entreprenad och Projekteringstjänster\" TDOK 2016:0032. Se även övergripande granskning projektplan enligt TMALL 1004 ",null,null,null,"Ur ...4 kap 5 § AFS 2023:3  Bas U ska delta i byggskedets planering av arbetet och styra den så att gemensamma arbetsmiljösynpunkter beaktas\n1. när de olika arbetena samplaneras, och\n2. när tidsplaneringen görs.\nBas U ska ta särskild hänsyn till tidsåtgången för arbetsmoment som ska utföras samtidigt eller efter varandra.\nArbetet ska planeras så att olika arbetsmoment inte utförs samtidigt på samma plats och på ett sådant sätt att det uppstår risk för ohälsa eller olycksfall.\nAllmänna råd\nDen planering som tillhör byggskedet omfattar\n1. en första produktionsplanering,\n2. den rullande planeringen där planerna anpassas till produktionens verkliga förlopp,\n3. planering när störningar inträffar, och\n4. planering på mer detaljerad nivå i form av arbetsberedningar.\nTidsplaneringen är särskilt viktig i slutet av byggprojektet, eftersom flera olika entreprenörer ofta behöver ha tillgång till samma utrymme för att färdigställa byggnaden eller anläggningen."]
[null,{"$f":"'3. Start Bas-U'!A24","v":"3.5.3"},{"$f":"'3. Start Bas-U'!B24:C24","v":"Finns det arbetsätt för hur Bas-U ger entreprenörerna klartecken innan de påbörjat sitt arbete ?"},0,null," Arbetssätt ska redovisas vid uppstart/ i projektplan, enligt \"Kvalitetsstyrning i upphandlad verksamhet - Entreprenad och Projekteringstjänster\" TDOK 2016:0032. Se även övergripande granskning projektplan enligt TMALL 1004 ",null,null,null,"Ur … 4 kap 12§  AFS 2023:3 Bas-U ska ge klartecken till entreprenörerna innan de får påbörja sitt arbete i byggprojektet för första gången.\n\n12§ Innan Bas-U kan ge klartecken för start av arbetet, ska entreprenören ha lämnat in uppgifter om\n1. arbeten med särskild risk vars åtgärder ska beskrivas i \narbetsmiljöplanen enligt 11 kap. 12 §,\n2. arbetsmiljörisker som det egna arbetet kan orsaka för övriga som arbetar på byggarbetsplatsen, och\n3. egna arbetsmiljörisker som kan åtgärdas genom samordning.\n\nBas-U ska även se till att arbetsmiljöriskerna är hanterade eller att det finns planerade åtgärder innan entreprenören får påbörja sitt arbete."]
[null,{"$f":"'3. Start Bas-U'!A25","v":"3.6"},{"$f":"'3. Start Bas-U'!B25:C25","v":"Finns det arbetssätt för hur av entreprenörens tillkommande/ förändrade projektering samordnas ur ett säkerhetsperspektiv? \n(Beaktas för bygg, drift, underhåll, i samarbete med konstruktör, Bas-P. Jfr även tillfälliga konstruktioner)"},0,null," Arbetssätt ska redovisas vid uppstart/ i projektplan, enligt \"Kvalitetsstyrning i upphandlad verksamhet - Entreprenad och Projekteringstjänster\" TDOK 2016:0032. Se även övergripande granskning projektplan enligt TMALL 1004 ",null,null," se krav på Byggherre o Bas-P. ","2 kap. 24 § beskriver fortsattt projektering och överlämning till Bas-U\n3 kap. 19 § beskriver fortsatt projektering och överlämning Bas-P till Bas-U\n4 kap. 24 § informera BH om något avviker från \"givna förutsättningar\" \n29 § beskriver krav på uppdatering \nkap 8 § 2 beskriver grundprinciperna för BH, Bas-P, Bas-U och projektörer\nkap 4 § 4 beskriver rutiner och samordning\n"]
[null,{"$f":"'3. Start Bas-U'!A26","v":0},{"$f":"'3. Start Bas-U'!B26:C26","v":"Samordning av tillämpningen av relevanta arbetsmiljöregler.                                              "},0]
[null,{"$f":"'3. Start Bas-U'!A27","v":"3.7"},{"$f":"'3. Start Bas-U'!B27:C27","v":"Finns det arbetssätt för hur samordning ska ske av tillämpningen av relevanta arbetsmiljöregler?  "},0,null," Arbetssätt ska redovisas vid uppstart/ i projektplan, enligt \"Kvalitetsstyrning i upphandlad verksamhet - Entreprenad och Projekteringstjänster\" TDOK 2016:0032. Se även övergripande granskning projektplan enligt TMALL 1004 "]
[null,{"$f":"'3. Start Bas-U'!A28","v":0},{"$f":"'3. Start Bas-U'!B28:C28","v":"Dokumentation. Arbetsmiljöplan                    "},0]
[null,{"$f":"'3. Start Bas-U'!A29","v":"3.8"},{"$f":"'3. Start Bas-U'!B29:C29","v":"Finns det arbetssätt för hur Bas-U håller arbetsmiljöplanen aktuell, tillgänglig och kommunicerad till alla verksamma på byggarbetsplatsen? "},0,null," Arbetssätt ska redovisas vid uppstart/ i projektplan, enligt \"Kvalitetsstyrning i upphandlad verksamhet - Entreprenad och Projekteringstjänster\" TDOK 2016:0032. Se även övergripande granskning projektplan enligt TMALL 1004 ",null,null,null,"§ 27 AMP ska va tillgänglig\n§ 29 ska va uppdaterad\nkap 11 § 5 beskriver detta ytterligare"]
[null,{"$f":"'3. Start Bas-U'!A30","v":"3.8.1"},{"$f":"'3. Start Bas-U'!B30:C30","v":"Har Bas-U redovisat en första version av den anpassade arbetsmiljöplanen före de praktiska arbetena påbörjas?"},0,null,null,"AFC/D.1831\nTMALL 0255",null,"Fördjupad uppföljning och kvalitetsgranskning av leverans se  TMALL 0009 Granskning Arbetsmiljöplan\n( vad \"praktiska arbeten\" innebär…)","§ 12 beskriver vad Bas-U behöver inför byggstart\nstår dock inte specifikt AMP\nkap 11 § 5 beskriver när AMP skall finnas"]
[null,{"$f":"'3. Start Bas-U'!A31","v":"3.8.2"},{"$f":"'3. Start Bas-U'!B31:C31","v":"Finns det arbetssätt för hur arbetsmiljörelaterad arbetsplatsintroduktion för nya medarbetare på byggarbetsplatsen ska genomföras?"},0,null," Arbetssätt ska redovisas vid uppstart/ i projektplan, enligt \"Kvalitetsstyrning i upphandlad verksamhet - Entreprenad och Projekteringstjänster\" TDOK 2016:0032. Se även övergripande granskning projektplan enligt TMALL 1004 ",null,null,null,"§ 15 beskriver introduktion"]
[null,{"$f":"'3. Start Bas-U'!A32","v":0},{"$f":"'3. Start Bas-U'!B32:C32","v":"Följa upp arbetsmiljöarbetet"},0]
[null,{"$f":"'3. Start Bas-U'!A33","v":"3.9"},{"$f":"'3. Start Bas-U'!B33:C33","v":"Finns det arbetssätt för hur Bas-U samordnar kontrollerna av att arbetet utförs på ett korrekt sätt och att arbetsmiljöplanen följs?"},0,null," Arbetssätt ska redovisas vid uppstart/ i projektplan, enligt \"Kvalitetsstyrning i upphandlad verksamhet - Entreprenad och Projekteringstjänster\" TDOK 2016:0032. Se även övergripande granskning projektplan enligt TMALL 1004 ",null,null," T.ex. ronder, daglig syn o.s.v.\n(Gemensamma skyddsronder, uppgifter arbetsplanering ex  arbetsberedningar, kontroll efterlevnad AMP och riskbehandlande åtgärder..)","§20 beskriver kontroller"]
[null,{"$f":"'3. Start Bas-U'!A34","v":"3.10"},{"$f":"'3. Start Bas-U'!B34:C34","v":"Är det klargjort vilka åtgärder man vidtar då någon verksam på arbetsplatsen inte följer \nBas-U samordning och arbetsmiljöplan?"},0,null,null,"TMALL 0255",null,null,"§ 23 Information till BH"]
[null,{"$f":"'3. Start Bas-U'!A35","v":0},{"$f":"'3. Start Bas-U'!B35:C35","v":"Dokumentation, Arbetsmiljödokumentation inför framtida drift och underhåll.                            "},0]
[null,{"$f":"'3. Start Bas-U'!A36","v":"3.11"},{"$f":"'3. Start Bas-U'!B36:C36","v":"Finns det arbetssätt för hur Bas-U arbetar med att genomföra anpassningar i arbetsmiljödokumentationen inför framtida drift och underhåll? "},0,null," Arbetssätt ska redovisas vid uppstart/ i projektplan, enligt \"Kvalitetsstyrning i upphandlad verksamhet - Entreprenad och Projekteringstjänster\" TDOK 2016:0032. Se även övergripande granskning projektplan enligt TMALL 1004 ",null,null,null,"Kap 4 § 30 beskriver Bas-Us dokumentation\nKap 10 beskriver dokumentation till bruksskede"]
[null,{"$f":"'3. Start Bas-U'!A37","v":0},{"$f":"'3. Start Bas-U'!B37:C37","v":0},0]
[null,{"$f":"'7. Bas-U'!A11","v":0},{"$f":"'7. Bas-U'!B11:C11","v":"Uppdraget och Bas-U:s kvalifikationer                                         "},0]
[null,{"$f":"'7. Bas-U'!A12","v":"7.1"},{"$f":"'7. Bas-U'!B12:C12","v":"Har handläggare Bas-U visat uppgifter på att man har den utbildning, kompetens och erfarenhet som behövs för det aktuella projektet? (BM) "},0,null,null,"AFC/D.1833/ AUC.3742"," (BM) : Uppföljning på kontraktsmöten. För uppföljning Bas-U kan frågor i checklista markerade med (BM) hanteras regelbundet genom ”Rapport inför bygg- och projekteringsmöte” TMALL 0908, se \"Stöd till dagordning för bygg- och projekteringsmöte\" TDOK 2019:0090. ","Kontrollera utbildning, kompetens och erfarenhet särskilt vid ny eller förändrad organisation som utför Bas-P uppgifter.","Ur ...3 § Bas-U får bara använda handläggare för samordningsarbetet som Bas-U\nförfogar över och som har kvalifikationer enligt 2 kap. 9 § andra stycket.\n2 Kap 9§ AFS 2023:3 ...En lämplig person eller handläggare för uppdraget är den som har den utbildning, kompetens och erfarenhet som behövs för arbetsmiljöarbetet med hänsyn till byggprojektets storlek, komplexitet och risknivå.\nNär byggherren utser Bas-P och Bas-U ska byggherren välja de som kan avsätta tillräckligt med tid och personal för arbetsmiljöuppgifterna i byggprojektet."]
[null,{"$f":"'7. Bas-U'!A13","v":"7.1.1"},{"$f":"'7. Bas-U'!B13:C13","v":"Motsvarar handläggare Bas-Us utbildning, kompetens och erfarenhet projektets storlek, komplexitet och risknivå? (b)\n"},0,null,null,"AFC/D.1833/ AUC.3742",null,null,"Ur… ...AFS 2023:3 \n4 kap 2§ ...Omfattningen av Bas-U:s arbetsmiljöarbete ska motsvara byggprojektets storlek, komplexitet och risknivå.\n ..4 kap.3 § Bas-U får bara använda handläggare för samordningsarbetet som Bas-U\nförfogar över och som har kvalifikationer enligt 2 kap. 9 § andra stycket.\n2 Kap 9§ AFS 2023:3 ...En lämplig person eller handläggare för uppdraget är den som har den utbildning, kompetens och erfarenhet som behövs för arbetsmiljöarbetet med hänsyn till byggprojektets storlek, komplexitet och risknivå.\nNär byggherren utser Bas-P och Bas-U ska byggherren välja de som kan avsätta tillräckligt med tid och personal för arbetsmiljöuppgifterna i byggprojektet."]
[null,{"$f":"'7. Bas-U'!A14","v":"7.1.2"},{"$f":"'7. Bas-U'!B14:C14","v":"Har juridisk Bas-U avsatt/tillgång till tillräckligt med tid och personal för arbetsmiljöuppgifterna i byggprojektet?"},0]
[null,{"$f":"'7. Bas-U'!A15","v":"7.1.3"},{"$f":"'7. Bas-U'!B15:C15","v":" Finns dokumenterad fördelning av uppgifterna samt kvalifikationer om flera personer   (handläggarresurser)  genomför Bas-U:s uppgifter? "},0,null,null," AFC/D.1833/ AUC.3742",null,null,"kap 2 § 9  beskriver att BH utser en el flera kontaktpersoner 11§ styrker kompetens \n§ 14 tydliggöra ansvarsområden\nkap 4 § 3 skriver Bas-U får bara använda handläggare som de förfogar över\nkap 4 § 19 beskriver kontaktvägar"]
[null,{"$f":"'7. Bas-U'!A16","v":"7.1.4"},{"$f":"'7. Bas-U'!B16:C16","v":"Sker dokumenterad överlämning vid byte av handläggare Bas-U?"},0,null,null,"AFC/D.1833/ AUC.3742. ",null,null,"2 kap. 3 § BH ska se till att bestämmelserna om bla överlämning uppfylls\n11 kap. 15 § Överlämning generellt "]
[null,{"$f":"'7. Bas-U'!A17","v":"7.2"},{"$f":"'7. Bas-U'!B17:C17","v":"Har Bas-U de förutsättningar som behövs för att  för att kunna utföra sina arbetsmiljöuppgifter? "},0,null,null,null,null,null,"Ur...2 kap 18§ Byggherren ska fortlöpande följa upp arbetsmiljöarbetet genom att \n1. se till att Bas-P och Bas-U har de förutsättningar som behövs för att kunna utföra sina arbetsmiljöuppgifter, och\n2. kontrollera att Bas-P och Bas-U utför sina arbetsmiljöuppgifter.\nOm det visar sig att det finns brister i arbetsmiljöarbetet, ska byggherren se till att åtgärder vidtas för att åstadkomma en säker arbetsmiljö.\n4 kap. 23 § Information till BH"]
[null,{"$f":"'7. Bas-U'!A18","v":"7.3"},{"$f":"'7. Bas-U'!B18:C18","v":"Är Bas-U på plats när verksamhet pågår?"},0,null,null," AFC/D.1833/ AUC.3742",null,null,"Ur  .. 4 kap 19 § Bas-U ska se till att det finns uppgifter om vem man kan vända sig till i\narbetsmiljöfrågor när det inte finns någon handläggare för Bas-U på plats på\nbyggarbetsplatsen. Det ska finnas uppgift om\n1. en kontaktperson eller, om det behövs, flera kontaktpersoner, och\n2. hur man får tag på någon av dem vid alla tidpunkter när arbete pågår.\nAllmänna råd\nNormalt bör handläggaren för Bas-U vara på plats när verksamhet\npågår. Hur stor del av tiden som handläggaren kan vara frånvarande\nfrån byggarbetsplatsen, och en annan person förmedlar kontakt med\nBas-U, avgörs av projektets storlek, komplexitet och risknivå samt\nbehovet av samordning för tillfället."]
[null,{"$f":"'7. Bas-U'!A19","v":"7.4"},{"$f":"'7. Bas-U'!B19:C19","v":"Finns uppdaterat kontrollprogram/ kontrollplan med uppgifter och verifikat på genomförd egenkontroll med avseende på Bas-U:s arbetsuppgifter? 1)"},0,null,"1) Jämför om man arbetar enligt det arbetssätt som redovisats vid uppstart/ i projektplan, se krav TDOK 2016:0032. D v s se den uppföljningen som ska genomförts vid uppstart enligt checklista nr 3. i denna TMALL 1002.  Avvikelser dokumenteras.","AFD 332?\nTDOK 2016:0032",null,null,"TDOK 2016:0032\nHandlar om BHs rutiner\n§ 18 handlar om att kontrollera och följa upp\nOBS. Kontrollplanering nmns ej specifikt"]
[20,{"$f":"'7. Bas-U'!A20","v":0},{"$f":"'7. Bas-U'!B20:C20","v":"Samordning i tid och rum med syfte att minska arbetsmiljörisker \n                            "},0]
[null,{"$f":"'7. Bas-U'!A21","v":"7.5"},{"$f":"'7. Bas-U'!B21:C21","v":"Samordnar Bas-U arbets-, tidsplanering och riskhantering från alla verksamma på byggarbetsplatsen? 1) "},0,null,"1) Jämför om man arbetar enligt det arbetssätt som redovisats vid uppstart/ i projektplan, se krav TDOK 2016:0032. D v s se den uppföljningen som ska genomförts vid uppstart enligt checklista nr 3. i denna TMALL 1002.  Avvikelser dokumenteras.","AFC/D AUC 374 TDOK 2016:0032",null,"Se arbetsplanering med riskhantering, ex riskbehandling av gemensamma skyddsåtgärder som allmän skyddsanordning eller annan se även bl a \n* Arbetsberedningar\n* SoS-planer\n* TA"]
[null,{"$f":"'7. Bas-U'!A22","v":"7.5.1"},{"$f":"'7. Bas-U'!B22:C22","v":"Arbetar Bas-U enligt  framtagen rutin och följer grundprinciperna för att förebygga arbetsmiljörisker? 1)\n"},0,null,"1) Jämför om man arbetar enligt det arbetssätt som redovisats vid uppstart/ i projektplan, se krav TDOK 2016:0032. D v s se den uppföljningen som ska genomförts vid uppstart enligt checklista nr 3. i denna TMALL 1002.  Avvikelser dokumenteras.",null,null,null,"Ur ..8 kap 2 § AFS 2023:3 . För att förebygga arbetsmiljörisker som kan uppstå under bygg- och bruksskedet ska de ansvariga arbeta enligt grundprinciper angivna i andra stycket punkterna 1–3 vid planeringen, projekteringen och byggskedet. I första hand ska lösningar som tar bort arbetsmiljöriskerna väljas.\n\nGrundprinciperna för att förebygga arbetsmiljörisker är följande:\n1. Identifiera och undvika risker.\n2. Bedöma risker som inte kan undvikas.\n3. Hantera risker genom att\na) åtgärda riskerna vid källan,\nb) ersätta farliga ämnen med ämnen som är ofarliga, eller mindre farliga, så långt det är möjligt,\nc) prioritera gemensamma skyddsåtgärder framför individuella,\nd) ta hänsyn till den tekniska utvecklingen,\ne) ta hänsyn till människors olika förutsättningar, och\nf) ge klara och tillräckliga instruktioner som alla berörda \nkan förstå"]
[null,{"$f":"'7. Bas-U'!A23","v":"7.5.2"},{"$f":"'7. Bas-U'!B23:C23","v":"Har det identifierats allvarliga arbetsmiljörisker som inte kan åtgärdas med givna förutsättningar?"},0,null,null,null,null,null,"Ur …4 kap 24 § AFS 2023:3  Bas U ska meddela byggherren om det finns allvarliga risker för ohälsa eller olycksfall i byggskedet, som Bas U inte själv kan se till att åtgärda med givna förutsättningar.\nAllmänna råd\nExempel på tillfällen när Bas U kan behöva meddela byggherren är vid arbeten med särskild risk enligt 11 kap. 13 §, men det kan även vara vid andra risker, som ergonomiska eller organisatoriska och sociala arbetsmiljörisker.\nGivna förutsättningar kan till exempel ha med Bas U:s resurser och befogenheter att göra, beslut som fattats i planerings- och projekteringsskedet eller risker kopplade till den omgivande miljön. Förutsättningarna kan ha varit desamma från byggstart eller förändrats under byggprojektet."]
[null,{"$f":"'7. Bas-U'!A24","v":"7.5.3"},{"$f":"'7. Bas-U'!B24:C24","v":"Har Bas-U organiserat samarbetet mellan entreprenörerna så att man tar hänsyn till varandra när arbetsmetoder och arbetsutrustning väljs?"},0,null,null,null,null,null,"Ur… 4 kap 7§ AFS 2023:3  Bas-U ska organisera samarbetet mellan entreprenörerna och organisera samordningen av deras verksamheter.\nBas-U ska se till att entreprenörerna tar hänsyn till varandra när arbetsmetoder och arbetsutrustning väljs, så att de inte utsätter varandra för arbetsmiljörisker."]
[null,{"$f":"'7. Bas-U'!A25","v":"7.5.4"},{"$f":"'7. Bas-U'!B25:C25","v":"Deltar och styr Bas-U planeringen av arbetsmoment så att gemensamma arbetsmiljösynpunkter beaktas vid produktionsplaneringen? 1)"},0,null,"1) Jämför om man arbetar enligt det arbetssätt som redovisats vid uppstart/ i projektplan, se krav TDOK 2016:0032. D v s se den uppföljningen som ska genomförts vid uppstart enligt checklista nr 3. i denna TMALL 1002.  Avvikelser dokumenteras.",null,null,null,"Ur ...4 kap 5 § AFS 2023:3  Bas U ska delta i byggskedets planering av arbetet och styra den så att gemensamma arbetsmiljösynpunkter beaktas\n1. när de olika arbetena samplaneras, och\n2. när tidsplaneringen görs.\nBas U ska ta särskild hänsyn till tidsåtgången för arbetsmoment som ska utföras samtidigt eller efter varandra.\nArbetet ska planeras så att olika arbetsmoment inte utförs samtidigt på samma plats och på ett sådant sätt att det uppstår risk för ohälsa eller olycksfall.\nAllmänna råd\nDen planering som tillhör byggskedet omfattar\n1. en första produktionsplanering,\n2. den rullande planeringen där planerna anpassas till produktionens verkliga förlopp,\n3. planering när störningar inträffar, och\n4. planering på mer detaljerad nivå i form av arbetsberedningar.\nTidsplaneringen är särskilt viktig i slutet av byggprojektet, eftersom flera olika entreprenörer ofta behöver ha tillgång till samma utrymme för att färdigställa byggnaden eller anläggningen."]
[null,{"$f":"'7. Bas-U'!A26","v":"7.5.5"},{"$f":"'7. Bas-U'!B26:C26","v":"Bevakar Bas-U tilldelningen av tid för olika arbeten och arbetsmoment för att förebygga ohälsa och olycksfall?"},0,null,null,null,null,null,"Ur … 4 kap 6§ AFS 2023:3 För att förebygga ohälsa och olycksfall ska Bas-U, under byggprojektets gång, se till att tilldelningen av tid för olika arbeten och arbetsmoment justeras utifrån hur arbetet går."]
[null,{"$f":"'7. Bas-U'!A27","v":"7.5.6"},{"$f":"'7. Bas-U'!B27:C27","v":"Delges byggherren dokumentation från Bas-U:s byggarbetsmiljösamordningsmöten? "},0,null,null,"AFC/D 338",null,"Samordning av arbetsmiljöarbetet med aktörer verksamma i arbetsområdet och enl överenskommelser. Vilka ska framgå i kontrakt och Arbetsmiljöplan….\n","Ur… Kontroller\n20 § Bas-U ska se till att kontroll utförs av att entreprenörerna arbetar\nsäkert genom att följa arbetsmiljöbestämmelserna som gäller för deras\nolika arbeten, att de följer arbetsmiljöplanen och att de har hanterat\narbetsmiljörisker som de har lämnat uppgift om inför starten av arbetet.\nKontrollerna ska även omfatta andra som bedriver verksamhet i byggprojektet.\nBas-U ska ge entreprenörernas skyddsombud möjlighet att medverka och\nska samråda med dem.\nAllmänna råd\nBas-U ska samordna åtgärder för att kontrollera att byggnads- eller\nanläggningsarbete med avseende på arbetsmiljön utförs på ett\nkorrekt sätt enligt 3 kap. 7 b\nKontroller kan göras genom till exempel skyddsronder, stickprov,\nkontroller av arbetsberedningar och avstämningsmöten. Det kan\nbehövas både allmänna och riktade skyddsronder.\nAndra som bedriver verksamhet i byggprojektet kan vara de som\nutför tillfälliga arbetsuppgifter som till exempel geolog, mätingenjör,\nkontrollant och förare av transporter.\n- BHs kap 2 § 2 p. 2 där det står att BH ska se till att rutiner för samordning finns. Samt även § 8 där det står att BH ska se till att arbete och processer främjar en god arbetsmiljö."]
[null,{"$f":"'7. Bas-U'!A28","v":"7.5.7"},{"$f":"'7. Bas-U'!B28:C28","v":"Samordnar Bas-U produktionsplanering med  riskhantering i arbetsberedningar?"},0,null,null," TDOK 2016:0032",null,null,"\n4 kap 5 § beskriver tidsplanering under punk 2. \nUnder 4 kap. 5 § omnämns \"samplanering\" "]
[null,{"$f":"'7. Bas-U'!A29","v":"7.5.8"},{"$f":"'7. Bas-U'!B29:C29","v":"Överensstämmer aktuell produktionsplanering med risker och  åtgärder i arbetsmiljöplanen?  \n(Jfr med riskhantering, arbetsberedning, riskbedömning av aktivitet i spårområde etc.)"},0,null,null,null,null,null,"29 § beskriver hur Bas-U skall uppdatera AMP utifrån hur arbetet går, eventuella förändringar och förutsättningar."]
[30,{"$f":"'7. Bas-U'!A30","v":"7.5.9"},{"$f":"'7. Bas-U'!B30:C30","v":"Har entreprenörerna fått klartecken av Bas-U innan de påbörjat sitt arbete ? 1)\n"},0,null,"1) Jämför om man arbetar enligt det arbetssätt som redovisats vid uppstart/ i projektplan, se krav TDOK 2016:0032. D v s se den uppföljningen som ska genomförts vid uppstart enligt checklista nr 3. i denna TMALL 1002.  Avvikelser dokumenteras.",null,null,null,"Ur … 4 kap 12§  AFS 2023:3 Bas-U ska ge klartecken till entreprenörerna innan de får påbörja sitt arbete i byggprojektet för första gången.\n\n12§ Innan Bas-U kan ge klartecken för start av arbetet, ska entreprenören ha lämnat in uppgifter om\n1. arbeten med särskild risk vars åtgärder ska beskrivas i \narbetsmiljöplanen enligt 11 kap. 12 §,\n2. arbetsmiljörisker som det egna arbetet kan orsaka för övriga som arbetar på byggarbetsplatsen, och\n3. egna arbetsmiljörisker som kan åtgärdas genom samordning.\n\nBas-U ska även se till att arbetsmiljöriskerna är hanterade eller att det finns planerade åtgärder innan entreprenören får påbörja sitt arbete."]
[null,{"$f":"'7. Bas-U'!A31","v":"7.5.10"},{"$f":"'7. Bas-U'!B31:C31","v":"Följer entreprenörerna Bas-U:s anvisningar i frågor som har betydelse för arbetsmiljön? "},0,null,null,null,null,null,"Ur ...4 kap 23 § AFS 2023:3  Bas U ska informera byggherren om entreprenörerna inte följer anvisningarna från Bas U i frågor som har betydelse för arbetsmiljön i byggskedet."]
[null,{"$f":"'7. Bas-U'!A32","v":"7.5.11"},{"$f":"'7. Bas-U'!B32:C32","v":"Har Bas-U säkerställt att en person med särskild kompetens leder specifika arbetsmoment där \ndet krävs en sådan person enligt  föreskrifterna?\n"},0,null,null,"AFC/AFD.1831, TMALL 0255 Arbetsmiljöplan",null,"Se även TMALL 0255 Arbetsmiljöplan\n(Exempel rivningsarbete, schaktning,  passerande fordonstrafik, tillfälliga eller samverkande konstruktioner, fångdammar och kassuner samt  roller som sprängarbas och ansvarig för lyftoperationer)","\nUr ...4 kap 17§  AFS 2023:3  Bas-U ska säkerställa att en person med särskild kompetens leder specifika arbetsmoment om\n1. det krävs en sådan person enligt Arbetsmiljöverkets föreskrifter, och\n2. flera entreprenörer är involverade eller berörda av arbetsmomentet.\nBas-U ska också se till att kommunikationen mellan berörda aktörer fungerar så att dessa arbeten kan utföras på ett säkert sätt.\nAllmänna råd\nBestämmelser om att en person med särskild kompetens ska leda visst\nrivningsarbete, viss schaktning, arbete nära passerande fordonstrafik med trafikanordningar samt arbete med fångdammar och kassuner finns i Arbetsmiljöverkets föreskrifter och allmänna råd (AFS 2023:13)\nom risker vid vissa typer av arbeten, kapitlet om byggnads- och anläggningsarbete. Exempel från andra kapitel och föreskrifter är rollen som sprängarbas och ansvarig för lyftoperationer där representanter från flera verksamheter är involverade.\n\n18§ När en tillfällig konstruktion eller samverkande konstruktion uppförs, ska Bas-U se till att en person som har särskild kompetens om konstruktionen i fråga"]
[null,{"$f":"'7. Bas-U'!A33","v":"7.6"},{"$f":"'7. Bas-U'!B33:C33","v":"Kommuniceras avvikelser, tillkommande eller förändrad projektering med byggherren och Bas-P? 1)\n(Beaktas för byggskede, drift, underhåll i samarbete med Bas-P. Jfr även tillfälliga konstruktioner)"},0,null,"1) Jämför om man arbetar enligt det arbetssätt som redovisats vid uppstart/ i projektplan, se krav TDOK 2016:0032. D v s se den uppföljningen som ska genomförts vid uppstart enligt checklista nr 3. i denna TMALL 1002.  Avvikelser dokumenteras.",null,null,null,"2 kap. 24 § beskriver fortsattt projektering och överlämning till Bas-U\n3 kap. 19 § beskriver fortsatt projektering och överlämning Bas-P till Bas-U\n4 kap. 24 § informera BH om något avviker från \"givna förutsättningar\" 29 § beskriver krav på uppdatering \n29 § beskriver krav på uppdatering \nkap 8 § 2 beskriver grundprinciperna för BH, Bas-P, Bas-U och projektörer\nkap 4 § 4 beskriver rutiner och samordning"]
[null,{"$f":"'7. Bas-U'!A34","v":0},{"$f":"'7. Bas-U'!B34:C34","v":"Samordning av tillämpningen av relevanta arbetsmiljöregler.                                              "},0]
[null,{"$f":"'7. Bas-U'!A35","v":"7.7"},{"$f":"'7. Bas-U'!B35:C35","v":"Samordnar Bas-U tillämpningen av relevanta arbetsmiljöregler?  1) "},0,null,"1) Jämför om man arbetar enligt det arbetssätt som redovisats vid uppstart/ i projektplan, se krav TDOK 2016:0032. D v s se den uppföljningen som ska genomförts vid uppstart enligt checklista nr 3. i denna TMALL 1002.  Avvikelser dokumenteras."]
[null,{"$f":"'7. Bas-U'!A36","v":"7.7.1"},{"$f":"'7. Bas-U'!B36:C36","v":"Finns en aktuell sammanställning av tillämpliga lagar, förordningar och föreskrifter avseende arbetsmiljön i byggskedet?"},0,null,null,"AFC/AFD.1831, TMALL 0255 Arbetsmiljöplan"]
[null,{"$f":"'7. Bas-U'!A37","v":"7.7.2"},{"$f":"'7. Bas-U'!B37:C37","v":"Samordnar Bas-U arbetsmiljöregler för ett specifikt riskområde?  (Precisera i kommentar valet av område/ bestämmelser som följs upp ) "},0,null,null,null,null,"Exempel stickprov på AMP-Riskområde \"7. Arbete i brunnar och tunnlar samt anläggningsarbete under jord\" Beaktas här relevanta regler i  t ex 4 kap AFS 2023:13 gällande  Berg- och gruvarbete. "]
[null,{"$f":"'7. Bas-U'!A38","v":0},{"$f":"'7. Bas-U'!B38:C38","v":"Dokumentation. Arbetsmiljöplan                    "},0]
[null,{"$f":"'7. Bas-U'!A39","v":"7.8"},{"$f":"'7. Bas-U'!B39:C39","v":"Är arbetsmiljöplanen tillgänglig och kommunicerad till alla verksamma på byggarbetsplatsen? 1)"},0,null,"1) Jämför om man arbetar enligt det arbetssätt som redovisats vid uppstart/ i projektplan, se krav TDOK 2016:0032. D v s se den uppföljningen som ska genomförts vid uppstart enligt checklista nr 3. i denna TMALL 1002.  Avvikelser dokumenteras.",null,null,null,"§ 27 AMP ska va tillgänglig\n§ 29 ska va uppdaterad\nkapp 11 § 5 beskriver detta ytterligare"]
[null,{"$f":"'7. Bas-U'!A40","v":"7.8.1"},{"$f":"'7. Bas-U'!B40:C40","v":"Är arbetsmiljöplanen utformad och språkanpassad på ett sätt som tillgodoser byggarbetsplatsens behov?"},0,null,null,null,null,null,"11 kap. 4 § AMP ska vid varje tidpunkt baseras på de uppgifter som är kända i byggprojektet\n4 kap. 16 § beskriver hur Bas-U ska se till att information om byggprojektet är begriplig… och om det behövs finns på olika språk"]
[null,{"$f":"'7. Bas-U'!A41","v":"7.8.2"},{"$f":"'7. Bas-U'!B41:C41","v":"Fungerar arbetssätt för anmälan av ny personal på byggarbetsplatsen, med lokal introduktion/ information? 1)"},0,null,"1) Jämför om man arbetar enligt det arbetssätt som redovisats vid uppstart/ i projektplan, se krav TDOK 2016:0032. D v s se den uppföljningen som ska genomförts vid uppstart enligt checklista nr 3. i denna TMALL 1002.  Avvikelser dokumenteras.",null,null,null,"§ 15 beskriver introduktion\nUr ...4 kap 15 § Bas-U ska se till att de som ska arbeta på byggarbetsplatsen får en\nintroduktion där man minst går igenom\n1. de gemensamma ordnings- och skyddsregler som gäller i\nbyggprojektet,\n2. aktuella arbetsmiljörisker och riskzoner,\n3. aktuella arbetsmiljöåtgärder som är genomförda eller planerade,\n4. hur man ska göra om det uppstår arbetsmiljörisker som inte är\nhanterade, och\n5. andra relevanta delar ur arbetsmiljöplanen.\nAllmänna råd\nExempel på de som ska introduceras är, utöver entreprenörernas\npersonal, bland annat konsulter, byggherrens personal och andra som\nutför tillfälliga arbetsuppgifter.\nAlla aktuella risker och åtgärder som kan påverka flera aktörer\nbör tas upp. Rutiner för nödläge, utrymning och återsamling kan\nvara relevanta delar av arbetsmiljöplanen att ta upp, liksom en\narbetsplatsdispositionsplan (APD-plan).\nIntroduktionen bör också ta upp vad som gäller om någon inte följer\nordnings- och skyddsreglerna"]
[null,{"$f":"'7. Bas-U'!A42","v":"7.8.3"},{"$f":"'7. Bas-U'!B42:C42","v":"Är arbetsmiljöplanen uppdaterad med uppgifter och risker och åtgärder som det faktiska arbetet innebär? 1)  (BM)"},0,null,"1) Jämför om man arbetar enligt det arbetssätt som redovisats vid uppstart/ i projektplan, se krav TDOK 2016:0032. D v s se den uppföljningen som ska genomförts vid uppstart enligt checklista nr 3. i denna TMALL 1002.  Avvikelser dokumenteras.","AFC/AFD.1831, TMALL 0255 Arbetsmiljöplan","(BM) : Uppföljning på kontraktsmöten. För uppföljning Bas-U kan frågor i checklista markerade med (BM) hanteras regelbundet genom ”Rapport inför bygg- och projekteringsmöte” TMALL 0908, se \"Stöd till dagordning för bygg- och projekteringsmöte\" TDOK 2019:0090. ","Fördjupad uppföljning, kontroll se  TMALL 0009 Granskning Arbetsmiljöplan","§ 27 AMP ska va tillgänglig\n§ 29 ska va uppdaterad\nkap 11 § 5 beskriver detta ytterligare\nUr... Arbetsmiljöplanen ska vid varje tidpunkt baseras på de uppgifter som är kända i byggprojektet. Allt eftersom arbetena planeras och projekteras ska de nya uppgifterna om dessa arbeten föras in i arbetsmiljöplanen.\nVid ändringar i en redan utförd projektering, eller i produktionsplaneringen, ska motsvarande uppdateringar göras i arbetsmiljöplanen.\nUr... Arbeten enligt andra stycket punkterna 1–13 medför särskilda arbetsmiljörisker och det krävs åtgärder om något av dessa arbeten förekommer i byggprojektet. Åtgärder för att hantera de särskilda riskerna ska beskrivas i arbetsmiljöplanen. Om samma risk återkommer vid flera arbetsmoment och det finns behov av olika åtgärder för att hantera risken, ska det framgå vilken åtgärd som är planerad för vilket arbetsmoment.\n\nArbeten med särskilda arbetsmiljörisker är:\n1. Arbete där det finns risk att falla till en lägre nivå, om nivåskillnaden är två meter eller mer.\n2. Arbete där det finns risk att begravas under jordmassor, eller sjunka ned i lös mark.\n3. Arbete med lansering, montering eller nedmontering av tunga byggelement, eller tunga formbyggnadselement.\n4. Arbete som utsätter någon för kemiska eller biologiska ämnen som medför särskild fara för hälsa och säkerhet, eller omfattas av krav på medicinsk kontroll.\n5. Rivning av bärande konstruktioner, eller hälsofarliga material eller ämnen.\n6. Arbete i närheten av högspänningsledningar.\n7. Arbete på en plats eller ett område där fordonstrafik passerar.\n8. Arbete där sprängämnen används.\n9. Arbete i brunnar och tunnlar samt anläggningsarbete under jord.\n10. Arbete där det finns risk att drunkna.\n11. Arbete som utförs under vatten med dykarutrustning.\n12. Arbete som utförs i en kassun under förhöjt lufttryck.\n13. Arbete i närheten av joniserande strålning och för vilket man, enligt Strålsäkerhetsmyndighetens föreskrifter, ska inrätta ett kontrollerat \nområde eller ett skyddat område."]
[null,{"$f":"'7. Bas-U'!A43","v":"7.8.4"},{"$f":"'7. Bas-U'!B43:C43","v":"Är arbetsmiljöplanen uppdaterad utifrån hur arbetet går,  eventuella förändringar och de arbetsmetoder som i praktiken används?\n"},0,null,null,null,null,null,"Ur...4kap 29§  AFS 2023:3 \nBas-U ska se till att  arbetsmiljöplanen uppdateras utifrån hur arbetet går, de eventuella förändringar som har inträffat och de arbetsmetoder som i praktiken används?\n\nBas-U ska vidare se till att arbetsmiljöplanen uppdateras utifrån de verkliga förutsättningarna för hur arbetet kan utföras, och förändringar i hur arbetsmiljöarbetet organiseras och bedrivs."]
[null,{"$f":"'7. Bas-U'!A44","v":"7.8.5"},{"$f":"'7. Bas-U'!B44:C44","v":"För de åtgärder som beskrivs vid planering av de 13 arbeten med särskild risk, framgår det vilka  arbetsmoment och eventuell arbetsberedning som är berörda?\n"},0,null,null,"AFC/AFD.1831, TMALL 0255 Arbetsmiljöplan",null,null,"Ur ...11 kap 12§  AFS 2023:3  Allmänna råd\nNär arbetsberedningar för arbetsmoment med särskild risk planeras in, bör det av arbetsmiljöplanen framgå hur man kan ta del av arbetsberedningarna.\n\nExempel på åtgärder som man kan välja mot riskerna enligt punkterna 1–7, och som ska beskrivas är de fallskyddsanordningar som ska användas, och hur de ska monteras, de stöd- eller stabiliseringsåtgärder som enligt den geotekniska undersökningen behövs vid schaktningsarbete, exempelvis vilken stödkonstruktion eller släntlutning som krävs, vilka anordningar för montering av byggelement, stabiliseringsåtgärder för stommen, skyddsräcken eller fästen för personligt fallskydd som behövs, samt hur de ska monteras och förankras, hur man ska utföra arbete med till exempel förorenad mark, härdplaster eller kvarts på ett säkert sätt samt vilka skydds-, avskärmnings- eller ventilationsåtgärder som ska vidtas, vilka stöd- eller stabiliseringsåtgärder samt åtgärder mot hälsofarliga material, exempelvis asbest, som ska vidtas vid rivningsarbeten, vilka säkerhetsavstånd, vilken utmärkning av kablar i marken eller andra skyddsåtgärder som planeras, och vilka trafik- och avstängningsanordningar som behövs vid omledning, eller för att styra trafiken säkert förbi arbetsplatsen, samt nödvändiga tillstånd från väghållaren.\n\nFör arbete med särskild risk angivna i punkterna 1–13 finns bestämmelser om åtgärder i bland annat Arbetsmiljöverkets föreskrifter och allmänna råd (AFS 2023:13) om risker vid vissa typer av arbeten."]
[null,{"$f":"'7. Bas-U'!A45","v":"7.8.6"},{"$f":"'7. Bas-U'!B45:C45","v":"Är riskhanteringen i arbetsmiljöplanen aktuell och med spårbarhet till annan riskhantering, särskilt för de tretton utpekade arbetsmoment som medför särskilda arbetsmiljörisker?"},0,null,null,null,null,"AMP riskbehandling m m harmonierar med andra åtgärder som t ex  i arbetsberedningar och för el- o trafiksäkerhet, geoteknik, sprängning…?","11 kap 4 § AMP ska vid varje tidpunkt baseras på de uppgifter som är kända.\n11 kap. 8 § beskriver att AMP ska vara anpassad till aktuellt byggprojekt såväl inom storlek, komplexitet och risknivå. Står en bredare hänvisning till andra arbeten än de som omnämns under § 12 under allmänna råd. "]
[null,{"$f":"'7. Bas-U'!A46","v":"7.8.7"},{"$f":"'7. Bas-U'!B46:C46","v":"Innehåller arbetsmiljöplanen uppgifter i enlighet med Trafikverkets krav? \n(Se TMALL 0009 och/eller kontrakt med TMALL 0255)"},0,null,null,"AFC/AFD.1831, TMALL 0255, ",null,"Fördjupad uppföljning, kontroll se TMALL 0009 Granskning Arbetsmiljöplan"]
[null,{"$f":"'7. Bas-U'!A47","v":"7.8.8"},{"$f":"'7. Bas-U'!B47:C47","v":"Har man inrättat allmänna skyddsanordningar? (Visar riskhantering på sådana åtgärder?)"},0,null,null,"AFC/AFD.1831, TMALL 0255 Arbetsmiljöplan",null,null,"Kap 8. grundprinciperna för att förebygga arbetsmiljörisker nämner under punkt 3 C) prioritera gemensamma skyddsåtgärder framför individuella"]
[null,{"$f":"'7. Bas-U'!A48","v":"7.8.9"},{"$f":"'7. Bas-U'!B48:C48","v":"Finns projektanpassade ordnings- och skyddsregler?"},0,null,null,"AFC/AFD.1831, TMALL 0255, ",null,"Fördjupad uppföljning, kontroll se TMALL 0009 Granskning Arbetsmiljöplan","4 kap. 29 § Bas-U skall se till att AMP uppdateras\n11 kap. 4 § AMP vid varje tidpunkt baseras på kända uppgifter\n11 kap. 8 § AMP ska vara anpassad till aktuellt byggprojekt… och risknivå\n11 kap. 10 § AMP ska innehålla gemensamma ordnings och skyddsregler"]
[null,{"$f":"'7. Bas-U'!A49","v":"7.8.10"},{"$f":"'7. Bas-U'!B49:C49","v":"Framgår det vad som gäller vid material-/ lasthantering och användning av transportleder på byggarbetsplatsen?"},0,null,null,"AFC/AFD.1831, TMALL 0255 Arbetsmiljöplan",null,null,"11 kap. 10 § under ordnings och skyddsrregler, allmänna råd punkt 7 och 8\npunkt 7 beskriver hur mottagnings och lagringsutrymmen ska användas\npunkt 8 beskriver förbindelseleder för gående och fordosnstrafik "]
[50,{"$f":"'7. Bas-U'!A50","v":"7.8.11"},{"$f":"'7. Bas-U'!B50:C50","v":"Innehåller arbetsmiljöplanen aktuell beskrivning av hur samordnings- och arbetsmiljöarbetet är organiserat?  (BM)"},0,null,null,"AFC/AFD.1831, TMALL 0255 Arbetsmiljöplan","(BM) : Uppföljning på kontraktsmöten. För uppföljning Bas-U kan frågor i checklista markerade med (BM) hanteras regelbundet genom ”Rapport inför bygg- och projekteringsmöte” TMALL 0908, se \"Stöd till dagordning för bygg- och projekteringsmöte\" TDOK 2019:0090. ","Fördjupad uppföljning, kontroll se TMALL 0009 Granskning Arbetsmiljöplan","4 kap. 29 § Bas-U skall se till att AMP uppdateras\n11 kap. 11 § anger att AMP ska visa hur samordningen mellan verksamheter går till "]
[null,{"$f":"'7. Bas-U'!A51","v":"7.8.12"},{"$f":"'7. Bas-U'!B51:C51","v":"Innehåller arbetsmiljöplanen en beskrivning av hur arbetsmiljöarbetet ska organiseras och bedrivas, med kontaktuppgifter och rutiner för arbetsmiljöarbetet?\n\n"},0,null,null,"AFC/AFD.1831, TMALL 0255 Arbetsmiljöplan",null,null,"Ur...1 1 kap 9§ AFS 2023:3  Arbetsmiljöplanen ska beskriva hur man ska organisera och bedriva arbetsmiljöarbetet. Arbetsmiljöplanen ska innehålla kontaktuppgifter till personer i byggprojektet som har arbetsmiljöuppgifter samt rutinerna för samordning och arbetsmiljöarbete."]
[null,{"$f":"'7. Bas-U'!A52","v":"7.8.13"},{"$f":"'7. Bas-U'!B52:C52","v":"Omfattar rutinerna för samordning de arbetsuppgifter som hanterar beredskap för första hjälpen, krisstöd samt brand och utrymning?"},0]
[null,{"$f":"'7. Bas-U'!A53","v":"7.8.14"},{"$f":"'7. Bas-U'!B53:C53","v":"Framgår det i arbetsmiljöplanen hur samordningen mellan verksamheter ska gå till när arbete ska utföras på en plats där annan verksamhet pågår samtidigt?"},0,null,null,"AFC/AFD.1831, TMALL 0255 Arbetsmiljöplan",null,null,"Ur ..11 kap 11§  AFS 2023:3   Om arbetet ska utföras på en plats där någon annan verksamhet kommer att pågå samtidigt, ska  arbetsmiljöplanen ange hur samordningen\nmellan verksamheterna ska gå till."]
[null,{"$f":"'7. Bas-U'!A54","v":"7.8.15"},{"$f":"'7. Bas-U'!B54:C54","v":"Framgår överenskommelser för samordning och de verksamma på byggarbetsplatsen tydligt i arbetsmiljöplanen?"},0,null,null,"AFC/AFD.1831, TMALL 0255 Arbetsmiljöplan",null,"(TMALL 0446)","11 kap. 11 § AMP ska ange hur samordning meellan verksamheter ska gå till  "]
[null,{"$f":"'7. Bas-U'!A55","v":"7.8.16"},{"$f":"'7. Bas-U'!B55:C55","v":"Framgår kontaktuppgifter till samtliga verksamma aktörer på byggarbetsplatsen? "},0,null,null,"AFC/AFD.1831, TMALL 0255 Arbetsmiljöplan",null,null,"11 kap. 9 § AMP ska innehålla kontaktuppgifter samt rutiner för samordning"]
[null,{"$f":"'7. Bas-U'!A56","v":"7.8.17"},{"$f":"'7. Bas-U'!B56:C56","v":"Finns aktuella uppgifter på ansvariga för speciella skyddsanordningar i arbetsmiljöplanen?"},0,null,null,"AFC/AFD.1831, TMALL 0255 Arbetsmiljöplan",null,null,"2023:13 5 kap. 5 § p.1 Arbetsgivaren ska lämna uppgifter till Bas-U om arbeten med särskild risk\n2023:3 11 kap. 12§ Åtgärder med särskild risk i AMP. "]
[null,{"$f":"'7. Bas-U'!A57","v":"7.8.18"},{"$f":"'7. Bas-U'!B57:C57","v":"Har samtliga verksamma aktörer på byggarbetsplatsen en deltagare eller kontaktperson till skyddsorganisationen/ arbetsmiljöarbetet?"},0,null,null,"AFC/AFD.1831, TMALL 0255 Arbetsmiljöplan",null,null,"\n11 kap. 9 § beskriver att kontaktuppgifter till personer i byggprojektet som har arbetsmiljöuppgifter - "]
[null,{"$f":"'7. Bas-U'!A58","v":0},{"$f":"'7. Bas-U'!B58:C58","v":"Följa upp arbetsmiljöarbetet"},0]
[null,{"$f":"'7. Bas-U'!A59","v":"7.9"},{"$f":"'7. Bas-U'!B59:C59","v":"Samordnar Bas-U kontrollerna av att arbetet utförs på ett korrekt sätt och att arbetsmiljöplanen följs? 1) (BM)"},0,null,"1) Jämför om man arbetar enligt det arbetssätt som redovisats vid uppstart/ i projektplan, se krav TDOK 2016:0032. D v s se den uppföljningen som ska genomförts vid uppstart enligt checklista nr 3. i denna TMALL 1002.  Avvikelser dokumenteras.",null," (BM) : Uppföljning på kontraktsmöten. För uppföljning Bas-U kan frågor i checklista markerade med (BM) hanteras regelbundet genom ”Rapport inför bygg- och projekteringsmöte” TMALL 0908, se \"Stöd till dagordning för bygg- och projekteringsmöte\" TDOK 2019:0090. ",null,"§20 beskriver kontroller"]
[60,{"$f":"'7. Bas-U'!A60","v":"7.9.1"},{"$f":"'7. Bas-U'!B60:C60","v":"Finns aktuellt kontrollprogram och/eller kontrollplaner samt utför och dokumenterar man uppföljning enligt detta?"},0,null,null,"AFC/D 2493  TDOK 2016:0032",null,null,"§20 beskriver kontroller\n2 kap. 3 § förebygga arbetsmiljörisker i byggprojektet hänvisar till att grundprinciperna för Bas-P/Bas-U uppfylls. 4 § pekar på rutiner och 8 § beskriver att arbete och arbetsprocesser skapar förutsättningar för en god arbetsmiljö"]
[null,{"$f":"'7. Bas-U'!A61","v":"7.9.2"},{"$f":"'7. Bas-U'!B61:C61","v":"Genomförs kontroller av att entreprenörerna\nföljer arbetsmiljöbestämmelser samt arbetsmiljöplanen?\n"},0,null,null,null,null,null,"Ur ..4 kap 20 § AFS 2023:3  Vid kontroller av entreprenörernas arbetsmiljöarbete, ska Bas U se till att det minst kontrolleras att entreprenörerna\n1. arbetar säkert genom att följa de arbetsmiljöbestämmelser som gäller för deras olika arbeten,\n2. följer arbetsmiljöplanen, och\n3. har hanterat arbetsmiljörisker som de tidigare har lämnat uppgift om inför arbetets start.\n\nBas U ska ge entreprenörernas skyddsombud (arbetsmiljöombud) möjlighet att medverka och ska samråda med dem.\n\nAllmänna råd\nBas U ska samordna åtgärder för att kontrollera att byggnads- eller anläggningsarbete med avseende på arbetsmiljön utförs på ett korrekt sätt enligt 3 kap. 7 b § 3 arbetsmiljölagen. Kontroller kan göras genom till exempel skyddsronder, stickprov, kontroller av arbetsberedningar och avstämningsmöten. Det kan behövas både allmänna och riktade skyddsronder."]
[null,{"$f":"'7. Bas-U'!A62","v":"7.9.3"},{"$f":"'7. Bas-U'!B62:C62","v":"Genomförs kontroller av att entreprenörerna\n har hanterat arbetsmiljöriskerna inför arbetets start, som t e x i arbetsberedningar?\n"},0,null,null,null,null,null,"Ur ..4 kap 20 § AFS 2023:3  Vid kontroller av entreprenörernas arbetsmiljöarbete, ska Bas U se till att det minst kontrolleras att entreprenörerna\n1. arbetar säkert genom att följa de arbetsmiljöbestämmelser som gäller för deras olika arbeten,\n2. följer arbetsmiljöplanen, och\n3. har hanterat arbetsmiljörisker som de tidigare har lämnat uppgift om inför arbetets start.\n\nBas U ska ge entreprenörernas skyddsombud (arbetsmiljöombud) möjlighet att medverka och ska samråda med dem.\n\nAllmänna råd\nBas U ska samordna åtgärder för att kontrollera att byggnads- eller anläggningsarbete med avseende på arbetsmiljön utförs på ett korrekt sätt enligt 3 kap. 7 b § 3 arbetsmiljölagen. Kontroller kan göras genom till exempel skyddsronder, stickprov, kontroller av arbetsberedningar och avstämningsmöten. Det kan behövas både allmänna och riktade skyddsronder."]
[null,{"$f":"'7. Bas-U'!A63","v":"7.9.4"},{"$f":"'7. Bas-U'!B63:C63","v":"Kontrolleras att person med särskild kompetens  gällande  tillfälliga  eller samverkande konstruktioner utför de utpekade uppgifterna?  \n"},0,null,null,null,null,null,"Ur ..4 kap 18§  AFS 2023:3   När en tillfällig konstruktion eller samverkande konstruktion uppförs, ska Bas-U se till att en person som har särskild kompetens om konstruktionen i fråga\n1. säkerställer att ansvarsfördelningen mellan de olika aktörerna som är involverade under byggskedet blir tydlig,\n2. ser till att aktörerna som är involverade under byggskedet har fått information från planeringen och projekteringen, och\n3. kontrollerar att konstruktionen som helhet monteras, används och eventuellt demonteras i enlighet med handlingar framtagna vid projekteringen.\nPersonen med särskild kompetens ska ha god kännedom om konstruktionen, \nbåde dess delar och helheten, och om dess olika skeden.\n..4 kap. 20 § AFS 2023:3 Bas-U ska se till att kontroll utförs\n22 § ställning eller ett väderskydd"]
[null,{"$f":"'7. Bas-U'!A64","v":"7.9.5"},{"$f":"'7. Bas-U'!B64:C64","v":"Kontrolleras bärighet av underlag och annan förankring vid planering av att en ställning eller väderskydd ska användas?  "},0,null,null,null,null,null,"Ur ... 4kap 22§  AFS 2023:3   I samband med att en ställning eller ett väderskydd som ska användas av flera entreprenörer planeras, ska Bas-U se till att underlaget kontrolleras så att det med betryggande säkerhet kan bära upp den belastning som kan uppstå under uppförandet och användningen. Detsamma gäller för fasader eller andra konstruktioner som ställningen behöver förankras till.\nOm det finns ställningar eller väderskydd som används av flera entreprenörer på byggarbetsplatsen, ska Bas-U försäkra sig om att handlingar för ställningarna eller väderskydden finns tillgängliga på byggarbetsplatsen och att ställningarna och väderskydden fortlöpande kontrolleras.\nBestämmelser om handlingar för ställning eller väderskydd, att Bas-U ska få kopior av handlingarna och om den fortlöpande kontrollen finns i Arbetsmiljöverkets föreskrifter och allmänna råd (AFS 2023:11) om arbetsutrustning och personlig skyddsutrustning – säker användning, kapitlet om användning av ställningar."]
[null,{"$f":"'7. Bas-U'!A65","v":"7.9.6"},{"$f":"'7. Bas-U'!B65:C65","v":"Kontrolleras ställningar och väderskydd om sådana finns på byggarbetsplatsen?\n\n"},0,null,null,null,null,null,"Ur ... 4kap 22§  AFS 2023:3   I samband med att en ställning eller ett väderskydd som ska användas av flera entreprenörer planeras, ska Bas-U se till att underlaget kontrolleras så att det med betryggande säkerhet kan bära upp den belastning som kan uppstå under uppförandet och användningen. Detsamma gäller för fasader eller andra konstruktioner som ställningen behöver förankras till.\nOm det finns ställningar eller väderskydd som används av flera entreprenörer på byggarbetsplatsen, ska Bas-U försäkra sig om att handlingar för ställningarna eller väderskydden finns tillgängliga på byggarbetsplatsen och att ställningarna och väderskydden fortlöpande kontrolleras.\nBestämmelser om handlingar för ställning eller väderskydd, att Bas-U ska få kopior av handlingarna och om den fortlöpande kontrollen finns i Arbetsmiljöverkets föreskrifter och allmänna råd (AFS 2023:11) om arbetsutrustning och personlig skyddsutrustning – säker användning, kapitlet om användning av ställningar.\n- 4 kap. 20 § AFS 2023:3 Bas-U ska se till att kontroll utförs\n22 § ställning eller ett väderskydd\n(5 kap. 48 § 2023:13 AG ska se till att utrustning och installationer kontrolleras innan de tas i bruk\n5 kap. 79 § 2023:13 AG och andra ansvariga enligt 2 § ska vidta lämpliga säkerhetsåtgärder för att skydda AT mot risker. Under allmänna råd nämns Monteringsanvisning \n5 kap. 108 § AFS 2023:13 arbete med tillfälliga konstruktioner\n8 kap. 1 § AFS 2023: 11 Användning av ställningar  )"]
[null,{"$f":"'7. Bas-U'!A66","v":"7.9.7"},{"$f":"'7. Bas-U'!B66:C66","v":"Genomförs kontroll av allmänna skyddsanordningar, där brister dokumenteras och åtgärdas? \n(Se bl a särskilt skyddsåtgärder för risker för fall och passerande fordonstrafik vid väg o järnväg.)"},0,null,null,null,null,null,"4 kap. 20 § AFS 2023:3 Bas-U ska se till att kontroll utförs\n22 § ställning eller ett väderskydd\n11 kap. 10 § omnämner gemensamma skyddsanordningar under allmänna råd. \nAFS 2023:3 8 kap. 2 § under allmänna råd onämns ex gemensamma fallskyddsanordningar\n(5 kap. 48 § 2023:13 AG ska se till att utrustning och installationer kontrolleras innan de tas i bruk\n5 kap. 60 - 69 §§ AFS 2023:13 Risk för fall \n5 kap. 79 § 2023:13 AG och andra ansvariga enligt 2 § ska vidta lämpliga säkerhetsåtgärder för att skydda AT mot risker. Under allmänna råd nämns Monteringsanvisning \nAFS 2023:13 5 kap. 109 § AG och andra ansvariga enligt § 2 ska se till att formar och andra tillfälliga konstruktioner konrolleras. 110 § pekar på åtgärder.\n8 kap. 1 § AFS 2023: 11 Användning av ställningar  )"]
[null,{"$f":"'7. Bas-U'!A67","v":"7.9.8"},{"$f":"'7. Bas-U'!B67:C67","v":"Är gemensamma skyddsronder och annan uppföljning dokumenterad och brister åtgärdade?"},0,null,null,"AFD 14",null,null,"11 kap. 9 § omnämns skyddsronder under allmänna råd kopplat till rutiner. \n2 kap. 18 § BH ska fortlöpande följa upp - p.2 Kontrollera att Bas-P/Bas-U utför sina uppgifter\n4 kap. 8 § Bas-U ska organisera en skyddsverksamhet"]
[null,{"$f":"'7. Bas-U'!A68","v":"7.10"},{"$f":"'7. Bas-U'!B68:C68","v":"Vidtar Bas-U åtgärder då någon verksam på arbetsplatsen inte följer Bas-U:s samordning eller  arbetsmiljöplan? 1)"},0,null,"1) Jämför om man arbetar enligt det arbetssätt som redovisats vid uppstart/ i projektplan, se krav TDOK 2016:0032. D v s se den uppföljningen som ska genomförts vid uppstart enligt checklista nr 3. i denna TMALL 1002.  Avvikelser dokumenteras."]
[null,{"$f":"'7. Bas-U'!A69","v":"7.11"},{"$f":"'7. Bas-U'!B69:C69","v":"Delges byggherren dokumentation rörande rapportering, utredning av olyckor och allvarliga tillbud, samt skriftlig dialog med Arbetsmiljöverket?"},0,null,null,"AFC/AFD 172 AUC 243….TDOK 2016:0035",null,null,"2 kap. 8 §  BH ska se till att arbete och processer utformas för en god arbetsmiljö"]
[70,{"$f":"'7. Bas-U'!A70","v":"7.12"},{"$f":"'7. Bas-U'!B70:C70","v":"Har Bas-U aktuella uppgifter på att tekniska anordningar är besiktigade och provade, att förare har kompetens och tillstånd? (BM)"},0,null,null,null,"(BM) : Uppföljning på kontraktsmöten. För uppföljning Bas-U kan frågor i checklista markerade med (BM) hanteras regelbundet genom ”Rapport inför bygg- och projekteringsmöte” TMALL 0908, se \"Stöd till dagordning för bygg- och projekteringsmöte\" TDOK 2019:0090. ",null," \n4 kap. 4 § AFS 2023:3 p.2 anger att Bas-U ska ha rutiner  - \n21 § anger att Bas-U ska försäkra sig om att tekniska anordningar är kontrollerade, besiktigade och godkända enligt gällande regler. Nästa stycke anger tillräcklig kompetens hos förare. \n"]
[null,{"$f":"'7. Bas-U'!A71","v":0},{"$f":"'7. Bas-U'!B71:C71","v":"Dokumentation, Arbetsmiljödokumentation inför framtida drift och underhåll.                            "},0]
[null,{"$f":"'7. Bas-U'!A72","v":"7.13"},{"$f":"'7. Bas-U'!B72:C72","v":"Anpassar Bas-U löpande den framtagna arbetsmiljödokumentationen inför framtida drift och underhåll? 1) "},0,null,"1) Jämför om man arbetar enligt det arbetssätt som redovisats vid uppstart/ i projektplan, se krav TDOK 2016:0032. D v s se den uppföljningen som ska genomförts vid uppstart enligt checklista nr 3. i denna TMALL 1002.  Avvikelser dokumenteras.",null,null,null,"Kap 4 § 30 beskriver Bas-Us dokumentation\nKap 10 beskriver dokumentation till bruksskede"]
[null,{"$f":"'7. Bas-U'!A73","v":0},{"$f":"'7. Bas-U'!B73:C73","v":0},0]
[null,{"$f":"'7. Bas-U'!A74","v":0},{"$f":"'7. Bas-U'!B74:C74","v":0},0]
[null,{"$f":"'8. Bas-U, Byh rond'!A11","v":0},{"$f":"'8. Bas-U, Byh rond'!B11:C11","v":"Bas-U:s uppgifter, uppföljning och stickprov på byggarbetsplatsen                                            "},0]
[null,{"$f":"'8. Bas-U, Byh rond'!A12","v":"8.1"},{"$f":"'8. Bas-U, Byh rond'!B12:C12","v":"Är förhandsanmälan anslagen och uppdaterad? \n"},0,null,null,"AFC/D.171, AFC/D.242",null,null,"\n> Byggherren ansvarar för att förhandsanmälan anslås väl synligt på arbetsplatsen och uppdateras regelbundet.\n2 kap. 25 § BH ska upprätta förhandsanmälan\n2 kap. 26 § BH ska se till att en kopia finns tillgänglig, väl symlig och uppdaterad\n4 kap. 27, 28 §§ Bas-U ska se till att AMP som kräver förhandsanmälan finns tillgänglig för alla "]
[null,{"$f":"'8. Bas-U, Byh rond'!A13","v":"8.2"},{"$f":"'8. Bas-U, Byh rond'!B13:C13","v":"Är arbetsmiljöplanen tillgänglig och har den delgivits de verksamma?  1) "},0,null,"1) Jämför om man arbetar enligt det arbetssätt som redovisats vid uppstart/ i projektplan, se krav TDOK 2016:0032. D v s se den uppföljningen som ska genomförts vid uppstart enligt checklista nr 3. i denna TMALL 1002.  Avvikelser dokumenteras.",null,null,null,"§§ 14, 15, 16§§ Information och introduktion \n§ 27 AMP ska va tillgänglig\n§ 29 ska va uppdaterad\nkap 11 § 5 beskriver detta ytterligare"]
[null,{"$f":"'8. Bas-U, Byh rond'!A14","v":"8.3.1"},{"$f":"'8. Bas-U, Byh rond'!B14:C14","v":"Följer man på byggarbetsplatsen gällande ordnings- och skyddsregler? 1) "},0,null,"1) Jämför om man arbetar enligt det arbetssätt som redovisats vid uppstart/ i projektplan, se krav TDOK 2016:0032. D v s se den uppföljningen som ska genomförts vid uppstart enligt checklista nr 3. i denna TMALL 1002.  Avvikelser dokumenteras.","Entreprenad:\n- AFC/AFD.36,  EK §5.184\nKonsult:\n- AUC.13,  UK § 5.55",null,"VITE:Vid åsidosättande av\n- krav på personlig skyddsutrustning (angivna i byggarbetsplatsens arbetsmiljöplan och endast i förekommande fall däri angivna krav på skyddshjälm och/eller personlig fallskyddsutrustning)\n","4 kap. 9 § AFS 2023:3 Bas-U ska se till att det finns gemensamma ordnings och skyddsregler\n4 kap. 20 § AFS 2023:3 Bas-U ska se till att kontroll utförs, 4 § Bas-U ska ha rutiner...hur Bas-U kontrollerar och följer upp entreprenörernas arbetsmiljöarbete\n(5 kap. 5 § AFS 2023:13 AG ska lämna uppgifter till Bas-U\n5 kap. 9 § AFS 2023:13 AG ska se till att AT följer de ordnings och skyddsregler som Bas-U utfärdar )"]
[null,{"$f":"'8. Bas-U, Byh rond'!A15","v":"8.3.2"},{"$f":"'8. Bas-U, Byh rond'!B15:C15","v":"Följer man arbetsmiljöplanen, den riskhantering med åtgärder som framgår där? 1) "},0,null,"1) Jämför om man arbetar enligt det arbetssätt som redovisats vid uppstart/ i projektplan, se krav TDOK 2016:0032. D v s se den uppföljningen som ska genomförts vid uppstart enligt checklista nr 3. i denna TMALL 1002.  Avvikelser dokumenteras.","Entreprenad:\n- AFC/AFD.36,  EK §5.184\nKonsult:\n- AUC.13,  UK § 5.55.  ",null,"VITE:   \n- att arbeten med särskilda arbetsmiljörisker ska bedrivas enligt åtgärderna beskrivna i byggarbetsplatsens arbetsmiljöplan, ska vite betalas med 47 000 SEK oavsett antal brister. ","Ur ...20 § Vid kontroller av entreprenörernas arbetsmiljöarbete, ska Bas U se till att det minst kontrolleras att entreprenörerna\n1. arbetar säkert genom att följa de arbetsmiljöbestämmelser som gäller för deras olika arbeten,\n2. följer arbetsmiljöplanen, och\n3. har hanterat arbetsmiljörisker som de tidigare har lämnat uppgift om inför arbetets start.\nBas U ska ge entreprenörernas skyddsombud (arbetsmiljöombud) möjlighet att medverka och ska samråda med dem.\nAllmänna råd\nBas U ska samordna åtgärder för att kontrollera att byggnads- eller anläggningsarbete med avseende på arbetsmiljön utförs på ett korrekt sätt enligt 3 kap. 7 b § 3 arbetsmiljölagen. Kontroller kan göras genom till exempel skyddsronder, stickprov, kontroller av arbetsberedningar och avstämningsmöten. Det kan behövas både allmänna och riktade skyddsronder.\n- 4 kap. 20 § AFS 2023:3 Bas-U ska se till att kontroll utförs,4 § Bas-U ska ha rutiner...hur Bas-U kontrollerar och följer upp entreprenörernas arbetsmiljöarbete\n(5 kap. 9 § AFS 2023:13 AG ska se till att AT följer de ordnings och skyddsregler som Bas-U utfärdar )"]
[null,{"$f":"'8. Bas-U, Byh rond'!A16","v":"8.4"},{"$f":"'8. Bas-U, Byh rond'!B16:C16","v":"Finns person med särskild kompetens som leder specifika arbetsmoment där det krävs en sådan person enligt  föreskrifterna?\n(Exempel rivningsarbete, schaktning,  passerande fordonstrafik, tillfälliga eller samverkande konstruktioner, fångdammar och kassuner samt roller som sprängarbas och ansvarig för lyftoperationer)\n"},0,null,null,"TMALL 0255 Arbetsmiljöplan",null,null,"Ur ..4 kap 17§  AFS 2023:3  Bas-U ska säkerställa att en person med särskild kompetens leder specifika arbetsmoment om\n1. det krävs en sådan person enligt Arbetsmiljöverkets föreskrifter, och\n2. flera entreprenörer är involverade eller berörda av arbetsmomentet.\nBas-U ska också se till att kommunikationen mellan berörda aktörer fungerar så att dessa arbeten kan utföras på ett säkert sätt.\nAllmänna råd\nBestämmelser om att en person med särskild kompetens ska leda visst\nrivningsarbete, viss schaktning, arbete nära passerande fordonstrafik med trafikanordningar samt arbete med fångdammar och kassuner finns i Arbetsmiljöverkets föreskrifter och allmänna råd (AFS 2023:13)\nom risker vid vissa typer av arbeten, kapitlet om byggnads- och anläggningsarbete. Exempel från andra kapitel och föreskrifter är rollen som sprängarbas och ansvarig för lyftoperationer där representanter från flera verksamheter är involverade.\n\n18§ När en tillfällig konstruktion eller samverkande konstruktion uppförs, ska Bas-U se till att en person som har särskild kompetens om konstruktionen i fråga"]
[null,{"$f":"'8. Bas-U, Byh rond'!A17","v":"8.4.1"},{"$f":"'8. Bas-U, Byh rond'!B17:C17","v":"Utför person med särskild kompetens de utpekade uppgifterna när en tillfällig konstruktion eller samverkande konstruktion uppförs?  \n"},0,null,null,null,null,null,"Ur ...4 kap 18§  AFS 2023:3  När en tillfällig konstruktion eller samverkande konstruktion uppförs, ska Bas-U se till att en person som har särskild kompetens om konstruktionen i fråga\n1. säkerställer att ansvarsfördelningen mellan de olika aktörerna som är involverade under byggskedet blir tydlig,\n2. ser till att aktörerna som är involverade under byggskedet har fått information från planeringen och projekteringen, och\n3. kontrollerar att konstruktionen som helhet monteras, används och eventuellt demonteras i enlighet med handlingar framtagna vid projekteringen.\nPersonen med särskild kompetens ska ha god kännedom om konstruktionen, \nbåde dess delar och helheten, och om dess olika skeden."]
[null,{"$f":"'8. Bas-U, Byh rond'!A18","v":"8.5"},{"$f":"'8. Bas-U, Byh rond'!B18:C18","v":"Har det inrättats och underhålls allmänna skyddsanordningar? \n(Jämför åtgärder enligt riskhantering)  "},0,null,null,null,null,null,"8 kap 2§ Grund principerna för att förebygga arbetsmiljörisker ...3. Hantera risker genom att\n, c) prioritera gemensamma skyddsåtgärder framför individuella,\n11 kap. 7, 9, 10, 11, 12 §§ AFS 2023:3  anges i paragrafnyckeln dock är det 10 § om ordnings och skyddsregler som tar upp gemensamma skyddsanordningar under råd och stöd. "]
[null,{"$f":"'8. Bas-U, Byh rond'!A19","v":"8.5.1"},{"$f":"'8. Bas-U, Byh rond'!B19:C19","v":"Har bärighet av underlag och annan förankring kontrollerats inför att en ställning eller väderskydd används?  "},0,null,null,null,null,null,"4 kap. 20 § AFS 2023:3 Bas-U ska se till att kontroll utförs\n22 § ställning eller ett väderskydd\nUr ... 4kap 22§  AFS 2023:3   I samband med att en ställning eller ett väderskydd som ska användas av flera entreprenörer planeras, ska Bas-U se till att underlaget kontrolleras så att det med betryggande säkerhet kan bära upp den belastning som kan uppstå under uppförandet och användningen. Detsamma gäller för fasader eller andra konstruktioner som ställningen behöver förankras till.\nOm det finns ställningar eller väderskydd som används av flera entreprenörer på byggarbetsplatsen, ska Bas-U försäkra sig om att handlingar för ställningarna eller väderskydden finns tillgängliga på byggarbetsplatsen och att ställningarna och väderskydden fortlöpande kontrolleras.\nBestämmelser om handlingar för ställning eller väderskydd, att Bas-U ska få kopior av handlingarna och om den fortlöpande kontrollen finns i Arbetsmiljöverkets föreskrifter och allmänna råd (AFS 2023:11) om arbetsutrustning och personlig skyddsutrustning – säker användning, kapitlet om användning av ställningar."]
[20,{"$f":"'8. Bas-U, Byh rond'!A20","v":"8.5.2"},{"$f":"'8. Bas-U, Byh rond'!B20:C20","v":"Finns uppgifter tillgängligt gällande montage/dokumentation samt genomförda  kontroller av allmänna skyddsanordningar? (Se bl a ställningar, barriärer)"},0,null,null,null,null,null,"Ur  4kap 22§  AFS 2023:3 ...Om det finns ställningar eller väderskydd som används av flera entreprenörer på byggarbetsplatsen, ska Bas-U försäkra sig om att handlingar för ställningarna eller väderskydden finns tillgängliga på byggarbetsplatsen och att ställningarna och väderskydden fortlöpande kontrolleras. Bestämmelser om handlingar för ställning eller väderskydd, att Bas-U ska få kopior av handlingarna och om den fortlöpande kontrollen finns i Arbetsmiljöverkets föreskrifter och allmänna råd (AFS 2023:11) om arbetsutrustning och personlig skyddsutrustning – säker användning, kapitlet om användning av ställningar.\n- 4 kap. 20 § AFS 2023:3 Bas-U ska se till att kontroll utförs\n22 § ställning eller ett väderskydd\n(5 kap. 48 § 2023:13 AG ska se till att utrustning och installationer kontrolleras innan de tas i bruk\n5 kap. 79 § 2023:13 AG och andra ansvariga enligt 2 § ska vidta lämpliga säkerhetsåtgärder för att skydda AT mot risker. Under allmänna råd nämns Monteringsanvisning \n5 kap. 108 § AFS 2023:13 arbete med tillfälliga konstruktioner\n8 kap. 1 § AFS 2023: 11 Användning av ställningar  )"]
[null,{"$f":"'8. Bas-U, Byh rond'!A21","v":"8.5.3"},{"$f":"'8. Bas-U, Byh rond'!B21:C21","v":"Finns fallskydd, eller annan åtgärd vid nivåskillnader?"},0,null,null,null,null,null,"5 kap. 60 - 69 §§ AFS 2023:13 Risk för fall \n11 kap. 13 § AFS 2023:11 AG ska se till att personligt fallskydd används\n12 kap 10 § AFS 2023:11 anvädning vid tillfälliga personlyft\n"]
[null,{"$f":"'8. Bas-U, Byh rond'!A22","v":"8.6"},{"$f":"'8. Bas-U, Byh rond'!B22:C22","v":"Är tekniska anordningar besiktigade och provade, har förare kompetens och tillstånd?"},0,null,null,null,null,null,"4 kap. 4 § AFS 2023:3 p.2 anger att Bas-U ska ha rutiner  - allmänna råd tar upp samordningsmöten och andra möten\n 20 § AFS 2023:3 Bas-U ska se till att kontroll utförs\n21 § anger att Bas-U ska försäkra sig om att tekniska anordningar är kontrollerade, besiktigade och godkända enligt gällande regler. Nästa stycke anger tillräcklig kompetens hos förare. "]
[null,{"$f":"'8. Bas-U, Byh rond'!A23","v":"8.7"},{"$f":"'8. Bas-U, Byh rond'!B23:C23","v":"Är det städat och ordning på arbetsplatsen?\n"},0,null,null,null,null,null,"4 kap. 8 § Bas-U ska organisera skyddsverksamhet \n 20 § AFS 2023:3 Bas-U ska se till att kontroll utförs\n11 kap. 10§ AFS 2023:3 ordnings och skyddsregler 12 § beskriver åtgärder till arbeten med särskild risk\n(5 kap.10 § AFS 2013:13 Arbetsgivaren ska medverka till god ordning på byggarbetsplatsen och att onödigt material, redskap, emballage, avfall och liknande tas omhand.)"]
[null,{"$f":"'8. Bas-U, Byh rond'!A24","v":"8.8"},{"$f":"'8. Bas-U, Byh rond'!B24:C24","v":"Har Bas-U beaktat att enbart behöriga har tillträde till byggarbetsplatsen? "},0,null,null,null,null,null,"4 kap. 4 § p 4 § AFS 2023:3 Bas-U ska se till att bara behöriga får tillträde"]
[null,{"$f":"'8. Bas-U, Byh rond'!A25","v":"8.8.1"},{"$f":"'8. Bas-U, Byh rond'!B25:C25","v":"Finns kontaktuppgifter för anmälan av materialtransporter och besökande vid infarter?"},0,null,null,null,null,null,"5 kap. 14 § AFS 2023:13 Avgränsa och skylta arbetsplatsen"]
[null,{"$f":"'8. Bas-U, Byh rond'!A26","v":"8.9"},{"$f":"'8. Bas-U, Byh rond'!B26:C26","v":"Har Bas-U inrättat personalutrymmen och sanitära anordningar på byggarbetsplatsen?"},0,null,null,null,null,null,"4 kap 11 § AFS 2023:3 Bas-U ska se till att det finns personalutrymmen, toaletter i den omfattning det behövs"]

{"sheet":"Hjälp 4. & 9. Verksamma","index":14,"n_rows":28,"n_cols":13,"rows_kept":28,"cut":false,"hidden":false,"merged":[[1,1,2,3],[1,5,7,8],[3,1,3,2],[8,10,8,12],[2,4,3,4]]}
[]
[null,"Arbetsgivare verksamma på byggarbetsplats   \n(Ej Bas-U)*)",null,null,null,"Intern styrning\nRutin TDOK 2018:0151  Byggherrens arbetsmiljöansvar vid byggnads- och anläggningsarbeten \n\nTMALL 1002, checklista\n- Huvudfrågor, baseras på grundläggande skyldighet eller övergripande arbetsuppgift enligt arbetsmiljölagstiftningen. \n   Se markerade frågor med färg- och fetstil, samt numreringshierarki.\n- Delfrågor, Relevanta delfrågor ställs för att följa upp detaljerade bestämmelser och/ eller kontraktskrav med avseende på överliggande fråga, se numreringshierarki. Huvudfråga eller annan enskild frågor kan ha delfrågor. Delfrågorna är även en vägledning till vad huvudfrågorna innefattar. "]
[null,null,null,null,"*) Se rutin TDOK 2018:0151. \nAvser leverantör vilken inte är utsedd till Bas-U, enligt kontrakt eller överenskommelse.  \nOmfattar även bl a platsbesök och fältarbeten i samband med planering och projektering"]
[null,"Hjälp, Råd och stöd \nFÖRBÄTTRINGSARBETE! \n(Uppgifter kompletteras efterhand. Se motsvarande \"Hjälp\" i BUS-systemet. Material kommer sedan läggas där under \"?\", i PDF-format.)\n\n"]
[]
[]
[]
[]
[null,null,null,null,null,"           Hjälp (Råd och stöd)",null,null,null,null,"Bedömningsstöd/ Vägledning"]
[null,"LÄNK,\nTillbaka till checklistan:","Rubrik/ Fråga",null,"Notisfält\nEgen anteckning","Arbetssätt / Rutin\nSe och jämför med redovisat arbetssätt, för HUR uppgiften avses  genomföras på ett systematiskt sätt.","Kontraktskrav\nKontrollera alltid mot kontraktsunika krav. Kravtext  enligt inköpsmallar Administrativa föreskrifter (AF) samt Uppdragsbeskrivningen (UB) , Se AF-koder, där krav ska/ bör finnas.","Teckenförklaring","Förtydligande och stöd","Ur Arbetsmiljölagen (AML) eller AFS \nHänvisade bestämmelser eller utdrag ur dessa\nObservera, inte fullständiga texter! Se av.se","Ja, Accepterad\n[x]","Nej, Mindre anmärkning\n[x] ","Nej,  Avvikelse\n[x]"]
[null,{"$f":"'4. Start Verksamma'!A11","v":0},{"$f":"'4. Start Verksamma'!B11:C11","v":"Arbetsgivares samråd, lämna uppgifter och delta i samordning "},0]
[null,{"$f":"'4. Start Verksamma'!A12","v":"4.1"},{"$f":"'4. Start Verksamma'!B12:C12","v":"Finns det arbetssätt för hur leverantören ser till att den egna verksamheten inte medför risk för andra på arbetsplatsen och lämnar uppgifter om risker och produktionsplanering till Bas-U för samordning?\n(Där relevant, även uppgifter till samordningsansvarig för gemensamt arbetsställe med rådighetsansvar) "},0,null," Arbetssätt ska redovisas vid uppstart/ i projektplan, enligt \"Kvalitetsstyrning i upphandlad verksamhet - Entreprenad och Projekteringstjänster\" TDOK 2016:0032. Se även övergripande granskning projektplan enligt TMALL 1004","xxx",null,null,"Ur ... 3kap 7 g § AML\nDe som samtidigt, eller i tidsmässig anslutning till varandra, bedriver verksamhet på ett gemensamt\narbetsställe, ska samråda och gemensamt verka för att åstadkomma tillfredsställande skyddsförhållanden.\nVar och en av dem ska se till att den egna verksamheten och anordningarna på det gemensamma arbetsstället inte medför att någon som arbetar där utsätts för risk för ohälsa eller olycksfall. De som bedriver verksamhet eller arbetar på det gemensamma arbetsstället ska följa anvisningar från en byggarbetsmiljösamordnare i fråga om byggnads- eller anläggningsarbete och från den som är ansvarig för samordningen av arbetsmiljöfrågor i övriga fall. \n2 kap 7§ AFS 2023:2 Arbetsgivaren ska se till att arbetstagarna känner till vilka arbetsuppgifter de ska utföra, vilket resultat som ska uppnås med arbetet.  \n 5kap 5§  AFS 2023:13 Arbetsgivaren ska lämna uppgifter till Bas-U om arbeten med särskild risk vars åtgärder ska beskrivas i arbetsmiljöplanen enligt Arbetsmiljöverkets föreskrifter ochallmänna råd (AFS 2023:3).  \n4 kap 12 § AFS 2023:3 Bas-U ska ge klartecken till entreprenörerna innan de får påbörja sitt\narbete i byggprojektet för första gången.\nInnan Bas-U kan ge klartecken för start av arbetet, ska entreprenören ha\nlämnat in uppgifter om\n1. arbeten med särskild risk vars åtgärder ska beskrivas i\narbetsmiljöplanen enligt 11 kap. 12 §,\n2 arbetsmiljörisker som det egna arbetet kan orsaka för övriga som\narbetar på byggarbetsplatsen, och\n3 egna arbetsmiljörisker som kan åtgärdas genom samordning.\nBas-U ska även se till att arbetsmiljöriskerna är hanterade eller att det finns\nplanerade åtgärder innan entreprenören får påbörja sitt arbete.\nAllmänna råd\nUtifrån den information om arbetsmiljörisker som finns, bör Bas-U utse\nden som har bäst kännedom om riskerna att vidta åtgärder. Planerade\nåtgärder kan exempelvis vara inplanerade arbetsberedningar.\nKlartecken kan kommuniceras muntligt och det kan vara lämpligt att\ndokumentera det genom signering.\nBestämmelser om att entreprenörer ska lämna uppgifter om\narbetsmiljörisker till Bas-U finns i Arbetsmiljöverkets föreskrifter\noch allmänna råd (AFS 2023:13) om risker vid vissa typer av arbeten,\nkapitlet om byggnads- och anläggningsarbete.\n4 kap 13 §  AFS 2023:3 Om uppgifterna enligt 12 § saknas, ska Bas-U begära in dem\nfrån entreprenörerna.\n"]
[null,{"$f":"'4. Start Verksamma'!A13","v":"4.2"},{"$f":"'4. Start Verksamma'!B13:C13","v":"Finns det arbetssätt för hur leverantören deltar i arbetsmiljöarbetet och säkerställer att man följer anvisningar, arbetsmiljöplan med ordnings- och skyddsregler från Bas-U? \n(Där relevant, även samordningsansvarig för gemensamt arbetsställe med rådighetsansvar)"},0,null," Arbetssätt ska redovisas vid uppstart/ i projektplan, enligt \"Kvalitetsstyrning i upphandlad verksamhet - Entreprenad och Projekteringstjänster\" TDOK 2016:0032. Se även övergripande granskning projektplan enligt TMALL 1004 ",null,null,null,"\n-Ur..5kap 5 §  AFS 2023:13\n Arbetsgivaren ska lämna uppgifter till Bas-U om arbeten med särskild risk vars åtgärder ska beskrivas i arbetsmiljöplanen enligt Arbetsmiljöverkets föreskrifter och allmänna råd (AFS 2023:3) om projektering och byggarbetsmiljösamordning – grundläggande skyldigheter, kapitlet om arbetsmiljöplan, arbetsmiljörisker som arbetsgivarens eget arbete kan orsaka för övriga som arbetar på byggarbetsplatsen, och arbetsgivarens egna arbetsmiljörisker som kan åtgärdas genom samordning.\n- Ur...  5kap 9 §  AFS 2023:13 Arbetsgivaren ska se till att arbetstagarna följer de ordnings- och skyddsregler som Bas-U utfärdar och att arbetstagarna deltar i byggarbetsplatsens arbetsmiljöarbete.. "]
[null,{"$f":"'4. Start Verksamma'!A14","v":"4.2.1"},{"$f":"'4. Start Verksamma'!B14:C14","v":"Finns det arbetssätt för hur man anmäler platsbesök till Bas-U, samt tar del av och följer gällande arbetsmiljöplan med ordnings- och skyddsregler? \n(Där relevant, även samordningsansvarig för gemensamt arbetsställe med rådighetsansvar) "},0,null," Arbetssätt ska redovisas vid uppstart/ i projektplan, enligt \"Kvalitetsstyrning i upphandlad verksamhet - Entreprenad och Projekteringstjänster\" TDOK 2016:0032. Se även övergripande granskning projektplan enligt TMALL 1004 ","Se TDOK 2016:0032 kap. 4.5 Dokumenterade arbetssätt ska beskriva hur leverantören säkerställer \n(Se checklista 2. och 6.)",null,null," Arbetssätt ska redovisas vid uppstart/ i projektplan, enligt \"Kvalitetsstyrning i upphandlad verksamhet - Entreprenad och Projekteringstjänster\" TDOK 2016:0032. Se även övergripande granskning projektplan enligt TMALL 1004 \n\nSe TDOK 2016:0032 kap. 4.5 Dokumenterade arbetssätt ska beskriva hur leverantören säkerställer \n(Se checklista 2. och 6.)\n- Ur...  5kap 9 §  AFS 2023:13 Arbetsgivaren ska se till att arbetstagarna följer de ordnings- och skyddsregler som Bas-U utfärdar och att arbetstagarna deltar i byggarbetsplatsens arbetsmiljöarbete.. "]
[]
[null,{"$f":"'9. Verksamma'!A11","v":0},{"$f":"'9. Verksamma'!B11:C11","v":"Arbetsgivares samråd, lämna uppgifter och delta i samordning "},0]
[null,{"$f":"'9. Verksamma'!A12","v":"9.1"},{"$f":"'9. Verksamma'!B12:C12","v":"Har leverantören lämnat uppgifter om arbets- och tidsplanering samt verksamhetens risker till Bas-U? 1) \n(Där relevant, även uppgifter till samordningsansvarig för gemensamt arbetsställe med rådighetsansvar.) "},0,null,"1) Jämför om man arbetar enligt det arbetssätt som redovisats vid uppstart/ i projektplan, se krav TDOK 2016:0032. D v s se den uppföljningen som ska genomförts vid uppstart enligt checklista nr 4.  i denna TMALL 1002.  Avvikelser dokumenteras.",null,null,null,"Ur ...7 g §\nDe som samtidigt, eller i tidsmässig anslutning till varandra, bedriver verksamhet på ett gemensamt arbetsställe, ska samråda och gemensamt verka för att\nåstadkomma tillfredsställande skyddsförhållanden.\nVar och en av dem ska se till att den egna verksamheten och anordningarna på det gemensamma arbetsstället inte medför att någon som arbetar där utsätts för risk för\nohälsa eller olycksfall.\nDe som bedriver verksamhet eller arbetar på det gemensamma arbetsstället ska följa anvisningar från en byggarbetsmiljösamordnare i fråga om byggnads- eller anläggningsarbete och från den som är ansvarig för samordningen av arbetsmiljöfrågor i övriga fall.\n 2 kap 7§ AFS 2023:2 Arbetsgivaren ska se till att arbetstagarna känner till vilka arbetsuppgifter de ska utföra, vilket resultat som ska uppnås med arbetet.  \n 5kap 5§  AFS 2023:13 Arbetsgivaren ska lämna uppgifter till Bas-U om\narbeten med särskild risk vars åtgärder ska beskrivas i arbetsmiljöplanen enligt Arbetsmiljöverkets föreskrifter och allmänna råd (AFS 2023:3) om projektering och byggarbetsmiljösamordning – grundläggande skyldigheter, kapitlet om arbetsmiljöplan,\narbetsmiljörisker som arbetsgivarens eget arbete kan orsaka för övriga som arbetar på byggarbetsplatsen, och arbetsgivarens egna arbetsmiljörisker som kan åtgärdas genom samordning  \n4 kap 12 § AFS 2023:3 Bas-U ska ge klartecken till entreprenörerna innan de får påbörja sitt\narbete i byggprojektet för första gången.\nInnan Bas-U kan ge klartecken för start av arbetet, ska entreprenören ha\nlämnat in uppgifter om\n1. arbeten med särskild risk vars åtgärder ska beskrivas i\narbetsmiljöplanen enligt 11 kap. 12 §,\n2 arbetsmiljörisker som det egna arbetet kan orsaka för övriga som\narbetar på byggarbetsplatsen, och\n3 egna arbetsmiljörisker som kan åtgärdas genom samordning.\nBas-U ska även se till att arbetsmiljöriskerna är hanterade eller att det finns\nplanerade åtgärder innan entreprenören får påbörja sitt arbete.\nAllmänna råd\nUtifrån den information om arbetsmiljörisker som finns, bör Bas-U utse\nden som har bäst kännedom om riskerna att vidta åtgärder. Planerade\nåtgärder kan exempelvis vara inplanerade arbetsberedningar.\nKlartecken kan kommuniceras muntligt och det kan vara lämpligt att\ndokumentera det genom signering.\nBestämmelser om att entreprenörer ska lämna uppgifter om\narbetsmiljörisker till Bas-U finns i Arbetsmiljöverkets föreskrifter\noch allmänna råd (AFS 2023:13) om risker vid vissa typer av arbeten,\nkapitlet om byggnads- och anläggningsarbete.\n4 kap 13 §  AFS 2023:3 Om uppgifterna enligt 12 § saknas, ska Bas-U begära in dem\nfrån entreprenörerna."]
[null,{"$f":"'9. Verksamma'!A13","v":"9.1.1"},{"$f":"'9. Verksamma'!B13:C13","v":"Har leverantören delgivit Bas-U uppgifter på att tekniska anordningar är besiktigade och provade samt att förare har kompetens och tillstånd?"},0,null,null,null,null,null,"\nUr… 4 kap 21 § Bas-U ska försäkra sig om att de tekniska anordningar som används är\nkontrollerade, besiktigade eller provade och godkända enligt gällande regler.\nBas-U ska även försäkra sig om att förare har tillräcklig kompetens eller\nnödvändiga tillstånd för användning av anordningarna.\n3 arbetsmiljölagen (1977:1160).\nAllmänna råd\nBestämmelsen inskränker inte det arbetsmiljöansvar som arbetsgivaren\nhar för den som använder, eller är förare av, en teknisk anordning.\nBas-U kan försäkra sig om kontrollen genom att entreprenörer får\nvisa upp besiktningsintyg, dokumentation av underhåll och kontroll\nsamt utbildningsintyg för att få klartecken för start av arbete, vid\nintroduktion på byggarbetsplatsen, skyddsronder, stickprov och\nsäkerhetsmöten. Bestämmelser om intyg och kontroller finns i\nArbetsmiljöverkets föreskrifter och allmänna råd (AFS 2023:11) om\narbetsutrustning och personlig skyddsutrustning - säker användning,\nbland annat i kapitlen om användning av lyftanordningar och\ntrycksatta anordningar.\nExempel på tillstånd som kan krävas är skriftliga tillstånd från\narbetsgivaren för att arbetstagare ska få använda lyftanordningar."]
[null,{"$f":"'9. Verksamma'!A14","v":"9.1.2"},{"$f":"'9. Verksamma'!B14:C14","v":"Kommuniceras förändringar eller avvikelser från projekterad anläggning med byggherren och Bas-P?"},0,null,null,"Se TDOK 2016:0032 kap. 4.5 Dokumenterade arbetssätt ska beskriva hur leverantören säkerställer ",null,"Se krav Byggherre o Bas-P. eller via Bas-U? Vem ska man lyfta till? 19§ \"Bas-P ska sammanställa och överlämna information om ny eller ändrad projektering till Bas-U, för att Bas-U ska kunna uppdatera AMP.\" AH 24§ \"Om projektering fortsätter efter överlämning från Bas-P till Bas-U, ska Byggherren se till att det är klargjort hur och när ytterligare projekteringsunderlag och arbetsmiljöinformation överlämnas till Bas-U\" AH\n(Se checklista 2. och 6.)","Se TDOK 2016:0032 kap. 4.5 Dokumenterade arbetssätt ska beskriva hur leverantören säkerställer \n(Se checklista 2. och 6.)"]
[null,{"$f":"'9. Verksamma'!A15","v":"9.1.3"},{"$f":"'9. Verksamma'!B15:C15","v":"Anmäls platsbesök till Bas-U?\n(Där relevant, även samordningsansvarig för gemensamt arbetsställe med rådighetsansvar) "},0,null,null,null,null,null," Ur...  5kap 9 §  AFS 2023:13 Arbetsgivaren ska se till att arbetstagarna följer de ordnings- och skyddsregler som Bas-U utfärdar och att arbetstagarna deltar i byggarbetsplatsens arbetsmiljöarbete.. \n"]
[null,{"$f":"'9. Verksamma'!A16","v":"9.1.4"},{"$f":"'9. Verksamma'!B16:C16","v":"Delges produktionsplanering och riskhantering, som i arbetsberedningar eller SoS-planer m m, till Bas-U för samordning?"},0,null,"1) Jämför om man arbetar enligt det arbetssätt som redovisats vid uppstart/ i projektplan, se krav TDOK 2016:0032. D v s se den uppföljningen som ska genomförts vid uppstart enligt checklista nr 4.  i denna TMALL 1002.  Avvikelser dokumenteras.\n","TDOK 2016:0032 ",null,null,"\nUr ... 2 kap 7§ AFS 2023:2 Arbetsgivaren ska se till att arbetstagarna känner till vilka arbetsuppgifter de ska utföra, vilket resultat som ska uppnås med arbetet.  \n 5kap 5§  AFS 2023:13 Arbetsgivaren ska lämna uppgifter till Bas-U om arbeten med särskild risk vars åtgärder ska beskrivas i arbetsmiljöplanen enligt Arbetsmiljöverkets föreskrifter ochallmänna råd (AFS 2023:3).  \n4 kap 12 § AFS 2023:3 Bas-U ska ge klartecken till entreprenörerna innan de får påbörja sitt\narbete i byggprojektet för första gången.\nInnan Bas-U kan ge klartecken för start av arbetet, ska entreprenören ha\nlämnat in uppgifter om\n1. arbeten med särskild risk vars åtgärder ska beskrivas i\narbetsmiljöplanen enligt 11 kap. 12 §,\n2 arbetsmiljörisker som det egna arbetet kan orsaka för övriga som\narbetar på byggarbetsplatsen, och\n3 egna arbetsmiljörisker som kan åtgärdas genom samordning.\nBas-U ska även se till att arbetsmiljöriskerna är hanterade eller att det finns\nplanerade åtgärder innan entreprenören får påbörja sitt arbete.\nAllmänna råd\nUtifrån den information om arbetsmiljörisker som finns, bör Bas-U utse\nden som har bäst kännedom om riskerna att vidta åtgärder. Planerade\nåtgärder kan exempelvis vara inplanerade arbetsberedningar.\nKlartecken kan kommuniceras muntligt och det kan vara lämpligt att\ndokumentera det genom signering.\nBestämmelser om att entreprenörer ska lämna uppgifter om\narbetsmiljörisker till Bas-U finns i Arbetsmiljöverkets föreskrifter\noch allmänna råd (AFS 2023:13) om risker vid vissa typer av arbeten,\nkapitlet om byggnads- och anläggningsarbete.\n4 kap 13 §  AFS 2023:3 Om uppgifterna enligt 12 § saknas, ska Bas-U begära in dem\nfrån entreprenörerna."]
[null,{"$f":"'9. Verksamma'!A17","v":"9.2"},{"$f":"'9. Verksamma'!B17:C17","v":"Deltar leverantören i arbetsmiljöarbetet och följer anvisningar, arbetsmiljöplan med ordnings- och skyddsregler från Bas-U?  1)\n(Där relevant, även samordningsansvarig för gemensamt arbetsställe med rådighetsansvar)"},0,null,"1) Jämför om man arbetar enligt det arbetssätt som redovisats vid uppstart/ i projektplan, se krav TDOK 2016:0032. D v s se den uppföljningen som ska genomförts vid uppstart enligt checklista nr 4.  i denna TMALL 1002.  Avvikelser dokumenteras.",null,null,"VITE:  Vid åsidosättande av\n- - att arbeten med särskilda arbetsmiljörisker ska bedrivas enligt åtgärderna beskrivna i byggarbetsplatsens arbetsmiljöplan, ska vite betalas med 47 000 SEK oavsett antal brister. \n- krav på personlig skyddsutrustning (angivna i byggarbetsplatsens arbetsmiljöplan och endast i förekommande fall däri angivna krav på skyddshjälm och/eller personlig fallskyddsutrustning)\n\n"," Ur...  5kap 9 §  AFS 2023:13 Arbetsgivaren ska se till att arbetstagarna följer de ordnings- och skyddsregler som Bas-U utfärdar och att arbetstagarna deltar i byggarbetsplatsens arbetsmiljöarbete..\n"]
[null,{"$f":"'9. Verksamma'!A18","v":"9.2.1"},{"$f":"'9. Verksamma'!B18:C18","v":"Finns protokoll från egna skyddsronder på byggarbetsplatsen?"},0,null,"1) Jämför om man arbetar enligt det arbetssätt som redovisats vid uppstart/ i projektplan, se krav TDOK 2016:0032. D v s se den uppföljningen som ska genomförts vid uppstart enligt checklista nr 4.  i denna TMALL 1002.  Avvikelser dokumenteras.","x?",null,"Se, om krav AF samt 2016:0032 (det bedrivs ett systematiskt arbetsmiljöarbete i enlighet med vad som följer av arbetsmiljölagen och tillhörande föreskrifter)"]
[null,{"$f":"'9. Verksamma'!A19","v":"9.2.2"},{"$f":"'9. Verksamma'!B19:C19","v":"Delges byggherren och Bas-U dokumentation rörande rapportering, utredning av olyckor och allvarliga tillbud, samt skriftlig dialog med Arbetsmiljöverket?"},0,null,null,"TDOK 2016:0035"]
[null,{"$f":"'9. Verksamma'!A20","v":"9.2.3"},{"$f":"'9. Verksamma'!B20:C20","v":"Deltar leverantören på Bas-U:s byggarbetsmiljösamordningsmöten?"},0,null,null,": xxxAFC/D 338",null,null,"Ur...  5kap 9 §  AFS 2023:13 Arbetsgivaren ska se till att arbetstagarna följer de ordnings- och skyddsregler som Bas-U utfärdar och att arbetstagarna deltar i byggarbetsplatsens arbetsmiljöarbete.."]
[null,{"$f":"'9. Verksamma'!A21","v":"9.3"},{"$f":"'9. Verksamma'!B21:C21","v":"Medverkar leverantören till att det råder god ordning på byggarbetsplatsen?  "},0,null,null,null,null,null,"Ur … 5 kap.10 § AFS 2013:13\n Arbetsgivaren ska medverka till god ordning på byggarbetsplatsen och att onödigt material, redskap, emballage, avfall och liknande tas omhand."]
[null,{"$f":"'9. Verksamma'!A22","v":"\n9.4\n(6.9)"},{"$f":"'9. Verksamma'!B22:C22","v":"Genomförs samordning i samband med fältundersökningar och platsbesök enligt kontrakt, överenskommelser samt handlingsplan i projektplan? 1)  "},0,null,"1) Jämför om man arbetar enligt det arbetssätt som redovisats vid uppstart/ i projektplan, se krav TDOK 2016:0032. D v s se den uppföljningen som ska genomförts vid uppstart enligt checklista nr 4.  i denna TMALL 1002.  Avvikelser dokumenteras.","Se TDOK 2016:0032, 4.5",null," Dokumenterade arbetssätt ska beskriva hur leverantören säkerställer\n- Bestämmelser rörande samordning av Bas-U avser här fältundersökningar och/eller platsbesök på ett befintligt arbetsområde  för  pågående byggnadsarbete, d v s en byggarbetsplats.\n(Då knutet till planering och projektering,se kopplat till checklista 2. och 6.)","Ur ... 2 kap 7§ AFS 2023:2 Arbetsgivaren ska se till att arbetstagarna känner till vilka arbetsuppgifter de ska utföra, vilket resultat som ska uppnås med arbetet.  \n 5kap 5§  AFS 2023:13 Arbetsgivaren ska lämna uppgifter till Bas-U om arbeten med särskild risk vars åtgärder ska beskrivas i arbetsmiljöplanen enligt Arbetsmiljöverkets föreskrifter ochallmänna råd (AFS 2023:3).  \n4 kap 12 § AFS 2023:3 Bas-U ska ge klartecken till entreprenörerna innan de får påbörja sitt\narbete i byggprojektet för första gången.\nInnan Bas-U kan ge klartecken för start av arbetet, ska entreprenören ha\nlämnat in uppgifter om\n1. arbeten med särskild risk vars åtgärder ska beskrivas i\narbetsmiljöplanen enligt 11 kap. 12 §,\n2 arbetsmiljörisker som det egna arbetet kan orsaka för övriga som\narbetar på byggarbetsplatsen, och\n3 egna arbetsmiljörisker som kan åtgärdas genom samordning.\nBas-U ska även se till att arbetsmiljöriskerna är hanterade eller att det finns\nplanerade åtgärder innan entreprenören får påbörja sitt arbete.\nAllmänna råd\nUtifrån den information om arbetsmiljörisker som finns, bör Bas-U utse\nden som har bäst kännedom om riskerna att vidta åtgärder. Planerade\nåtgärder kan exempelvis vara inplanerade arbetsberedningar.\nKlartecken kan kommuniceras muntligt och det kan vara lämpligt att\ndokumentera det genom signering.\nBestämmelser om att entreprenörer ska lämna uppgifter om\narbetsmiljörisker till Bas-U finns i Arbetsmiljöverkets föreskrifter\noch allmänna råd (AFS 2023:13) om risker vid vissa typer av arbeten,\nkapitlet om byggnads- och anläggningsarbete.\n4 kap 13 §  AFS 2023:3 Om uppgifterna enligt 12 § saknas, ska Bas-U begära in dem\nfrån entreprenörerna."]
[null,{"$f":"'9. Verksamma'!A23","v":0},{"$f":"'9. Verksamma'!B23:C23","v":0},0]

{"sheet":"(Resultat Test) ","index":15,"n_rows":42,"n_cols":20,"rows_kept":42,"cut":false,"hidden":true,"merged":[[9,2,11,2],[14,2,17,2],[33,5,33,6],[33,10,33,12],[33,13,33,15],[20,5,20,6],[20,10,20,12],[20,13,20,15],[8,5,8,6],[8,10,8,12],[8,13,8,15],[10,4,12,4],[15,4,17,4],[1,14,2,14],[1,15,2,15],[2,3,2,4],[3,5,3,6],[4,5,4,6],[4,10,4,12],[4,13,4,15],[1,13,2,13],[1,2,2,2],[1,5,2,6],[1,10,2,10],[1,11,2,11],[1,12,2,12]]}
[]
[null,null,"RESULTATSAMMANSTÄLLNING",null,null,null,null,"Ja, utan Anm. ",null,null,"Antal besvarade frågor","Totalt antal frågor","Andel besvarade frågor","Antal besvarade frågor","Totalt antal frågor","Andel besvarade frågor"]
[null,null,null,"Vägd andel uppfyllda krav [%]",null,null,null,"Liten Anm."]
[null,null,null,null,null,null,null,"Nej, stor Anm.",null,null,null,null,"%",null,null,"%"]
[null,null,"RESULTAT\nByggherre att beakta","Huvudnivå","Total",null,null,null,null,null,"Huvudnivå",null,null,"Total"]
[null,null,"Byggherre ",null,null,null,null,null,null,null,null,9,{"$f":"K6/L6*100","v":0},null,23,{"$f":"N6/O6*100","v":0}]
[]
[null,null,null,null,null,null,null,null,null,null,null,null,null,null,null,null,null,null,{"$f":"SUM(S5:S7)","v":0}]
[null,null,"\nPlanering Projektering","Huvudnivå","Total","Fördelning av totalt antal besvarade frågor",null,"Vägd andel=   (Antal \"Ja\" + 0,5 * antal \"Liten anm\") * 100",null,null,"Huvudnivå",null,null,"Total"]
[null,null,"Leverantör Planering Projektering\n",null,null,null,null,null,"totalt antal besvarade frågor",null,null,null,null,null,null,null,null,null,"Fördelning av besvarade frågor"]
[null,null,null,null,{"$f":"'6. Plan proj'!J2","v":0.1}]
[null,null,null,{"$f":"'6. Plan proj'!J1","v":0.1},null,null,null,null,null,null,null,3,{"$f":"K12/L12*100","v":0},{"$f":"S15","v":0},10,{"$f":"N12/O12*100","v":0},null,null,{"$f":"'6. Plan proj'!AI13","v":0}]
[null,null,null,null,null,null,null,null,null,null,null,null,null,null,null,null,null,null,{"$f":"'6. Plan proj'!AJ13","v":0}]
[null,null,null,null,null,null,null,null,null,null,null,null,null,null,null,null,null,null,{"$f":"'6. Plan proj'!AK13","v":0}]
[null,null,"BAS-P uppgifter",null,null,null,null,null,null,null,null,null,null,null,null,null,null,null,{"$f":"SUM(S12:S14)","v":0},"PP"]
[null,null,null,null,{"$f":"'5. Bas-P'!J2","v":0.1}]
[null,null,null,null,null,null,null,null,null,null,null,4,{"$f":"K17/L17*100","v":0},{"$f":"S20","v":0},12,{"$f":"N17/O17*100","v":0},null,null,{"$f":"'5. Bas-P'!AI12","v":0}]
[null,null,null,{"$f":"'5. Bas-P'!J1","v":0.1},null,null,null,null,null,null,null,null,null,null,null,null,null,null,{"$f":"'5. Bas-P'!AJ12","v":0}]
[null,null,null,null,null,null,null,null,null,null,null,null,null,null,null,null,null,null,{"$f":"'5. Bas-P'!AK12","v":0}]
[null,null,null,null,null,null,null,null,null,null,null,null,null,null,null,null,null,null,{"$f":"SUM(S17:S19)","v":0},"BAS-P"]
[null,null,"\nByggande/ utförande","Huvudnivå","Total","Fördelning av besvarade frågor",null,null,null,null,"Huvudnivå",null,null,"Total"]
[null,null,"\n",null,null,null,null,null,null,null,null,null,null,null,null,null,null,null,{"$f":"'7. Bas-U'!AI12","v":0}]
[null,null,null,null,null,null,null,null,null,null,null,null,null,null,null,null,null,null,{"$f":"'7. Bas-U'!AJ12","v":0}]
[null,null," BAS-U uppgifter",{"$f":"'7. Bas-U'!J1","v":0.1},{"$f":"'7. Bas-U'!J2","v":0.1},null,null,null,null,null,{"$f":"'7. Bas-U'!AN12","v":0},8,{"$f":"K24/L24*100","v":0},{"$f":"S25","v":0},22,{"$f":"N24/O24*100","v":0},null,null,{"$f":"'7. Bas-U'!AK12","v":0}]
[null,null,null,null,null,null,null,null,null,null,null,null,null,null,null,null,null,null,{"$f":"SUM(S22:S24)","v":0},"BAS-U"]
[null,null,null,null,null,null,null,null,null,null,null,null,null,null,null,null,null,null,{"$f":"'8. Bas-U, Byh rond'!AI12","v":0}]
[null,null,"\nRond på byggarbetsplats -BAS-U uppgifter \n                ",{"$f":"'8. Bas-U, Byh rond'!J1","v":0.1},{"$f":"'8. Bas-U, Byh rond'!J2","v":0.1},null,null,null,null,null,null,null,null,{"$f":"S29","v":0},15,{"$f":"N27/O27*100","v":0},null,null,{"$f":"'8. Bas-U, Byh rond'!AJ12","v":0}]
[null,null,null,null,null,null,null,null,null,null,null,null,null,null,null,null,null,null,{"$f":"'8. Bas-U, Byh rond'!AK12","v":0},"Rond"]
[null,null,null,null,null,null,null,null,null,null,null,null,null,null,null,null,null,null,{"$f":"SUM(S26:S28)","v":0}]
[null,null,"BAS-U egenrond Säkerhetsmetoden, exempel…"]
[]
[]
[null,null,null,null,null,null,null,null,null,null,null,null,null,null,null,null,null,null,{"$f":"SUM(S30:S32)","v":0}]
[null,null,"\nVerksamma på byggarbetsplats","Huvudnivå","Total","Fördelning av besvarade frågor",null,null,null,null,"Huvudnivå",null,null,"Total"]
[null,null,"\n",null,null,null,null,null,null,null,null,null,null,null,null,null,null,null,{"$f":"'9. Verksamma'!AI12","v":0}]
[null,null,null,null,null,null,null,null,null,null,null,null,null,null,null,null,null,null,{"$f":"'9. Verksamma'!AJ12","v":0}]
[null,null,"Verksamma, ej BAS-U",{"$f":"'9. Verksamma'!J1","v":{"$error":"#VALUE!"}},{"$f":"'9. Verksamma'!J2","v":0.1},null,null,null,null,null,null,3,{"$f":"K37/L37*100","v":0},null,4,{"$f":"N37/O37*100","v":0},null,null,{"$f":"'9. Verksamma'!AK12","v":0},"Verksamma"]
[null,null,null,null,null,null,null,null,null,null,null,null,null,null,null,null,null,null,{"$f":"SUM(S35:S37)","v":0}]
[]
[null,null," * B rond på arbetsplats "]
[]
[null,null,null,null,null,null,null,null,null,null,null,null,null,null,null,null,null,null,{"$f":"SUM(S39:S41)","v":0}]

{"sheet":"(Stöd Riskområdesbilaga Test)","index":16,"n_rows":66,"n_cols":2,"rows_kept":66,"cut":false,"hidden":true,"merged":[]}
[]
["Bilaga, stöd vid uppföljning\n Risk- och fokusområden","Se AV/\nAFS"]
["Arbetsmiljöplanen\nFinns riskhantering med relevanta åtgärder/behandling beskrivet, särskilt för de tretton utpekade riskområdena?\n"]
["1. Arbete med risk för fall till lägre nivå där nivåskillnaden är två meter eller mer. "]
["Brunnar, kabelkanaler utan lock"]
["Halkbekämpning"]
["2. Arbete som innebär risk att begravas under jordmassor eller sjunka ned i lös mark. "]
["Geoteknisk undersökning visar på särskilda riskområden och behov av  förstärkningsåtgärder m m"]
["3. Arbete med sådana kemiska eller biologiska ämnen som medför särskild fara för hälsa och säkerhet …"]
["Kvartsdamm"]
["Markföroreningar (MKB)"]
["Säkerhetsdatablad"]
["Avgaser..."]
["4. Arbete där de som arbetar exponeras för joniserande strålning …"]
["5. Arbete i närheten av högspänningsledningar. "]
["Ledningsinventering"]
["Skydds- o säkerhetszoner"]
["6. Arbete som medför drunkningsrisk. "]
["7. Arbete i brunnar och tunnlar samt anläggningsarbete under jord. "]
["Betongsläpp/ berglossning…"]
["8. Arbete som utförs under vatten med dykarutrustning. "]
["9. Arbete som utförs i kassun under förhöjt lufttryck. "]
["10. Arbete vid vilket sprängämnen används. "]
["Dolor\nBergytan är noggrant rensad för att undvika dolor"]
["Krav på tändmetod"]
["Undersökning bergkvalitet, åtgärder"]
["11. Arbete vid vilket lansering, montering och nedmontering av tunga byggelement eller tunga formbyggnadselement ingår. "]
["12. Arbete på plats eller område med passerande fordonstrafik. "]
["Skydds- o säkerhetszoner"]
["13. Rivning av bärande konstruktioner eller hälsofarliga material eller ämnen."]
["Andra riskområden:"]
["Fordon, Maskiner eller Transportanordningar för bygget"]
["Användning av transportleder på byggarbetsplatsen"]
["Mottagning och upplagsplatser för material och utrustning"]
["Ergonomi"]
["Buller"]
["Vibrationer"]
["Damm"]
["Utrymning Brand och Första hjälpen"]
["Hot, våld, stress m m"]
["Övrigt"]
["AML 3 kap 6,7§\nBeaktas arbetsmiljösynpunkter för byggskedet, och efter de områden som då särskilt ska uppmärksammas*? \n(*AFS 1999:03 5, 10§) "]
["* 1. objektets eller anläggningens placering och utformning,"]
["Behandlas risker för fall vid byggande och underhåll? Tydliggörs stora nivåskillnader?"]
["* 2. val av byggprodukter,"]
["* 3. val av konstruktioner för grundläggning, stomsystem eller andra bärande element,"]
["* 4. val och utformning av stomkomplettering,"]
["* 5. val av installationer, deras placering och infästning"]
["* 6. val av inredningar."]
["* projektering sker i god tid före arbetenas utförande att det är möjligt att samordna arbetena utan att arbetsmiljörisker uppstår"]
["* 2. transporter av byggmaterial m m kan ske på ett säkert sätt"]
["Markåtkomst så att transporter av byggmaterial  kan ske på ett säkert sätt inom,  till och från arbetsområdet"]
["Kranar"]
["Utrymme för arbetets utförande samt trafik- och skyddsanordningar för passerande fordonstrafik vid byggande och underhållsarbeten"]
["Utrymme för Skydds- o säkerhetszoner"]
["* 3. etableringsområde är tillräckligt stort"]
["Beaktas markåtkomst så att etableringsområdet blir tillräckligt stort  för all verksamhet på byggarbetsplatsen."]
["* Beaktas risker inför rivning?"]
["AML 3 kap 6,7§\nBeaktas arbetsmiljösynpunkter för framtida drift och underhåll?"]
["Arbetsplatsens utformning (AFS 2009:2), föreskrifter\n"]
["Arbetsställning och belastning – ergonomi\n"]
["Utrymme för arbetets utförande samt trafik- och skyddsanordningar för passerande fordonstrafik vid byggande och underhållsarbeten"]
["Utrymmen, möjlighet att komma åt vid drift och underhållsinsatser"]
["Utrymme för Skydds- o säkerhetszoner"]
["Snöröjning"]
["Tillgång till personalutrymmen"]